Workbook

Sheet Getting Started
B4: INTRODUCTION AND PURPOSE

Sheet Inputs
D1: 0
A2: Energy Savings Inputs
A3: CHP System Characteristics
A4: 1. CHP: Type of System | B4: 0
B6: 1
A7: 2. CHP: Electricity Generating Capacity (per unit)
B8: =IF(chptechinput>0,CONCATENATE("Normal size range for this technology is ",TEXT(caplow/chptechcaplow,"#,###")," to ",TEXT(caphigh/chptechcaphigh,"#,###")," kW")," ") -> 
B9: 0 | C9: kW | D9: =CONCATENATE(allcheck1," ",allcheck2," ",allcheck4," ",allcheck5," ",allcheck6," ",allcheck8," ",allcheck9," ",allcheck10," ",allcheck11," ",allcheck12," ",allcheck13," ",allcheck14," ",allcheck15," ",allcheck16) -> 
A12: 3. CHP: How Many Identical Units (i.e., engines) Does This System Have? | D12: =CONCATENATE(allcheck18," ",allcheck19," ",allcheck20," ",allcheck21," ",allcheck22," ",allcheck23," ",allcheck24," ",allcheck25," ",allcheck26," ",allcheck7," ") -> 
B13: 1
A16: 4. CHP: Annual Utilization (Enter a value to answer only ONE of the options below)
A17: Option 1: How many hours per year does the CHP system operate?
B18: 0
A20: As a number of hours per year | B20: 0
A21: OR As a percentage | B21: 0
A23: Option 2: How much grid electricity is displaced by CHP operation each year?
A24: Enter displaced grid electricity as MWh/year | B24: 0 | C24: MWh/yr
A27: 5. CHP: Does the System Provide Heating or Cooling or Both?
B28: 0
A30: =CONCATENATE(" If Heating and Cooling: How many of the ",TEXT(chours,"#,###")," hours are in cooling mode?") -> If Heating and Cooling: How many of the hours are in cooling mode?
A32: As a number of hours per year | B32: 0
A33: =CONCATENATE("as a percentage of the ",TEXT(chours,"#,###")," hours?") -> as a percentage of the hours? | B33: 0
A35: =CONCATENATE(" If Heating and Cooling: Does the System Provide Simultaneous Heating and Cooling?") -> If Heating and Cooling: Does the System Provide Simultaneous Heating and Cooling?
B36: 0
A39: 6. CHP: Fuel
A40: Fuel Type | B40: 0
B41: =IF(chpfuelinput=7,"Click on 'View Biomass and Coal Fuel Characteristics' to select the appropriate CO2 emissions rate and heat content for your fuel. ","") -> 
C42: =IF(chptechinput>8,IF(chpfuelinput=8,"","Please enter a fuel type compatible with the CHP technology"),IF(chptechinput<9,IF(chpfuelinput=8,"Please enter a fuel type compatible with the CHP technology",IF(chpfuelinput=0,"",IF(AND(chptechinput=3,chpfuelinput<>2),"Please enter a fuel type compatible with the CHP technology",IF(OR(chptechinput=6,chptechinput=8),"",IF(AND(OR(chptechinput<>6,chptechinput<>8),OR(chpfuelinput=4,chpfuelinput=6)),"Please enter a fuel compatible with the CHP technology",""))))))) -> 
A44: 7. CHP: What is the Heat Content of this Fuel? (Enter a value in only ONE of the boxes)
B45: 0 | C45: Btu/cubic foot (HHV)
A46: OR | B46: 0 | C46: Btu/gallon (HHV)
A47: OR | B47: 0 | C47: Btu/lb (HHV)
A50: 8. CHP: Boiler Steam To Process (Steam Turbine CHP Only)
A52: Boiler Steam to Process as lb Steam/hr | B52: 0 | C52: =IF(AND(chptechinput<>6,OR(lbsteamperhr>0,mmbtusteamperhr>0)),"Enter boiler steam to process only if steam turbine"," ") -> 
A53: Boiler Steam to Process as MMBtu Steam/hr | B53: 0 | C53: =IF(AND(chptechinput=6,AND(lbsteamperhr>0,mmbtusteamperhr>0)),"Please enter only lb/hr or MMBtu/hr","") -> 
A56: 9. CHP: Steam Turbine System Boiler Efficiency (Steam Turbine CHP Only)
A59: Enter Boiler Efficiency as % | B59: 0 | C59: =IF(AND(chptechinput=6,boilereff>0)," ",IF(AND(chptechinput<>6,boilereff=0)," ","Please enter an efficiency")) -> 
A62: 10. CHP: Electric Efficiency
A64: 0 | B64: =IF(AND(OR(chptechinput=6,chptechinput=9,chptechinput=10),chpeffinput1>0),"Electric efficiency is not used for this technology","") -> 
A65: Enter Generating Efficiency as % | B65: 0 | C65: (HHV)
A66: OR Enter Generating Efficiency as Btu/kWh HHV | B66: 0 | C66: Btu/kWh (HHV)
A67: OR Enter Generating Efficiency as Btu/kWh LHV | B67: 0 | C67: Btu/kWh (LHV)
A70: 11. CHP Equipment: Base Power to Heat Ratio
A71: The Power to Heat Ratio should reflect ONLY the thermal production of the generating unit (i.e., combustion turbine).
A72: Thermal Output of the duct burners (if equipped) should not be included.
B74: See the SubThermalCalculator for help on calculating a Power to Heat Ratio
A75: Power to Heat Ratio (Generating Unit Capacity) | B75: 0 | C75: =IF(chpphinput>0,IF(whptherminput>0,"Enter only one value.",""),"") -> 
A76: If WHP: Useful Thermal Output (MMBtu/hr) | B76: 0
A77: =IF(AND(chptechinput=9,whptherminput>0),"Useful Thermal Output only applies to WHP with thermal output",IF(AND(OR(chptechinput=1,chptechinput=2,chptechinput=3,chptechinput=4,chptechinput=5,chptechinput=6,chptechinput=7,chptechinput=8),whptherminput>0),"Useful Thermal Output only applies to WHP - see the SubThermalCalculator tab for help calculating the Power to Heat Ratio","")) ->  | C77: =IF(AND(OR(chptechinput=6,chptechinput=9),chpphinput>0),"Power to Heat Ratio is not used for this technology","") -> 
A79: 12. Duct Burners: Does the System Incorporate Duct Burners? (Duct Burners only allowed on Combustion Turbines)
A80: 0 | B80: 0
B81: =IF(AND(chptechinput<>5,chpduct1=1),"Duct burners only allowed on Combustion Turbines","") -> 
A83: 13. Duct Burners: What is the Total Fuel Input Capacity of the Burners for Each CHP Unit?
A84: =IF(chptechinput<>0,CONCATENATE(" For reference, the ",CHPname," has a heat input of ",TEXT(cbtuperhour,"#,###.#")," MMBtu/hr")," ") -> 
B85: 0 | C85: MMBtu/hr
A88: =CONCATENATE("14. Duct Burners: The CHP system operates ",TEXT(chours,"#,###")," hours per year. How much do the duct burners operate?") -> 14. Duct Burners: The CHP system operates hours per year. How much do the duct burners operate?
A89: As a number of hours per year | B89: 0
A90: =CONCATENATE("As a percentage of the ",TEXT(chours,"#,###")," hours?") -> As a percentage of the hours? | B90: 0 | C90: 0
A92: CHP Cooling Characteristics
A94: 15. Cooling: Does the CHP Provide Cooling? | B94: =IF(coolinput1=1,"Yes","No") -> No
A95: =IF(chpheatcoolboth=0,2,IF(chpheatcoolboth=1,2,1)) -> 2 | B95: =IF(coolinput1=1,"You indicated Cooling in Item 5","You indicated No Cooling in Item 5") -> You indicated No Cooling in Item 5
A97: 16. Cooling: What is the Coefficient of Performance (COP) of the Absorption Chiller Used?
B98: 0 | C98: 0
A100: Coefficient of Performance (COP) | B100: 0
A103: 17. Cooling: What is the Cooling Capacity of the System? | C103: 0
A104: =IF(chpheatcoolboth<>0,CONCATENATE(" Based on your other entries, the maximum cooling capacity is ",TEXT(coolavailabletons,"#,###.#")," tons or ",TEXT(coolavailableMMBtu,"#,###.#")," MMBtu/hr of cooling")," ") -> 
A106: (Enter a value in only ONE of the boxes) | B106: 0 | C106: Cooling Tons
B107: 0 | C107: OR MMBtu per Hour of Cooling
A110: 18. Displaced Cooling: What is the Efficiency of the Cooling System that is Being Displaced?
B111: 0
C112: 0
A113: (Enter a value in only ONE of the boxes)
A114: Electricity Demand (kW per ton) | B114: 0
A115: OR Coefficient of Performance (COP) | B115: 0
A117: Thermal Characteristics
A119: 19. Displaced Thermal: Type of System: | B119: 0
A122: 20. Displaced Thermal: What is the Heat Content of the displaced Fuel? (Enter a value in only ONE of the boxes)
B123: 0 | C123: Btu/cubic foot (HHV)
A124: OR | B124: 0 | C124: Btu/gallon (HHV)
A125: OR | B125: 0 | C125: Btu/lb (HHV)
A128: 21. Displaced Thermal: Efficiency (usually a boiler)
A130: Enter Generating Efficiency as % | B130: 0
A133: 22. Thermal Utilization (Enter a value to answer only ONE of the options below)
A134: Option 1: CHP Thermal Utilization - What is the percent of available CHP thermal output utilized throughout the year?
A136: Enter thermal utilization as a % | B136: 0
A137: (also applies to cooling)
A138: Option 2: Displaced boiler fuel - What is the quantity of boiler fuel displaced throughout the year?
A139: Enter displaced boiler fuel as MMBtu/year | B139: 0 | C139: MMBtu/yr
A141: Electricity Profile
A143: 23. Displaced Electricity: Electricity Generation Profile
B144: 2
A145: Link to Guidelines for Displaced Electricity Generation Profile
A148: 24. Displaced Electricity: Select U.S. Average, eGRID Subregion, NERC region, or State
B149: 1
A150: Link to eGRID Subregion Map
A153: 25. Displaced Electricity: Select Electric Grid Region for Transmission and Distribution (T&D) Losses | D153: *Stop entering inputs here to calculate ONLY energy savings - continue entering inputs to calculate energy AND emissions savings
B154: 1
B155: 0.0833
A156: Link to NERC Interconnections Map
A158: Emissions Savings Inputs
A159: CHP & Displaced Boiler Emissions Characteristics
A161: 26. CHP: If Biomass, Diesel, Distillate, Coal or Other: What is the Sulfur Content?
A162: If WHP, what is the sulfur content of the stack?
B163: or
A164: 0
E165: 27
A166: Enter Sulfur Content of Fuel as a percent | B166: 0
A167: OR ppm | B167: 0 | C167: ppm
A170: 27. CHP: What is the CO2 Emission Rate for this Fuel? (default completed for fuel in Item 6)
A171: Enter alternative value: | B171: 0 | C171: lb CO2/MMBtu
A174: 28. CHP: NOx Emission Rate
A176: 0 | B176: 2
A178: Enter a NOx Rate as ppm (15% O2) | B178: 0 | C178: ppm
A179: OR Enter a NOx Rate as gm/hp-hr | B179: 0 | C179: gm/hp-hr
A180: OR Enter a NOx Rate as lb/MMBtu | B180: 0 | C180: lb NOx/MMBtu
A181: OR Enter a NOx Rate as lb/MWh | B181: 0 | C181: lb NOx/MWh
A184: 29. Duct Burners: NOx Emission Rate for the Duct Burners
B185: 2
A186: 0 | B186: =IF(AND(chptechinput<>5,OR(chpduct3>0,chpduct4>0)),"Duct burners only allowed on Combustion Turbines","") -> 
A187: 0 | B187: 0 | C187: lb/MMBtu
A188: OR | B188: 0 | C188: ppm NOx at 15% O2
A191: 30. Displaced Thermal: What is the CO2 Emission Rate for this Fuel? (default completed for fuel in Item 23)
A192: Enter alternative value: | B192: 0 | C192: lb CO2/MMBtu
A195: 31. Displaced Thermal: If Biomass, Diesel, Distillate, Coal or Other: What is the Sulfur Content?
B196: 1
B197: or
A199: 0
A200: Enter Sulfur Content as a percent | B200: 0
A201: OR ppm | B201: 0 | C201: ppm
A204: 32. Displaced Thermal Production: NOx Emission Rate
A206: NOx Rate | B206: 0 | C206: lb NOx/MMBtu
A212: CHP Fuel
A213: =LOOKUP(chpfuelinput,lista6a,lista6c) ->  | B213: co2 flag
A214: =LOOKUP(chpfuelinput, lista6a, lista6f) ->  | B214: heat content flag
A215: Displaced Thermal Production Fuel
A216: =LOOKUP(stminput1,listd2a,listd2c) ->  | B216: so2 flag
A217: =LOOKUP(stminput1,listd2a,listd2c) ->  | B217: co2 flag
A218: =LOOKUP(stminput1, listd2a, listd2f) ->  | B218: heat content flag

Sheet Results
A1: CHP Results
A6: The results generated by the CHP Emissions Calculator are intended for educational and outreach purposes only;
A7: it is not designed for use in developing emission inventories or preparing air permit applications.
A8: The results of this analysis have not been reviewed or endorsed by the EPA CHP Partnership.
A10: Table 1: Energy Savings
A11: Annual Energy Savings Analysis
B12: CHP System | C12: Displaced Electricity Production | D12: Displaced Thermal Production | E12: Fuel Reduction | F12: Percent Reduction
A13: Fuel Consumption (MMBtu/year) | B13: =IFERROR(E102,"-") -> 0 | C13: =IFERROR(F126,"-") -> 0 | D13: =IFERROR(E114,"-") -> 0 | E13: =IFERROR(C13+D13-B13,"-") -> 0 | F13: =IF(OR(chptechinput=9,chptechinput=10),IFERROR(E13/(C13+D13),"-"),IF(B13<=0,"-",IFERROR(E13/(C13+D13),"-"))) -> -
A14: Equal to the annual energy consumption from this many passenger vehicles: | E14: =IFERROR((E13/mmbtugalgas)/galvehicle,"-") -> 0
A15: Equal to the annual energy consumption from the generation of electricity for this many homes: | E15: =IFERROR($E$13*(3412/VLOOKUP(deinput,SubGenSources!$B$6:$F$17,5,FALSE))/(homes2*kWhtoMMBtu),"-") -> 0
A22: Table 2: Emissions Savings
A23: Annual Emissions Analysis
B24: CHP System | C24: Displaced Electricity Production | D24: Displaced Thermal Production | E24: Emissions Reduction | F24: Percent Reduction
A25: NOx (tons/year) | B25: =IF(AND(OR(chpsulfurinput2="0",chpsulfurinput2=""),OR(chpnoxinput1="0",chpnoxinput1=""),OR(chpnoxinput2="0",chpnoxinput2=""),OR(chpnoxinput3="0",chpnoxinput3=""),OR(chpnoxinput4="0",chpnoxinput4=""),OR(stmsulfurinput2="0",stmsulfurinput2=""),OR(stmnoxinput="0",stmnoxinput="")),"-",E95) -> 0 | C25: =IF(chptechinput=9,F119,IF(AND(OR(chpsulfurinput2=0,ISBLANK(chpsulfurinput)),OR(chpnoxinput1=0,ISBLANK(chpnoxinput1)),OR(chpnoxinput2=0,ISBLANK(chpnoxinput2)),OR(chpnoxinput3=0,ISBLANK(chpnoxinput3)),OR(chpnoxinput4=0,ISBLANK(chpnoxinput4)),OR(stmsulfurinput2=0,ISBLANK(stmsulfurinput2)),OR(stmnoxinput=0,ISBLANK(stmnoxinput))),"-",F119)) -> - | D25: =IF(AND(OR(chpsulfurinput2=0,ISBLANK(chpsulfurinput)),OR(chpnoxinput1=0,ISBLANK(chpnoxinput1)),OR(chpnoxinput2=0,ISBLANK(chpnoxinput2)),OR(chpnoxinput3=0,ISBLANK(chpnoxinput3)),OR(chpnoxinput4=0,ISBLANK(chpnoxinput4)),OR(stmsulfurinput2=0,ISBLANK(stmsulfurinput2)),OR(stmnoxinput=0,ISBLANK(stmnoxinput))),"-",E107) -> - | E25: =IF(chptechinput=9,C25,IFERROR(IF(B25="-",C25+D25,IFERROR(C25+D25-B25,"-")),"-")) -> - | F25: =IF(chptechinput=9,E25/C25,IF(chptechinput=10,IFERROR(E25/(C25+D25),"-"),IF(B25<=0,"-",IFERROR(E25/(C25+D25),"-")))) -> -
A26: SO2 (tons/year) | B26: =IF(AND(OR(chpsulfurinput2=0,ISBLANK(chpsulfurinput)),OR(chpnoxinput1=0,ISBLANK(chpnoxinput1)),OR(chpnoxinput2=0,ISBLANK(chpnoxinput2)),OR(chpnoxinput3=0,ISBLANK(chpnoxinput3)),OR(chpnoxinput4=0,ISBLANK(chpnoxinput4)),OR(stmsulfurinput2=0,ISBLANK(stmsulfurinput2)),OR(stmnoxinput=0,ISBLANK(stmnoxinput))),"-",E96) -> - | C26: =IF(chptechinput=9,F120,IF(AND(OR(chpsulfurinput2=0,ISBLANK(chpsulfurinput)),OR(chpnoxinput1=0,ISBLANK(chpnoxinput1)),OR(chpnoxinput2=0,ISBLANK(chpnoxinput2)),OR(chpnoxinput3=0,ISBLANK(chpnoxinput3)),OR(chpnoxinput4=0,ISBLANK(chpnoxinput4)),OR(stmsulfurinput2=0,ISBLANK(stmsulfurinput2)),OR(stmnoxinput=0,ISBLANK(stmnoxinput))),"-",F120)) -> - | D26: =IF(AND(OR(chpsulfurinput2=0,ISBLANK(chpsulfurinput)),OR(chpnoxinput1=0,ISBLANK(chpnoxinput1)),OR(chpnoxinput2=0,ISBLANK(chpnoxinput2)),OR(chpnoxinput3=0,ISBLANK(chpnoxinput3)),OR(chpnoxinput4=0,ISBLANK(chpnoxinput4)),OR(stmsulfurinput2=0,ISBLANK(stmsulfurinput2)),OR(stmnoxinput=0,ISBLANK(stmnoxinput))),"-",E108) -> - | E26: - | F26: -
A27: CO2 (tons/year) | B27: =IF(AND(OR(chpsulfurinput2=0,ISBLANK(chpsulfurinput)),OR(chpnoxinput1=0,ISBLANK(chpnoxinput1)),OR(chpnoxinput2=0,ISBLANK(chpnoxinput2)),OR(chpnoxinput3=0,ISBLANK(chpnoxinput3)),OR(chpnoxinput4=0,ISBLANK(chpnoxinput4)),OR(stmsulfurinput2=0,ISBLANK(stmsulfurinput2)),OR(stmnoxinput=0,ISBLANK(stmnoxinput))),"-",E97) -> - | C27: =IF(chptechinput=9,F121,IF(AND(OR(chpsulfurinput2=0,ISBLANK(chpsulfurinput)),OR(chpnoxinput1=0,ISBLANK(chpnoxinput1)),OR(chpnoxinput2=0,ISBLANK(chpnoxinput2)),OR(chpnoxinput3=0,ISBLANK(chpnoxinput3)),OR(chpnoxinput4=0,ISBLANK(chpnoxinput4)),OR(stmsulfurinput2=0,ISBLANK(stmsulfurinput2)),OR(stmnoxinput=0,ISBLANK(stmnoxinput))),"-",F121)) -> - | D27: =IF(AND(OR(chpsulfurinput2=0,ISBLANK(chpsulfurinput)),OR(chpnoxinput1=0,ISBLANK(chpnoxinput1)),OR(chpnoxinput2=0,ISBLANK(chpnoxinput2)),OR(chpnoxinput3=0,ISBLANK(chpnoxinput3)),OR(chpnoxinput4=0,ISBLANK(chpnoxinput4)),OR(stmsulfurinput2=0,ISBLANK(stmsulfurinput2)),OR(stmnoxinput=0,ISBLANK(stmnoxinput))),"-",E109) -> - | E27: - | F27: -
A28: CH4 (tons/year) | B28: =IF(AND(OR(chpsulfurinput2=0,ISBLANK(chpsulfurinput)),OR(chpnoxinput1=0,ISBLANK(chpnoxinput1)),OR(chpnoxinput2=0,ISBLANK(chpnoxinput2)),OR(chpnoxinput3=0,ISBLANK(chpnoxinput3)),OR(chpnoxinput4=0,ISBLANK(chpnoxinput4)),OR(stmsulfurinput2=0,ISBLANK(stmsulfurinput2)),OR(stmnoxinput=0,ISBLANK(stmnoxinput))),"-",E98) -> - | C28: =IF(chptechinput=9,F122,IF(AND(OR(chpsulfurinput2=0,ISBLANK(chpsulfurinput)),OR(chpnoxinput1=0,ISBLANK(chpnoxinput1)),OR(chpnoxinput2=0,ISBLANK(chpnoxinput2)),OR(chpnoxinput3=0,ISBLANK(chpnoxinput3)),OR(chpnoxinput4=0,ISBLANK(chpnoxinput4)),OR(stmsulfurinput2=0,ISBLANK(stmsulfurinput2)),OR(stmnoxinput=0,ISBLANK(stmnoxinput))),"-",F122)) -> - | D28: =IF(AND(OR(chpsulfurinput2=0,ISBLANK(chpsulfurinput)),OR(chpnoxinput1=0,ISBLANK(chpnoxinput1)),OR(chpnoxinput2=0,ISBLANK(chpnoxinput2)),OR(chpnoxinput3=0,ISBLANK(chpnoxinput3)),OR(chpnoxinput4=0,ISBLANK(chpnoxinput4)),OR(stmsulfurinput2=0,ISBLANK(stmsulfurinput2)),OR(stmnoxinput=0,ISBLANK(stmnoxinput))),"-",E110) -> - | E28: - | F28: -
A29: N2O (tons/year) | B29: =IF(AND(OR(chpsulfurinput2=0,ISBLANK(chpsulfurinput)),OR(chpnoxinput1=0,ISBLANK(chpnoxinput1)),OR(chpnoxinput2=0,ISBLANK(chpnoxinput2)),OR(chpnoxinput3=0,ISBLANK(chpnoxinput3)),OR(chpnoxinput4=0,ISBLANK(chpnoxinput4)),OR(stmsulfurinput2=0,ISBLANK(stmsulfurinput2)),OR(stmnoxinput=0,ISBLANK(stmnoxinput))),"-",E99) -> - | C29: =IF(chptechinput=9,F123,IF(AND(OR(chpsulfurinput2=0,ISBLANK(chpsulfurinput)),OR(chpnoxinput1=0,ISBLANK(chpnoxinput1)),OR(chpnoxinput2=0,ISBLANK(chpnoxinput2)),OR(chpnoxinput3=0,ISBLANK(chpnoxinput3)),OR(chpnoxinput4=0,ISBLANK(chpnoxinput4)),OR(stmsulfurinput2=0,ISBLANK(stmsulfurinput2)),OR(stmnoxinput=0,ISBLANK(stmnoxinput))),"-",F123)) -> - | D29: =IF(AND(OR(chpsulfurinput2=0,ISBLANK(chpsulfurinput)),OR(chpnoxinput1=0,ISBLANK(chpnoxinput1)),OR(chpnoxinput2=0,ISBLANK(chpnoxinput2)),OR(chpnoxinput3=0,ISBLANK(chpnoxinput3)),OR(chpnoxinput4=0,ISBLANK(chpnoxinput4)),OR(stmsulfurinput2=0,ISBLANK(stmsulfurinput2)),OR(stmnoxinput=0,ISBLANK(stmnoxinput))),"-",E111) -> - | E29: - | F29: -
A30: Total GHGs (CO2e tons/year) | B30: =IF(AND(OR(chpsulfurinput2=0,ISBLANK(chpsulfurinput)),OR(chpnoxinput1=0,ISBLANK(chpnoxinput1)),OR(chpnoxinput2=0,ISBLANK(chpnoxinput2)),OR(chpnoxinput3=0,ISBLANK(chpnoxinput3)),OR(chpnoxinput4=0,ISBLANK(chpnoxinput4)),OR(stmsulfurinput2=0,ISBLANK(stmsulfurinput2)),OR(stmnoxinput=0,ISBLANK(stmnoxinput))),"-",E100) -> - | C30: =IF(chptechinput=9,F124,IF(AND(OR(chpsulfurinput2=0,ISBLANK(chpsulfurinput)),OR(chpnoxinput1=0,ISBLANK(chpnoxinput1)),OR(chpnoxinput2=0,ISBLANK(chpnoxinput2)),OR(chpnoxinput3=0,ISBLANK(chpnoxinput3)),OR(chpnoxinput4=0,ISBLANK(chpnoxinput4)),OR(stmsulfurinput2=0,ISBLANK(stmsulfurinput2)),OR(stmnoxinput=0,ISBLANK(stmnoxinput))),"-",F124)) -> - | D30: =IF(AND(OR(chpsulfurinput2=0,ISBLANK(chpsulfurinput)),OR(chpnoxinput1=0,ISBLANK(chpnoxinput1)),OR(chpnoxinput2=0,ISBLANK(chpnoxinput2)),OR(chpnoxinput3=0,ISBLANK(chpnoxinput3)),OR(chpnoxinput4=0,ISBLANK(chpnoxinput4)),OR(stmsulfurinput2=0,ISBLANK(stmsulfurinput2)),OR(stmnoxinput=0,ISBLANK(stmnoxinput))),"-",E112) -> - | E30: - | F30: -
A31: Carbon (metric tons/year) | B31: =IF(AND(OR(chpsulfurinput2=0,ISBLANK(chpsulfurinput)),OR(chpnoxinput1=0,ISBLANK(chpnoxinput1)),OR(chpnoxinput2=0,ISBLANK(chpnoxinput2)),OR(chpnoxinput3=0,ISBLANK(chpnoxinput3)),OR(chpnoxinput4=0,ISBLANK(chpnoxinput4)),OR(stmsulfurinput2=0,ISBLANK(stmsulfurinput2)),OR(stmnoxinput=0,ISBLANK(stmnoxinput))),"-",E101) -> - | C31: =IF(chptechinput=9,F125,IF(AND(OR(chpsulfurinput2=0,ISBLANK(chpsulfurinput)),OR(chpnoxinput1=0,ISBLANK(chpnoxinput1)),OR(chpnoxinput2=0,ISBLANK(chpnoxinput2)),OR(chpnoxinput3=0,ISBLANK(chpnoxinput3)),OR(chpnoxinput4=0,ISBLANK(chpnoxinput4)),OR(stmsulfurinput2=0,ISBLANK(stmsulfurinput2)),OR(stmnoxinput=0,ISBLANK(stmnoxinput))),"-",F125)) -> - | D31: =IF(AND(OR(chpsulfurinput2=0,ISBLANK(chpsulfurinput)),OR(chpnoxinput1=0,ISBLANK(chpnoxinput1)),OR(chpnoxinput2=0,ISBLANK(chpnoxinput2)),OR(chpnoxinput3=0,ISBLANK(chpnoxinput3)),OR(chpnoxinput4=0,ISBLANK(chpnoxinput4)),OR(stmsulfurinput2=0,ISBLANK(stmsulfurinput2)),OR(stmnoxinput=0,ISBLANK(stmnoxinput))),"-",E113) -> - | E31: - | F31: -
A32: Equal to the annual GHG emissions from this many passenger vehicles: | E32: =IFERROR($E$31/cars,"-") -> -
A33: Equal to the annual GHG emissions from the generation of electricity for this many homes: | E33: =IFERROR($E$31/homes,"-") -> -
C40: =IFERROR(CONCATENATE("This CHP project will avoid yearly emissions of greenhouse gases by ",TEXT(ROUND(E30,0),"#,###")," tons of carbon dioxide equivalent."),"") -> 
B42: =IF(B33>=0,"Equal to the annual greenhouse","Equal to the annual greenhouse") -> Equal to the annual greenhouse | E42: =IF(E33>=0,"Equal to the annual greenhouse","Equal to the annual greenhouse") -> Equal to the annual greenhouse
B43: =IF(B33>=0,"gas emissions from ","gas emissions from ") -> gas emissions from | C43: =IF(E33>=0,"gas emissions from the generation of "," gas emissions from the generation of ") -> gas emissions from the generation of
B44: =IFERROR(CONCATENATE(TEXT(ROUND(ABS(E32),0),"#,###")," passenger vehicles. "),"") ->  | E44: =IFERROR(CONCATENATE(" electricity used by ",TEXT(ROUND(ABS(E33),0),"#,###")," homes. "),"") -> 
A56: The results of this analysis have not been reviewed or endorsed by the EPA CHP Partnership.
A57: Table 3: CHP Technology and Generation Profile
A58: CHP Technology: | B58: =IFERROR(CHPname,"") -> 
A59: Fuel: | B59: =IFERROR(cfuel,"") -> 
A60: Unit Capacity: | B60: =IFERROR(Calc1!B28,"-") -> 0 | C60: kW
A61: Number of Units: | B61: =IFERROR(Calc1!B4,"-") -> 1
A62: Total CHP Capacity: | B62: =IFERROR(Calc1!B5,"-") -> 0 | C62: kW
A63: Operation: | B63: =IFERROR(chours,"-") -> 0 | C63: hours per year
A64: Heat Rate: | B64: =IFERROR(IF(chr=FALSE,0,chr),"-") -> 0 | C64: Btu/kWh HHV
A65: CHP Fuel Consumption: | B65: =IFERROR(Calc1!B7,"-") -> 0 | C65: MMBtu/year
A66: Duct Burner Fuel Consumption: | B66: =IFERROR(Calc1!B8,"-") -> 0 | C66: MMBtu/year
A67: Total Fuel Consumption: | B67: =IFERROR(B65+B66,"-") -> 0 | C67: MMBtu/year
A68: Total CHP Generation: | B68: =IFERROR(Calc1!B6,"-") -> 0 | C68: MWh/year
A69: Useful CHP Thermal Output: | B69: =IFERROR(Calc1!D170,"-") -> 0 | C69: MMBtu/year for thermal applications (non-cooling)
B70: =IFERROR(Calc1!B167,"-") -> 0 | C70: MMBtu/year for electric applications (cooling and electric heating)
B71: =IFERROR(B69+B70,"-") -> 0 | C71: MMBtu/year Total
A72: Table 4: Displaced Thermal
A73: Displaced On-Site Production for | C73: =IF(stminput1<>0,LOOKUP(stminput1,listd2a,listd2)," ") -> 
A74: Thermal (non-cooling) Applications: | B74: =IFERROR(IF(stminput1<>0,Calc1!B182," "),"-") ->  | C74: =IF(stminput1<>0,"lb/MMBtu NOx","There is no displaced thermal production") -> There is no displaced thermal production
B75: =IFERROR(IF(stminput1<>0,Calc1!B174," "),"-") ->  | C75: =IF(stminput1<>0,"sulfur content"," ") -> 
A76: Displaced Electric Service (cooling and electric heating): | B76: =IF(coolinput1=1,Calc1!B127*1000000/12000," ") ->  | C76: =IF(coolinput1=1,"tons of cooling capacity from CHP system","") -> 
A77: =IF(coolinput1=1,"CHP:"," ") ->  | B77: =IF(coolinput1=1,Calc1!C118,"There is no displaced cooling service") -> There is no displaced cooling service
A78: =IF(coolinput1=1,"Replaces:"," ") ->  | B78: =IF(coolinput1=1,IF(cooldisp1<10,Calc1!C134,"User Defined ")," ") -> 
B79: =IF(coolinput1=1,Calc1!B135," ") ->  | C79: =IF(coolinput1=1,"COP"," ") -> 
A80: Table 5: Displaced Electricity
A81: Displaced Electricity Profile: | B81: =LOOKUP(deinput,listb5a,listb5) -> eGRID Fossil Fuel (2012 data)
A83: Egrid State: | B83: =IFERROR(IF(deinput<6,LOOKUP(deinput2,listb6a,listb6),"N/A"),"-") -> US Average
A84: Distribution Losses: | B84: =IFERROR(lossinput,"-") -> 0.0833
A85: Displaced Electricity Production: | B85: =IFERROR(Calc1!B6,"-") -> 0 | C85: MWh/year CHP generation
B86: =IFERROR(Calc1!B150*chpnumunits,"-") -> 0 | C86: MWh/year Displaced Electric Demand (cooling)
B87: =IFERROR(IF(stminput1=9,Calc1!B151*chpnumunits,0),"-") -> 0 | C87: MWh/year Displaced Electric Demand (electric heating)
B88: =IFERROR((B85+B86+B87)/(1-lossinput)-(B85+B86+B87),"-") -> 0 | C88: MWh/year Transmission Losses
B89: =IFERROR(B85+B86+B87+B88,"-") -> 0 | C89: MWh/year Total
A91: The results of this analysis have not been reviewed or endorsed by the EPA CHP Partnership.
A92: Table 6
A93: Annual Analysis for CHP
B94: =IFERROR(CONCATENATE("CHP System: ",CHPname),"") ->  | C94: =IF(chpduct1=1,CONCATENATE("CHP System: ","Duct Burners"," ")," ") ->  | E94: Total Emissions from CHP System
A95: NOx (tons/year) | B95: =IFERROR(Calc1!B17,"-") -> 0 | C95: =IFERROR(Calc1!B22,"-") -> 0 | E95: =IFERROR(B95+C95,"-") -> 0
A96: SO2 (tons/year) | B96: =IFERROR(Calc1!B18,"-") -> 0 | C96: =IFERROR(Calc1!B23,"-") -> - | E96: -
A97: CO2 (tons/year) | B97: =IFERROR(Calc1!B19,"-") -> 0 | C97: =IFERROR(Calc1!B24,"-") -> - | E97: -
A98: CH4 (tons/year) | B98: =IFERROR(Calc1!F17,"-") -> - | C98: =IFERROR(Calc1!F22,"-") -> 0 | E98: -
A99: N2O (tons/year) | B99: =IFERROR(Calc1!F18,"-") -> - | C99: =IFERROR(Calc1!F23,"-") -> 0 | E99: -
A100: Total GHGs (CO2e tons/year) | B100: =IFERROR(B97+(B98*ch4GWP)+(B99*n2oGWP),"-") -> - | C100: =IFERROR(C97+(C98*ch4GWP)+(C99*n2oGWP),"-") -> - | E100: -
A101: Carbon (metric tons/year) | B101: =B97*CO2tocarbon*tonnes -> 0 | C101: =IFERROR(C97*CO2tocarbon*tonnes,"-") -> - | E101: =IFERROR(B101+C101,"-") -> -
A102: Fuel Consumption (MMBtu/year) | B102: =IFERROR(B65,"-") -> 0 | C102: =IFERROR(B66,"-") -> 0 | E102: =IFERROR(B102+C102,"-") -> 0
A104: Table 7
A105: Annual Analysis for Displaced Production for Thermal (non-cooling) Applications
E106: Total Displaced Emissions from Thermal Production
A107: NOx (tons/year) | E107: =IFERROR(Calc1!D12,"-") -> 0
A108: SO2 (tons/year) | E108: =IFERROR(Calc1!D13,"-") -> 0
A109: CO2 (tons/year) | E109: =IFERROR(Calc1!D14,"-") -> 0
A110: CH4 (tons/year) | E110: =IFERROR(Calc1!E183,"-") -> 0
A111: N2O (tons/year) | E111: =IFERROR(Calc1!E185,"-") -> 0
A112: Total GHGs (CO2e tons/year) | E112: =IFERROR(E109+(E110*ch4GWP)+(E111*n2oGWP),"-") -> 0
A113: Carbon (metric tons/year) | E113: =IFERROR(E109*CO2tocarbon*tonnes,"-") -> 0
A114: Fuel Consumption (MMBtu/year) | E114: =IFERROR(IF(stminput1=9,0,dsbtu),"-") -> 0
A116: Table 8
A117: Annual Analysis for Displaced Electricity Production
B118: Displaced CHP Electricity Generation | C118: Displaced Electricity for Cooling | D118: Displaced Electricity for Heating | E118: Transmission Losses | F118: Total Displaced Emissions from Electricity Generation
A119: NOx (tons/year) | B119: =IFERROR((denoxrate/2000)*B85,"-") -> 0 | C119: =IFERROR((denoxrate/2000)*B86,"-") -> 0 | D119: =IFERROR((denoxrate/2000)*B87,"-") -> 0 | E119: =IFERROR((denoxrate/2000)*B88,"-") -> 0 | F119: =IFERROR(SUM(B119:E119),"-") -> 0
A120: SO2 (tons/year) | B120: =IFERROR((deso2rate/2000)*B85,"-") -> 0 | C120: =IFERROR((deso2rate/2000)*B86,"-") -> 0 | D120: =IFERROR((deso2rate/2000)*B87,"-") -> 0 | E120: =IFERROR((deso2rate/2000)*B88,"-") -> 0 | F120: 0
A121: CO2 (tons/year) | B121: =IFERROR((deco2rate/2000)*B85,"-") -> 0 | C121: =IFERROR((deco2rate/2000)*B86,"-") -> 0 | D121: =IFERROR((deco2rate/2000)*B87,"-") -> 0 | E121: =IFERROR((deco2rate/2000)*B88,"-") -> 0 | F121: 0
A122: CH4 (tons/year) | B122: =IFERROR((dech4rate/2000)*B85,"-") -> 0 | C122: =IFERROR((dech4rate/2000)*B86,"-") -> 0 | D122: =IFERROR((dech4rate/2000)*B87,"-") -> 0 | E122: =IFERROR((dech4rate/2000)*B88,"-") -> 0 | F122: 0
A123: N2O (tons/year) | B123: =IFERROR((den2orate/2000)*B85,"-") -> 0 | C123: =IFERROR((den2orate/2000)*B86,"-") -> 0 | D123: =IFERROR((den2orate/2000)*B87,"-") -> 0 | E123: =IFERROR((den2orate/2000)*B88,"-") -> 0 | F123: 0
A124: Total GHGs (CO2e tons/year) | B124: =IFERROR(B121+(B122*ch4GWP)+(B123*n2oGWP),"-") -> 0 | C124: =IFERROR(C121+(C122*ch4GWP)+(C123*n2oGWP),"-") -> 0 | D124: =IFERROR(D121+(D122*ch4GWP)+(D123*n2oGWP),"-") -> 0 | E124: =IFERROR(E121+(E122*ch4GWP)+(E123*n2oGWP),"-") -> 0 | F124: 0
A125: Carbon (metric tons/year) | B125: =IFERROR(B121*CO2tocarbon*tonnes,"-") -> 0 | C125: =IFERROR(C121*CO2tocarbon*tonnes,"-") -> 0 | D125: =IFERROR(D121*CO2tocarbon*tonnes,"-") -> 0 | E125: =IFERROR(E121*CO2tocarbon*tonnes,"-") -> 0 | F125: 0
A126: Fuel Consumption (MMBtu/year) | B126: =IFERROR((deheatrate/1000)*B85,"-") -> 0 | C126: =IFERROR((deheatrate/1000)*B86,"-") -> 0 | D126: =IFERROR((deheatrate/1000)*B87,"-") -> 0 | E126: =IFERROR((deheatrate/1000)*B88,"-") -> 0 | F126: 0
A128: The results of this analysis have not been reviewed or endorsed by the EPA CHP Partnership.
A129: Total Emissions for Conventional Production | E129: Total Emissions for CHP System
A130: =CONCATENATE(" ",TEXT(ROUND(E107+F119,2),"#,###.##")," tons of NOx") -> . tons of NOx | E130: =CONCATENATE(" ",TEXT(ROUND(E95,2),"#,###.##")," tons of NOx") -> . tons of NOx
A131: =CONCATENATE(" ",TEXT(ROUND(E108+F120,2),"#,###.##")," tons of SO2") -> . tons of SO2 | E131: =IFERROR(CONCATENATE(" ",TEXT(ROUND(E96,2),"#,###.##")," tons of SO2"),"") -> 
A132: =CONCATENATE(" ",TEXT(ROUND(E112+F124,0),"#,###")," tons of CO2e") -> tons of CO2e | E132: =IFERROR(CONCATENATE(TEXT(ROUND(E100,0),"#,###")," tons of CO2e"),"") -> 
B135: =IFERROR(CONCATENATE(TEXT(ROUND(B85,0),"#,###")," MWh"),"") -> MWh
A136: =CONCATENATE(TEXT(ROUND(F126,0),"#,###")," MMBtu") -> MMBtu | B136: Electricity to Facility | D136: =IFERROR(CONCATENATE(TEXT(ROUND(E102,0),"#,###")," MMBtu"),"") -> MMBtu
A137: Fuel consumption | D137: =CONCATENATE("Fuel Consumption") -> Fuel Consumption | G137: =IFERROR(CONCATENATE(TEXT(ROUND(B68,0),"#,###")," MWh"),"") -> MWh
A138: Central Station | B138: =IF(B86>0,CONCATENATE(TEXT(ROUND(B86,0),"#,###")," MWh")," No Cooling") -> No Cooling | E138: CHP | G138: Electricity
A139: Power Plant | B139: =IF(B86>0,"Electricity to Chiller"," ") ->  | E139: System | G139: to Facility
B141: =IFERROR(CONCATENATE(TEXT(ROUND(B88,0),"#,###")," MWh"),"") -> MWh
B142: Transmission Losses
A143: =IF(AND(OR(chpsulfurinput2=0,ISBLANK(chpsulfurinput)),OR(chpnoxinput1=0,ISBLANK(chpnoxinput1)),OR(chpnoxinput2=0,ISBLANK(chpnoxinput2)),OR(chpnoxinput3=0,ISBLANK(chpnoxinput3)),OR(chpnoxinput4=0,ISBLANK(chpnoxinput4)),OR(stmsulfurinput2=0,ISBLANK(stmsulfurinput2)),OR(stmnoxinput=0,ISBLANK(stmnoxinput)))," Power Plant Emissions",CONCATENATE(" ",TEXT(ROUND(F119,2),"#,###.##")," tons of NOx")) -> Power Plant Emissions | D143: =IF(AND(OR(chpsulfurinput2=0,ISBLANK(chpsulfurinput)),OR(chpnoxinput1=0,ISBLANK(chpnoxinput1)),OR(chpnoxinput2=0,ISBLANK(chpnoxinput2)),OR(chpnoxinput3=0,ISBLANK(chpnoxinput3)),OR(chpnoxinput4=0,ISBLANK(chpnoxinput4)),OR(stmsulfurinput2=0,ISBLANK(stmsulfurinput2)),OR(stmnoxinput=0,ISBLANK(stmnoxinput)))," Power Plant Emissions",CONCATENATE(" ",TEXT(ROUND(E95,2)," #,###.##")," tons of NOx")) -> Power Plant Emissions | F143: Thermal Energy from CHP
A144: =IF(AND(OR(chpsulfurinput2=0,ISBLANK(chpsulfurinput)),OR(chpnoxinput1=0,ISBLANK(chpnoxinput1)),OR(chpnoxinput2=0,ISBLANK(chpnoxinput2)),OR(chpnoxinput3=0,ISBLANK(chpnoxinput3)),OR(chpnoxinput4=0,ISBLANK(chpnoxinput4)),OR(stmsulfurinput2=0,ISBLANK(stmsulfurinput2)),OR(stmnoxinput=0,ISBLANK(stmnoxinput)))," ",CONCATENATE(" ",TEXT(ROUND(F120,2),"#,###.##")," tons of SO2")) ->  | E144: =IF(AND(OR(chpsulfurinput2=0,ISBLANK(chpsulfurinput)),OR(chpnoxinput1=0,ISBLANK(chpnoxinput1)),OR(chpnoxinput2=0,ISBLANK(chpnoxinput2)),OR(chpnoxinput3=0,ISBLANK(chpnoxinput3)),OR(chpnoxinput4=0,ISBLANK(chpnoxinput4)),OR(stmsulfurinput2=0,ISBLANK(stmsulfurinput2)),OR(stmnoxinput=0,ISBLANK(stmnoxinput)))," ",IFERROR(CONCATENATE(" ",TEXT(ROUND(E96,2),"#,###.##")," tons of SO2"),"")) -> 
A145: =IF(AND(OR(chpsulfurinput2=0,ISBLANK(chpsulfurinput)),OR(chpnoxinput1=0,ISBLANK(chpnoxinput1)),OR(chpnoxinput2=0,ISBLANK(chpnoxinput2)),OR(chpnoxinput3=0,ISBLANK(chpnoxinput3)),OR(chpnoxinput4=0,ISBLANK(chpnoxinput4)),OR(stmsulfurinput2=0,ISBLANK(stmsulfurinput2)),OR(stmnoxinput=0,ISBLANK(stmnoxinput)))," ",CONCATENATE(" ",TEXT(ROUND(F124,0),"#,###")," tons of CO2e")) ->  | E145: =IF(AND(OR(chpsulfurinput2=0,ISBLANK(chpsulfurinput)),OR(chpnoxinput1=0,ISBLANK(chpnoxinput1)),OR(chpnoxinput2=0,ISBLANK(chpnoxinput2)),OR(chpnoxinput3=0,ISBLANK(chpnoxinput3)),OR(chpnoxinput4=0,ISBLANK(chpnoxinput4)),OR(stmsulfurinput2=0,ISBLANK(stmsulfurinput2)),OR(stmnoxinput=0,ISBLANK(stmnoxinput)))," ",IFERROR(CONCATENATE(" ",TEXT(ROUND(E100,0),"#,###")," tons of CO2e"),"")) -> 
G147: =IFERROR(IF(B69>0,CONCATENATE(TEXT(ROUND(B69,0),"#,###")," MMBtu "),"No "),"") -> No
A148: =IFERROR(IF(E114>0,CONCATENATE(TEXT(ROUND(E114,0),"#,###")," MMBtu")," "),"") ->  | G148: =IF(B69>0,"Thermal to","Thermal") -> Thermal
A149: =IF(E114>0,"Fuel consumption"," ") ->  | G149: =IF(B69>0,"Facility","Applications") -> Applications
A150: On-Site Thermal | B150: =IFERROR(IF(B69>0,CONCATENATE(TEXT(ROUND(B69,0),"#,###")," MMBtu"),"No"),"") -> No
A151: Production | B151: =IF(B69>0,"Thermal to Facility","Thermal Applications") -> Thermal Applications | E151: Absorption
E152: Chiller | G152: =IF(B76<>" ",CONCATENATE(TEXT(ROUND(B76,0),"#,###")," tons "),"No Cooling") -> No Cooling
G153: =IF(B76<>" ","of Cooling"," ") -> 
G154: =IF(B76<>" ","to Facility"," ") -> 
A155: =IF(AND(OR(chpsulfurinput2=0,ISBLANK(chpsulfurinput)),OR(chpnoxinput1=0,ISBLANK(chpnoxinput1)),OR(chpnoxinput2=0,ISBLANK(chpnoxinput2)),OR(chpnoxinput3=0,ISBLANK(chpnoxinput3)),OR(chpnoxinput4=0,ISBLANK(chpnoxinput4)),OR(stmsulfurinput2=0,ISBLANK(stmsulfurinput2)),OR(stmnoxinput=0,ISBLANK(stmnoxinput)))," On-Site Thermal Emissions",CONCATENATE(" ",TEXT(ROUND(E107,2),"#,###.##")," tons of NOx")) -> On-Site Thermal Emissions
A156: =IF(AND(OR(chpsulfurinput2=0,ISBLANK(chpsulfurinput)),OR(chpnoxinput1=0,ISBLANK(chpnoxinput1)),OR(chpnoxinput2=0,ISBLANK(chpnoxinput2)),OR(chpnoxinput3=0,ISBLANK(chpnoxinput3)),OR(chpnoxinput4=0,ISBLANK(chpnoxinput4)),OR(stmsulfurinput2=0,ISBLANK(stmsulfurinput2)),OR(stmnoxinput=0,ISBLANK(stmnoxinput)))," ",CONCATENATE(" ",TEXT(ROUND(E108,2),"#,###.##")," tons of SO2")) -> 
A157: =IF(AND(OR(chpsulfurinput2=0,ISBLANK(chpsulfurinput)),OR(chpnoxinput1=0,ISBLANK(chpnoxinput1)),OR(chpnoxinput2=0,ISBLANK(chpnoxinput2)),OR(chpnoxinput3=0,ISBLANK(chpnoxinput3)),OR(chpnoxinput4=0,ISBLANK(chpnoxinput4)),OR(stmsulfurinput2=0,ISBLANK(stmsulfurinput2)),OR(stmnoxinput=0,ISBLANK(stmnoxinput)))," ",CONCATENATE(" ",TEXT(ROUND(E112,0),"#,###")," tons of CO2e")) -> 
A161: Table 9
A162: Emission Rates
B163: CHP System including Duct Burners | C163: =IFERROR(CONCATENATE(CHPname," Alone"),"") ->  | D163: Displaced Electricity
A164: NOx (lb/MWh) | B164: =IFERROR(E95*2000/B$68,"-") -> - | C164: =IFERROR(B95*2000/B$68,"-") -> - | D164: =IFERROR(denoxrate,"-") -> 1.3268
A165: SO2 (lb/MWh) | B165: =IFERROR(E96*2000/B$68,"-") -> - | C165: =IFERROR(B96*2000/B$68,"-") -> - | D165: =IFERROR(deso2rate,"-") -> 2.5741
A166: CO2 (lb/MWh) | B166: =IFERROR(E97*2000/B$68,"-") -> - | C166: =IFERROR(B97*2000/B$68,"-") -> - | D166: =IFERROR(deco2rate,"-") -> 1640.1345
A168: Table 10
A169: Emission Rates
B170: Displaced Thermal Production
A171: NOx (lb/MMBtu) | B171: =IFERROR(IF(dsbtu>0,dsnoxtons*2000/dsbtu,0),"-") -> 0
A172: SO2 (lb/MMBtu) | B172: =IFERROR(IF(dsbtu>0,dsso2tons*2000/dsbtu,0),"-") -> 0
A173: CO2 (lb/MMBtu) | B173: =IFERROR(IF(dsbtu>0,dsco2tons*2000/dsbtu,0),"-") -> 0

Sheet SubThermalCalculator
A1: Thermal Calculator
B3: Value | C3: Units | D3: Description
B6: Calculate the Power to Heat Ratio by completing the
B7: entries in one of the following boxes:
B8: 0 | C8: MMBtu/hr | D8: Thermal output from a single unit
B9: OR
B11: 0 | C11: lb/hr | D11: Steam consumed in process
B12: 1000 | C12: Btu/lb | D12: Enthalpy (a common value is 1,000 Btu/lb)
B13: =B11*B12/1000000 -> 0 | C13: MMBtu/hr | D13: calculated
B14: OR
B16: 0 | C16: MMBtu/hr | D16: Fuel consumed in thermal process (often a boiler)
B17: 0 | D17: Efficiency of thermal converter
B18: =B16*B17 -> 0 | C18: MMBtu/hr | D18: calculated
B22: Results
B23: =IF(B8>0,B8,IF(B13>0,B13,IF(B18>0,B18,0))) -> 0 | C23: MMBtu/hr | D23: thermal output
B24: =calcbtu*293 -> 0 | C24: kW | D24: thermal output
B25: =IF(chpcapinput>0,chpcapinput," ") ->  | C25: =IF(chpcapinput>0,"kW"," ") ->  | D25: =IF(chpcapinput>0,"kW capacity of CHP system"," ") -> 
B26: =IF(calckw>0,B25/calckw," ") ->  | C26: =IF(chpcapinput>0," "," ") ->  | D26: =IF(chpcapinput>0,"Power to Heat ratio of CHP system"," ") -> 

Sheet SubGenSources
A1: Generation Sources
A4: Existing Generation Sources | F4: Heat Rate
A5: Name | B5: Code | C5: NOx lb/MWh | D5: SO2 lb/MWh | E5: CO2 lb/MWh | F5: Btu/kWh
A6: =LOOKUP(B6,Profiles!$B$11:$B$26,Profiles!$A$11:$A$26) -> EGrid Annual Average | B6: 1 | C6: =LOOKUP(B6,Profiles!B$11:B$26,Profiles!H$11:H$26) -> 0.9460775597 | D6: =LOOKUP(B6,Profiles!B$11:B$26,Profiles!I$11:I$26) -> 1.887235396 | E6: =LOOKUP(B6,Profiles!B$11:B$26,Profiles!J$11:J$26) -> 1136.529133 | F6: =LOOKUP(B6,Profiles!B$11:B$26,Profiles!C$11:C$26) -> 6629.577316 | G6: EPA eGRID 2012 (released Oct. 2015), http://www.epa.gov/energy/egrid
A7: =LOOKUP(B7,Profiles!$B$11:$B$26,Profiles!$A$11:$A$26) -> EGrid Annual Fossil | B7: 2 | C7: =LOOKUP(B7,Profiles!B$11:B$26,Profiles!H$11:H$26) -> 1.3268 | D7: =LOOKUP(B7,Profiles!B$11:B$26,Profiles!I$11:I$26) -> 2.5741 | E7: =LOOKUP(B7,Profiles!B$11:B$26,Profiles!J$11:J$26) -> 1640.1345 | F7: =LOOKUP(B7,Profiles!B$11:B$26,Profiles!C$11:C$26) -> 9447.708427 | G7: EPA eGRID 2012 (released Oct. 2015), http://www.epa.gov/energy/egrid
A8: =LOOKUP(B8,Profiles!$B$11:$B$26,Profiles!$A$11:$A$26) -> EGrid Annual Coal | B8: 4 | C8: =LOOKUP(B8,Profiles!B$11:B$26,Profiles!H$11:H$26) -> 2.027 | D8: =LOOKUP(B8,Profiles!B$11:B$26,Profiles!I$11:I$26) -> 4.4063 | E8: =LOOKUP(B8,Profiles!B$11:B$26,Profiles!J$11:J$26) -> 2173.984529 | F8: =LOOKUP(B8,Profiles!B$11:B$26,Profiles!C$11:C$26) -> 10486.16081 | G8: EPA eGRID 2012 (released Oct. 2015), http://www.epa.gov/energy/egrid
A9: =LOOKUP(B9,Profiles!$B$11:$B$26,Profiles!$A$11:$A$26) -> EGrid Annual Oil | B9: 5 | C9: =LOOKUP(B9,Profiles!B$11:B$26,Profiles!H$11:H$26) -> 3.3875 | D9: =LOOKUP(B9,Profiles!B$11:B$26,Profiles!I$11:I$26) -> 13.3836 | E9: =LOOKUP(B9,Profiles!B$11:B$26,Profiles!J$11:J$26) -> 1904.3003 | F9: =LOOKUP(B9,Profiles!B$11:B$26,Profiles!C$11:C$26) -> 10754.15397 | G9: EPA eGRID 2012 (released Oct. 2015), http://www.epa.gov/energy/egrid
A10: =LOOKUP(B10,Profiles!$B$11:$B$26,Profiles!$A$11:$A$26) -> EGrid Annual Natural Gas | B10: 6 | C10: =LOOKUP(B10,Profiles!B$11:B$26,Profiles!H$11:H$26) -> 0.3973 | D10: =LOOKUP(B10,Profiles!B$11:B$26,Profiles!I$11:I$26) -> 0.0844 | E10: =LOOKUP(B10,Profiles!B$11:B$26,Profiles!J$11:J$26) -> 940.7230564 | F10: =LOOKUP(B10,Profiles!B$11:B$26,Profiles!C$11:C$26) -> 7876.171823 | G10: EPA eGRID 2012 (released Oct. 2015), http://www.epa.gov/energy/egrid
A11: =LOOKUP(B11,Profiles!$B$11:$B$26,Profiles!$A$11:$A$26) -> Coal Boiler 3.8 lb/MWh NOx | B11: 7 | C11: =LOOKUP(B11,Profiles!B$11:B$26,Profiles!H$11:H$26) -> 3.8 | D11: =LOOKUP(B11,Profiles!B$11:B$26,Profiles!I$11:I$26) -> 5 | E11: =LOOKUP(B11,Profiles!B$11:B$26,Profiles!J$11:J$26) -> 1967.45 | F11: =LOOKUP(B11,Profiles!B$11:B$26,Profiles!C$11:C$26) -> 9500 | G11: AP 42, Fifth Edition, Compilation of Air Pollutant Emission Factors, Volume 1: Stationary Point and Area Sources. http://www3.epa.gov/ttnchie1/ap42/
A12: =LOOKUP(B12,Profiles!$B$11:$B$26,Profiles!$A$11:$A$26) -> Coal Boiler 1.5 lb/MWh NOx | B12: 8 | C12: =LOOKUP(B12,Profiles!B$11:B$26,Profiles!H$11:H$26) -> 1.5 | D12: =LOOKUP(B12,Profiles!B$11:B$26,Profiles!I$11:I$26) -> 2.5 | E12: =LOOKUP(B12,Profiles!B$11:B$26,Profiles!J$11:J$26) -> 1967.45 | F12: =LOOKUP(B12,Profiles!B$11:B$26,Profiles!C$11:C$26) -> 9500 | G12: AP 42, Fifth Edition, Compilation of Air Pollutant Emission Factors, Volume 1: Stationary Point and Area Sources. http://www3.epa.gov/ttnchie1/ap42/
A13: =LOOKUP(B13,Profiles!$B$11:$B$26,Profiles!$A$11:$A$26) -> Coal Boiler with SCR 0.8 lb/MWh NOx | B13: 9 | C13: =LOOKUP(B13,Profiles!B$11:B$26,Profiles!H$11:H$26) -> 0.8 | D13: =LOOKUP(B13,Profiles!B$11:B$26,Profiles!I$11:I$26) -> 1 | E13: =LOOKUP(B13,Profiles!B$11:B$26,Profiles!J$11:J$26) -> 1967.45 | F13: =LOOKUP(B13,Profiles!B$11:B$26,Profiles!C$11:C$26) -> 9500 | G13: AP 42, Fifth Edition, Compilation of Air Pollutant Emission Factors, Volume 1: Stationary Point and Area Sources. http://www3.epa.gov/ttnchie1/ap42/
A14: =LOOKUP(B14,Profiles!$B$11:$B$26,Profiles!$A$11:$A$26) -> Gas Boiler 0.77 lb/MWh NOx | B14: 10 | C14: =LOOKUP(B14,Profiles!B$11:B$26,Profiles!H$11:H$26) -> 0.77 | D14: =LOOKUP(B14,Profiles!B$11:B$26,Profiles!I$11:I$26) -> 0.006236893204 | E14: =LOOKUP(B14,Profiles!B$11:B$26,Profiles!J$11:J$26) -> 1285.9 | F14: =LOOKUP(B14,Profiles!B$11:B$26,Profiles!C$11:C$26) -> 11000 | G14: AP 42, Fifth Edition, Compilation of Air Pollutant Emission Factors, Volume 1: Stationary Point and Area Sources. http://www3.epa.gov/ttnchie1/ap42/
A15: =LOOKUP(B15,Profiles!$B$11:$B$26,Profiles!$A$11:$A$26) -> Gas Turbine Peaker 25 ppm | B15: 11 | C15: =LOOKUP(B15,Profiles!B$11:B$26,Profiles!H$11:H$26) -> 1.102941176 | D15: =LOOKUP(B15,Profiles!B$11:B$26,Profiles!I$11:I$26) -> 0.006803883495 | E15: =LOOKUP(B15,Profiles!B$11:B$26,Profiles!J$11:J$26) -> 1402.8 | F15: =LOOKUP(B15,Profiles!B$11:B$26,Profiles!C$11:C$26) -> 12000 | G15: AP 42, Fifth Edition, Compilation of Air Pollutant Emission Factors, Volume 1: Stationary Point and Area Sources. http://www3.epa.gov/ttnchie1/ap42/
A16: =LOOKUP(B16,Profiles!$B$11:$B$26,Profiles!$A$11:$A$26) -> Gas combined-cycle 9 ppm | B16: 12 | C16: =LOOKUP(B16,Profiles!B$11:B$26,Profiles!H$11:H$26) -> 0.2647058824 | D16: =LOOKUP(B16,Profiles!B$11:B$26,Profiles!I$11:I$26) -> 0.00453592233 | E16: =LOOKUP(B16,Profiles!B$11:B$26,Profiles!J$11:J$26) -> 935.2 | F16: =LOOKUP(B16,Profiles!B$11:B$26,Profiles!C$11:C$26) -> 8000 | G16: AP 42, Fifth Edition, Compilation of Air Pollutant Emission Factors, Volume 1: Stationary Point and Area Sources. http://www3.epa.gov/ttnchie1/ap42/
A17: =LOOKUP(B17,Profiles!$B$11:$B$26,Profiles!$A$11:$A$26) -> Gas combined-cycle 3 ppm | B17: 13 | C17: =LOOKUP(B17,Profiles!B$11:B$26,Profiles!H$11:H$26) -> 0.07720588235 | D17: =LOOKUP(B17,Profiles!B$11:B$26,Profiles!I$11:I$26) -> 0.003968932039 | E17: =LOOKUP(B17,Profiles!B$11:B$26,Profiles!J$11:J$26) -> 818.3 | F17: =LOOKUP(B17,Profiles!B$11:B$26,Profiles!C$11:C$26) -> 7000 | G17: AP 42, Fifth Edition, Compilation of Air Pollutant Emission Factors, Volume 1: Stationary Point and Area Sources. http://www3.epa.gov/ttnchie1/ap42/
A20: Please enter emission rates for the new generation sources:
A21: User Defined Generation Sources | F21: Heat Rate
A22: Name | B22: Code | C22: NOx lb/MWh | D22: SO2 lb/MWh | E22: CO2 lb/MWh | F22: Btu/kWh
A23: User Source 1 | B23: 14 | C23: 0 | D23: 0 | E23: 0 | F23: 0
A24: User Source 2 | B24: 15 | C24: 0 | D24: 0 | E24: 0 | F24: 0
A25: User Source 3 | B25: 16 | C25: 0 | D25: 0 | E25: 0 | F25: 0

Sheet Biomass and Coal Data
A1: Biomass
A2: Heat Content of Solid Biomass Fuels (Btu/lb delivered)
B3: Moisture Content of Biomass
A4: Biomass Fuel Source | B4: Bone Dry | C4: 0.1 | D4: 0.2 | E4: 0.3 | F4: 0.4 | G4: 0.5
A5: Wood and Wood Residuals | B5: 7690 | C5: 7004 | D5: 6318 | E5: 5632 | F5: 4946 | G5: 4260
A6: Agricultural Byproducts | B6: 4125 | C6: 3851 | D6: 3577 | E6: 3303 | F6: 3029 | G6: 2755
A7: Peat | B7: 4000 | C7: 3726 | D7: 3452 | E7: 3178 | F7: 2904 | G7: 2630
A8: Solid Byproducts | B8: 12915 | C8: 12095 | D8: 11275 | E8: 10455 | F8: 9635 | G8: 8815
A10: Emission Rates
B11: Heat Content (HHV) | D11: CO2 Emission Rate | F11: NOx Emission Rate | H11: Sulfur Content
A12: Biomass Fuel Source
A13: Wood and Wood Residuals | B13: 7690 | C13: Btu/lb | D13: 206.7 | E13: lb/MMBtu | F13: 0.165 | G13: lb/MMBtu | H13: 0.00825 | I13: lb/MMBtu
A14: Agricultural Byproducts | B14: 4125 | C14: Btu/lb | D14: 260.4 | E14: lb/MMBtu | F14: 0.165 | G14: lb/MMBtu | H14: 0.00825 | I14: lb/MMBtu
A15: Peat | B15: 4000 | C15: Btu/lb | D15: 246.5 | E15: lb/MMBtu | F15: 0.165 | G15: lb/MMBtu | H15: 0.00825 | I15: lb/MMBtu
A16: Solid Byproducts | B16: 12915 | C16: Btu/lb | D16: 232.5 | E16: lb/MMBtu | F16: 0.165 | G16: lb/MMBtu | H16: 0.00825 | I16: lb/MMBtu
A17: Biogas | B17: 841 | C17: Btu/scf | D17: 114.7 | E17: lb/MMBtu
A18: Biodiesel | B18: 128000 | C18: Btu/gal | D18: 162.7 | E18: lb/MMBtu
A19: Ethanol | B19: 84000 | C19: Btu/gal | D19: 150.8 | E19: lb/MMBtu
A20: *CO2 Emissions data from EPA Mandatory GHG Reporting Rule, 40 CFR 98, Subpart C, Table C-1
A21: *NOX and Sulfur Emissions Data from AP-42
A22: The EPA has not made a final determination on how to evaluate emissions from biomass fuels; in the interim, the Calculator is using the CO2 emissions factors from 40 CFR 98, Table C-1.
A24: Coal
B25: CO2 Emission Rate | D25: Heat Content (HHV)
A26: Coal Type
A27: Anthracite | B27: 228.3 | C27: lb/MMBtu | D27: 12545 | E27: Btu/lb
A28: Bituminous | B28: 205.9 | C28: lb/MMBtu | D28: 12465 | E28: Btu/lb
A29: Sub-bituminous | B29: 213.9 | C29: lb/MMBtu | D29: 8625 | E29: Btu/lb
A30: Lignite | B30: 212.5 | C30: lb/MMBtu | D30: 7105 | E30: Btu/lb
A31: Industrial Mixed Use | B31: 207.1 | C31: lb/MMBtu | D31: 11175 | E31: Btu/lb
A32: Commercial Mixed Use | B32: 210 | C32: lb/MMBtu | D32: 10695 | E32: Btu/lb
A33: *Emissions Data from EPA Mandatory GHG Reporting Rule, Part 98, Subpart C, Table C-1
A36: For an expanded list of emissions factors and heat content values, please see Table C-1 in 40 CFR 98:
A37: http://www.ecfr.gov/cgi-bin/text-idx?tpl=/ecfrbrowse/Title40/40cfr98_main_02.tpl

Sheet Displaced Generation Profiles
A2: Selecting an Appropriate Displaced Electricity Generation Profile
A127: More details on eGRID generation sources and displaced grid electricity can be found in Appendix B of EPA's Fuel and CO2 Emissions Savings Calculation Methodology for CHP

Sheet Maps

Sheet Lists (hidden)
A1: CHP Pick list lookups
A3: A1 | B3: CHP technology
A4: 1 | B4: Recip Engine - Rich Burn | C4: Recip Engine - Rich Burn
A5: 2 | B5: Recip Engine - Lean Burn | C5: Recip Engine - Lean Burn
A6: 3 | B6: Recip Engine - Diesel | C6: Recip Engine - Diesel
A7: 4 | B7: Microturbine | C7: Microturbine
A8: 5 | B8: Combustion Turbine | C8: Combustion Turbine
A9: 6 | B9: Boiler / Steam Turbine | C9: Boiler / Steam Turbine
A10: 7 | B10: Fuel Cell | C10: Fuel Cell
A11: 8 | B11: Other | C11: Other
A12: 9 | B12: Waste Heat to Power (Power Only) | C12: Waste Heat to Power
A13: 10 | B13: Waste Heat to Power (Power and Thermal) | C13: Waste Heat to Power
A17: B3 | B17: Operating profile of CHP | C17: Hours
A18: 1 | B18: 5 days per week, 8 hours per day - 2,080 hours | C18: =52*5*8 -> 2080
A19: 2 | B19: 5 days per week, 16 hours per day - 4,160 hours | C19: =52*5*16 -> 4160
A20: 3 | B20: 7 days per week - 16 hours per day - 5,840 hours | C20: 5840
A21: 4 | B21: 7 days per week, 24 hours per day, 8,760 hours | C21: 8760
A22: 5 | B22: I will enter a value
A24: B5 | B24: Profile of Displaced Electricity
A25: 1 | B25: eGRID All Sources (2012 data) | C25: E | D25: 1 | E25: Egrid State Average
A26: 2 | B26: eGRID Fossil Fuel (2012 data) | C26: E | D26: 2 | E26: Egrid State Average
A27: 3 | B27: eGRID Non-Baseload (2012 data) | E27: Egrid State Average
A28: 4 | B28: eGRID Coal (2012 data) | C28: E | D28: 3 | E28: Egrid State Average
A29: 5 | B29: eGRID Oil (2012 data) | C29: E | D29: 4 | E29: Egrid State Average
A30: 6 | B30: eGRID Gas (2012 data) | C30: E | D30: 5 | E30: Egrid State Average
A31: 7 | B31: Coal Boiler 3.8 lb/MWh NOx | C31: D | D31: 1 | E31: Defined
A32: 8 | B32: Coal Boiler 1.5 lb/MWh NOx | C32: D | D32: 2 | E32: Defined
A33: 9 | B33: Coal Boiler with SCR 0.8 lb/MWh NOx | C33: D | D33: 3 | E33: Defined
A34: 10 | B34: Gas Boiler 0.77 lb/MWh NOx | C34: D | D34: 4 | E34: Defined
A35: 11 | B35: Gas Turbine Peaker 25 ppm | C35: D | D35: 5 | E35: Defined
A36: 12 | B36: Gas combined-cycle 9 ppm | C36: D | D36: 6 | E36: Defined
A37: 13 | B37: Gas combined-cycle 3 ppm | C37: D | D37: 7 | E37: Defined
A38: 14 | B38: User Source 1 | C38: U | D38: 1 | E38: User Profile
A39: 15 | B39: User Source 2 | C39: U | D39: 2 | E39: User Profile
A40: 16 | B40: User Source 3 | C40: U | D40: 3 | E40: User Profile
A42: B8 | B42: Egrid profile
A43: 1 | B43: eGRID State Averages All Sources (2012 data)
A44: 2 | B44: eGRID State Average Fossil (2012 data)
A45: 3 | B45: eGRID State Averages Coal (2012 data)
A46: 4 | B46: eGRID State Averages Oil (2012 data)
A47: 5 | B47: eGRID State Averages Gas (2012 data)
A49: D2 | B49: Displaced Thermal Source | C49: CO2 rate | F49: Heat Content
A50: 1 | B50: Existing Gas Boiler | C50: =co2gas -> 116.9 | F50: 1028 | G50: Btu/cf
A51: 2 | B51: Existing Distillate Oil Boiler | C51: =co2oil -> 163.1 | F51: 138000 | G51: Btu/gal
A52: 3 | B52: Existing Residual Oil Boiler | C52: =co2oil -> 163.1 | F52: 150000 | G52: Btu/gal
A53: 4 | B53: Existing Coal Boiler | C53: =co2coal -> 207.1 | F53: =heatcontentcoal -> 11175 | G53: Btu/lb
A54: 5 | B54: New Gas Boiler | C54: =co2gas -> 116.9 | F54: 1028 | G54: Btu/cf
A55: 6 | B55: New Distillate Oil Boiler | C55: =co2oil -> 163.1 | F55: 138000 | G55: Btu/gal
A56: 7 | B56: New Residual Oil Boiler | C56: =co2oil -> 163.1 | F56: 150000 | G56: Btu/gal
A57: 8 | B57: New Coal Boiler | C57: =co2coal -> 207.1 | F57: =heatcontentcoal -> 11175 | G57: Btu/lb
A58: 9 | B58: Electric Resistence or Heat Pump | C58: 0 | F58: 0
A59: 10 | B59: Existing Propane Boiler | C59: 139 | F59: 91600 | G59: Btu/gal
A60: 11 | B60: New Propane Boiler | C60: 139 | F60: 91600 | G60: Btu/gal
A61: 12 | B61: Other | C61: 0 | F61: 138000 | G61: Btu/gal
A64: B6 | B64: State | C64: Region | D64: Grid Loss %
A65: 1 | B65: US Average | C65: 1 | D65: =VLOOKUP(C65,$A$213:$C$219,3) -> 0.0833 | F65: =VLOOKUP(deinput2,A65:D152,3) -> 1 | G65: =VLOOKUP(deinput2,A65:D152,4) -> 0.0833
A66: =A65+1 -> 2 | B66: AKGD Alaska Grid | C66: 5 | D66: 0.0866
A67: 3 | B67: AKMS Miscellaneous | C67: 5 | D67: 0.0866
A68: 4 | B68: ERCOT All | C68: 4 | D68: 0.0703
A69: 5 | B69: FRCC All | C69: 2 | D69: 0.0917
A70: 6 | B70: HICC Miscellaneous | C70: 6 | D70: 0.0769
A71: 7 | B71: HIOA Oahu | C71: 6 | D71: 0.0769
A72: 8 | B72: MRO East | C72: 2 | D72: 0.0917
A73: 9 | B73: MRO West | C73: 2 | D73: 0.0917
A74: =A73+1 -> 10 | B74: NYLI Long Island | C74: 2 | D74: 0.0917
A75: 11 | B75: NYCW NYC/Westchester | C75: 2 | D75: 0.0917
A76: 12 | B76: NEWE New England | C76: 2 | D76: 0.0917
A77: 13 | B77: NYUP Upstate NY | C77: 2 | D77: 0.0917
A78: 14 | B78: RFCE East | C78: 2 | D78: 0.0917
A79: 15 | B79: RFCM Michigan | C79: 2 | D79: 0.0917
A80: 16 | B80: RFCW West | C80: 2 | D80: 0.0917
A81: =A80+1 -> 17 | B81: SRMW Midwest | C81: 2 | D81: 0.0917
A82: 18 | B82: SRMV Mississippi Valley | C82: 2 | D82: 0.0917
A83: 19 | B83: SRSO South | C83: 2 | D83: 0.0917
A84: 20 | B84: SRTV Tennessee Valley | C84: 2 | D84: 0.0917
A85: 21 | B85: SRVC Virginia/Carolina | C85: 2 | D85: 0.0917
A86: 22 | B86: SPNO North | C86: 2 | D86: 0.0917
A87: 23 | B87: SPSO South | C87: 2 | D87: 0.0917
A88: 24 | B88: CAMX California | C88: 3 | D88: 0.0576
A89: 25 | B89: NWPP Northwest | C89: 3 | D89: 0.0576
A90: 26 | B90: RMPA Rockies | C90: 3 | D90: 0.0576
A91: 27 | B91: AZNM Southwest | C91: 3 | D91: 0.0576
A92: 28 | B92: ASCC - Alaska Systems Coord. Cncl | C92: 5 | D92: 0.0866
A93: 29 | B93: FRCC - Florida Reliability Coord. Cncl | C93: 2 | D93: 0.0917
A94: 30 | B94: HICC - Hawaiian Islands Coord Cncl | C94: 6 | D94: 0.0769
A95: 31 | B95: MRO - Midwest Reliability Org. | C95: 2 | D95: 0.0917
A96: 32 | B96: NPCC - Northeast Power Coord Cncl | C96: 2 | D96: 0.0917
A97: 33 | B97: RFC - Reliability First Corp | C97: 2 | D97: =VLOOKUP(C97,$A$213:$C$219,3) -> 0.0917
A98: 34 | B98: SERC - SERC Reliability Corp | C98: 2 | D98: 0.0917
A99: 35 | B99: SPP - Southwest Power Pool | C99: 2 | D99: 0.0917
A100: 36 | B100: TRE - Texas Regional Entity | C100: 4 | D100: 0.0703
A101: 37 | B101: WECC - Western Elec Coord Cncl | C101: 3 | D101: 0.0576
A102: 38 | B102: AK | C102: 5 | D102: 0.0866
A103: 39 | B103: AL | C103: 2 | D103: 0.0917
A104: 40 | B104: AR | C104: 2 | D104: 0.0917
A105: 41 | B105: AZ | C105: 3 | D105: 0.0576
A106: 42 | B106: CA | C106: 3 | D106: 0.0576
A107: 43 | B107: CO | C107: 3 | D107: 0.0576
A108: 44 | B108: CT | C108: 2 | D108: 0.0917
A109: 45 | B109: DC | C109: 2 | D109: 0.0917
A110: 46 | B110: DE | C110: 2 | D110: 0.0917
A111: 47 | B111: FL | C111: 2 | D111: 0.0917
A112: 48 | B112: GA | C112: 2 | D112: 0.0917
A113: =A112+1 -> 49 | B113: HI | C113: 6 | D113: 0.0769
A114: 50 | B114: IA | C114: 2 | D114: 0.0917
A115: 51 | B115: ID | C115: 3 | D115: 0.0576
A116: 52 | B116: IL | C116: 2 | D116: 0.0917
A117: 53 | B117: IN | C117: 2 | D117: 0.0917
A118: 54 | B118: KS | C118: 2 | D118: 0.0917
A119: 55 | B119: KY | C119: 2 | D119: 0.0917
A120: 56 | B120: LA | C120: 2 | D120: 0.0917
A121: 57 | B121: MA | C121: 2 | D121: 0.0917
A122: 58 | B122: MD | C122: 2 | D122: 0.0917
A123: 59 | B123: ME | C123: 2 | D123: 0.0917
A124: 60 | B124: MI | C124: 2 | D124: 0.0917
A125: 61 | B125: MN | C125: 2 | D125: 0.0917
A126: 62 | B126: MO | C126: 2 | D126: 0.0917
A127: 63 | B127: MS | C127: 2 | D127: 0.0917
A128: 64 | B128: MT | C128: 3 | D128: 0.0576
A129: 65 | B129: NC | C129: 2 | D129: =VLOOKUP(C129,$A$213:$C$219,3) -> 0.0917
A130: 66 | B130: ND | C130: 2 | D130: 0.0917
A131: 67 | B131: NE | C131: 2 | D131: 0.0917
A132: 68 | B132: NH | C132: 2 | D132: 0.0917
A133: 69 | B133: NJ | C133: 2 | D133: 0.0917
A134: 70 | B134: NM | C134: 3 | D134: 0.0576
A135: 71 | B135: NV | C135: 3 | D135: 0.0576
A136: 72 | B136: NY | C136: 2 | D136: 0.0917
A137: 73 | B137: OH | C137: 2 | D137: 0.0917
A138: 74 | B138: OK | C138: 2 | D138: 0.0917
A139: 75 | B139: OR | C139: 3 | D139: 0.0576
A140: 76 | B140: PA | C140: 2 | D140: 0.0917
A141: 77 | B141: RI | C141: 2 | D141: 0.0917
A142: 78 | B142: SC | C142: 2 | D142: 0.0917
A143: 79 | B143: SD | C143: 2 | D143: 0.0917
A144: 80 | B144: TN | C144: 2 | D144: 0.0917
A145: =A144+1 -> 81 | B145: TX | C145: 4 | D145: 0.0703
A146: 82 | B146: UT | C146: 3 | D146: 0.0576
A147: 83 | B147: VA | C147: 2 | D147: 0.0917
A148: 84 | B148: VT | C148: 2 | D148: 0.0917
A149: 85 | B149: WA | C149: 3 | D149: 0.0576
A150: 86 | B150: WI | C150: 2 | D150: 0.0917
A151: 87 | B151: WV | C151: 2 | D151: 0.0917
A152: 88 | B152: WY | C152: 3 | D152: 0.0576
A154: A6 | B154: Fuel used in CHP system | C154: CO2 rate | F154: Heat Content
A155: 1 | B155: Natural Gas | C155: =co2gas -> 116.9 | F155: 1028 | G155: Btu/cf
A156: 2 | B156: Diesel Fuel | C156: =co2oil -> 163.1 | F156: 138000 | G156: Btu/gal
A157: 3 | B157: Distillate Oil | C157: =co2oil -> 163.1 | F157: 138000 | G157: Btu/gal
A158: 4 | B158: Coal | C158: =co2coal -> 207.1 | F158: =heatcontentcoal -> 11175 | G158: Btu/lb
A159: 5 | B159: Propane | C159: =co2propane -> 139 | F159: 91600 | G159: Btu/gal
A160: 6 | B160: Woody Biomass | C160: =co2wood -> 206.7 | F160: =heatcontentwood -> 7500 | G160: Btu/lb
A161: 7 | B161: Other (including renewables) | C161: 0 | F161: 138000 | G161: Btu/gal
A162: 8 | B162: Waste Heat | C162: 0
A165: A7 | B165: Fuel used in STM system | C165: CO2 rate | F165: Heat Content
A166: 1 | B166: Natural Gas | C166: =co2gas -> 116.9 | F166: 1028 | G166: Btu/cf
A167: 2 | B167: Diesel Fuel | C167: =co2oil -> 163.1 | F167: 138000 | G167: Btu/gal
A168: 3 | B168: Distillate Oil | C168: =co2oil -> 163.1 | F168: 138000 | G168: Btu/gal
A169: 4 | B169: Coal | C169: =co2coal -> 207.1 | F169: =heatcontentcoal -> 11175 | G169: Btu/lb
A170: 5 | B170: Propane | C170: =co2propane -> 139 | F170: 91600 | G170: Btu/gal
A171: 6 | B171: Woody Biomass | C171: =co2wood -> 206.7 | F171: =heatcontentwood -> 7500 | G171: Btu/lb
A172: 7 | B172: Other | C172: 0 | F172: 138000 | G172: Btu/gal
A174: A8 | B174: Does the System provide cooling
A175: 1 | B175: Yes
A176: 2 | B176: No
A178: A9 | B178: CHP: What Cooling Technology Does this System Use?
A179: 1 | B179: =CONCATENATE("Typical ",E179,", COP=",D179) ->  | D179: =CHPTech!B230 ->  | E179: Single-Effect Absorption Chiller
A180: 2 | B180: =CONCATENATE("Typical ",E180,", COP=",D180) ->  | D180: =CHPTech!B231 ->  | E180: Double-Effect Absorption Chiller
A181: 3 | B181: I Will Enter a Value | E181: I Will Enter a Value
A183: C4 | B183: Does the System have duct burners
A184: 1 | B184: Yes
A185: 2 | B185: No
A187: H1 | B187: Does the System Provide Heating Cooling or Both?
A188: 1 | B188: Heating Only
A189: 2 | B189: Cooling Only
A190: 3 | B190: Heating and Cooling
A192: H2 | B192: If Heating and Cooling: Does the System Provide Simultaneous Heating and Cooling?
A193: 1 | B193: Yes
A194: 2 | B194: No
A196: H3 | B196: What is the Efficiency of the Cooling System that is Being Displaced?
A197: 1 | B197: 1.60 kW/ton (COP=2.2) 1980-vintage, Roof-top unit <150 tons capacity
A198: 2 | B198: 1.26 kW/ton (COP=2.8) Average new unit, Roof-top unit <150 tons capacity
A199: 3 | B199: 1.00 kW/ton (COP=3.5) Best available, Roof-top unit <150 tons capacity
A200: 4 | B200: 1.60 kW/ton (COP=2.2) 1980-vintage, reciprocating compressor, air-cooled, <150 tons capacity
A201: 5 | B201: 1.26 kW/ton (COP=2.8) Average new unit, reciprocating compressor, air-cooled, <150 tons capacity
A202: 6 | B202: 1.00 kW/ton (COP=3.5) Best available, reciprocating compressor, air-cooled, <150 tons capacity
A203: 7 | B203: 1.26 kW/ton (COP=2.8) Average new unit, rotary screw compressor, air-cooled, <150 tons capacity
A204: 8 | B204: 0.94 kW/ton (COP=3.75) Best available, rotary screw compressor, air-cooled, <150 tons capacity
A205: 9 | B205: 1.03 kW/ton (COP=3.4) 1980-vintage centrifugal compressor, water-cooled, >=150 tons capacity
A206: 10 | B206: 0.58 kW/ton (COP=6.1) Average new centrifugal compressor, water-cooled, >=150 tons capacity
A207: 11 | B207: 0.45 kW/ton (COP=7.8) Best available centrifugal compressor, water-cooled, >=150 tons capacity
A208: 12 | B208: 0.80 kW/ton (COP=4.4) Average new rotary screw compressor, water-cooled, >=150 tons capacity
A209: 13 | B209: 0.56 kW/ton (COP=6.25) Best available rotary screw compressor, water-cooled, >=150 tons capacity
A210: 14 | B210: I Will Enter a Value
A212: B7 | B212: US Interconnect Power Grid Region | C212: T&D Loss %
A213: 1 | B213: US Average | C213: 0.0833 | E213: http://www2.epa.gov/sites/production/files/2015-10/documents/egrid2012_technicalsupportdocument.pdf
A214: 2 | B214: Eastern Interconnect | C214: 0.0917
A215: 3 | B215: Western Interconnect | C215: 0.0576
A216: 4 | B216: ERCOT | C216: 0.0703
A217: 5 | B217: Alaska | C217: 0.0866
A218: 6 | B218: Hawaii | C218: 0.0769
A219: 7 | B219: I will enter a value

Sheet STMTech (hidden)
A1: Displaced Thermal Calculation
A3: Selected Thermal Source
A4: =stminput1 -> 0 | B4: =LOOKUP($A4,$A7:$A23,B7:B23) ->  | C4: =LOOKUP($A4,$A7:$A23,C7:C23) ->  | D4: =LOOKUP($A4,$A7:$A23,D7:D23) -> 
B6: Fuel used in displaced boiler | C6: Boiler Eff | D6: NOx lb/MMBtu | E6: Sulfur content | F6: SO2 lb/MMBtu | G6: CO2 lb/MMBtu | I6: Fuel MMBtu/ton | J6: CH4 lb/MMBtu | K6: N2O lb/MMBtu
A7: 1 | B7: Existing - Natural Gas | C7: 0.8 | D7: 0.1 | E7: =ngsulfur -> 7.096743747e-07 | F7: =E7*2*2000/I7 -> 0.0005851361868 | G7: =co2gas -> 116.9 | I7: =2000*ngbtu/(ngdensity*1000000) -> 4.851344974 | J7: 0.002204 | K7: 0.0002204
A8: 2 | B8: Existing - Distillate Oil | C8: 0.8 | D8: 0.15 | E8: 0.000487 | F8: 0.05108626639 | G8: =co2oil -> 163.1 | I8: =Factors!$A$16*42*2000/(Factors!$A$17*1000000) -> 38.13157895 | J8: 0.006612 | K8: 0.0013224
A9: 3 | B9: Existing - Residual Oil | C9: 0.83 | D9: 0.2 | E9: 0.001461 | F9: 0.1535209524 | G9: =co2oil -> 163.1 | I9: =Factors!$A$19*42*2000/(Factors!$A$20*1000000) -> 38.06646526 | J9: 0.006612 | K9: 0.0013224
A10: 4 | B10: Existing - Coal | C10: 0.85 | D10: 0.4 | E10: 0.01 | F10: 1.903402332 | G10: =co2coal -> 207.1 | I10: =Factors!$A$55 -> 21.015 | J10: 0.024244 | K10: 0.0035264
A11: 5 | B11: New - Natural Gas | C11: 0.8 | D11: 0.05 | E11: =ngsulfur -> 7.096743747e-07 | F11: 0.0005851361868 | G11: =co2gas -> 116.9 | I11: =2000*ngbtu/(ngdensity*1000000) -> 4.851344974 | J11: 0.002204 | K11: 0.0002204
A12: 6 | B12: New - Distillate Oil | C12: 0.8 | D12: 0.05 | E12: 0.000487 | F12: 0.05108626639 | G12: =co2oil -> 163.1 | I12: =Factors!$A$16*42*2000/(Factors!$A$17*1000000) -> 38.13157895 | J12: 0.006612 | K12: 0.0013224
A13: 7 | B13: New - Residual Oil | C13: 0.83 | D13: 0.1 | E13: 0.000974 | F13: 0.1023473016 | G13: =co2oil -> 163.1 | I13: =Factors!$A$19*42*2000/(Factors!$A$20*1000000) -> 38.06646526 | J13: 0.006612 | K13: 0.0013224
A14: 8 | B14: New - Coal | C14: 0.85 | D14: 0.1 | E14: 0.01 | F14: 1.903402332 | G14: =co2coal -> 207.1 | I14: =Factors!$A$55 -> 21.015 | J14: 0.024244 | K14: 0.0035264
A15: 9 | B15: Electric Resistence or Heat Pump | C15: 1.2 | D15: 0 | E15: 0 | F15: 0 | G15: 0 | I15: 0 | J15: 0 | K15: 0
A16: 10 | B16: Existing - Propane | C16: 0.8 | D16: 0.1 | E16: =ngsulfur -> 7.096743747e-07 | F16: 0.000584 | G16: =co2propane -> 139 | I16: =(Factors!A45/propDensity*2000)/1000000 -> 43.61904762 | J16: 0.002204 | K16: 0.0002204
A17: 11 | B17: New - Propane | C17: 0.8 | D17: 0.1 | E17: =ngsulfur -> 7.096743747e-07 | F17: 0.000584 | G17: =co2propane -> 139 | I17: =(Factors!A45/propDensity*2000)/1000000 -> 43.61904762 | J17: 0.002204 | K17: 0.0002204
A18: 12 | B18: Other | C18: 0.8 | D18: =stmnoxinput -> 0 | E18: =stmsulfurinput1 -> 0 | F18: 0 | G18: 160 | I18: =Factors!$A$19*42*2000/(Factors!$A$20*1000000) -> 38.06646526 | J18: 0.006612 | K18: 0.0013224
A22: Boiler Efficiency
A23: =chpfuelinput -> 0 | B23: =LOOKUP($A23,$A26:$A32,B26:B32) -> 
C25: Boiler Eff | D25: NOx lb/MMBtu | E25: Sulfur Content | F25: SO2 lb/MMBtu | G25: CO2 lb/MMBtu | H25: CH4 lb/MMBtu | I25: N2O lb/MMBtu
A26: 1 | B26: Natural Gas | C26: 0.8 | D26: 0.1 | E26: 1e-06 | F26: 0.000584 | G26: =co2gas -> 116.9 | H26: =ch4gas -> 0.002204 | I26: =n2ogas -> 0.0002204
A27: 2 | B27: Diesel Fuel | C27: 0.8 | D27: 0.15 | E27: 0.000487 | F27: 0.05 | G27: =co2oil -> 163.1 | H27: =ch4oil -> 0.006612 | I27: =n2ooil -> 0.0013224
A28: 3 | B28: Distillate Oil | C28: 0.8 | D28: 0.15 | E28: 0.000487 | F28: 0.05 | G28: =co2oil -> 163.1 | H28: =ch4oil -> 0.006612 | I28: =n2ooil -> 0.0013224
A29: 4 | B29: Coal | C29: 0.85 | D29: 0.1 | E29: 0.01 | F29: 1.9 | G29: =co2coal -> 207.1 | H29: =ch4coal -> 0.024244 | I29: =n2ocoal -> 0.0035264
A30: 5 | B30: Propane | C30: 0.8 | D30: 0.1 | E30: 1e-06 | F30: 0.000584 | G30: =co2gas -> 116.9 | H30: =ch4gas -> 0.002204 | I30: =n2ogas -> 0.0002204
A31: 6 | B31: Woody Biomass | C31: 0.83 | D31: 0.165 | E31: 1e-05 | F31: 0.00825 | G31: =co2wood -> 206.7 | H31: =CH4wood -> 0.07 | I31: =N2Owood -> 0.009
A32: 7 | B32: Other | C32: 0.8 | D32: 0.1 | E32: 1e-06 | F32: 0 | G32: =co2input -> 0 | H32: 0 | I32: 0

Sheet CHPTech (hidden)
A1: CHP Technologies
B3: Selected
B4: Technology
B5: =chptechinput -> 0 | C5: 1 | D5: 2 | E5: 3 | F5: 4 | G5: 5 | H5: 6 | I5: 7 | J5: 8 | K5: 9
B6: =LOOKUP(B$5,C$5:W$5,C6:W6) ->  | C6: =B30 -> Recip Rich Burn | D6: =B54 -> Recip Lean Burn | E6: =B78 -> Recip Diesel | F6: =B102 -> Microturbine | G6: =B126 -> Combustion Turbine | H6: =B150 -> Boiler / Steam Turbine | I6: =B174 -> Fuel Cell | J6: =B198 -> Other | K6: Waste Heat to Power
A7: Capacity (kW) | C7: =B31 -> 0 | D7: =B55 -> 0 | E7: =B79 -> 0 | F7: =B103 -> 0 | G7: =B127 -> 0 | H7: 0 | I7: 0 | J7: 0 | K7: =chpcapinput -> 0
A8: CapLow (kW) | C8: =B32 -> 5 | D8: =B56 -> 500 | E8: =B80 -> 90 | F8: =B104 -> 30 | G8: =B128 -> 1000 | H8: 100 | I8: 5 | J8: 0 | K8: 50
A9: CapHigh (kW) | C9: =B33 -> 1200 | D9: =B57 -> 5000 | E9: =B81 -> 1600 | F9: =B105 -> 1000 | G9: =B129 -> 40000 | H9: 15000 | I9: 3000 | J9: 0 | K9: 10000
A10: Misc | C10: =B34 -> Catalyst | D10: =B58 -> 0 | E10: =B82 -> 0 | F10: =B106 ->  | G10: =B130 -> 0 | H10: 0 | I10: ClearEdge SOFC | J10: 0
A11: Fuel | C11: Natural Gas | D11: Natural Gas | E11: Diesel | F11: Natural gas | G11: Natural gas | H11: Natural Gas | I11: Natural Gas | K11: Waste Heat
A13: % | B13: =LOOKUP(B$5,C$5:W$5,C13:W13) ->  | C13: 0.2299966296 | D13: 0.3495901639 | E13: 0.292791762 | F13: 0.2253632761 | G13: 0.2139855754 | H13: =B157 -> 0 | I13: =B181 -> 0.3000879507 | J13: =B205 -> 0 | K13: 0
A14: Btu/kWh HHV | C14: 14835 | D14: 9760 | E14: 11653.33333 | F14: 15140 | G14: 15945 | H14: =B158 -> 0 | I14: 11370 | J14: 0
A15: Btu/kWh LHV | C15: 13425.33937 | D15: 8832.579186 | E15: 10614.47028 | F15: 13701.35747 | G15: 14429.86425 | H15: =B159 -> 0 | I15: 10289.59276 | J15: 0
A16: P/H ratio | C16: 0.4 | D16: 0.79 | E16: 0.66 | F16: 0.51 | G16: 0.44 | H16: =B160 -> 0 | I16: 0.85 | J16: 0
A17: NOx ppm | C17: 0 | D17: 0 | E17: 0 | F17: 12 | G17: 42 | H17: =B161 -> 0 | I17: 3 | J17: 0 | K17: 0
A18: NOx gm/hp-hr | C18: 0.15 | D18: 0.7 | E18: 3 | F18: 0 | G18: 0 | H18: 0 | I18: 0 | J18: 0 | K18: 0
A19: NOx lb/MMBtu | C19: 0.03144590495 | D19: 0.2230532787 | E19: 0.8006292906 | F19: 0.04227212682 | G19: 0.1544117647 | I19: 0.002638522427 | J19: 0 | K19: 0
A20: NOx lb/MWh | C20: 0.4665 | D20: 2.177 | E20: 9.33 | F20: 0.64 | G20: 2.462095588 | H20: 0 | I20: 0.03 | J20: 0 | K20: 0
A21: SO2 lb/MMBtu | C21: 0.0006 | D21: 0.0006 | E21: 0 | F21: 0 | G21: 0.0006 | I21: 0.0001 | J21: 0 | K21: 0
A22: SO2 lb/MWh | C22: 0.008901 | D22: 0.005856 | E22: 0 | F22: 0 | G22: 0.009567 | H22: 0 | I22: 0.001137 | J22: 0 | K22: 0
A23: CO2 lb/MWh | C23: 1734.2115 | D23: 1140.944 | E23: 0 | F23: 0 | G23: 0 | H23: 0 | I23: 1360 | J23: 0 | K23: 0
B27: Detailed
B28: Recip Rich Burn
B29: =IF(chptechinput=1,1,0) -> 0 | C29: 1 | D29: 1 | E29: 1 | F29: 1 | G29: 1 | H29: 1 | I29: 1
B30: =IF(B$31*chptechcaplow<B$32,C30,IF(B$31*chptechcaphigh>B$33,I30,LOOKUP(B$31,C$31:T$31,C30:T30))) -> Recip Rich Burn | C30: Recip Rich Burn | D30: Recip Rich Burn | E30: Recip Rich Burn | F30: Recip Rich Burn | G30: Recip Rich Burn | H30: Recip Rich Burn | I30: Recip Rich Burn
A31: Capacity (kW) | B31: =chpcapinput -> 0 | C31: 5 | D31: 50 | E31: 100 | F31: 150 | G31: 300 | H31: 800 | I31: 1200
A32: CapLow (kW) | B32: =chptechcaplow*MIN(C31:AW31) -> 5
A33: CapHigh (kW) | B33: =chptechcaphigh*MAX(C31:AW31) -> 1200
A34: Misc | B34: Catalyst | C34: Catalyst | D34: Catalyst | E34: Catalyst | F34: Catalyst | G34: Catalyst | H34: Catalyst | I34: Catalyst
A35: Fuel | B35: Natural Gas | C35: Natural Gas | D35: Natural Gas | E35: Natural Gas | F35: Natural Gas | G35: Natural Gas | H35: Natural Gas | I35: Natural Gas
A37: % | B37: =IF(B$31*chptechcaplow<B$32,C37,IF(B$31*chptechcaphigh>B$33,I37,LOOKUP(B$31,C$31:T$31,C37:T37))) -> 0.2299966296 | C37: =3412/C38 -> 0.2299966296 | D37: 0.2787581699 | E37: 0.2843333333 | F37: 0.3040998217 | G37: 0.3176612978 | H37: 0.324952381 | I37: 0.3356946084
A38: Btu/kWh HHV | B38: 14835 | C38: 14835 | D38: 12240 | E38: 12000 | F38: 11220 | G38: 10741 | H38: 10500 | I38: 10164
A39: Btu/kWh LHV | B39: 13425.33937 | C39: =C38/1.105 -> 13425.33937 | D39: =D38/1.105 -> 11076.92308 | E39: =E38/1.105 -> 10859.72851 | F39: =F38/1.105 -> 10153.84615 | G39: =G38*0.91 -> 9774.31 | H39: =H38*0.91 -> 9555 | I39: =I38*0.91 -> 9249.24
A40: P/H ratio | B40: 0.4 | C40: 0.4 | D40: 0.63 | E40: 0.52 | F40: 0.69 | G40: 0.71 | H40: 0.72 | I40: 0.75
A41: NOx ppm | B41: 0
A42: NOx gm/hp-hr | B42: 0.15 | C42: 0.15 | D42: 0.15 | E42: 0.15 | F42: 0.15 | G42: 0.15 | H42: 0.15 | I42: 0.15
A43: NOx lb/MMBtu | B43: 0.03144590495 | C43: =C44*1000/C38 -> 0.03144590495 | D43: 0.0381127451 | E43: 0.038875 | F43: 0.04157754011 | G43: 0.04343171027 | H43: 0.04442857143 | I43: 0.04589728453
A44: NOx lb/MWh | B44: 0.4665 | C44: =C42*gmhphrlbMWh -> 0.4665 | D44: 0.4665 | E44: 0.4665 | F44: 0.4665 | G44: 0.4665 | H44: 0.4665 | I44: 0.4665
A45: SO2 lb/MMBtu | B45: 0.0006 | C45: 0.0006 | D45: 0.0006 | E45: 0.0006 | F45: 0.0006 | G45: 0.0006 | H45: 0.0006 | I45: =0.000584/1.03 -> 0.0005669902913
A46: SO2 lb/MWh | B46: 0.008901 | C46: =C45*C38/1000 -> 0.008901 | D46: 0.007344 | E46: 0.0072 | F46: 0.006732 | G46: 0.0064446 | H46: 0.0063 | I46: 0.00576288932
A47: CO2 lb/MWh | B47: 1734.2115 | C47: =co2gas*C38/1000 -> 1734.2115 | D47: 1430.856 | E47: 1402.8 | F47: 1311.618 | G47: 1255.6229 | H47: 1227.45 | I47: 1188.1716
B51: Detailed
B52: Recip Lean Burn
B53: =IF(chptechinput=2,2,0) -> 0 | C53: 2 | D53: 2 | E53: 2
B54: =IF(B$55*chptechcaplow<B$56,C54,IF(B$55*chptechcaphigh>B$57,E54,LOOKUP(B$55,C$55:S$55,C54:S54))) -> Recip Lean Burn | C54: Recip Lean Burn | D54: Recip Lean Burn | E54: Recip Lean Burn
A55: Capacity (kW) | B55: =chpcapinput -> 0 | C55: 500 | D55: 3000 | E55: 5000
A56: CapLow (kW) | B56: =chptechcaplow*MIN(C55:AV55) -> 500
A57: CapHigh (kW) | B57: =chptechcaphigh*MAX(C55:AV55) -> 5000
A58: Misc | B58: =IF(B$55*chptechcaplow<B$56,C58,IF(B$55*chptechcaphigh>B$57,E58,LOOKUP(B$55,C$55:S$55,C58:S58))) -> 0
A59: Fuel | B59: =IF(B$55*chptechcaplow<B$56,C59,IF(B$55*chptechcaphigh>B$57,E59,LOOKUP(B$55,C$55:S$55,C59:S59))) -> Natural Gas | C59: Natural Gas | D59: Natural Gas | E59: Natural Gas
A61: % | B61: =IF(B$55*chptechcaplow<B$56,C61,IF(B$55*chptechcaphigh>B$57,E61,LOOKUP(B$55,C$55:S$55,C61:S61))) -> 0.3495901639 | C61: =3412/C62 -> 0.3495901639 | D61: =3412/D62 -> 0.3594605984 | E61: =3412/E62 -> 0.3895866636
A62: Btu/kWh HHV | B62: 9760 | C62: 9760 | D62: 9492 | E62: 8758
A63: Btu/kWh LHV | B63: 8832.579186 | C63: =C62/1.105 -> 8832.579186 | D63: =D62/1.105 -> 8590.045249 | E63: =E62/1.105 -> 7925.791855
A64: P/H ratio | B64: 0.79 | C64: 0.79 | D64: 0.97 | E64: 1.12
A65: NOx ppm | B65: 0
A66: NOx gm/hp-hr | B66: 0.7 | C66: 0.7 | D66: 0.7 | E66: 0.5
A67: NOx lb/MMBtu | B67: 0.2230532787 | C67: =C68*1000/C62 -> 0.2230532787 | D67: =D68*1000/D62 -> 0.2293510324 | E67: =E68*1000/E62 -> 0.1775519525
A68: NOx lb/MWh | B68: 2.177 | C68: =C66*gmhphrlbMWh -> 2.177 | D68: =D66*gmhphrlbMWh -> 2.177 | E68: =E66*gmhphrlbMWh -> 1.555
A69: SO2 lb/MMBtu | B69: 0.0006 | C69: 0.0006 | D69: 0.0006 | E69: 0.0006
A70: SO2 lb/MWh | B70: 0.005856 | C70: =C69*C62/1000 -> 0.005856 | D70: =D69*D62/1000 -> 0.0056952 | E70: =E69*E62/1000 -> 0.0052548
A71: CO2 lb/MWh | B71: 1140.944 | C71: =co2gas*C62/1000 -> 1140.944 | D71: =co2gas*D62/1000 -> 1109.6148 | E71: =co2gas*E62/1000 -> 1023.8102
B75: Detailed
B76: Recip Diesel
B77: =IF(chptechinput=3,3,0) -> 0 | C77: 3 | D77: 3 | E77: 3 | F77: 3 | G77: 3 | H77: 3 | I77: 3
B78: =IF(B$79*chptechcaplow<B$80,C78,IF(B$79*chptechcaphigh>B$81,I78,LOOKUP(B$79,C$79:C$79,C78:C78))) -> Recip Diesel | C78: Recip Diesel | D78: Recip Diesel | E78: Recip Diesel | F78: Recip Diesel | G78: Recip Diesel | H78: Recip Diesel | I78: Recip Diesel
A79: Capacity (kW) | B79: =chpcapinput -> 0 | C79: 90 | D79: 160 | E79: 320 | F79: 545 | G79: 680 | H79: 1100 | I79: 1600
A80: CapLow (kW) | B80: =chptechcaplow*MIN(C79:AC79) -> 90
A81: CapHigh (kW) | B81: =chptechcaphigh*MAX(C79:AC79) -> 1600
A82: Misc | B82: =IF(B$79*chptechcaplow<B$80,C82,IF(B$79*chptechcaphigh>B$81,I82,LOOKUP(B$79,C$79:C$79,C82:C82))) -> 0
A83: Fuel | B83: =IF(B$79*chptechcaplow<B$80,C83,IF(B$79*chptechcaphigh>B$81,I83,LOOKUP(B$79,C$79:C$79,C83:C83))) -> Diesel | C83: Diesel | D83: Diesel | E83: Diesel | F83: Diesel | G83: Diesel | H83: Diesel | I83: Diesel
A85: % | B85: =IF(B$79*chptechcaplow<B$80,C85,IF(B$79*chptechcaphigh>B$81,I85,LOOKUP(B$79,C$79:C$79,C85:C85))) -> 0.292791762 | C85: =3412/C86 -> 0.292791762 | D85: =3412/D86 -> 0.3139636531 | E85: 0.3470124587 | F85: 0.3310793006 | G85: 0.3431174209 | H85: 0.3536684194 | I85: 0.3541577466
A86: Btu/kWh HHV | B86: 11653.33333 | C86: 11653.33333 | D86: 10867.5 | E86: 9832.5 | F86: 10305.68807 | G86: 9944.117647 | H86: 9647.454545 | I86: 9634.125
A87: Btu/kWh LHV | B87: 10614.47028 | C87: =C86*ppmbtudlhv/ppmbtud -> 10614.47028 | D87: 9898.69186 | E87: 8955.959302 | F87: 9386.963943 | G87: 9057.626539 | H87: 8787.410148 | I87: 8775.268895
A88: P/H ratio | B88: 0.66 | C88: 0.66 | D88: 0.7 | E88: 0.7 | F88: 0.72 | G88: 0.72 | H88: 0.84 | I88: 0.84
A89: NOx ppm | B89: 0
A90: NOx gm/hp-hr | B90: 3 | C90: 3 | D90: 3 | E90: 3 | F90: 3 | G90: 3 | H90: 3 | I90: 3
A91: NOx lb/MMBtu | B91: 0.8006292906 | C91: =C92*1000/C86 -> 0.8006292906 | D91: =D92*1000/D86 -> 0.8585231194 | E91: 0.9488939741 | F91: 0.9053252858 | G91: 0.9382431233 | H91: 0.9670944762 | I91: 0.968432525
A92: NOx lb/MWh | B92: 9.33 | C92: =C90*gmhphrlbMWh -> 9.33 | D92: =D90*gmhphrlbMWh -> 9.33 | E92: 9.33 | F92: 9.33 | G92: 9.33 | H92: 9.33 | I92: 9.33
A93: SO2 lb/MMBtu | B93: 0
A94: SO2 lb/MWh | B94: 0 | C94: =C93*C86/1000 -> 0 | D94: =D93*D86/1000 -> 0 | E94: 0 | F94: 0 | G94: 0 | H94: 0 | I94: 0
A95: CO2 lb/MWh | B95: 0
B99: Detailed
B100: Microturbine
B101: =IF(chptechinput=4,4,0) -> 0 | C101: 4 | D101: 4 | E101: 4 | F101: 4
B102: =IF(B$103*chptechcaplow<B$104,C102,IF(B$103*chptechcaphigh>B$105,F102,LOOKUP(B$103,C$103:X$103,C102:X102))) -> Microturbine | C102: Microturbine | D102: Microturbine | E102: Microturbine | F102: Microturbine
A103: Capacity (kW) | B103: =chpcapinput -> 0 | C103: 30 | D103: 65 | E103: 200 | F103: 1000
A104: CapLow (kW) | B104: =chptechcaplow*MIN(C103:BA103) -> 30
A105: CapHigh (kW) | B105: =chptechcaphigh*MAX(C103:BA103) -> 1000
A106: Misc | B106: =LOOKUP(B$103,C$103:X$103,C106:X106) -> 
A107: Fuel | B107: =IF(B$103*chptechcaplow<B$104,C107,IF(B$103*chptechcaphigh>B$105,F107,LOOKUP(B$103,C$103:X$103,C107:X107))) -> Natural gas | C107: Natural gas | D107: Natural gas | E107: Natural gas | F107: Natural gas
A109: % | B109: =IF(B$103*chptechcaplow<B$104,C109,IF(B$103*chptechcaphigh>B$105,F109,LOOKUP(B$103,C$103:X$103,C109:X109))) -> 0.2253632761 | C109: =3412/C110 -> 0.2253632761 | D109: =3412/D110 -> 0.2616765089 | E109: =3412/E110 -> 0.2998242531 | F109: =3412/F110 -> 0.2998242531
A110: Btu/kWh HHV | B110: 15140 | C110: 15140 | D110: 13039 | E110: 11380 | F110: 11380
A111: Btu/kWh LHV | B111: 13701.35747 | C111: =C110/1.105 -> 13701.35747 | D111: =D110/1.105 -> 11800 | E111: =E110/1.105 -> 10298.64253 | F111: =F110/1.105 -> 10298.64253
A112: P/H ratio | B112: 0.51 | C112: 0.51 | D112: 0.54 | E112: 0.71 | F112: 0.71
A113: NOx ppm | B113: 12 | C113: 12 | D113: 9 | E113: 9 | F113: 9
A114: NOx gm/hp-hr | B114: 0
A115: NOx lb/MMBtu | B115: 0.04227212682 | C115: =C116*1000/C110 -> 0.04227212682 | D115: =D116*1000/D110 -> 0.03527877905 | E115: =E116*1000/E110 -> 0.03514938489 | F115: =F116*1000/F110 -> 0.03514938489
A116: NOx lb/MWh | B116: 0.64 | C116: 0.64 | D116: 0.46 | E116: 0.4 | F116: 0.4
A117: SO2 lb/MMBtu | B117: 0
A118: SO2 lb/MWh | B118: 0 | C118: =C117*C110/1000 -> 0 | D118: =D117*D110/1000 -> 0 | E118: =E117*E110/1000 -> 0 | F118: =F117*F110/1000 -> 0
A119: CO2 lb/MWh | B119: 0
B123: Detailed
B124: Combustion Turbine
B125: =IF(chptechinput=5,5,0) -> 0 | C125: 5 | D125: 5 | E125: 5 | F125: 5 | G125: 5
B126: =IF(B$127*chptechcaplow<B$128,C126,IF(B$127*chptechcaphigh>B$129,F126,LOOKUP(B$127,C$127:X$127,C126:X126))) -> Combustion Turbine | C126: Combustion Turbine | D126: Combustion Turbine | E126: Combustion Turbine | F126: Combustion Turbine | G126: Combustion Turbine
A127: Capacity (kW) | B127: =chpcapinput -> 0 | C127: 1000 | D127: 5000 | E127: 10000 | F127: 25000 | G127: 40000
A128: CapLow (kW) | B128: =chptechcaplow*MIN(C127:BA127) -> 1000
A129: CapHigh (kW) | B129: =chptechcaphigh*MAX(C127:BA127) -> 40000
A130: Misc | B130: =IF(B$127*chptechcaplow<B$128,C130,IF(B$127*chptechcaphigh>B$129,F130,LOOKUP(B$127,C$127:X$127,C130:X130))) -> 0
A131: Fuel | B131: =IF(B$127*chptechcaplow<B$128,C131,IF(B$127*chptechcaphigh>B$129,F131,LOOKUP(B$127,C$127:X$127,C131:X131))) -> Natural gas | C131: Natural gas | D131: Natural gas | E131: Natural gas | F131: Natural gas | G131: Natural gas
A133: % | B133: =IF(B$127*chptechcaplow<B$128,C133,IF(B$127*chptechcaphigh>B$129,F133,LOOKUP(B$127,C$127:X$127,C133:X133))) -> 0.2139855754 | C133: =3412/C134 -> 0.2139855754 | D133: =3412/D134 -> 0.2890055904 | E133: =3412/E134 -> 0.2910021322 | F133: =3412/F134 -> 0.3430869784 | G133: =3412/G134 -> 0.3700650759
A134: Btu/kWh HHV | B134: 15945 | C134: 15945 | D134: 11806 | E134: 11725 | F134: 9945 | G134: 9220
A135: Btu/kWh LHV | B135: 14429.86425 | C135: =C134/1.105 -> 14429.86425 | D135: =D134/1.105 -> 10684.1629 | E135: =E134/1.105 -> 10610.85973 | F135: =F134/1.105 -> 9000 | G135: =G134/1.105 -> 8343.891403
A136: P/H ratio | B136: 0.44 | C136: 0.44 | D136: 0.62 | E136: 0.69 | F136: 0.94 | G136: 1.07
A137: NOx ppm | B137: 42 | C137: 42 | D137: 25 | E137: 25 | F137: 15 | G137: 15
A138: NOx gm/hp-hr | B138: 0
A139: NOx lb/MMBtu | B139: 0.1544117647 | C139: =C140*1000/C134 -> 0.1544117647 | D139: =D140*1000/D134 -> 0.09191176471 | E139: =E140*1000/E134 -> 0.09191176471 | F139: =F140*1000/F134 -> 0.05514705882 | G139: =G140*1000/G134 -> 0.05514705882
A140: NOx lb/MWh | B140: 2.462095588 | C140: =(C137/272)*C134/1000 -> 2.462095588 | D140: =(D137/272)*D134/1000 -> 1.085110294 | E140: =(E137/272)*E134/1000 -> 1.077665441 | F140: =(F137/272)*F134/1000 -> 0.5484375 | G140: =(G137/272)*G134/1000 -> 0.5084558824
A141: SO2 lb/MMBtu | B141: 0.0006 | C141: 0.0006 | D141: 0.0006 | E141: 0.0006 | F141: 0.0006 | G141: 0.0006
A142: SO2 lb/MWh | B142: 0.009567 | C142: =C141*C134/1000 -> 0.009567 | D142: =D141*D134/1000 -> 0.0070836 | E142: =E141*E134/1000 -> 0.007035 | F142: =F141*F134/1000 -> 0.005967 | G142: =G141*G134/1000 -> 0.005532
A143: CO2 lb/MWh | B143: 0
B147: Detailed
B148: Boiler / Steam Turbine
B149: =IF(chptechinput=6,6,0) -> 0 | C149: 6 | D149: 6 | E149: 6 | F149: 6
B150: =IF(B$151*chptechcaplow<B$152,C150,IF(B$151*chptechcaphigh>B$153,D150,LOOKUP(B$151,C$151:X$151,C150:X150))) -> Boiler / Steam Turbine | C150: Boiler / Steam Turbine | D150: Boiler / Steam Turbine | E150: Boiler / Steam Turbine | F150: Boiler / Steam Turbine
A151: Capacity (kW) | B151: =chpcapinput -> 0 | C151: 100 | D151: 500 | E151: 3000 | F151: 15000
A152: CapLow (kW) | B152: =chptechcaplow*MIN(C151:BA151) -> 100
A153: CapHigh (kW) | B153: =chptechcaphigh*MAX(C151:BA151) -> 15000
A154: Misc | B154: =IF(B$151*chptechcaplow<B$152,C154,IF(B$151*chptechcaphigh>B$153,D154,LOOKUP(B$151,C$151:X$151,C154:X154))) -> 0
A155: Fuel | B155: =IF(B$151*chptechcaplow<B$152,C155,IF(B$151*chptechcaphigh>B$153,D155,LOOKUP(B$151,C$151:X$151,C155:X155))) -> Natural Gas | C155: Natural Gas | D155: Natural Gas | E155: Natural Gas | F155: Natural Gas
A157: % | B157: =IF(B$151*chptechcaplow<B$152,C157,IF(B$151*chptechcaphigh>B$153,D157,LOOKUP(B$151,C$151:X$151,C157:X157))) -> 0
A158: Btu/kWh HHV | B158: 0
A159: Btu/kWh LHV | B159: 0
A160: P/H ratio | B160: 0
A161: NOx ppm | B161: 0
A162: NOx gm/hp-hr | B162: 0
A163: NOx lb/MMBtu | B163: =STMTech!D23 -> 
A164: NOx lb/MWh | B164: 0
A165: SO2 lb/MMBtu | B165: =STMTech!F23 ->  | C165: 0.0006 | D165: 0.0006 | E165: 0.0006 | F165: 0.0006
A166: SO2 lb/MWh | B166: 0 | C166: =C165*C158/1000 -> 0 | D166: =D165*D158/1000 -> 0 | E166: =E165*E158/1000 -> 0 | F166: =F165*F158/1000 -> 0
A167: CO2 lb/MWh | B167: 0 | C167: =co2gas*CHPTech!C158/1000 -> 0 | D167: =co2gas*CHPTech!D158/1000 -> 0 | E167: =co2gas*CHPTech!E158/1000 -> 0 | F167: =co2gas*CHPTech!F158/1000 -> 0
B171: Detailed
B172: Fuel Cell
B173: =IF(chptechinput=7,7,0) -> 0 | C173: 7 | D173: 7 | E173: 7 | F173: 7 | G173: 7
B174: =IF(B$175*chptechcaplow<B$176,C174,IF(B$175*chptechcaphigh>B$177,D174,LOOKUP(B$175,C$175:X$175,C174:X174))) -> Fuel Cell | C174: Fuel Cell | D174: Fuel Cell | E174: Fuel Cell | F174: Fuel Cell | G174: Fuel Cell
A175: Capacity (kW) | B175: =chpcapinput -> 0 | C175: 5 | D175: 300 | E175: 400 | F175: 1500 | G175: 3000
A176: CapLow (kW) | B176: =chptechcaplow*MIN(C175:BA175) -> 5
A177: CapHigh (kW) | B177: =chptechcaphigh*MAX(C175:BA175) -> 3000
A178: Misc | B178: =IF(B$175*chptechcaplow<B$176,C178,IF(B$175*chptechcaphigh>B$177,D178,LOOKUP(B$175,C$175:X$175,C178:X178))) -> ClearEdge SOFC | C178: ClearEdge SOFC | D178: FuelCell MCFC | E178: UTC PAFC | F178: FuelCell MCFC | G178: FuelCell MCFC
A179: Fuel | B179: =IF(B$175*chptechcaplow<B$176,C179,IF(B$175*chptechcaphigh>B$177,D179,LOOKUP(B$175,C$175:X$175,C179:X179))) -> Natural Gas | C179: Natural Gas | D179: Natural Gas | E179: Natural Gas | F179: Natural Gas | G179: Natural Gas
A181: % | B181: =IF(B$175*chptechcaplow<B$176,C181,IF(B$175*chptechcaphigh>B$177,D181,LOOKUP(B$175,C$175:X$175,C181:X181))) -> 0.3000879507 | C181: =3412/C182 -> 0.3000879507 | D181: =3412/D182 -> 0.4253303416 | E181: =3412/E182 -> 0.3799554566 | F181: =3412/F182 -> 0.4253303416 | G181: =3412/G182 -> 0.4253303416
A182: Btu/kWh HHV | B182: 11370 | C182: 11370 | D182: 8022 | E182: 8980 | F182: 8022 | G182: 8022
A183: Btu/kWh LHV | B183: 10289.59276 | C183: =C182/1.105 -> 10289.59276 | D183: =D182/1.105 -> 7259.728507 | E183: =E182/1.105 -> 8126.696833 | F183: =F182/1.105 -> 7259.728507 | G183: =G182/1.105 -> 7259.728507
A184: P/H ratio | B184: 0.85 | C184: 0.85 | D184: 1.27 | E184: 1.42 | F184: 1.27 | G184: 1.27
A185: NOx ppm | B185: 3 | C185: 3
A186: NOx gm/hp-hr | B186: 0
A187: NOx lb/MMBtu | B187: 0.002638522427 | C187: =C188*1000/C182 -> 0.002638522427 | D187: =D188*1000/D182 -> 0.001246571927 | E187: =E188*1000/E182 -> 0.002227171492 | F187: =F188*1000/F182 -> 0.001246571927 | G187: =G188*1000/G182 -> 0.001246571927
A188: NOx lb/MWh | B188: 0.03 | C188: 0.03 | D188: 0.01 | E188: 0.02 | F188: 0.01 | G188: 0.01
A189: SO2 lb/MMBtu | B189: 0.0001 | C189: 0.0001 | D189: 0.0001 | E189: 0.0001 | F189: 0.0001 | G189: 0.0001
A190: SO2 lb/MWh | B190: 0.001137 | C190: =C189*C182/1000 -> 0.001137 | D190: =D189*D182/1000 -> 0.0008022 | E190: =E189*E182/1000 -> 0.000898 | F190: =F189*F182/1000 -> 0.0008022 | G190: =G189*G182/1000 -> 0.0008022
A191: CO2 lb/MWh | B191: 1360 | C191: 1360 | D191: 1170 | E191: 1135 | F191: 950 | G191: 890
B195: User Defined
B196: CHP
B197: =IF(chptechinput=8,8,0) -> 0 | C197: 8
B198: =IF(B$199*chptechcaplow<B$200,C198,IF(B$199*chptechcaphigh>B$201,C198,LOOKUP(B$199,C$199:X$199,C198:X198))) -> Other | C198: Other
A199: Capacity (kW) | B199: =chpcapinput -> 0 | C199: =chpcapinput -> 0
A200: CapLow (kW) | B200: =chptechcaplow*MIN(C199:BA199) -> 0
A201: CapHigh (kW) | B201: =chptechcaphigh*MAX(C199:BA199) -> 0
A202: Misc | B202: =IF(B$199*chptechcaplow<B$200,C202,IF(B$199*chptechcaphigh>B$201,C202,LOOKUP(B$199,C$199:X$199,C202:X202))) -> 0
A203: Fuel | B203: =IF(B$199*chptechcaplow<B$200,C203,IF(B$199*chptechcaphigh>B$201,C203,LOOKUP(B$199,C$199:X$199,C203:X203))) ->  | C203: =LOOKUP(chpfuelinput,lista6a,lista6) -> 
A205: % | B205: =IF(B$199*chptechcaplow<B$200,C205,IF(B$199*chptechcaphigh>B$201,C205,LOOKUP(B$199,C$199:X$199,C205:X205))) -> 0 | C205: =chpeffinput1 -> 0
A206: Btu/kWh HHV | B206: 0 | C206: =chpeffinput2 -> 0
A207: Btu/kWh LHV | B207: 0 | C207: =chpeffinput3 -> 0
A208: P/H ratio | B208: 0 | C208: =chpphinput -> 0
A209: NOx ppm | B209: 0 | C209: =chpnoxinput1 -> 0
A210: NOx gm/hp-hr | B210: 0 | C210: =chpnoxinput2 -> 0
A211: NOx lb/MMBtu | B211: 0 | C211: =chpnoxinput3 -> 0
A212: NOx lb/MWh | B212: 0 | C212: =C211*C206/1000 -> 0
A213: SO2 lb/MMBtu | B213: 0
A214: SO2 lb/MWh | B214: 0 | C214: =C213*C206/1000 -> 0
A215: CO2 lb/MWh | B215: 0
B220: Duct Burner
B221: =chpfuelinput -> 0 | C221: 1 | D221: 2 | E221: 3 | F221: 4 | G221: 5 | H221: 6 | J221: Duct Burner emissions data from:
A222: NOx lb/MMBtu | B222: =LOOKUP(chpfuelinput,C221:I221,C222:H222) ->  | C222: 0.08 | D222: 0.08 | E222: 0.08 | F222: 0.08 | J222: Solar Turbines Inc
A223: NOx ppm | B223: =LOOKUP(chpfuelinput,C221:I221,C223:H223) ->  | C223: =C222*ppmbtu -> 21.76 | D223: =D222*ppmbtud -> 20.64 | E223: =E222*ppmbtud -> 20.64 | F223: =F222*ppmbtu -> 21.76
B228: Absorbtion Cooler | C228: Recip Engine - Rich Burn, natural gas | D228: Recip Engine - Lean Burn, natural gas | E228: Recip Engine - Diesel | F228: Microturbine | G228: Combustion Turbine | H228: Boiler / Steam Turbine | I228: Fuel Cell | J228: Other | L228: Absorption Chiller Data from:
B229: =chptechinput -> 0 | C229: 1 | D229: 2 | E229: 3 | F229: 4 | G229: 5 | H229: 6 | I229: 7 | J229: 8 | L229: Application Engineering Manual for Integrated Systems Design
A230: Single Effect | B230: =LOOKUP(chptechinput,C229:M229,C230:M230) ->  | C230: 0.7 | D230: 0.7 | E230: 0.7 | F230: 0.7 | G230: 0.7 | H230: 0.7 | I230: 0.7 | J230: 0.7 | L230: American Gas Cooling Center
A231: Double Effect | B231: =LOOKUP(chptechinput,C230:M230,C231:M231) ->  | C231: 1.4 | D231: 1.4 | E231: 1.4 | F231: 1.4 | G231: 1.4 | H231: 1.4 | I231: 1.4 | J231: 1.4 | L231: March 1999

Sheet EGRID (hidden)
A1: eGRID2012 Version 1.0 NERC Region File (Year 2012 Data)
BZ2: Calc | CA2: Calc
E3: NAMEPCAP | F3: STHTIAN | G3: STHTIOZ | H3: STNGENAN | I3: STNGENOZ | J3: STNOXAN | K3: STNOXOZ | L3: STSO2AN | M3: STCO2AN | N3: STCH4AN | O3: STN2OAN | P3: STCO2EQA | Q3: STHGAN | R3: STNOXRTA | S3: STNOXRTO | T3: STSO2RTA | U3: STCO2RTA | V3: STCH4RTA | W3: STN2ORTA | X3: STC2ERTA | Y3: STHGRTA | Z3: STNOXRA | AA3: STNOXRO | AB3: STSO2RA | AC3: STCO2RA | AD3: STHGRA | AE3: STNOXCRT | AF3: STNOXCRO | AG3: STSO2CRT | AH3: STCO2CRT | AI3: STCH4CRT | AJ3: STN2OCRT | AK3: STHGCRT | AL3: STCNOXRT | AM3: STONOXRT | AN3: STGNOXRT | AO3: STFSNXRT | AP3: STCNXORT | AQ3: STONXORT | AR3: STGNXORT | AS3: STFSNORT | AT3: STCSO2RT | AU3: STOSO2RT | AV3: STGSO2RT | AW3: STFSS2RT | AX3: STCCO2RT | AY3: STOCO2RT | AZ3: STGCO2RT | BA3: STFSC2RT | BB3: STCHGRT | BC3: STFSHGRT | BD3: STCNOXR | BE3: STONOXR | BF3: STGNOXR | BG3: STFSNXR | BH3: STCNXOR | BI3: STONXOR | BJ3: STGNXOR | BK3: STFSNOR | BL3: STCSO2R | BM3: STOSO2R | BN3: STGSO2R | BO3: STFSS2R | BP3: STCCO2R | BQ3: STOCO2R | BR3: STGCO2R | BS3: STFSC2R | BT3: STCHGR | BU3: STFSHGR | BV3: STNBNOX | BW3: STNBNXO | BX3: STNBSO2 | BY3: STNBCO2 | BZ3: STNBCH4 | CA3: STNBN2O | CB3: SRNBC2ER | CC3: STNBHG | CD3: STGENACL | CE3: STGENAOL | CF3: STGENAGS | CG3: STGENANC | CH3: STGENAHY | CI3: STGENABM | CJ3: STGENAWI | CK3: STGENASO | CL3: STGENAGT | CM3: STGENAOF | CN3: STGENAOP | CO3: STGENATN | CP3: STGENATR | CQ3: STGENATH | CR3: STGENACY | CS3: STGENACN | CT3: STCLPR | CU3: STOLPR | CV3: STGSPR | CW3: STNCPR | CX3: STHYPR | CY3: STBMPR | CZ3: STWIPR | DA3: STSOPR | DB3: STGTPR | DC3: STOFPR | DD3: STOPPR | DE3: STTNPR | DF3: STTRPR | DG3: STTHPR | DH3: STCYPR | DI3: STCNPR | DK3: STAHR
A4: SEQST00 tate sequence number | B4: SEQST99 State sequence number | C4: PSTATABB State abbreviation | D4: FIPST FIPS State code | E4: State nameplate capacity (MW) | F4: State annual heat input (MMBtu) | G4: State ozone season heat input (MMBtu) | H4: State annual net generation (MWh) | I4: State ozone season net generation (MWh) | J4: State annual NOx emissions (tons) | K4: State ozone season NOx emissions (tons) | L4: State annual SO2 emissions (tons) | M4: State annual CO2 emissions (tons) | N4: State annual CH4 emissions (lbs) | O4: State annual N2O emissions (lbs) | P4: State annual CO2 equivalent emissions (tons) | Q4: State annual Hg emissions (lbs) | R4: State annual NOx total output emission rate (lb/MWh) | S4: State ozone season NOx total output emission rate (lb/MWh) | T4: State annual SO2 total output emission rate (lb/MWh) | U4: State annual CO2 total output emission rate (lb/MWh) | V4: State annual CH4 total output emission rate (lb/GWh) | W4: State annual N2O total output emission rate (lb/GWh) | X4: State annual CO2 equivalent total output emission rate (lb/MWh) | Y4: State annual Hg total output emission rate (lb/GWh) | Z4: State annual NOx input emission rate (lb/MMBtu) | AA4: State ozone season NOx input emission rate (lb/MMBtu) | AB4: State annual SO2 input emission rate (lb/MMBtu) | AC4: State annual CO2 input emission rate (lb/MMBtu) | AD4: State annual Hg input emission rate (lb/BBtu) | AE4: State annual NOx combustion output emission rate (lb/MWh) | AF4: State ozone season NOx combustion output emission rate (lb/MWh) | AG4: State annual SO2 combustion output emission rate (lb/MWh) | AH4: State annual CO2 combustion output emission rate (lb/MWh) | AI4: State annual CH4 combustion output emission rate (lb/GWh) | AJ4: State annual N2O combustion output emission rate (lb/GWh) | AK4: State annual Hg combustion output emission rate (lb/GWh) | AL4: State annual NOx coal output emission rate (lb/MWh) | AM4: State annual NOx oil output emission rate (lb/MWh) | AN4: State annual NOx gas output emission rate (lb/MWh) | AO4: State annual NOx fossil fuel output emission rate (lb/MWh) | AP4: State ozone season NOx coal output emission rate (lb/MWh) | AQ4: State ozone season NOx oil output emission rate (lb/MWh) | AR4: State ozone season NOx gas output emission rate (lb/MWh) | AS4: State ozone season NOx fossil fuel output emission rate (lb/MWh) | AT4: State annual SO2 coal output emission rate (lb/MWh) | AU4: State annual SO2 oil output emission rate (lb/MWh) | AV4: State annual SO2 gas output emission rate (lb/MWh) | AW4: State annual SO2 fossil fuel output emission rate (lb/MWh) | AX4: State annual CO2 coal output emission rate (lb/MWh) | AY4: State annual CO2 oil output emission rate (lb/MWh) | AZ4: State annual CO2 gas output emission rate (lb/MWh) | BA4: State annual CO2 fossil fuel output emission rate (lb/MWh) | BB4: State annual Hg coal output emission rate (lb/GWh) | BC4: State annual Hg fossil fuel output emission rate (lb/GWh) | BD4: State annual NOx coal input emission rate (lb/MMBtu) | BE4: State annual NOx oil input emission rate (lb/MMBtu) | BF4: State annual NOx gas input emission rate (lb/MMBtu) | BG4: State annual NOx fossil fuel input emission rate (lb/MMBtu) | BH4: State ozone season NOx coal input emission rate (lb/MMBtu) | BI4: State ozone season NOx oil input emission rate (lb/MMBtu) | BJ4: State ozone season NOx gas input emission rate (lb/MMBtu) | BK4: State ozone season NOx fossil fuel input emission rate (lb/MMBtu) | BL4: State annual SO2 coal input emission rate (lb/MMBtu) | BM4: State annual SO2 oil input emission rate (lb/MMBtu) | BN4: State annual SO2 gas input emission rate (lb/MMBtu) | BO4: State annual SO2 fossil fuel input emission rate (lb/MMBtu) | BP4: State annual CO2 coal input emission rate (lb/MMBtu) | BQ4: State annual CO2 oil input emission rate (lb/MMBtu) | BR4: State annual CO2 gas input emission rate (lb/MMBtu) | BS4: State annual CO2 fossil fuel input emission rate (lb/MMBtu) | BT4: State annual Hg coal input emission rate (lb/BBtu) | BU4: State annual Hg fossil fuel input emission rate (lb/BBtu) | BV4: State annual NOx non-baseload output emission rate (lb/MWh) | BW4: State ozone season NOx non-baseload output emission rate (lb/MWh) | BX4: State annual SO2 non-baseload output emission rate (lb/MWh) | BY4: State annual CO2 non-baseload output emission rate (lb/MWh) | BZ4: State annual CH4 non-baseload output emission rate (lb/GWh) | CA4: State annual N2O non-baseload output emission rate (lb/GWh) | CB4: eGRID subregion annual CO2 equivalent non-baseload output emission rate (lb/MWh) | CC4: State annual Hg non-baseload output emission rate (lb/GWh) | CD4: State annual coal net generation (MWh) | CE4: State annual oil net generation (MWh) | CF4: State annual gas net generation (MWh) | CG4: State annual nuclear net generation (MWh) | CH4: State annual hydro net generation (MWh) | CI4: State annual biomass net generation (MWh) | CJ4: State annual wind net generation (MWh) | CK4: State annual solar net generation (MWh) | CL4: State annual geothermal net generation (MWh) | CM4: State annual other fossil net generation (MWh) | CN4: State annual other unknown/ purchased fuel net generation (MWh) | CO4: State annual total nonrenewables net generation (MWh) | CP4: State annual total renewables net generation (MWh) | CQ4: State annual total nonhydro renewables net generation (MWh) | CR4: State annual total combustion net generation (MWh) | CS4: State annual total noncombustion net generation (MWh) | CT4: State coal generation percent (resource mix) | CU4: State oil generation percent (resource mix) | CV4: State gas generation percent (resource mix) | CW4: State nuclear generation percent (resource mix) | CX4: State hydro generation percent (resource mix) | CY4: State biomass generation percent (resource mix) | CZ4: State wind generation percent (resource mix) | DA4: State solar generation percent (resource mix) | DB4: State geothermal generation percent (resource mix) | DC4: State other fossil generation percent (resource mix) | DD4: State other unknown/ purchased fuel generation percent (resource mix) | DE4: State total nonrenewables generation percent (resource mix) | DF4: State total renewables generation percent (resource mix) | DG4: State total nonhydro renewables generation percent (resource mix) | DH4: State total combustion generation percent (resource mix) | DI4: State total noncombustion generation percent (resource mix) | DK4: Total Annual Heat Rate (Btu/kWh) | DL4: Fossil Annual Heat Rate (Btu/kWh) | DM4: Non-Baseload Annual Heat Rate (Btu/kWh) | DN4: Coal Annual Heat Rate (Btu/kWh) | DO4: Oil Annual Heat Rate (Btu/kWh) | DP4: Natural Gas Annual Heat Rate (Btu/kWh) | DR4: Calculated Fossil CO2 - lb/MWh
A7: 1 | B7: 1 | C7: US Average | E7: 1309394.6 | F7: 2.68200738e+10 | G7: 1.263869518e+10 | H7: 4045517915 | I7: 1843039497 | J7: 1913686.858 | K7: 871745.092 | L7: 3817422.303 | M7: 2298924483 | N7: 96199568.68 | O7: 64226468.25 | P7: 2309886780 | Q7: N/A | R7: 0.9460775597 | S7: 0.9459863375 | T7: 1.887235396 | U7: 1136.529133 | V7: 23.77929618 | W7: 15.87595695 | X7: 1141.94861 | Y7: N/A | Z7: 0.1427055625 | AA7: 0.1379485904 | AB7: 0.2846690379 | AC7: 171.4331214 | AD7: N/A | AE7: 1.348240545 | AF7: 1.348110546 | AG7: 2.689470069 | AH7: 1619.650145 | AI7: 33.88750838 | AJ7: 22.6245815 | AK7: N/A | AL7: 2.027 | AM7: 3.3875 | AN7: 0.3973 | AO7: 1.3268 | AP7: 2.0017 | AQ7: 3.1132 | AR7: 0.4319 | AS7: 1.2959 | AT7: 4.4063 | AU7: 13.3836 | AV7: 0.0844 | AW7: 2.5741 | AX7: 2173.984529 | AY7: 1904.3003 | AZ7: 940.7230564 | BA7: 1640.1345 | BB7: N/A | BC7: N/A | BD7: 0.1925 | BE7: 0.3275 | BF7: 0.0501 | BG7: 0.1413 | BH7: 0.189 | BI7: 0.3278 | BJ7: 0.0532 | BK7: 0.1371 | BL7: 0.4186 | BM7: 1.294 | BN7: 0.0106 | BO7: 0.2741 | BP7: 207.3193963 | BQ7: 177.0757891 | BR7: 119.4391232 | BS7: 174.6607 | BT7: N/A | BU7: N/A | BV7: 1.3555 | BW7: 1.5557 | BX7: 2.9317 | BY7: 1549.3559 | BZ7: 30.994 | CA7: 19.8647 | CC7: N/A | CD7: 1513655623 | CE7: 28456966 | CF7: 1225584924 | CG7: 769331249 | CH7: 271170205.1 | CI7: 58270939.29 | CJ7: 139474312 | CK7: 4188545.395 | CL7: 15544648 | CM7: 14899401.09 | CN7: 4941101.876 | CO7: 3556869265 | CP7: 488648649.7 | CQ7: 217478444.7 | CR7: 2838791439 | CS7: 1199708959 | CT7: 37.41562031 | CU7: 0.7034196015 | CV7: 30.29488313 | CW7: 19.01687906 | CX7: 6.702978723 | CY7: 1.440382678 | CZ7: 3.447625618 | DA7: 0.1035354554 | DB7: 0.3842437069 | DC7: 0.368294033 | DD7: 0.1221376837 | DE7: 87.92123382 | DF7: 12.07876618 | DG7: 5.375787458 | DH7: 70.17127346 | DI7: 29.65526256 | DK7: =F7*1000000/(H7*1000) -> 6629.577316 | DL7: =(F7*((CT7+CU7+CV7+DC7)/DH7)*1000000/((CD7+CE7+CF7+CM7)*1000)) -> 9447.708427 | DM7: =1000*BY7/BS7 -> 8870.661231 | DN7: =1000*AX7/BP7 -> 10486.16081 | DO7: 10754.15397 | DP7: 7876.171823 | DR7: =DL7*BS7/1000 -> 1650.143367 | DT7: =DR7-AH7 -> 30.49322171
A8: 2 | B8: 63 | C8: ASCC Alaska Grid | E8: 2007.8 | F8: 50103432.27 | G8: 19891193.81 | H8: 5331367.956 | I8: 2001058.143 | J8: 6915.851031 | K8: 2806.533647 | L8: 2108.777884 | M8: 3382036.951 | N8: 140402.6651 | O8: 40490.48402 | P8: 3389787.204 | Q8: N/A | R8: 2.594400195 | S8: 2.805049575 | T8: 0.7910832274 | U8: 1268.731395 | V8: 26.33520444 | W8: 7.594764488 | X8: 1271.638811 | Y8: -0.5756496316 | Z8: 0.2760629649 | AA8: 0.2821885579 | AB8: 0.08417698305 | AC8: 135.0022064 | AD8: N/A | AE8: 2.890468727 | AF8: 3.125157056 | AG8: 0.8813602982 | AH8: 1413.516861 | AI8: 29.34053313 | AJ8: 8.461466079 | AK8: N/A | AL8: 6.2822 | AM8: 2.6999 | AN8: 2.2475 | AO8: 2.8905 | AP8: 6.024 | AQ8: 2.9057 | AR8: 2.5059 | AS8: 3.1031 | AT8: 3.574 | AU8: 2.6446 | AV8: 0.0383 | AW8: 0.8814 | AX8: 2165.012 | AY8: 1358.2604 | AZ8: 1273.3224 | BA8: 1413.5169 | BB8: N/A | BC8: N/A | BD8: 0.6168 | BE8: 0.3221 | BF8: 0.2064 | BG8: 0.2761 | BH8: 0.6077 | BI8: 0.3212 | BJ8: 0.2155 | BK8: 0.2822 | BL8: 0.3509 | BM8: 0.3155 | BN8: 0.0035 | BO8: 0.0842 | BP8: 212.5771 | BQ8: 162.046 | BR8: 116.9251 | BS8: 135.0022 | BT8: N/A | BU8: N/A | BV8: 2.5108 | BW8: 2.2915 | BX8: 0.3088 | BY8: 1377.7678 | BZ8: 28.6615 | CA8: 3.3794 | CB8: 1379.4173 | CC8: N/A | CD8: 684959.155 | CE8: 613740.242 | CF8: 3486580.559 | CG8: 0 | CH8: 546088 | CI8: 0 | CJ8: 0 | CK8: 0 | CL8: 0 | CM8: 0 | CN8: 0 | CO8: 4785279.956 | CP8: 546088 | CQ8: 0 | CR8: 4785279.956 | CS8: 546088 | CT8: 12.84771865 | CU8: 11.51187176 | CV8: 65.39748499 | CW8: 0 | CX8: 10.2429246 | CY8: 0 | CZ8: 0 | DA8: 0 | DB8: 0 | DC8: 0 | DD8: 0 | DE8: 89.7570754 | DF8: 10.2429246 | DG8: 0 | DH8: 89.7570754 | DI8: 10.2429246 | DK8: 9397.856738 | DL8: 10470.32415 | DM8: 10205.5211 | DN8: 10184.59655 | DO8: 8381.943399 | DP8: 10890.06894 | DR8: 1413.516794 | DT8: -6.663707723e-05
A9: 3 | B9: 64 | C9: ASCC Miscellaneous | E9: 754.2 | F9: 5109037.86 | G9: 2088417.591 | H9: 1596926.54 | I9: 575965.9973 | J9: 4812.534456 | K9: 2012.324241 | L9: 275.4737769 | M9: 384195.7685 | N9: 29787.02484 | O9: 5666.256515 | P9: 385386.8021 | Q9: N/A | R9: 6.027245882 | S9: 6.987649445 | T9: 0.3450049454 | U9: 481.1689942 | V9: 18.65272077 | W9: 3.548226154 | X9: 482.6606515 | Y9: -6.571373033 | Z9: 1.883929847 | AA9: 1.927128223 | AB9: 0.1078378295 | AC9: 150.3984817 | AD9: N/A | AE9: 17.54153799 | AF9: 20.33667128 | AG9: 1.004093325 | AH9: 1400.381594 | AI9: 54.28638825 | AJ9: 10.32666414 | AK9: N/A | AL9: N/A | AM9: 20.6385 | AN9: 6.5595 | AO9: 17.5415 | AP9: N/A | AQ9: 20.6556 | AR9: 6.5595 | AS9: 17.8896 | AT9: N/A | AU9: 1.2763 | AV9: 0.0389 | AW9: 1.0041 | AX9: N/A | AY9: 1453.8778 | AZ9: 1210.6803 | BA9: 1400.3816 | BB9: N/A | BC9: N/A | BD9: N/A | BE9: 2.2891 | BF9: 0.6333 | BG9: 1.8839 | BH9: N/A | BI9: 2.2898 | BJ9: 0.6333 | BK9: 1.9271 | BL9: N/A | BM9: 0.1416 | BN9: 0.0038 | BO9: 0.1078 | BP9: N/A | BQ9: 161.2547 | BR9: 116.8879 | BS9: 150.3985 | BT9: N/A | BU9: N/A | BV9: 18.6055 | BW9: 18.7183 | BX9: 1.0812 | BY9: 1404.4916 | BZ9: 55.6442 | CA9: 10.6976 | CB9: 1408.9764 | CC9: N/A | CD9: 0 | CE9: 424021.349 | CF9: 122114.819 | CG9: 0 | CH9: 1028957 | CI9: 2565.372 | CJ9: 19268 | CK9: 0 | CL9: 0 | CM9: 0 | CN9: 0 | CO9: 546136.168 | CP9: 1050790.372 | CQ9: 21833.372 | CR9: 548701.54 | CS9: 1048225 | CT9: 0 | CU9: 26.55233903 | CV9: 7.646865146 | CW9: 0 | CX9: 64.43358378 | CY9: 0.1606443337 | CZ9: 1.206567711 | DA9: 0 | DB9: 0 | DC9: 0 | DD9: 0 | DE9: 34.19920418 | DF9: 65.80079582 | DG9: 1.367212045 | DH9: 34.35984851 | DI9: 65.64015149 | DK9: 3199.294227 | DL9: 9311.141827 | DM9: 9338.468136 | DN9: - | DO9: =1000*AY9/BQ9 -> 9016.033641 | DP9: 10357.61871 | DR9: 1400.381764 | DT9: 0.0001703013072
A10: 4 | B10: 65 | C10: ERCOT All | E10: 115223.9 | F10: 2523758253 | G10: 1265106192 | H10: 360221517.3 | I10: 174463757.7 | J10: 109604.1923 | K10: 52291.09998 | L10: 346399.6994 | M10: 205873315.5 | N10: 6015952.801 | O10: 4443234.956 | P10: 206625056.6 | Q10: N/A | R10: 0.6085377303 | S10: 0.5994494291 | T10: 1.923259343 | U10: 1143.037301 | V10: 16.70070363 | W10: 12.33472945 | X10: 1147.211073 | Y10: -0.08574723751 | Z10: 0.08685791689 | AA10: 0.08266673631 | AB10: 0.2745109989 | AC10: 163.1482059 | AD10: N/A | AE10: 0.7522144013 | AF10: 0.7409803386 | AG10: 2.37734376 | AH10: 1412.910123 | AI10: 20.64376481 | AJ10: 15.24697757 | AK10: N/A | AL10: 1.3091 | AM10: 2.6529 | AN10: 0.3905 | AO10: 0.754 | AP10: 1.2599 | AQ10: 2.7769 | AR10: 0.3902 | AS10: 0.7226 | AT10: 4.9743 | AU10: 89.7386 | AV10: 0.0088 | AW10: 2.3855 | AX10: 2252.0234 | AY10: 3061.8507 | AZ10: 881.9950499 | BA10: 1418.1326 | BB10: N/A | BC10: N/A | BD10: 0.1249 | BE10: 0.189 | BF10: 0.0523 | BG10: 0.0871 | BH10: 0.1189 | BI10: 0.1979 | BJ10: 0.0514 | BK10: 0.0828 | BL10: 0.4746 | BM10: 6.3935 | BN10: 0.0012 | BO10: 0.2755 | BP10: 214.8669 | BQ10: 218.1445 | BR10: 118.0373488 | BS10: 163.7882 | BT10: N/A | BU10: N/A | BV10: 0.7249 | BW10: 0.8523 | BX10: 2.0299 | BY10: 1280.5899 | BZ10: 21.5309 | CA10: 10.707 | CB10: 1284.3613 | CC10: N/A | CD10: 109893817.4 | CE10: 3404969.304 | CF10: 176680238.3 | CG10: 38441017 | CH10: 392973.42 | CI10: 712025.003 | CJ10: 29851836 | CK10: 118265 | CL10: 0 | CM10: 433813.205 | CN10: 292562.67 | CO10: 329146417.9 | CP10: 31075099.42 | CQ10: 30682126 | CR10: 291417425.9 | CS10: 68804091.42 | CT10: 30.50728847 | CU10: 0.9452431741 | CV10: 49.04766368 | CW10: 10.67149383 | CX10: 0.1090921561 | CY10: 0.1976630958 | CZ10: 8.287077414 | DA10: 0.03283118701 | DB10: 0 | DC10: 0.1204295646 | DD10: 0.08121743315 | DE10: 91.37333615 | DF10: 8.626663853 | DG10: 8.517571697 | DH10: 80.89950541 | DI10: 19.10049459 | DK10: 7006.128539 | DL10: 8660.285997 | DM10: 7818.5724 | DN10: =1000*AX10/BP10 -> 10481.01592 | DO10: 14035.8831 | DP10: 7472.169265 | DR10: 1418.452655 | DT10: 5.542531988
A11: 5 | B11: 66 | C11: FRCC All | E11: 80756.1 | F11: 1640755276 | G11: 784793331.4 | H11: 211244527.5 | I11: 99311487.29 | J11: 65764.22795 | K11: 32261.83025 | L11: 134754.3023 | M11: 118861947.3 | N11: 8459346.379 | O11: 2503826.079 | P11: 119338507.3 | Q11: N/A | R11: 0.6226360393 | S11: 0.6497099405 | T11: 1.275813427 | U11: 1125.349364 | V11: 40.0452806 | W11: 11.85273819 | X11: 1129.861291 | Y11: -0.07310958624 | Z11: 0.08016336002 | AA11: 0.0822173914 | AB11: 0.1642588681 | AC11: 144.8868689 | AD11: N/A | AE11: 0.6813870317 | AF11: 0.7110155851 | AG11: 1.396197247 | AH11: 1231.535623 | AI11: 43.82389255 | AJ11: 12.97114459 | AK11: N/A | AL11: 1.543 | AM11: 15.0849 | AN11: 0.3208 | AO11: 0.5979 | AP11: 1.5943 | AQ11: 20.3413 | AR11: 0.344 | AS11: 0.6319 | AT11: 3.2294 | AU11: 0.8357 | AV11: 0.1296 | AW11: 0.8298 | AX11: 2171.213631 | AY11: 3655.6637 | AZ11: 900.9585156 | BA11: 1216.7134 | BB11: N/A | BC11: N/A | BD11: 0.1462 | BE11: 0.6698 | BF11: 0.0412 | BG11: 0.0711 | BH11: 0.1524 | BI11: 0.6597 | BJ11: 0.0436 | BK11: 0.0745 | BL11: 0.306 | BM11: 0.0371 | BN11: 0.0167 | BO11: 0.0987 | BP11: 205.7016344 | BQ11: 162.3274 | BR11: 121.9716363 | BS11: 144.6841 | BT11: N/A | BU11: N/A | BV11: 0.9167 | BW11: 1.1777 | BX11: 1.6026 | BY11: 1333.9342 | BZ11: 38.8132 | CA11: 13.7874 | CB11: 1339.0234 | CC11: N/A | CD11: 41031111.96 | CE11: 1361031.041 | CF11: 143767766.6 | CG11: 17869935 | CH11: 150511 | CI11: 3726715.933 | CJ11: 0 | CK11: 193615.985 | CL11: 0 | CM11: 1386958.507 | CN11: 1756881.51 | CO11: 207173684.6 | CP11: 4070842.918 | CQ11: 3920331.918 | CR11: 193030465.5 | CS11: 18214061.98 | CT11: 19.42351475 | CU11: 0.6442917394 | CV11: 68.05751054 | CW11: 8.459359971 | CX11: 0.0712496564 | CY11: 1.764171587 | CZ11: 0 | DA11: 0.09165491163 | DB11: 0 | DC11: 0.6565654143 | DD11: 0.8316814314 | DE11: 98.07292385 | DF11: 1.927076155 | DG11: 1.855826499 | DH11: 91.37773546 | DI11: 8.622264539 | DK11: 7767.090091 | DL11: 8499.980933 | DM11: 9219.632289 | DN11: =1000*AX11/BP11 -> 10555.15984 | DO11: 22520.31204 | DP11: 7386.623175 | DR11: 1229.812091 | DT11: -1.723531907
A12: 6 | B12: 67 | C12: HICC Miscellaneous | E12: 974.2 | F12: 22156178.07 | G12: 8884284.592 | H12: 2933143.356 | I12: 1221616.871 | J12: 7464.003665 | K12: 2947.140497 | L12: 5732.572295 | M12: 1760031.765 | N12: 199673.8034 | O12: 37201.98792 | P12: 1767894.648 | Q12: N/A | R12: 5.089423024 | S12: 4.824983292 | T12: 3.908825175 | U12: 1200.099382 | V12: 68.07502368 | W12: 12.68331732 | X12: 1205.460786 | Y12: -1.113822137 | Z12: 0.6737627439 | AA12: 0.6634502679 | AB12: 0.517469419 | AC12: 158.8750334 | AD12: N/A | AE12: 6.647870065 | AF12: 6.302455473 | AG12: 5.105757911 | AH12: 1567.585308 | AI12: 88.92047486 | AJ12: 16.56711284 | AK12: N/A | AL12: N/A | AM12: 7.4692 | AN12: N/A | AO12: 6.9669 | AP12: N/A | AQ12: 7.5195 | AR12: N/A | AS12: 6.9676 | AT12: N/A | AU12: 6.0012 | AV12: N/A | AW12: 5.373 | AX12: N/A | AY12: 1682.99 | AZ12: N/A | BA12: 1656.1217 | BB12: N/A | BC12: N/A | BD12: N/A | BE12: 0.7272 | BF12: N/A | BG12: 0.6894 | BH12: N/A | BI12: 0.7307 | BJ12: N/A | BK12: 0.6893 | BL12: N/A | BM12: 0.5843 | BN12: N/A | BO12: 0.5317 | BP12: N/A | BQ12: 163.8583 | BR12: N/A | BS12: 163.8849 | BT12: N/A | BU12: N/A | BV12: 3.1897 | BW12: 3.0464 | BX12: 4.775 | BY12: 1331.4716 | BZ12: 96.8191 | CA12: 17.1512 | CB12: 1338.8217 | CC12: N/A | CD12: 39820.919 | CE12: 1883420.037 | CF12: 0 | CG12: 0 | CH12: 114581 | CI12: 106486.09 | CJ12: 307613 | CK12: 4420 | CL12: 260997 | CM12: 215805.31 | CN12: 0 | CO12: 2139046.266 | CP12: 794097.09 | CQ12: 679516.09 | CR12: 2245532.356 | CS12: 687611 | CT12: 1.357619256 | CU12: 64.21165993 | CV12: 0 | CW12: 0 | CX12: 3.906423454 | CY12: 3.630442739 | CZ12: 10.48748604 | DA12: 0.1506915777 | DB12: 8.898201292 | DC12: 7.357475711 | DD12: 0 | DE12: 72.9267549 | DF12: 27.0732451 | DG12: 23.16682165 | DH12: 76.55719764 | DI12: 23.44280236 | DK12: 7553.73174 | DL12: 9866.781927 | DM12: 8124.431232 | DN12: - | DO12: =1000*AY12/BQ12 -> 10271.00855 | DP12: - | DR12: 1617.016569 | DT12: 49.43126158
A13: 7 | B13: 68 | C13: HICC Oahu | E13: 2107.4 | F13: 69408159.85 | G13: 29143667.55 | H13: 7536125.342 | I13: 3187234.648 | J13: 7869.411588 | K13: 3309.464347 | L13: 19550.87222 | M13: 5939881.784 | N13: 681311.8571 | O13: 162405.3498 | P13: 5972208.387 | Q13: N/A | R13: 2.088450293 | S13: 2.076699529 | T13: 5.188574057 | U13: 1576.375528 | V13: 90.40612068 | W13: 21.55024531 | X13: 1584.954633 | Y13: -0.2758712078 | Z13: 0.2267575341 | AA13: 0.2271137867 | AB13: 0.5633594742 | AC13: 171.1580251 | AD13: N/A | AE13: 2.108259376 | AF13: 2.096397156 | AG13: 5.237788011 | AH13: 1591.32755 | AI13: 91.26362848 | AJ13: 21.75465075 | AK13: N/A | AL13: 0.9758 | AM13: 2.3245 | AN13: N/A | AO13: 2.0408 | AP13: 0.9499 | AQ13: 2.3098 | AR13: N/A | AS13: 2.0182 | AT13: 10.5067 | AU13: 3.9276 | AV13: N/A | AW13: 5.3114 | AX13: 2046.3703 | AY13: 1459.4275 | AZ13: N/A | BA13: 1582.8812 | BB13: N/A | BC13: N/A | BD13: 0.098 | BE13: 0.2635 | BF13: N/A | BG13: 0.2252 | BH13: 0.0973 | BI13: 0.264 | BJ13: N/A | BK13: 0.2251 | BL13: 1.0551 | BM13: 0.4452 | BN13: N/A | BO13: 0.5861 | BP13: 205.5078 | BQ13: 165.4113 | BR13: N/A | BS13: 174.6788 | BT13: N/A | BU13: N/A | BV13: 2.376 | BW13: 2.4102 | BX13: 3.7587 | BY13: 1402.2669 | BZ13: 118.0077 | CA13: 19.4284 | CB13: 1410.7679 | CC13: N/A | CD13: 1497519.4 | CE13: 5646376.626 | CF13: 0 | CG13: 0 | CH13: 0 | CI13: 179589.2182 | CJ13: 70621 | CK13: 188 | CL13: 0 | CM13: 141831.0978 | CN13: 0 | CO13: 7285727.124 | CP13: 250398.2182 | CQ13: 250398.2182 | CR13: 7465316.342 | CS13: 70809 | CT13: 19.87121143 | CU13: 74.92413369 | CV13: 0 | CW13: 0 | CX13: 0 | CY13: 2.38304447 | CZ13: 0.9370995942 | DA13: 0.002494650652 | DB13: 0 | DC13: 1.882016173 | DD13: 0 | DE13: 96.67736128 | DF13: 3.322638715 | DG13: 3.322638715 | DH13: 99.06040576 | DI13: 0.9395942449 | DK13: 9210.059109 | DL13: 9297.417105 | DM13: 8027.687962 | DN13: =1000*AX13/BP13 -> 9957.628372 | DO13: 8823.021765 | DP13: - | DR13: 1624.061663 | DT13: 32.73411261
A14: 8 | B14: 69 | C14: MRO East | E14: 10323.2 | F14: 224479039.4 | G14: 110800775.5 | H14: 28629056.03 | I14: 13447092.68 | J14: 17598.09688 | K14: 8484.758767 | L14: 59760.09988 | M14: 21794875.82 | N14: 695782.653 | O14: 731606.8511 | P14: 21915580.6 | Q14: N/A | R14: 1.229387155 | S14: 1.261946945 | T14: 4.17478661 | U14: 1522.570343 | V14: 24.3033739 | W14: 25.55469696 | X14: 1531.002669 | Y14: -0.3665506816 | Z14: 0.1567905576 | AA14: 0.1531534185 | AB14: 0.5324336744 | AC14: 194.1818344 | AD14: N/A | AE14: 1.591902137 | AF14: 1.63406298 | AG14: 5.405824923 | AH14: 1971.537584 | AI14: 31.46982028 | AJ14: 33.09012667 | AK14: N/A | AL14: 1.6938 | AM14: 1.3588 | AN14: 0.6455 | AO14: 1.5928 | AP14: 1.7503 | AQ14: 1.2403 | AR14: 0.5938 | AS14: 1.5747 | AT14: 6.1103 | AU14: 3.0768 | AV14: 0.0383 | AW14: 5.5208 | AX14: 2182.9587 | AY14: 1666.8258 | AZ14: 1091.6551 | BA14: 2077.1175 | BB14: N/A | BC14: N/A | BD14: 0.1619 | BE14: 0.1296 | BF14: 0.07 | BG14: 0.154 | BH14: 0.1652 | BI14: 0.1233 | BJ14: 0.0641 | BK14: 0.1515 | BL14: 0.5841 | BM14: 0.2934 | BN14: 0.0041 | BO14: 0.5338 | BP14: 208.6865 | BQ14: 158.9362 | BR14: 118.3358 | BS14: 200.8205 | BT14: N/A | BU14: N/A | BV14: 1.6954 | BW14: 1.8106 | BX14: 4.7298 | BY14: 1738.9973 | BZ14: 30.1701 | CA14: 26.2563 | CB14: 1747.7703 | CC14: N/A | CD14: 18412861.65 | CE14: 286224.08 | CF14: 2248935.45 | CG14: 4515892 | CH14: 835402.01 | CI14: 1082174.704 | CJ14: 1168241 | CK14: 0 | CL14: 0 | CM14: 47076.13657 | CN14: 32249 | CO14: 25543238.32 | CP14: 3085817.714 | CQ14: 2250415.704 | CR14: 22109521.02 | CS14: 6519535.01 | CT14: 64.31529433 | CU14: 0.9997677873 | CV14: 7.855429979 | CW14: 15.77380685 | CX14: 2.918021499 | CY14: 3.779987378 | CZ14: 4.080613062 | DA14: 0 | DB14: 0 | DC14: 0.1644348194 | DD14: 0.1126443008 | DE14: 89.22137806 | DF14: 10.77862194 | DG14: 7.860600441 | DH14: 77.22755859 | DI14: 22.77244141 | DK14: 7840.951485 | DL14: 10153.04851 | DM14: 8659.461061 | DN14: =1000*AX14/BP14 -> 10460.46917 | DO14: 10487.38928 | DP14: =1000*AZ14/BR14 -> 9225.062069 | DR14: 2038.940278 | DT14: 67.40269426
A15: 9 | B15: 70 | C15: MRO West | E15: 61555.1 | F15: 1447090279 | G15: 627139932.5 | H15: 203915893 | I15: 87397461.78 | J15: 164050.9463 | K15: 69021.42443 | L15: 299484.9591 | M15: 145305369.2 | N15: 5627262.803 | O15: 4947215.713 | P15: 146130871.2 | Q15: N/A | R15: 1.609005986 | S15: 1.5794835 | T15: 2.937338082 | U15: 1425.150017 | V15: 27.59599912 | W15: 24.26105999 | X15: 1433.246512 | Y15: -0.3675191712 | Z15: 0.2267321516 | AA15: 0.2201149085 | AB15: 0.4139133037 | AC15: 200.8241936 | AD15: N/A | AE15: 2.378002586 | AF15: 2.334370338 | AG15: 4.341188046 | AH15: 2106.275834 | AI15: 40.78502989 | AJ15: 35.85621426 | AK15: N/A | AL15: 2.5005 | AM15: 9.4118 | AN15: 0.458 | AO15: 2.3633 | AP15: 2.5004 | AQ15: 8.9878 | AR15: 0.5178 | AS15: 2.3016 | AT15: 4.7536 | AU15: 0.8149 | AV15: 0.0251 | AW15: 4.4187 | AX15: 2233.118518 | AY15: 1853.4582 | AZ15: 1019.173671 | BA15: 2152.4612 | BB15: N/A | BC15: N/A | BD15: 0.2359 | BE15: 0.7772 | BF15: 0.0532 | BG15: 0.2259 | BH15: 0.2379 | BI15: 0.769 | BJ15: 0.0581 | BK15: 0.2224 | BL15: 0.4485 | BM15: 0.0673 | BN15: 0.0029 | BO15: 0.4224 | BP15: 210.708126 | BQ15: 153.0603 | BR15: 118.8571 | BS15: 205.7716 | BT15: N/A | BU15: N/A | BV15: 2.5376 | BW15: 2.388 | BX15: 4.9129 | BY15: 1965.2057 | BZ15: 52.6015 | CA15: 32.7201 | CB15: 1976.4535 | CC15: N/A | CD15: 124049368.6 | CE15: 261301.3663 | CF15: 10199664.67 | CG15: 22092363 | CH15: 12826357.54 | CI15: 2641588.708 | CJ15: 31023440 | CK15: 0 | CL15: 0 | CM15: 294811.5281 | CN15: 526997.613 | CO15: 157424506.8 | CP15: 46491386.25 | CQ15: 33665028.71 | CR15: 137973732.5 | CS15: 65942160.54 | CT15: 60.83359504 | CU15: 0.1281417365 | CV15: 5.001897851 | CW15: 10.83405647 | CX15: 6.290023475 | CY15: 1.295430517 | CZ15: 15.21384113 | DA15: 0 | DB15: 0 | DC15: 0.1445750617 | DD15: 0.2584387147 | DE15: 77.20070488 | DF15: 22.79929512 | DG15: 16.50927165 | DH15: 67.66207893 | DI15: 32.33792107 | DK15: 7096.505612 | DL15: 10488.15781 | DM15: 9550.42241 | DN15: =1000*AX15/BP15 -> 10598.16041 | DO15: 12109.33338 | DP15: 8574.781572 | DR15: 2158.165013 | DT15: 51.88917883
A16: 10 | B16: 71 | C16: NPCC Long Island | E16: 6031.2 | F16: 114525698.3 | G16: 62765614.46 | H16: 12121635.85 | I16: 6447770.371 | J16: 4376.574734 | K16: 2479.138977 | L16: 5949.91966 | M16: 7280232.763 | N16: 947931.1261 | O16: 119618.678 | P16: 7308726.935 | Q16: N/A | R16: 0.7221095878 | S16: 0.7689910883 | T16: 0.981702426 | U16: 1201.196415 | V16: 78.20158416 | W16: 9.86819597 | X16: 1205.897789 | Y16: -0.3838590812 | Z16: 0.07642956647 | AA16: 0.07899672452 | AB16: 0.1039054073 | AC16: 127.1371033 | AD16: N/A | AE16: 0.7252635199 | AF16: 0.772349783 | AG16: 0.9859901723 | AH16: 1206.442837 | AI16: 78.54314241 | AJ16: 9.911296935 | AK16: N/A | AL16: N/A | AM16: 5.0359 | AN16: 0.5403 | AO16: 0.6069 | AP16: N/A | AQ16: 5.0169 | AR16: 0.5867 | AS16: 0.6826 | AT16: N/A | AU16: 3.6439 | AV16: 0.1278 | AW16: 0.1798 | AX16: N/A | AY16: 2130.9996 | AZ16: 1114.2099 | BA16: 1129.2678 | BB16: N/A | BC16: N/A | BD16: N/A | BE16: 0.3833 | BF16: 0.058 | BG16: 0.0648 | BH16: N/A | BI16: 0.364 | BJ16: 0.061 | BK16: 0.0703 | BL16: N/A | BM16: 0.2773 | BN16: 0.0137 | BO16: 0.0192 | BP16: N/A | BQ16: 162.1942 | BR16: 119.679 | BS16: 120.5622 | BT16: N/A | BU16: N/A | BV16: 0.8688 | BW16: 1.26 | BX16: 0.3689 | BY16: 1303.4231 | BZ16: 31.4033 | CA16: 3.5649 | CB16: 1305.1877 | CC16: N/A | CD16: 0 | CE16: 350094.214 | CF16: 10812614.37 | CG16: 0 | CH16: 0 | CI16: 478440.0373 | CJ16: 0 | CK16: 52713 | CL16: 0 | CM16: 427774.2327 | CN16: 0 | CO16: 11590482.81 | CP16: 531153.0373 | CQ16: 531153.0373 | CR16: 12068922.85 | CS16: 52713 | CT16: 0 | CU16: 2.888176302 | CV16: 89.20095027 | CW16: 0 | CX16: 0 | CY16: 3.94699233 | CZ16: 0 | DA16: 0.4348670481 | DB16: 0 | DC16: 3.529014054 | DD16: 0 | DE16: 95.61814062 | DF16: 4.381859378 | DG16: 4.381859378 | DH16: 99.56513295 | DI16: 0.4348670481 | DK16: 9448.039826 | DL16: 9489.305689 | DM16: 10811.20865 | DN16: - | DO16: 13138.56846 | DP16: 9309.986714 | DR16: 1144.05157 | DT16: -62.39126684
A17: 11 | B17: 73 | C17: NPCC NYC/Westchester | E17: 14988.5 | F17: 286393381.4 | G17: 137666230.1 | H17: 45503844.61 | I17: 21508577.19 | J17: 7583.65508 | K17: 3652.653168 | L17: 1458.432139 | M17: 15851201.71 | N17: 1160746.97 | O17: 133430.3264 | P17: 15882764.13 | Q17: N/A | R17: 0.3333193115 | S17: 0.3396461919 | T17: 0.06410149083 | U17: 696.6972502 | V17: 25.508767 | W17: 2.932286878 | X17: 698.084492 | Y17: -0.08484997329 | Z17: 0.05295970907 | AA17: 0.05306534748 | AB17: 0.01018481734 | AC17: 110.6953075 | AD17: N/A | AE17: 0.5309693282 | AF17: 0.5410478904 | AG17: 0.102112072 | AH17: 1109.821298 | AI17: 40.63482795 | AJ17: 4.671059671 | AK17: N/A | AL17: N/A | AM17: 3.9348 | AN17: 0.462 | AO17: 0.4625 | AP17: N/A | AQ17: 3.9354 | AR17: 0.4616 | AS17: 0.4622 | AT17: N/A | AU17: 1.1529 | AV17: 0.0172 | AW17: 0.0174 | AX17: N/A | AY17: 2519.3205 | AZ17: 1077.03585 | BA17: 1175.6082 | BB17: N/A | BC17: N/A | BD17: N/A | BE17: 0.252 | BF17: 0.0466 | BG17: 0.0467 | BH17: N/A | BI17: 0.252 | BJ17: 0.0477 | BK17: 0.0477 | BL17: N/A | BM17: 0.0738 | BN17: 0.0017 | BO17: 0.0018 | BP17: N/A | BQ17: 161.3473 | BR17: 108.6658695 | BS17: 118.603 | BT17: N/A | BU17: N/A | BV17: 0.6319 | BW17: 0.8141 | BX17: 0.027 | BY17: 1081.1058 | BZ17: 22.5042 | CA17: 2.3158 | CB17: 1082.2963 | CC17: N/A | CD17: 0 | CE17: 82444.007 | CF17: 28073491.61 | CG17: 16937052 | CH17: 1470 | CI17: 215746.949 | CJ17: 0 | CK17: 0 | CL17: 0 | CM17: 193640.051 | CN17: 0 | CO17: 45286627.67 | CP17: 217216.949 | CQ17: 215746.949 | CR17: 28565322.61 | CS17: 16938522 | CT17: 0 | CU17: 0.1811803106 | CV17: 61.69476853 | CW17: 37.22114503 | CX17: 0.003230496263 | CY17: 0.4741290562 | CZ17: 0 | DA17: 0 | DB17: 0 | DC17: 0.4255465723 | DD17: 0 | DE17: 99.52264045 | DF17: 0.4773595525 | DG17: 0.4741290562 | DH17: 62.77562447 | DI17: 37.22437553 | DK17: 6293.828222 | DL17: 10025.91097 | DM17: 9115.332664 | DN17: - | DO17: 15614.2712 | DP17: 9911.445569 | DR17: 1189.103119 | DT17: 79.28182125
A18: 12 | B18: 72 | C18: NPCC New England | E18: 40761.9 | F18: 641715034.1 | G18: 301610037.6 | H18: 120324524.1 | I18: 54178323.08 | J18: 24559.20703 | K18: 8725.839365 | L18: 60433.6296 | M18: 38377520.49 | N18: 8764225.436 | O18: 1288397.344 | P18: 38669246.45 | Q18: N/A | R18: 0.4082161506 | S18: 0.3221155204 | T18: 1.004510594 | U18: 637.9002249 | V18: 72.83823061 | W18: 10.70768701 | X18: 642.7492107 | Y18: -0.412210232 | Z18: 0.07654240814 | AA18: 0.05786173057 | AB18: 0.1883503624 | AC18: 119.6092298 | AD18: N/A | AE18: 0.647767962 | AF18: 0.5111412517 | AG18: 1.593983431 | AH18: 1012.236601 | AI18: 115.5815911 | AJ18: 16.99123511 | AK18: N/A | AL18: 1.9467 | AM18: 4.543 | AN18: 0.1672 | AO18: 0.2805 | AP18: 1.6934 | AQ18: 4.3818 | AR18: 0.1681 | AS18: 0.2506 | AT18: 6.6109 | AU18: 5.6144 | AV18: 0.0158 | AW18: 0.4033 | AX18: 2196.8413 | AY18: 2405.5756 | AZ18: 901.8651 | BA18: 980.2731 | BB18: N/A | BC18: N/A | BD18: 0.1778 | BE18: 0.31 | BF18: 0.0219 | BG18: 0.0357 | BH18: 0.1539 | BI18: 0.3008 | BJ18: 0.022 | BK18: 0.0321 | BL18: 0.6039 | BM18: 0.3831 | BN18: 0.0021 | BO18: 0.0514 | BP18: 200.6815 | BQ18: 164.1358 | BR18: 118.2821 | BS18: 124.8827 | BT18: N/A | BU18: N/A | BV18: 0.614 | BW18: 0.6182 | BX18: 1.358 | BY18: 1079.7318 | BZ18: 67.6989 | CA18: 12.9037 | CB18: 1085.1537 | CC18: N/A | CD18: 3545772.43 | CE18: 408162.58 | CF18: 62491490.39 | CG18: 36115946 | CH18: 7063168.37 | CI18: 7289297.258 | CJ18: 1285106.4 | CK18: 33129.21 | CL18: 0 | CM18: 2002401.526 | CN18: 90049.95 | CO18: 104653822.9 | CP18: 15670701.24 | CQ18: 8607532.868 | CR18: 75827174.13 | CS18: 44497349.98 | CT18: 2.946841017 | CU18: 0.3392181129 | CV18: 51.93578853 | CW18: 30.01544886 | CX18: 5.870098737 | CY18: 6.058031239 | CZ18: 1.068033644 | DA18: 0.02753321507 | DB18: 0 | DC18: 1.664167418 | DD18: 0.07483923221 | DE18: 86.97630317 | DF18: 13.02369683 | DG18: 7.153598098 | DH18: 63.01888554 | DI18: 36.98111446 | DK18: 5333.202344 | DL18: 8462.86363 | DM18: 8645.967776 | DN18: =1000*AX18/BP18 -> 10946.90492 | DO18: 14656.00801 | DP18: 7624.696383 | DR18: 1056.86526 | DT18: 44.62865901
A19: 13 | B19: 74 | C19: NPCC Upstate NY | E19: 28527 | F19: 256563726.3 | G19: 129263410.6 | H19: 82550859.98 | I19: 35682466.06 | J19: 11393.3867 | K19: 5027.657713 | L19: 26821.29975 | M19: 16873346.37 | N19: 1287300.173 | O19: 315913.7425 | P19: 16935829.65 | Q19: N/A | R19: 0.2760331437 | S19: 0.2817999017 | T19: 0.6498127277 | U19: 408.7988029 | V19: 15.59402499 | W19: 3.826898262 | X19: 410.3126159 | Y19: -0.3381915102 | Z19: 0.08881525741 | AA19: 0.07778934022 | AB19: 0.2090809962 | AC19: 131.5333747 | AD19: N/A | AE19: 0.7211622185 | AF19: 0.7362284091 | AG19: 1.697696088 | AH19: 1068.024831 | AI19: 40.74083824 | AJ19: 9.998127047 | AK19: N/A | AL19: 2.8713 | AM19: 2.6767 | AN19: 0.1926 | AO19: 0.6121 | AP19: 2.566 | AQ19: 2.6152 | AR19: 0.2065 | AS19: 0.5658 | AT19: 7.6875 | AU19: 7.0593 | AV19: 0.0277 | AW19: 1.2271 | AX19: 2126.8417 | AY19: 2077.3512 | AZ19: 892.1918 | BA19: 1085.6268 | BB19: N/A | BC19: N/A | BD19: 0.2782 | BE19: 0.1973 | BF19: 0.0257 | BG19: 0.077 | BH19: 0.2486 | BI19: 0.187 | BJ19: 0.0273 | BK19: 0.0708 | BL19: 0.7448 | BM19: 0.5203 | BN19: 0.0037 | BO19: 0.1543 | BP19: 206.0708 | BQ19: 153.1023 | BR19: 118.8841 | BS19: 136.5033 | BT19: N/A | BU19: N/A | BV19: 1.0062 | BW19: 1.3064 | BX19: 2.3801 | BY19: 1228.5589 | BZ19: 38.9972 | CA19: 13.0427 | CB19: 1233.4211 | CC19: N/A | CD19: 4551039.088 | CE19: 150223.904 | CF19: 25095363.13 | CG19: 23837508 | CH19: 24141445 | CI19: 1485519.937 | CJ19: 2974614.7 | CK19: 0 | CL19: 0 | CM19: 315146.222 | CN19: 0 | CO19: 53949280.34 | CP19: 28601579.64 | CQ19: 4460134.637 | CR19: 31597292.28 | CS19: 50953567.7 | CT19: 5.513012329 | CU19: 0.1819773944 | CV19: 30.39988091 | CW19: 28.87614739 | CX19: 29.2443289 | CY19: 1.79952085 | CZ19: 3.603372152 | DA19: 0 | DB19: 0 | DC19: 0.3817600714 | DD19: 0 | DE19: 65.3527781 | DF19: 34.6472219 | DG19: 5.402893002 | DH19: 38.27615156 | DI19: 61.72384844 | DK19: 3107.947348 | DL19: 8119.801029 | DM19: 9000.213914 | DN19: 10320.92708 | DO19: 13568.38663 | DP19: 7504.719302 | DR19: 1108.379636 | DT19: 40.35480494
A20: 14 | B20: 75 | C20: RFC East | E20: 81434.8 | F20: 1391695055 | G20: 678912553.3 | H20: 262972203 | I20: 119007154.8 | J20: 104919.6266 | K20: 50809.70224 | L20: 185487.7635 | M20: 112888707.9 | N20: 6954055.65 | O20: 3020840.077 | P20: 113429807.1 | Q20: N/A | R20: 0.79795222 | S20: 0.853893236 | T20: 1.410702435 | U20: 858.5600046 | V20: 26.44407117 | W20: 11.48729806 | X20: 862.6752622 | Y20: -0.1645154868 | Z20: 0.1507796212 | AA20: 0.1496796664 | AB20: 0.2665638034 | AC20: 162.2319595 | AD20: N/A | AE20: 1.398048462 | AF20: 1.496059658 | AG20: 2.471614616 | AH20: 1504.236049 | AI20: 46.33121145 | AJ20: 20.12626694 | AK20: N/A | AL20: 2.6706 | AM20: 2.2286 | AN20: 0.3365 | AO20: 1.3537 | AP20: 2.6185 | AQ20: 2.5902 | AR20: 0.3733 | AS20: 1.3676 | AT20: 4.2785 | AU20: 3.8777 | AV20: 0.1303 | AW20: 1.9385 | AX20: 2110.447535 | AY20: 2287.6941 | AZ20: 984.7470686 | BA20: 1469.4179 | BB20: N/A | BC20: N/A | BD20: 0.2596 | BE20: 0.1507 | BF20: 0.0415 | BG20: 0.1491 | BH20: 0.2517 | BI20: 0.1755 | BJ20: 0.0454 | BK20: 0.1486 | BL20: 0.4159 | BM20: 0.2622 | BN20: 0.0161 | BO20: 0.2135 | BP20: 205.1257736 | BQ20: 154.716 | BR20: 121.4824155 | BS20: 161.8033 | BT20: N/A | BU20: N/A | BV20: 1.4677 | BW20: 1.8031 | BX20: 2.5083 | BY20: 1492.0143 | BZ20: 32.7385 | CA20: 18.6901 | CB20: 1498.4958 | CC20: N/A | CD20: 62720441.29 | CE20: 1064260.752 | CF20: 80898350.96 | CG20: 107603742 | CH20: 2938775 | CI20: 3636571.992 | CJ20: 2003437 | CK20: 331843.24 | CL20: 0 | CM20: 1774780.732 | CN20: 0 | CO20: 254061575.7 | CP20: 8910627.232 | CQ20: 5971852.232 | CR20: 150094405.7 | CS20: 112877797.2 | CT20: 23.85059736 | CU20: 0.4047046569 | CV20: 30.76308068 | CW20: 40.91829508 | CX20: 1.117523056 | CY20: 1.382873152 | CZ20: 0.7618436387 | DA20: 0.1261894741 | DB20: 0 | DC20: 0.6748929018 | DD20: 0 | DE20: 96.61157068 | DF20: 3.388429321 | DG20: 2.270906265 | DH20: 57.07614875 | DI20: 42.92385125 | DK20: 5292.175519 | DL20: 9272.131416 | DM20: 9221.161126 | DN20: 10288.55369 | DO20: 14786.40929 | DP20: 8106.087323 | DR20: 1500.261461 | DT20: -3.97458747
A21: 15 | B21: 76 | C21: RFC Michigan | E21: 30753.9 | F21: 746347712.6 | G21: 355576989.9 | H21: 86819386.13 | I21: 39850292.53 | J21: 65732.86783 | K21: 29263.65845 | L21: 196167.8934 | M21: 68119780.7 | N21: 2635889.181 | O21: 2093695.98 | P21: 68471962.73 | Q21: N/A | R21: 1.514244013 | S21: 1.46867973 | T21: 4.51898826 | U21: 1569.229725 | V21: 30.36060607 | W21: 24.1155354 | X21: 1577.342706 | Y21: -0.2052536973 | Z21: 0.1761454258 | AA21: 0.1645981561 | AB21: 0.5256742669 | AC21: 182.5416747 | AD21: N/A | AE21: 1.747548128 | AF21: 1.69496362 | AG21: 5.215242331 | AH21: 1811.005653 | AI21: 35.03835568 | AJ21: 27.83108825 | AK21: N/A | AL21: 2.2578 | AM21: 6.7609 | AN21: 0.4855 | AO21: 1.746 | AP21: 2.1855 | AQ21: 6.1407 | AR21: 0.481 | AS21: 1.6503 | AT21: 7.372 | AU21: 30.6018 | AV21: 0.131 | AW21: 5.2944 | AX21: 2243.8348 | AY21: 1521.1292 | AZ21: 931.8551446 | BA21: 1853.5528 | BB21: N/A | BC21: N/A | BD21: 0.2098 | BE21: 0.9475 | BF21: 0.0621 | BG21: 0.1767 | BH21: 0.2007 | BI21: 0.9429 | BJ21: 0.0605 | BK21: 0.166 | BL21: 0.685 | BM21: 4.2886 | BN21: 0.0167 | BO21: 0.5358 | BP21: 208.4652671 | BQ21: 213.0030543 | BR21: 119.1244 | BS21: 187.5762 | BT21: N/A | BU21: N/A | BV21: 1.8566 | BW21: 1.9122 | BX21: 5.6384 | BY21: 1856.2105 | BZ21: 33.9094 | CA21: 28.7227 | CB21: 1865.8267 | CC21: N/A | CD21: 50853931.89 | CE21: 312669.353 | CF21: 21640806.77 | CG21: 10300505 | CH21: -288332 | CI21: 1767956.837 | CJ21: 1578535 | CK21: 0 | CL21: 0 | CM21: 653313.284 | CN21: 0 | CO21: 83761226.29 | CP21: 3058159.837 | CQ21: 3346491.837 | CR21: 75228678.13 | CS21: 11590708 | CT21: 58.57439698 | CU21: 0.3601377146 | CV21: 24.92623794 | CW21: 11.86429144 | CX21: -0.3321055502 | CY21: 2.036361826 | CZ21: 1.818182632 | DA21: 0 | DB21: 0 | DC21: 0.7524970092 | DD21: 0 | DE21: 96.47756109 | DF21: 3.522438908 | DG21: 3.854544458 | DH21: 86.64963147 | DI21: 13.35036853 | DK21: 8596.555975 | DL21: 9921.05313 | DM21: 9895.767693 | DN21: 10763.59065 | DO21: 7141.349239 | DP21: 7822.53799 | DR21: 1860.953446 | DT21: 49.94779267
A22: 16 | B22: 77 | C22: RFC West | E22: 165405 | F22: 4024988554 | G22: 1838224852 | H22: 567064674.2 | I22: 248332717.1 | J22: 341864.1778 | K22: 152302.3974 | L22: 961849.0611 | M22: 391126291.4 | N22: 9701816.843 | O22: 12286300.34 | P22: 393132519 | Q22: N/A | R22: 1.205732585 | S22: 1.226599533 | T22: 3.3923787 | U22: 1379.476836 | V22: 17.10883659 | W22: 21.66648868 | X22: 1386.55267 | Y22: -0.103004124 | Z22: 0.169870882 | AA22: 0.1657059497 | AB22: 0.4779387808 | AC22: 194.3490204 | AD22: N/A | AE22: 1.688947858 | AF22: 1.718177544 | AG22: 4.751924935 | AH22: 1932.322702 | AI22: 23.96545739 | AJ22: 30.34965637 | AK22: N/A | AL22: 1.9525 | AM22: 1.3595 | AN22: 0.1719 | AO22: 1.6892 | AP22: 1.9378 | AQ22: 1.5948 | AR22: 0.2133 | AS22: 1.6721 | AT22: 5.6823 | AU22: 3.3695 | AV22: 0.0106 | AW22: 4.7439 | AX22: 2132.690629 | AY22: 2342.7014 | AZ22: 945.2845466 | BA22: 1942.3954 | BB22: N/A | BC22: N/A | BD22: 0.1898 | BE22: 0.1244 | BF22: 0.0216 | BG22: 0.1703 | BH22: 0.1865 | BI22: 0.1482 | BJ22: 0.0252 | BK22: 0.1661 | BL22: 0.5523 | BM22: 0.3084 | BN22: 0.0013 | BO22: 0.4782 | BP22: 207.4802252 | BQ22: 203.8351138 | BR22: 118.7335 | BS22: 195.7859 | BT22: N/A | BU22: N/A | BV22: 1.6493 | BW22: 1.7673 | BX22: 5.7097 | BY22: 1791.7081 | BZ22: 21.7587 | CA22: 27.846 | CB22: 1800.7972 | CC22: N/A | CD22: 333072364 | CE22: 2993909.375 | CF22: 62665720.98 | CG22: 145877649 | CH22: 3788996 | CI22: 2838633.334 | CJ22: 11664541 | CK22: 77121 | CL22: 0 | CM22: 3759509.663 | CN22: 326229.8 | CO22: 548695382.8 | CP22: 18369291.33 | CQ22: 14580295.33 | CR22: 404825023.2 | CS22: 161408307 | CT22: 58.73622167 | CU22: 0.527966123 | CV22: 11.05089487 | CW22: 25.72504613 | CX22: 0.668177048 | CY22: 0.5005837012 | CZ22: 2.057003642 | DA22: 0.01360003603 | DB22: 0 | DC22: 0.6629772289 | DD22: 0.05752955789 | DE22: 96.76063557 | DF22: 3.239364427 | DG22: 2.571187379 | DH22: 71.38956836 | DI22: 28.46382685 | DK22: 7097.935628 | DL22: 9942.538932 | DM22: 9151.364322 | DN22: 10279.00672 | DO22: 11493.11989 | DP22: 7961.397134 | DR22: 1946.608933 | DT22: 14.28623112
A23: 17 | B23: 78 | C23: SERC Midwest | E23: 38922.6 | F23: 1119689507 | G23: 502786201.5 | H23: 132935700.9 | I23: 58080591.73 | J23: 85901.12467 | K23: 40059.73717 | L23: 212369.3176 | M23: 113709694.8 | N23: 2603196.262 | O23: 3655614.054 | P23: 114303633 | Q23: N/A | R23: 1.292371035 | S23: 1.379453479 | T23: 3.195068236 | U23: 1710.747287 | V23: 19.58237136 | W23: 27.49911446 | X23: 1719.683008 | Y23: -0.1385180947 | Z23: 0.1534374022 | AA23: 0.1593509808 | AB23: 0.379336086 | AC23: 203.1093335 | AD23: N/A | AE23: 1.561645996 | AF23: 1.666872704 | AG23: 3.86078408 | AH23: 2067.194001 | AI23: 23.66250171 | AJ23: 33.22875616 | AK23: N/A | AL23: 1.6712 | AM23: 29.111 | AN23: 0.3625 | AO23: 1.5634 | AP23: 1.7919 | AQ23: 28.9877 | AR23: 0.3858 | AS23: 1.6381 | AT23: 4.2256 | AU23: 6.3213 | AV23: 0.0237 | AW23: 3.8652 | AX23: 2175.400044 | AY23: 2949.516 | AZ23: 959.8616 | BA23: 2069.7226 | BB23: N/A | BC23: N/A | BD23: 0.1609 | BE23: 1.6022 | BF23: 0.045 | BG23: 0.1536 | BH23: 0.1703 | BI23: 1.4346 | BJ23: 0.0462 | BK23: 0.1596 | BL23: 0.4068 | BM23: 0.3479 | BN23: 0.0029 | BO23: 0.3798 | BP23: 209.425383 | BQ23: 162.3343 | BR23: 119.2045 | BS23: 203.3962 | BT23: N/A | BU23: N/A | BV23: 1.2956 | BW23: 1.3816 | BX23: 3.313 | BY23: 1917.9552 | BZ23: 23.289 | CA23: 28.8424 | CB23: 1927.3854 | CC23: N/A | CD23: 100238039.7 | CE23: 90386.567 | CF23: 9126340.196 | CG23: 20092055 | CH23: 294171 | CI23: 129181.897 | CJ23: 2535906 | CK23: 0 | CL23: 0 | CM23: 170137.557 | CN23: 259483 | CO23: 129976442 | CP23: 2959258.897 | CQ23: 2665087.897 | CR23: 110013568.9 | CS23: 22922132 | CT23: 75.40340104 | CU23: 0.06799269602 | CV23: 6.865228931 | CW23: 15.11411522 | CX23: 0.2212881852 | CY23: 0.09717622591 | CZ23: 1.907618483 | DA23: 0 | DB23: 0 | DC23: 0.1279848497 | DD23: 0.1951943671 | DE23: 97.77391711 | DF23: 2.226082894 | DG23: 2.004794709 | DH23: 82.75697811 | DI23: 17.24302189 | DK23: 8422.790117 | DL23: 10177.74006 | DM23: 9429.651095 | DN23: 10387.47077 | DO23: 18169.39488 | DP23: 8052.226216 | DR23: 2070.113654 | DT23: 2.919652809
A24: 18 | B24: 79 | C24: SERC Mississippi Valley | E24: 52377.2 | F24: 1305610343 | G24: 632240710.4 | H24: 182134134.3 | I24: 85428713.96 | J24: 89229.17158 | K24: 43888.71847 | L24: 134574.2198 | M24: 95886176.44 | N24: 3816210.11 | O24: 1931912.857 | P24: 96225693.14 | Q24: N/A | R24: 0.9798182193 | S24: 1.027493367 | T24: 1.477748477 | U24: 1052.918244 | V24: 20.95274521 | W24: 10.60708837 | X24: 1056.646449 | Y24: -0.08098976096 | Z24: 0.1366857609 | AA24: 0.1388354712 | AB24: 0.2061476007 | AC24: 146.8832979 | AD24: N/A | AE24: 1.312537394 | AF24: 1.376401704 | AG24: 1.979550999 | AH24: 1410.460166 | AI24: 28.06771813 | AJ24: 14.20896229 | AK24: N/A | AL24: 2.0888 | AM24: 2.5095 | AN24: 0.8851 | AO24: 1.2474 | AP24: 2.0951 | AQ24: 1.2841 | AR24: 0.9417 | AS24: 1.2715 | AT24: 5.9032 | AU24: 7.9931 | AV24: 0.0103 | AW24: 1.7843 | AX24: 2253.9062 | AY24: 2450.3202 | AZ24: 1014.615 | BA24: 1384.4549 | BB24: N/A | BC24: N/A | BD24: 0.1913 | BE24: 0.22 | BF24: 0.1049 | BG24: 0.1359 | BH24: 0.1899 | BI24: 0.2324 | BJ24: 0.1097 | BK24: 0.1383 | BL24: 0.5407 | BM24: 0.7006 | BN24: 0.0012 | BO24: 0.1944 | BP24: 206.4303 | BQ24: 214.7828 | BR24: 120.2314 | BS24: 150.8098 | BT24: N/A | BU24: N/A | BV24: 1.3977 | BW24: 1.7023 | BX24: 1.2369 | BY24: 1301.6515 | BZ24: 27.4251 | CA24: 9.7475 | CB24: 1305.2492 | CC24: N/A | CD24: 37499341.62 | CE24: 2318368.237 | CF24: 97617480.6 | CG24: 38448397 | CH24: 1535177 | CI24: 3162179.277 | CJ24: 0 | CK24: 0 | CL24: 0 | CM24: 1304367.574 | CN24: 248823 | CO24: 177436778 | CP24: 4697356.277 | CQ24: 3162179.277 | CR24: 135964387.7 | CS24: 39983574 | CT24: 20.58885983 | CU24: 1.272890579 | CV24: 53.59647766 | CW24: 21.1099348 | CX24: 0.8428826402 | CY24: 1.736181572 | CZ24: 0 | DA24: 0 | DB24: 0 | DC24: 0.7161576708 | DD24: 0.1366152484 | DE24: 97.42093579 | DF24: 2.579064213 | DG24: 1.736181572 | DH24: 74.65068984 | DI24: 21.95281744 | DK24: 7168.400078 | DL24: 9602.590536 | DM24: 8631.080341 | DN24: 10918.48532 | DO24: 11408.36324 | DP24: 8438.85208 | DR24: 1448.164758 | DT24: 37.70459189
A25: 19 | B25: 80 | C25: SERC South | E25: 81805.3 | F25: 1800827397 | G25: 896459626.5 | H25: 254954509.9 | I25: 120601841.8 | J25: 96692.66356 | K25: 45953.42471 | L25: 274933.1067 | M25: 146477427.2 | N25: 5777614.335 | O25: 3948687.166 | P25: 147150138.6 | Q25: N/A | R25: 0.7585091442 | S25: 0.7620683733 | T25: 2.156722835 | U25: 1149.047548 | V25: 22.66135373 | W25: 15.48781062 | X25: 1154.324657 | Y25: -0.08581530881 | Z25: 0.1073869309 | AA25: 0.1025220174 | AB25: 0.3053408752 | AC25: 162.6779196 | AD25: N/A | AE25: 0.9587521142 | AF25: 0.9632509636 | AG25: 2.72608787 | AH25: 1452.390883 | AI25: 28.64384822 | AJ25: 19.5765223 | AK25: N/A | AL25: 1.6719 | AM25: 4.0199 | AN25: 0.2307 | AO25: 0.941 | AP25: 1.5794 | AQ25: 3.9426 | AR25: 0.2449 | AS25: 0.9139 | AT25: 5.1372 | AU25: 29.382 | AV25: 0.2647 | AW25: 2.7071 | AX25: 2164.2281 | AY25: 1115.4766 | AZ25: 908.5132 | BA25: 1518.9886 | BB25: N/A | BC25: N/A | BD25: 0.1557 | BE25: 0.7082 | BF25: 0.0311 | BG25: 0.1043 | BH25: 0.1472 | BI25: 0.7018 | BJ25: 0.0321 | BK25: 0.0997 | BL25: 0.4783 | BM25: 5.1766 | BN25: 0.0357 | BO25: 0.3 | BP25: 201.5148 | BQ25: 196.5272 | BR25: 122.5583 | BS25: 168.307 | BT25: N/A | BU25: N/A | BV25: 1.4589 | BW25: 1.8026 | BX25: 4.6878 | BY25: 1696.791 | BZ25: 28.1673 | CA25: 24.8342 | CB25: 1705.0811 | CC25: N/A | CD25: 86206870.78 | CE25: 488893.624 | CF25: 106891573.5 | CG25: 48704611 | CH25: 4543110 | CI25: 7887727.31 | CJ25: 0 | CK25: 1547 | CL25: 0 | CM25: 230176.6895 | CN25: 0 | CO25: 242522125.6 | CP25: 12432384.31 | CQ25: 7889274.31 | CR25: 201705241.9 | CS25: 53249268 | CT25: 33.81264791 | CU25: 0.1917571979 | CV25: 41.92574336 | CW25: 19.10325533 | CX25: 1.781929648 | CY25: 3.093778303 | CZ25: 0 | DA25: 0.0006067749108 | DB25: 0 | DC25: 0.09028147398 | DD25: 0 | DE25: 95.12368527 | DF25: 4.876314726 | DG25: 3.094385078 | DH25: 79.11420825 | DI25: 20.88579175 | DK25: 7063.328267 | DL25: 8928.014857 | DM25: 10081.52364 | DN25: 10739.79728 | DO25: 5675.940023 | DP25: 7412.906347 | DR25: 1502.647397 | DT25: 50.2565138
A26: 20 | B26: 81 | C26: SERC Tennessee Valley | E26: 69435.3 | F26: 1614332664 | G26: 753260138 | H26: 229094795.2 | I26: 102435265.1 | J26: 110837.2711 | K26: 51044.65056 | L26: 259061.0088 | M26: 153167116.4 | N26: 3982959.346 | O26: 4761521.369 | P26: 153946973.3 | Q26: N/A | R26: 0.9676105563 | S26: 0.9966226085 | T26: 2.261605364 | U26: 1337.150556 | V26: 17.38563874 | W26: 20.78406611 | X26: 1343.958715 | Y26: -0.06438819348 | Z26: 0.1373165192 | AA26: 0.1355299397 | AB26: 0.3209512074 | AC26: 189.7590501 | AD26: N/A | AE26: 1.36788803 | AF26: 1.408901678 | AG26: 3.197177713 | AH26: 1890.297939 | AI26: 24.57766399 | AJ26: 29.38193994 | AK26: N/A | AL26: 1.7028 | AM26: 31.2185 | AN26: 0.163 | AO26: 1.3733 | AP26: 1.7023 | AQ26: 31.2562 | AR26: 0.2043 | AS26: 1.3649 | AT26: 3.9952 | AU26: 2.3463 | AV26: 0.2605 | AW26: 3.1953 | AX26: 2181.8814 | AY26: 2087.7811 | AZ26: 924.4963 | BA26: 1912.5851 | BB26: N/A | BC26: N/A | BD26: 0.1601 | BE26: 2.438 | BF26: 0.0214 | BG26: 0.1375 | BH26: 0.1587 | BI26: 2.438 | BJ26: 0.0263 | BK26: 0.1357 | BL26: 0.3757 | BM26: 0.1832 | BN26: 0.0342 | BO26: 0.3199 | BP26: 205.1912 | BQ26: 163.0449 | BR26: 121.3405 | BS26: 191.4914 | BT26: N/A | BU26: N/A | BV26: 1.2932 | BW26: 1.5146 | BX26: 2.9791 | BY26: 1743.9611 | BZ26: 22.8415 | CA26: 26.1072 | CB26: 1752.534 | CC26: N/A | CD26: 122942268.1 | CE26: 1686474.043 | CF26: 35575855.15 | CG26: 51180336 | CH26: 15809509 | CI26: 1829336.01 | CJ26: 47492 | CK26: 1400 | CL26: 0 | CM26: 22124.89 | CN26: 0 | CO26: 211407058.2 | CP26: 17687737.01 | CQ26: 1878228.01 | CR26: 162056058.2 | CS26: 67038737 | CT26: 53.66436545 | CU26: 0.7361468171 | CV26: 15.5288797 | CW26: 22.34024389 | CX26: 6.90085909 | CY26: 0.7985061417 | CZ26: 0.02073028327 | DA26: 0.0006111007449 | DB26: 0 | DC26: 0.009657526256 | DD26: 0 | DE26: 92.27929338 | DF26: 7.720706616 | DG26: 0.8198475257 | DH26: 70.73755563 | DI26: 29.26244437 | DK26: 7046.570668 | DL26: 9961.56936 | DM26: 9107.255469 | DN26: 10633.40631 | DO26: 12804.94575 | DP26: 7619.024975 | DR26: 1907.554863 | DT26: 17.25692372
A27: 21 | B27: 82 | C27: SERC Virginia/Carolina | E27: 92485 | F27: 1584202045 | G27: 770388018.7 | H27: 289711035.7 | I27: 133305343.9 | J27: 96438.08354 | K27: 46098.34489 | L27: 155846.0918 | M27: 135132027.1 | N27: 6937947.169 | O27: 4229617.469 | P27: 135860466.3 | Q27: N/A | R27: 0.6657536073 | S27: 0.6916203586 | T27: 1.075872664 | U27: 932.8745578 | V27: 23.94781805 | W27: 14.59943512 | X27: 937.9032869 | Y27: -0.140105122 | Z27: 0.1217497274 | AA27: 0.1196756537 | AB27: 0.1967502723 | AC27: 170.5994858 | AD27: N/A | AE27: 1.149447178 | AF27: 1.19410704 | AG27: 1.857532251 | AH27: 1610.640958 | AI27: 41.34675588 | AJ27: 25.20644171 | AK27: N/A | AL27: 1.5514 | AM27: 85.3864 | AN27: 0.2912 | AO27: 1.1051 | AP27: 1.5466 | AQ27: 55.3383 | AR27: 0.3626 | AS27: 1.117 | AT27: 2.4539 | AU27: 20.2557 | AV27: 0.3619 | AW27: 1.7143 | AX27: 2038.8289 | AY27: 10063.3018 | AZ27: 988.4797 | BA27: 1665.7112 | BB27: N/A | BC27: N/A | BD27: 0.1539 | BE27: 1.3803 | BF27: 0.0358 | BG27: 0.1176 | BH27: 0.1516 | BI27: 1.2589 | BJ27: 0.0422 | BK27: 0.1161 | BL27: 0.2434 | BM27: 0.3275 | BN27: 0.0444 | BO27: 0.1825 | BP27: 202.2444 | BQ27: 162.6823 | BR27: 121.3472 | BS27: 177.3207 | BT27: N/A | BU27: N/A | BV27: 1.6038 | BW27: 1.8497 | BX27: 3.3203 | BY27: 1790.5747 | BZ27: 53.1048 | CA27: 29.9403 | CB27: 1800.9714 | CC27: N/A | CD27: 100678330.7 | CE27: 583033.26 | CF27: 58544567.69 | CG27: 119254284 | CH27: 2547657 | CI27: 7052583.249 | CJ27: 0 | CK27: 110025 | CL27: 0 | CM27: 629520.7787 | CN27: 311034 | CO27: 280000770.4 | CP27: 9710265.249 | CQ27: 7162608.249 | CR27: 167799069.7 | CS27: 121911966 | CT27: 34.75129294 | CU27: 0.2012464795 | CV27: 20.20791771 | CW27: 41.16318308 | CX27: 0.879378652 | CY27: 2.434350916 | CZ27: 0 | DA27: 0.03797749704 | DB27: 0 | DC27: 0.2172926472 | DD27: 0.1073600801 | DE27: 96.64829294 | DF27: 3.351707065 | DG27: 2.472328413 | DH27: 57.91946077 | DI27: 42.08053923 | DK27: 5468.214357 | DL27: 9441.065721 | DM27: 10097.94514 | DN27: 10081.01535 | DO27: 61858.61523 | DP27: 8145.879757 | DR27: 1674.096382 | DT27: 63.45542456
A28: 22 | B28: 83 | C28: SPP North | E28: 23788.5 | F28: 603772956.2 | G28: 294874950 | H28: 69447958.95 | I28: 33693380.27 | J28: 47993.45549 | K28: 23430.36962 | L28: 59998.41415 | M28: 59782627.68 | N28: 1403934.89 | O28: 1885096.304 | P28: 60089349.79 | Q28: N/A | R28: 1.38214157 | S28: 1.390799583 | T28: 1.727866882 | U28: 1721.652546 | V28: 20.21563933 | W28: 27.14401305 | X28: 1730.485696 | Y28: -0.2352120962 | Z28: 0.1589784868 | AA28: 0.1589173283 | AB28: 0.1987449538 | AC28: 198.0301604 | AD28: N/A | AE28: 1.712899539 | AF28: 1.723629487 | AG28: 2.141359793 | AH28: 2133.658315 | AI28: 25.0534099 | AJ28: 33.63980105 | AK28: N/A | AL28: 1.7762 | AM28: 60.82 | AN28: 1.2016 | AO28: 1.7148 | AP28: 1.8028 | AQ28: 47.3163 | AR28: 1.1808 | AS28: 1.7058 | AT28: 2.3857 | AU28: 4.3533 | AV28: 0.3036 | AW28: 2.1437 | AX28: 2259.156727 | AY28: 5101.8826 | AZ28: 1197.8106 | BA28: 2149.6743 | BB28: N/A | BC28: N/A | BD28: 0.1632 | BE28: 1.8298 | BF28: 0.121 | BG28: 0.1592 | BH28: 0.1658 | BI28: 1.7266 | BJ28: 0.1186 | BK28: 0.1591 | BL28: 0.2192 | BM28: 0.131 | BN28: 0.0306 | BO28: 0.199 | BP28: 207.5968885 | BQ28: 153.4939 | BR28: 120.5938 | BS28: 199.5244 | BT28: N/A | BU28: N/A | BV28: 2.095 | BW28: 2.4636 | BX28: 3.0002 | BY28: 2112.0799 | BZ28: 26.1142 | CA28: 30.63 | CB28: 2122.1236 | CC28: N/A | CD28: 49086801.64 | CE28: 63718.692 | CF28: 6806750.664 | CG28: 8284924 | CH28: 68118 | CI28: 60642 | CJ28: 5057240 | CK28: 0 | CL28: 0 | CM28: 19763.957 | CN28: 0 | CO28: 64261958.95 | CP28: 5186000 | CQ28: 5117882 | CR28: 56037676.95 | CS28: 13410282 | CT28: 70.68141725 | CU28: 0.0917502731 | CV28: 9.801224927 | CW28: 11.92968681 | CX28: 0.09808495603 | CY28: 0.08732006083 | CZ28: 7.282057063 | DA28: 0 | DB28: 0 | DC28: 0.02845865782 | DD28: 0 | DE28: 92.53253792 | DF28: 7.46746208 | DG28: 7.369377124 | DH28: 80.69017117 | DI28: 19.30982883 | DK28: 8693.890582 | DL28: 10774.41088 | DM28: 10585.57199 | DN28: 10882.42094 | DO28: 33238.34107 | DP28: 9932.605159 | DR28: 2149.757866 | DT28: 16.09955162
A29: 23 | B29: 84 | C29: SPP South | E29: 50658.9 | F29: 1377387400 | G29: 674580693.2 | H29: 152734002.2 | I29: 72368110.33 | J29: 125199.3443 | K29: 59060.9978 | L29: 194323.7866 | M29: 117500299 | N29: 3627540.225 | O29: 3050862.744 | P29: 118011271.9 | Q29: N/A | R29: 1.639442986 | S29: 1.63223822 | T29: 2.544604132 | U29: 1538.626596 | V29: 23.75070497 | W29: 19.97500687 | X29: 1545.317613 | Y29: -0.1490827168 | Z29: 0.1817924925 | AA29: 0.175104323 | AB29: 0.2821628637 | AC29: 170.6132915 | AD29: N/A | AE29: 1.81580418 | AF29: 1.80782437 | AG29: 2.818336996 | AH29: 1704.142583 | AI29: 26.30565974 | AJ29: 22.12379527 | AK29: N/A | AL29: 2.3818 | AM29: 19.8901 | AN29: 1.0102 | AO29: 1.8243 | AP29: 2.323 | AQ29: 19.7368 | AR29: 1.0722 | AS29: 1.7605 | AT29: 4.8106 | AU29: 0.4772 | AV29: 0.0306 | AW29: 2.8168 | AX29: 2190.5681 | AY29: 1387.7661 | AZ29: 1085.2797 | BA29: 1729.3628 | BB29: N/A | BC29: N/A | BD29: 0.2239 | BE29: 2.0971 | BF29: 0.11 | BG29: 0.1819 | BH29: 0.2177 | BI29: 2.0917 | BJ29: 0.1149 | BK29: 0.1751 | BL29: 0.4521 | BM29: 0.0503 | BN29: 0.0033 | BO29: 0.2808 | BP29: 205.8764 | BQ29: 146.3168 | BR29: 118.1868 | BS29: 172.42 | BT29: N/A | BU29: N/A | BV29: 1.8101 | BW29: 2.2179 | BX29: 1.8 | BY29: 1590.1257 | BZ29: 27.5987 | CA29: 16.1887 | CB29: 1595.7237 | CC29: N/A | CD29: 73928246.27 | CE29: 1171209.82 | CF29: 60177365.07 | CG29: 0 | CH29: 3058758 | CI29: 2288313.687 | CJ29: 11658048 | CK29: 117586 | CL29: 0 | CM29: 304972.818 | CN29: 29502.55 | CO29: 135611296.5 | CP29: 17122705.69 | CQ29: 14063947.69 | CR29: 137899610.2 | CS29: 14834392 | CT29: 48.40326659 | CU29: 0.7668297845 | CV29: 39.40011013 | CW29: 0 | CX29: 2.002669972 | CY29: 1.498234613 | CZ29: 7.632909392 | DA29: 0.0769874411 | DB29: 0 | DC29: 0.1996757851 | DD29: 0.01931629472 | DE29: 88.78919858 | DF29: 11.21080142 | DG29: 9.208131446 | DH29: 90.28743319 | DI29: 9.712566806 | DK29: 9018.210614 | DL29: 9988.334251 | DM29: 9222.397054 | DN29: 10640.20985 | DO29: 9484.666833 | DP29: 9182.748835 | DR29: 1722.188592 | DT29: 18.04600847
A30: 24 | B30: 85 | C30: WECC California | E30: 95000.9 | F30: 1117751448 | G30: 505875672.2 | H30: 206633044 | I30: 95040986.04 | J30: 34618.61788 | K30: 15715.99214 | L30: 20665.1862 | M30: 67187988.14 | N30: 6429630.793 | O30: 1172434.913 | P30: 67437084.36 | Q30: N/A | R30: 0.335073396 | S30: 0.3307203092 | T30: 0.2000182139 | U30: 650.3121365 | V30: 31.11617905 | W30: 5.673995264 | X30: 652.7231372 | Y30: -0.5227092334 | Z30: 0.06194332012 | AA30: 0.06213381274 | AB30: 0.03697635325 | AC30: 120.219908 | AD30: N/A | AE30: 0.4927665071 | AF30: 0.4863647592 | AG30: 0.2941513048 | AH30: 956.3637217 | AI30: 45.76015598 | AJ30: 8.344305639 | AK30: N/A | AL30: 3.2086 | AM30: 0.9293 | AN30: 0.2066 | AO30: 0.4621 | AP30: 3.0797 | AQ30: 0.9522 | AR30: 0.222 | AS30: 0.4732 | AT30: 1.89 | AU30: 2.6882 | AV30: 0.0087 | AW30: 0.1901 | AX30: 1960.134 | AY30: 1514.0219 | AZ30: 885.1044539 | BA30: 986.4139 | BB30: N/A | BC30: N/A | BD30: 0.336 | BE30: 0.0928 | BF30: 0.0274 | BG30: 0.0598 | BH30: 0.3218 | BI30: 0.0966 | BJ30: 0.0288 | BK30: 0.0599 | BL30: 0.1979 | BM30: 0.2684 | BN30: 0.0012 | BO30: 0.0246 | BP30: 205.2372 | BQ30: 151.1474 | BR30: 118.0569356 | BS30: 127.6299 | BT30: N/A | BU30: N/A | BV30: 0.3514 | BW30: 0.4355 | BX30: 0.279 | BY30: 1018.8726 | BZ30: 37.6144 | CA30: 6.0365 | CB30: 1021.5339 | CC30: N/A | CD30: 11013736.16 | CE30: 1700916.648 | CF30: 121058637.4 | CG30: 18507408 | CH30: 26319800 | CI30: 5895891.837 | CJ30: 10334181 | CK30: 1804319.96 | CL30: 9160148 | CM30: 180820.8624 | CN30: 657184.061 | CO30: 153118703.2 | CP30: 53514340.8 | CQ30: 27194540.8 | CR30: 140507187 | CS30: 66125856.96 | CT30: 5.330094329 | CU30: 0.8231581045 | CV30: 58.58629149 | CW30: 8.956654582 | CX30: 12.73745936 | CY30: 2.853315096 | CZ30: 5.001223813 | DA30: 0.8732001065 | DB30: 4.433050892 | DC30: 0.08750820244 | DD30: 0.3180440303 | DE30: 74.10175073 | DF30: 25.89824927 | DG30: 13.16078991 | DH30: 67.99841125 | DI30: 32.00158875 | DK30: 5409.354799 | DL30: 7955.119392 | DM30: 7983.024354 | DN30: 9550.57855 | DO30: 10016.85705 | DP30: 7497.267733 | DR30: 1015.311092 | DT30: 58.94737084
A31: 25 | B31: 86 | C31: WECC Northwest | E31: 80235 | F31: 1056452192 | G31: 415952620.6 | H31: 287596498.3 | I31: 123371655.5 | J31: 104109.1492 | K31: 41249.74053 | L31: 109096.3035 | M31: 95734309.74 | N31: 3622959.421 | O31: 2983818.758 | P31: 96234699.42 | Q31: N/A | R31: 0.7239945535 | S31: 0.6687069305 | T31: 0.7586761604 | U31: 665.754349 | V31: 12.59736973 | W31: 10.37501769 | X31: 669.2341527 | Y31: -0.2196201984 | Z31: 0.1970920216 | AA31: 0.1983386496 | AB31: 0.2065333469 | AC31: 181.2373725 | AD31: N/A | AE31: 1.964209262 | AF31: 1.814213022 | AG31: 2.058301039 | AH31: 1806.202619 | AI31: 34.17687355 | AJ31: 28.14759552 | AK31: N/A | AL31: 2.6667 | AM31: 1.7022 | AN31: 0.4255 | AO31: 1.9805 | AP31: 2.6612 | AQ31: 2.3276 | AR31: 0.5222 | AS31: 2.0195 | AT31: 2.505 | AU31: 47.1253 | AV31: 0.0169 | AW31: 1.9581 | AX31: 2276.5872 | AY31: 1817.5604 | AZ31: 907.4951557 | BA31: 1858.748 | BB31: N/A | BC31: N/A | BD31: 0.2438 | BE31: 0.2066 | BF31: 0.0556 | BG31: 0.1995 | BH31: 0.2428 | BI31: 0.2733 | BJ31: 0.0657 | BK31: 0.201 | BL31: 0.229 | BM31: 5.7189 | BN31: 0.0022 | BO31: 0.1973 | BP31: 208.1173 | BQ31: 220.5718 | BR31: 118.6040442 | BS31: 187.2504 | BT31: N/A | BU31: N/A | BV31: 1.5959 | BW31: 1.503 | BX31: 1.6177 | BY31: 1579.0663 | BZ31: 38.2979 | CA31: 22.8411 | CB31: 1586.9513 | CC31: N/A | CD31: 70471699.59 | CE31: 995845.635 | CF31: 30654143.41 | CG31: 9333709 | CH31: 150176172.7 | CI31: 3158439.718 | CJ31: 20206458.89 | CK31: 11595 | CL31: 1862394 | CM31: 383232.5678 | CN31: 342807.722 | CO31: 112181437.9 | CP31: 175415060.3 | CQ31: 25238887.61 | CR31: 106006168.7 | CS31: 181590329.6 | CT31: 24.50367095 | CU31: 0.346264868 | CV31: 10.65873319 | CW31: 3.245418166 | CX31: 52.21766386 | CY31: 1.098219115 | CZ31: 7.025975285 | DA31: 0.004031690257 | DB31: 0.6475718624 | DC31: 0.1332535584 | DD31: 0.1191974604 | DE31: 39.00653819 | DF31: 60.99346181 | DG31: 8.775797953 | DH31: 36.85933914 | DI31: 63.14066086 | DK31: 3673.383364 | DL31: 9965.950149 | DM31: 8432.912827 | DN31: 10938.96183 | DO31: 8240.221098 | DP31: 7651.468899 | DR31: 1866.128152 | DT31: 59.92553254
A32: 26 | B32: 87 | C32: WECC Rockies | E32: 19921.2 | F32: 592852748.9 | G32: 261308146.9 | H32: 63636839.62 | I32: 27741776.58 | J32: 62952.60986 | K32: 27836.57284 | L32: 51254.95572 | M32: 57993856.1 | N32: 1378226.133 | O32: 1790072.346 | P32: 58285775.91 | Q32: N/A | R32: 1.978495797 | S32: 2.006834189 | T32: 1.610857988 | U32: 1822.650416 | V32: 21.65767724 | W32: 28.1294979 | X32: 1831.82497 | Y32: -0.2535795319 | Z32: 0.2123718241 | AA32: 0.2130555298 | AB32: 0.1729095659 | AC32: 195.6433742 | AD32: N/A | AE32: 2.268702702 | AF32: 2.301197785 | AG32: 1.847139567 | AH32: 2089.997831 | AI32: 24.83443784 | AJ32: 32.25554888 | AK32: N/A | AL32: 2.5389 | AM32: 32.6167 | AN32: 1.0934 | AO32: 2.2733 | AP32: 2.5257 | AQ32: 33.2129 | AR32: 1.4299 | AS32: 2.2827 | AT32: 2.2529 | AU32: 6.3412 | AV32: 0.0711 | AW32: 1.8509 | AX32: 2347.0505 | AY32: 5640.9519 | AZ32: 974.9856111 | BA32: 2094.7135 | BB32: N/A | BC32: N/A | BD32: 0.2256 | BE32: 0.9427 | BF32: 0.1329 | BG32: 0.2125 | BH32: 0.223 | BI32: 0.9438 | BJ32: 0.1675 | BK32: 0.2132 | BL32: 0.2002 | BM32: 0.1833 | BN32: 0.0086 | BO32: 0.1731 | BP32: 208.5794 | BQ32: 163.0321 | BR32: 118.514484 | BS32: 195.849 | BT32: N/A | BU32: N/A | BV32: 2.2328 | BW32: 2.537 | BX32: 1.5147 | BY32: 1669.5827 | BZ32: 22.8933 | CA32: 20.664 | CB32: 1676.4693 | CC32: N/A | CD32: 44777830.3 | CE32: 26126.38067 | CF32: 10579256.44 | CG32: 0 | CH32: 2018806 | CI32: 57989.498 | CJ32: 5958128 | CK32: 163335 | CL32: 0 | CM32: 0 | CN32: 55368 | CO32: 55438581.12 | CP32: 8198258.498 | CQ32: 6179452.498 | CR32: 55496570.62 | CS32: 8140269 | CT32: 70.36463559 | CU32: 0.04105543397 | CV32: 16.62442149 | CW32: 0 | CX32: 3.1723857 | CY32: 0.09112567241 | CZ32: 9.362702541 | DA32: 0.2566673659 | DB32: 0 | DC32: 0 | DD32: 0.08700620636 | DE32: 87.11711872 | DF32: 12.88288128 | DG32: 9.71049558 | DH32: 87.20824439 | DI32: 12.79175561 | DK32: 9316.187801 | DL32: 10682.6916 | DM32: 8524.846693 | DN32: 11252.55179 | DO32: 34600.25296 | DP32: 8226.721145 | DR32: 2092.194468 | DT32: 2.196636874
A33: 27 | B33: 88 | C33: WECC Southwest | E33: 63160.5 | F33: 1202106279 | G33: 579100917.2 | H33: 177873710.9 | I33: 84358855.76 | J33: 115206.6072 | K33: 52010.91979 | L33: 39065.15595 | M33: 102534225.3 | N33: 3317864.625 | O33: 2686986.107 | P33: 102985545.7 | Q33: N/A | R33: 1.295375315 | S33: 1.23308737 | T33: 0.4392459768 | U33: 1152.887909 | V33: 18.65292295 | W33: 15.10614521 | X33: 1157.962525 | Y33: -0.1513883072 | Z33: 0.1916745784 | AA33: 0.1796264459 | AB33: 0.06499451275 | AC33: 170.5909487 | AD33: N/A | AE33: 1.806835039 | AF33: 1.719953624 | AG33: 0.6126757339 | AH33: 1608.088595 | AI33: 26.01775284 | AJ33: 21.07058253 | AK33: N/A | AL33: 3.1325 | AM33: 13.1631 | AN33: 0.327 | AO33: 1.806 | AP33: 3.1821 | AQ33: 12.8297 | AR33: 0.3305 | AS33: 1.6804 | AT33: 1.1309 | AU33: 32.8548 | AV33: 0.0186 | AW33: 0.6052 | AX33: 2216.8903 | AY33: 6474.2823 | AZ33: 941.547 | BA33: 1613.8556 | BB33: N/A | BC33: N/A | BD33: 0.292 | BE33: 0.3359 | BF33: 0.0413 | BG33: 0.1921 | BH33: 0.2938 | BI33: 0.3417 | BJ33: 0.0413 | BK33: 0.1799 | BL33: 0.1054 | BM33: 0.8383 | BN33: 0.0023 | BO33: 0.0644 | BP33: 206.6463 | BQ33: 165.1915 | BR33: 118.8645 | BS33: 171.6695 | BT33: N/A | BU33: N/A | BV33: 1.0309 | BW33: 1.1602 | BX33: 0.3253 | BY33: 1236.024 | BZ33: 21.5572 | CA33: 10.5235 | CB33: 1239.7389 | CC33: N/A | CD33: 66459450.05 | CE33: 89144.859 | CF33: 60369815.68 | CG33: 31933916 | CH33: 11258534 | CI33: 585343.432 | CJ33: 1729605 | CK33: 1167442 | CL33: 4261109 | CM33: 7421.897 | CN33: 11929 | CO33: 158871677.5 | CP33: 19002033.43 | CQ33: 7743499.432 | CR33: 127523104.9 | CS33: 50350606 | CT33: 37.36327854 | CU33: 0.05011693889 | CV33: 33.93970664 | CW33: 17.95313981 | CX33: 6.32950982 | CY33: 0.3290781021 | CZ33: 0.972378094 | DA33: 0.6563319526 | DB33: 2.3955811 | DC33: 0.004172565446 | DD33: 0.006706443543 | DE33: 89.31712093 | DF33: 10.68287907 | DG33: 4.353369248 | DH33: 71.69305923 | DI33: 28.30694077 | DK33: 6758.200934 | DL33: 9426.576306 | DM33: 7200.020971 | DN33: 10727.94577 | DO33: 39192.58739 | DP33: 7921.179158 | DR33: 1618.255641 | DT33: 10.16704619
A34: 28 | B34: 53 | C34: ASCC | D34: Alaska Systems Coordinating Council | E34: 2762 | F34: 55212470.13 | G34: 21979611.4 | H34: 6928294.496 | I34: 2577024.14 | J34: 11728.38549 | K34: 4818.857888 | L34: 2384.251661 | M34: 3766232.72 | N34: 170189.6899 | O34: 46156.74054 | P34: 3775174.006 | Q34: N/A | R34: 3.38564866 | S34: 3.739862435 | T34: 0.6882651027 | U34: 1087.203415 | V34: 24.56444223 | W34: 6.662063884 | X34: 1089.784509 | Y34: -1.957624637 | Z34: 0.4248455271 | AA34: 0.4384843572 | AB34: 0.08636641889 | AC34: 136.4268873 | AD34: N/A | AE34: 4.397610114 | AF34: 4.857697452 | AG34: 0.8939857265 | AH34: 1412.165649 | AI34: 31.90668922 | AJ34: 8.653337207 | AK34: N/A | AL34: 6.2822 | AM34: 10.1293 | AN34: 2.3918 | AO34: 4.3976 | AP34: 6.024 | AQ34: 10.2376 | AR34: 2.6417 | AS34: 4.7388 | AT34: 3.574 | AU34: 2.0779 | AV34: 0.0384 | AW34: 0.894 | AX34: 2165.012 | AY34: 1397.8609 | AZ34: 1271.2256 | BA34: 1412.1656 | BB34: N/A | BC34: N/A | BD34: 0.6168 | BE34: 1.1718 | BF34: 0.22 | BG34: 0.4248 | BH34: 0.6077 | BI34: 1.133 | BJ34: 0.228 | BK34: 0.4385 | BL34: 0.3509 | BM34: 0.2404 | BN34: 0.0035 | BO34: 0.0864 | BP34: 212.5771 | BQ34: 161.7042 | BR34: 116.924 | BS34: 136.4269 | BT34: N/A | BU34: N/A | BV34: 8.4473 | BW34: 7.0044 | BX34: 0.5937 | BY34: 1387.6247 | BZ34: 38.614 | CA34: 6.0786 | CC34: N/A | CD34: 684959.155 | CE34: 1037761.591 | CF34: 3608695.378 | CG34: 0 | CH34: 1575045 | CI34: 2565.372 | CJ34: 19268 | CK34: 0 | CL34: 0 | CM34: 0 | CN34: 0 | CO34: 5331416.124 | CP34: 1596878.372 | CQ34: 21833.372 | CR34: 5333981.496 | CS34: 1594313 | CT34: 9.886403579 | CU34: 14.97860103 | CV34: 52.08634506 | CW34: 0 | CX34: 22.7335169 | CY34: 0.0370274676 | CZ34: 0.2781059612 | DA34: 0 | DB34: 0 | DC34: 0 | DD34: 0 | DE34: 76.95134967 | DF34: 23.04865033 | DG34: 0.3151334288 | DH34: 76.98837714 | DI34: 23.01162286 | DK34: 7969.128645 | DL34: 10351.08018 | DM34: 10171.19571 | DN34: 10184.59655 | DO34: 8644.555305 | DP34: 10872.23838 | DR34: 1412.16578 | DT34: 0.0001314513183
A35: 29 | B35: 54 | C35: FRCC | D35: Florida Reliability Coordinating Council | E35: 80756.1 | F35: 1640755276 | G35: 784793331.4 | H35: 211244527.5 | I35: 99311487.29 | J35: 65764.22795 | K35: 32261.83025 | L35: 134754.3023 | M35: 118861947.3 | N35: 8459346.379 | O35: 2503826.079 | P35: 119338507.3 | Q35: N/A | R35: 0.6226360393 | S35: 0.6497099405 | T35: 1.275813427 | U35: 1125.349364 | V35: 40.0452806 | W35: 11.85273819 | X35: 1129.861291 | Y35: -0.07404688863 | Z35: 0.08016336002 | AA35: 0.0822173914 | AB35: 0.1642588681 | AC35: 144.8868689 | AD35: N/A | AE35: 0.6813870317 | AF35: 0.7110155851 | AG35: 1.396197247 | AH35: 1231.535623 | AI35: 43.82389255 | AJ35: 12.97114459 | AK35: N/A | AL35: 1.543 | AM35: 15.0849 | AN35: 0.3208 | AO35: 0.5979 | AP35: 1.5943 | AQ35: 20.3413 | AR35: 0.344 | AS35: 0.6319 | AT35: 3.2294 | AU35: 0.8357 | AV35: 0.1296 | AW35: 0.8298 | AX35: 2171.213631 | AY35: 3655.6637 | AZ35: 900.9585156 | BA35: 1216.7134 | BB35: N/A | BC35: N/A | BD35: 0.1462 | BE35: 0.6698 | BF35: 0.0412 | BG35: 0.0711 | BH35: 0.1524 | BI35: 0.6597 | BJ35: 0.0436 | BK35: 0.0745 | BL35: 0.306 | BM35: 0.0371 | BN35: 0.0167 | BO35: 0.0987 | BP35: 205.7016344 | BQ35: 162.3274 | BR35: 121.9716363 | BS35: 144.6841 | BT35: N/A | BU35: N/A | BV35: 0.9167 | BW35: 1.1777 | BX35: 1.6026 | BY35: 1333.9342 | BZ35: 38.8132 | CA35: 13.7874 | CC35: N/A | CD35: 41031111.96 | CE35: 1361031.041 | CF35: 143767766.6 | CG35: 17869935 | CH35: 150511 | CI35: 3726715.933 | CJ35: 0 | CK35: 193615.985 | CL35: 0 | CM35: 1386958.507 | CN35: 1756881.51 | CO35: 207173684.6 | CP35: 4070842.918 | CQ35: 3920331.918 | CR35: 193030465.5 | CS35: 18214061.98 | CT35: 19.42351475 | CU35: 0.6442917394 | CV35: 68.05751054 | CW35: 8.459359971 | CX35: 0.0712496564 | CY35: 1.764171587 | CZ35: 0 | DA35: 0.09165491163 | DB35: 0 | DC35: 0.6565654143 | DD35: 0.8316814314 | DE35: 98.07292385 | DF35: 1.927076155 | DG35: 1.855826499 | DH35: 91.37773546 | DI35: 8.622264539 | DK35: 7767.090091 | DL35: 8499.980933 | DM35: 9219.632289 | DN35: 10555.15984 | DO35: 22520.31204 | DP35: 7386.623175 | DR35: 1229.812091 | DT35: -1.723531907
A36: 30 | B36: 55 | C36: HICC | D36: Hawaiian Islands Coordinating Council | E36: 3081.6 | F36: 91564337.92 | G36: 38027952.14 | H36: 10469268.7 | I36: 4408851.52 | J36: 15333.41525 | K36: 6256.604843 | L36: 25283.44451 | M36: 7699913.549 | N36: 880985.6605 | O36: 199607.3377 | P36: 7740103.035 | Q36: N/A | R36: 2.929223749 | S36: 2.838201657 | T36: 4.830030682 | U36: 1470.955378 | V36: 84.14968475 | W36: 19.0660249 | X36: 1478.632989 | Y36: -0.5106373859 | Z36: 0.3349211189 | AA36: 0.3290529461 | AB36: 0.5522552795 | AC36: 168.185862 | AD36: N/A | AE36: 3.157996943 | AF36: 3.059866 | AG36: 5.207257429 | AH36: 1585.837405 | AI36: 90.72179867 | AJ36: 20.55508678 | AK36: N/A | AL36: 0.9758 | AM36: 3.6081 | AN36: N/A | AO36: 3.1582 | AP36: 0.9499 | AQ36: 3.5397 | AR36: N/A | AS36: 3.0832 | AT36: 10.5067 | AU36: 4.445 | AV36: N/A | AW36: 5.3254 | AX36: 2046.3703 | AY36: 1515.2048 | AZ36: N/A | BA36: 1599.4947 | BB36: N/A | BC36: N/A | BD36: 0.098 | BE36: 0.3929 | BF36: N/A | BG36: 0.3397 | BH36: 0.0973 | BI36: 0.3884 | BJ36: N/A | BK36: 0.3347 | BL36: 1.0551 | BM36: 0.484 | BN36: N/A | BO36: 0.5727 | BP36: 205.5078 | BQ36: 164.978 | BR36: N/A | BS36: 172.0179 | BT36: N/A | BU36: N/A | BV36: 2.5679 | BW36: 2.5622 | BX36: 3.9984 | BY36: 1385.5681 | BZ36: 113.0098 | CA36: 18.8912 | CC36: N/A | CD36: 1537340.319 | CE36: 7529796.663 | CF36: 0 | CG36: 0 | CH36: 114581 | CI36: 286075.3082 | CJ36: 378234 | CK36: 4608 | CL36: 260997 | CM36: 357636.4078 | CN36: 0 | CO36: 9424773.39 | CP36: 1044495.308 | CQ36: 929914.3082 | CR36: 9710848.698 | CS36: 758420 | CT36: 14.68431429 | CU36: 71.9228523 | CV36: 0 | CW36: 0 | CX36: 1.094450848 | CY36: 2.732524272 | CZ36: 3.612802488 | DA36: 0.04401453562 | DB36: 2.492982151 | DC36: 3.416059116 | DD36: 0 | DE36: 90.02322571 | DF36: 9.976774294 | DG36: 8.882323447 | DH36: 92.75574998 | DI36: 7.244250022 | DK36: 8746.010878 | DL36: 9429.076775 | DM36: 8054.790228 | DN36: 9957.628372 | DO36: 9184.283965 | DP36: - | DR36: 1621.969986 | DT36: 36.13258096
A37: 31 | B37: 56 | C37: MRO | D37: Midwest Reliability Organization | E37: 72028.2 | F37: 1671569319 | G37: 737940708 | H37: 232544949 | I37: 100844554.5 | J37: 181649.0432 | K37: 77506.1832 | L37: 359245.0589 | M37: 167100245 | N37: 6323045.456 | O37: 5678822.564 | P37: 168046451.8 | Q37: N/A | R37: 1.562270382 | S37: 1.537141665 | T37: 3.089682751 | U37: 1437.143621 | V37: 27.19063769 | W37: 24.42032213 | X37: 1445.281461 | Y37: -0.368677111 | Z37: 0.2173395278 | AA37: 0.2100607335 | AB37: 0.4298296875 | AC37: 199.9321753 | AD37: N/A | AE37: 2.269432176 | AF37: 2.232928945 | AG37: 4.488227858 | AH37: 2087.666778 | AI37: 39.49848168 | AJ37: 35.47418259 | AK37: N/A | AL37: 2.3951 | AM37: 6.0105 | AN37: 0.4905 | AO37: 2.2599 | AP37: 2.3941 | AQ37: 5.6247 | AR37: 0.5331 | AS37: 2.1934 | AT37: 4.9308 | AU37: 1.7702 | AV37: 0.0274 | AW37: 4.5666 | AX37: 2226.115986 | AY37: 1653.333671 | AZ37: 1030.812755 | BA37: 2142.3525 | BB37: N/A | BC37: N/A | BD37: 0.2264 | BE37: 0.5261 | BF37: 0.0563 | BG37: 0.2164 | BH37: 0.2275 | BI37: 0.5122 | BJ37: 0.0593 | BK37: 0.2119 | BL37: 0.466 | BM37: 0.155 | BN37: 0.0031 | BO37: 0.4372 | BP37: 210.4470416 | BQ37: 155.3386 | BR37: 118.7612 | BS37: 205.1138 | BT37: N/A | BU37: N/A | BV37: 2.3966 | BW37: 2.2883 | BX37: 4.8823 | BY37: 1927.3329 | BZ37: 48.846 | CA37: 31.6379 | CC37: N/A | CD37: 142462230.2 | CE37: 547525.4463 | CF37: 12448600.12 | CG37: 26608255 | CH37: 13661759.55 | CI37: 3723763.412 | CJ37: 32191681 | CK37: 0 | CL37: 0 | CM37: 341887.6647 | CN37: 559246.613 | CO37: 182967745.1 | CP37: 49577203.96 | CQ37: 35915444.41 | CR37: 160083253.5 | CS37: 72461695.55 | CT37: 61.26223374 | CU37: 0.2354492964 | CV37: 5.353201681 | CW37: 11.44219864 | CX37: 5.874889825 | CY37: 1.601309092 | CZ37: 13.843208 | DA37: 0 | DB37: 0 | DC37: 0.1470200347 | DD37: 0.240489684 | DE37: 78.68059308 | DF37: 21.31940692 | DG37: 15.4445171 | DH37: 68.83970353 | DI37: 31.16029647 | DK37: 7188.155776 | DL37: 10441.87497 | DM37: 9396.40775 | DN37: 10578.03412 | DO37: 10643.41813 | DP37: =1000*AZ37/BR37 -> 8679.709833 | DR37: 2141.772655 | DT37: 54.10587709
A38: 32 | B38: 57 | C38: NPCC | D38: Northeast Power Coordinating Council | E38: 90299.4 | F38: 1299197840 | G38: 631305292.7 | H38: 260500864.6 | I38: 117817136.7 | J38: 47912.82354 | K38: 19885.28922 | L38: 94663.28115 | M38: 78382301.34 | N38: 12160203.71 | O38: 1857360.091 | P38: 78796567.16 | Q38: N/A | R38: 0.367851551 | S38: 0.3375619164 | T38: 0.7267790171 | U38: 601.7815063 | V38: 46.68008963 | W38: 7.129957491 | X38: 604.9620396 | Y38: -0.3298722258 | Z38: 0.07375754802 | AA38: 0.06299737846 | AB38: 0.1457257366 | AC38: 120.6626103 | AD38: N/A | AE38: 0.6472138374 | AF38: 0.5939209517 | AG38: 1.278726256 | AH38: 1058.80026 | AI38: 82.13095705 | AJ38: 12.54475381 | AK38: N/A | AL38: 2.4606 | AM38: 4.452 | AN38: 0.2698 | AO38: 0.4175 | AP38: 2.2331 | AQ38: 4.4587 | AR38: 0.2794 | AS38: 0.4036 | AT38: 7.2092 | AU38: 5.0324 | AV38: 0.0281 | AW38: 0.4849 | AX38: 2157.94 | AY38: 1921.567898 | AZ38: 956.1470591 | BA38: 1056.0141 | BB38: N/A | BC38: N/A | BD38: 0.2321 | BE38: 0.3199 | BF38: 0.0327 | BG38: 0.0496 | BH38: 0.211 | BI38: 0.3153 | BJ38: 0.0339 | BK38: 0.048 | BL38: 0.6802 | BM38: 0.3616 | BN38: 0.0034 | BO38: 0.0576 | BP38: 203.598 | BQ38: 161.8095 | BR38: 115.9668047 | BS38: 125.3531 | BT38: N/A | BU38: N/A | BV38: 0.7448 | BW38: 0.8939 | BX38: 1.2786 | BY38: 1141.3116 | BZ38: 48.3209 | CA38: 10.0542 | CC38: N/A | CD38: 8096811.518 | CE38: 990924.705 | CF38: 126472959.5 | CG38: 76890506 | CH38: 31206083.37 | CI38: 9469004.182 | CJ38: 4259721.1 | CK38: 85842.21 | CL38: 0 | CM38: 2938962.031 | CN38: 90049.95 | CO38: 215480213.7 | CP38: 45020650.86 | CQ38: 13814567.49 | CR38: 148058711.9 | CS38: 112442152.7 | CT38: 3.10817069 | CU38: 0.3803920984 | CV38: 48.54991929 | CW38: 29.51641106 | CX38: 11.97926288 | CY38: 3.634922363 | CZ38: 1.635204208 | DA38: 0.03295275436 | DB38: 0 | DC38: 1.128196652 | DD38: 0.03456800428 | DE38: 82.71765779 | DF38: 17.28234221 | DG38: 5.303079326 | DH38: 56.8361691 | DI38: 43.1638309 | DK38: 4987.307211 | DL38: 8774.882773 | DM38: 9104.773635 | DN38: 10599.02357 | DO38: 11875.49494 | DP38: 8245.006506 | DR38: 1099.958758 | DT38: 41.15849736
A39: 33 | B39: 58 | C39: RFC | D39: Reliability First Corporation | E39: 279506.7 | F39: 6163031322 | G39: 2872714395 | H39: 916856263.3 | I39: 407190164.4 | J39: 512516.6722 | K39: 232375.7581 | L39: 1343504.718 | M39: 572134780 | N39: 19291761.68 | O39: 17400836.4 | P39: 575034288.9 | Q39: N/A | R39: 1.117986958 | S39: 1.141362333 | T39: 2.930676861 | U39: 1248.035931 | V39: 21.04120618 | W39: 18.97880518 | X39: 1254.360824 | Y39: -0.131516798 | Z39: 0.1663196714 | AA39: 0.1617813163 | AB39: 0.4359882817 | AC39: 185.6666793 | AD39: N/A | AE39: 1.626654644 | AF39: 1.660665472 | AG39: 4.264091895 | AH39: 1815.873994 | AI39: 30.61464671 | AJ39: 27.61388347 | AK39: N/A | AL39: 2.0878 | AM39: 1.8285 | AN39: 0.2947 | AO39: 1.6174 | AP39: 2.0696 | AQ39: 1.98 | AR39: 0.3301 | AS39: 1.5947 | AT39: 5.68 | AU39: 4.9519 | AV39: 0.0857 | AW39: 4.1529 | AX39: 2142.256309 | AY39: 2286.9516 | AZ39: 963.0718137 | BA39: 1821.3166 | BB39: N/A | BC39: N/A | BD39: 0.2019 | BE39: 0.159 | BF39: 0.0368 | BG39: 0.1664 | BH39: 0.1981 | BI39: 0.1764 | BJ39: 0.0399 | BK39: 0.162 | BL39: 0.5492 | BM39: 0.4306 | BN39: 0.0107 | BO39: 0.4272 | BP39: 207.2708576 | BQ39: 189.0451598 | BR39: 120.1612819 | BS39: 187.377 | BT39: N/A | BU39: N/A | BV39: 1.6287 | BW39: 1.7932 | BX39: 4.9065 | BY39: 1724.9324 | BZ39: 25.9219 | CA39: 25.6765 | CC39: N/A | CD39: 446646737.2 | CE39: 4370839.48 | CF39: 165204878.7 | CG39: 263781896 | CH39: 6439439 | CI39: 8243162.164 | CJ39: 15246513 | CK39: 408964.24 | CL39: 0 | CM39: 6187603.678 | CN39: 326229.8 | CO39: 886518184.9 | CP39: 30338078.4 | CQ39: 23898639.4 | CR39: 630148107.1 | CS39: 285876812.2 | CT39: 48.71502275 | CU39: 0.476720251 | CV39: 18.01862356 | CW39: 28.77025621 | CX39: 0.7023389879 | CY39: 0.8990680976 | CZ39: 1.662912019 | DA39: 0.04460505495 | DB39: 0 | DC39: 0.6748717249 | DD39: 0.03558134607 | DE39: 96.69107584 | DF39: 3.30892416 | DG39: 2.606585172 | DH39: 68.72921442 | DI39: 31.18011227 | DK39: =F39*1000000/(H39*1000) -> 6721.916584 | DL39: =(F39*((CT39+CU39+CV39+DC39)/DH39)*1000000/((CD39+CE39+CF39+CM39)*1000)) -> 9780.290145 | DM39: =1000*BY39/BS39 -> 9205.678392 | DN39: 10335.54034 | DO39: 12097.38246 | DP39: 8014.826393 | DR39: =DL39*BS39/1000 -> 1832.601426 | DT39: =DR39-AH39 -> 16.72743265
A40: 34 | B40: 59 | C40: SERC | D40: SERC Reliability Corporation | E40: 333238.6 | F40: 7424661955 | G40: 3555134695 | H40: 1088830176 | I40: 499851756.6 | J40: 479098.3145 | K40: 227044.8758 | L40: 1036783.745 | M40: 644372442 | N40: 23117927.22 | O40: 18527352.91 | P40: 647486904.4 | Q40: N/A | R40: 0.8800239469 | S40: 0.9084488463 | T40: 1.904399359 | U40: 1183.60504 | V40: 21.23189431 | W40: 17.01583344 | X40: 1189.32579 | Y40: -0.101379446 | Z40: 0.1290559267 | AA40: 0.1277278614 | AB40: 0.2792810638 | AC40: 173.5762371 | AD40: N/A | AE40: 1.232346492 | AF40: 1.27215146 | AG40: 2.666836372 | AH40: 1657.467986 | AI40: 29.73220282 | AJ40: 23.82821822 | AK40: N/A | AL40: 1.6886 | AM40: 3.0431 | AN40: 0.454 | AO40: 1.2125 | AP40: 1.6927 | AQ40: 1.75 | AR40: 0.4944 | AS40: 1.2141 | AT40: 4.0933 | AU40: 12.5303 | AV40: 0.1917 | AW40: 2.6013 | AX40: 2125.834738 | AY40: 2175.5454 | AZ40: 962.1753683 | BA40: 1688.1177 | BB40: N/A | BC40: N/A | BD40: 0.1608 | BE40: 0.2964 | BF40: 0.0572 | BG40: 0.1276 | BH40: 0.1598 | BI40: 0.3112 | BJ40: 0.0605 | BK40: 0.1265 | BL40: 0.3898 | BM40: 1.2205 | BN40: 0.0242 | BO40: 0.2738 | BP40: 204.8971538 | BQ40: 175.0839956 | BR40: 121.2646 | BS40: 177.6891 | BT40: N/A | BU40: N/A | BV40: 1.4155 | BW40: 1.6727 | BX40: 3.158 | BY40: 1670.6454 | BZ40: 30.9169 | CA40: 23.4971 | CC40: N/A | CD40: 447564850.9 | CE40: 5167155.731 | CF40: 307755817.1 | CG40: 277679683 | CH40: 24729624 | CI40: 20061007.74 | CJ40: 2583398 | CK40: 112972 | CL40: 0 | CM40: 2356327.489 | CN40: 819340 | CO40: 1041343174 | CP40: 47487001.74 | CQ40: 22757377.74 | CR40: 777538326.4 | CS40: 305105677 | CT40: 41.10511086 | CU40: 0.4745602983 | CV40: 28.26481337 | CW40: 25.50257048 | CX40: 2.271210382 | CY40: 1.84243679 | CZ40: 0.23726363 | DA40: 0.01037553904 | DB40: 0 | DC40: 0.2164090913 | DD40: 0.07524956766 | DE40: 95.63871366 | DF40: 4.361286341 | DG40: 2.090075959 | DH40: 71.41043144 | DI40: 28.02142003 | DK40: 6818.934779 | DL40: 9548.933736 | DM40: 9402.070245 | DN40: 10375.13064 | DO40: 12425.72397 | DP40: 7934.511542 | DR40: 1696.741441 | DT40: 39.27345523
A41: 35 | B41: 60 | C41: SPP | D41: Southwest Power Pool | E41: 74092.2 | F41: 1981160356 | G41: 969455643.2 | H41: 222181961.2 | I41: 106061490.6 | J41: 173192.7998 | K41: 82491.36742 | L41: 254322.2007 | M41: 177282926.7 | N41: 5031475.115 | O41: 4935959.048 | P41: 178100621.7 | Q41: N/A | R41: 1.559017653 | S41: 1.555538527 | T41: 2.289314573 | U41: 1595.835465 | V41: 22.64574085 | W41: 22.21584066 | X41: 1603.196054 | Y41: -0.1751132261 | Z41: 0.1748397592 | AA41: 0.1701807978 | AB41: 0.256740652 | AC41: 178.9687807 | AD41: N/A | AE41: 1.78607015 | AF41: 1.782084331 | AG41: 2.622726186 | AH41: 1828.250042 | AI41: 25.94382539 | AJ41: 25.45131532 | AK41: N/A | AL41: 2.1487 | AM41: 21.8076 | AN41: 1.03 | AO41: 1.7923 | AP41: 2.1203 | AQ41: 21.7134 | AR41: 1.0863 | AS41: 1.7445 | AT41: 3.8773 | AU41: 0.6588 | AV41: 0.0589 | AW41: 2.6202 | AX41: 2216.965303 | AY41: 1561.764962 | AZ41: 1096.9254 | BA41: 1852.1408 | BB41: N/A | BC41: N/A | BD41: 0.2002 | BE41: 2.0578 | BF41: 0.1112 | BG41: 0.1749 | BH41: 0.1972 | BI41: 2.0248 | BJ41: 0.1154 | BK41: 0.1702 | BL41: 0.3612 | BM41: 0.0622 | BN41: 0.0064 | BO41: 0.2557 | BP41: 206.5477243 | BQ41: 147.3714 | BR41: 118.454 | BS41: 180.7444 | BT41: N/A | BU41: N/A | BV41: 1.8751 | BW41: 2.2775 | BX41: 2.0739 | BY41: 1709.2275 | BZ41: 27.26 | CA41: 19.484 | CC41: N/A | CD41: 123015047.9 | CE41: 1234928.512 | CF41: 66984115.74 | CG41: 8284924 | CH41: 3126876 | CI41: 2348955.687 | CJ41: 16715288 | CK41: 117586 | CL41: 0 | CM41: 324736.775 | CN41: 29502.55 | CO41: 199873255.5 | CP41: 22308705.69 | CQ41: 19181829.69 | CR41: 193937287.2 | CS41: 28244674 | CT41: 55.36680262 | CU41: 0.5558185307 | CV41: 30.1483142 | CW41: 3.728891381 | CX41: 1.407349176 | CY41: 1.057221601 | CZ41: 7.523242622 | DA41: 0.05292328836 | DB41: 0 | DC41: 0.1461580289 | DD41: 0.01327855324 | DE41: 89.95926331 | DF41: 10.04073669 | DG41: 8.633387511 | DH41: 87.28759353 | DI41: 12.71240647 | DK41: 8916.837108 | DL41: 10215.46906 | DM41: 9456.600039 | DN41: 10733.42885 | DO41: 10597.4766 | DP41: 9260.349165 | DR41: 1846.388826 | DT41: 18.13878399
A42: 36 | B42: 61 | C42: TRE | D42: Texas Regional Entity | E42: 115787.6 | F42: 2523758253 | G42: 1265106192 | H42: 360221517.3 | I42: 174463757.7 | J42: 109604.1923 | K42: 52291.09998 | L42: 346399.6994 | M42: 205873315.5 | N42: 6015952.801 | O42: 4443234.956 | P42: 206625056.6 | Q42: N/A | R42: 0.6085377303 | S42: 0.5994494291 | T42: 1.923259343 | U42: 1143.037301 | V42: 16.70070363 | W42: 12.33472945 | X42: 1147.211073 | Y42: -0.08657173018 | Z42: 0.08685791689 | AA42: 0.08266673631 | AB42: 0.2745109989 | AC42: 163.1482059 | AD42: N/A | AE42: 0.7522144013 | AF42: 0.7409803386 | AG42: 2.37734376 | AH42: 1412.910123 | AI42: 20.64376481 | AJ42: 15.24697757 | AK42: N/A | AL42: 1.3091 | AM42: 2.6529 | AN42: 0.3905 | AO42: 0.754 | AP42: 1.2599 | AQ42: 2.7769 | AR42: 0.3902 | AS42: 0.7226 | AT42: 4.9743 | AU42: 89.7386 | AV42: 0.0088 | AW42: 2.3855 | AX42: 2252.0234 | AY42: 3061.8507 | AZ42: 881.9950499 | BA42: 1418.1326 | BB42: N/A | BC42: N/A | BD42: 0.1249 | BE42: 0.189 | BF42: 0.0523 | BG42: 0.0871 | BH42: 0.1189 | BI42: 0.1979 | BJ42: 0.0514 | BK42: 0.0828 | BL42: 0.4746 | BM42: 6.3935 | BN42: 0.0012 | BO42: 0.2755 | BP42: 214.8669 | BQ42: 218.1445 | BR42: 118.0373488 | BS42: 163.7882 | BT42: N/A | BU42: N/A | BV42: 0.7249 | BW42: 0.8523 | BX42: 2.0299 | BY42: 1280.5899 | BZ42: 21.5309 | CA42: 10.707 | CC42: N/A | CD42: 109893817.4 | CE42: 3404969.304 | CF42: 176680238.3 | CG42: 38441017 | CH42: 392973.42 | CI42: 712025.003 | CJ42: 29851836 | CK42: 118265 | CL42: 0 | CM42: 433813.205 | CN42: 292562.67 | CO42: 329146417.9 | CP42: 31075099.42 | CQ42: 30682126 | CR42: 291417425.9 | CS42: 68804091.42 | CT42: 30.50728847 | CU42: 0.9452431741 | CV42: 49.04766368 | CW42: 10.67149383 | CX42: 0.1090921561 | CY42: 0.1976630958 | CZ42: 8.287077414 | DA42: 0.03283118701 | DB42: 0 | DC42: 0.1204295646 | DD42: 0.08121743315 | DE42: 91.37333615 | DF42: 8.626663853 | DG42: 8.517571697 | DH42: 80.89950541 | DI42: 19.10049459 | DK42: 7006.128539 | DL42: 8660.285997 | DM42: 7818.5724 | DN42: 10481.01592 | DO42: 14035.8831 | DP42: 7472.169265 | DR42: 1418.452655 | DT42: 5.542531988
A43: 37 | B43: 62 | C43: WECC | D43: Western Electricity Coordinating Council | E43: 257842.2 | F43: 3969162669 | G43: 1762237357 | H43: 735740092.8 | I43: 330513273.9 | J43: 316886.9841 | K43: 136813.2253 | L43: 220081.6014 | M43: 323450379.3 | N43: 14748680.97 | O43: 8633312.123 | P43: 324943105.4 | Q43: N/A | R43: 0.8614101289 | S43: 0.827883393 | T43: 0.598259096 | U43: 879.2517425 | V43: 20.04604767 | W43: 11.7341874 | X43: 883.3094964 | Y43: -0.2909152323 | Z43: 0.1596744757 | AA43: 0.1552721883 | AB43: 0.1108957328 | AC43: 162.9816696 | AD43: N/A | AE43: 1.475495299 | AF43: 1.418067902 | AG43: 1.024748205 | AH43: 1506.055906 | AI43: 34.33654667 | AJ43: 20.09929737 | AK43: N/A | AL43: 2.8286 | AM43: 1.1743 | AN43: 0.3102 | AO43: 1.4806 | AP43: 2.8435 | AQ43: 1.3241 | AR43: 0.3534 | AS43: 1.4442 | AT43: 1.9371 | AU43: 14.7786 | AV43: 0.0154 | AW43: 0.9681 | AX43: 2254.243278 | AY43: 1602.9698 | AZ43: 906.9590831 | BA43: 1536.6641 | BB43: N/A | BC43: N/A | BD43: 0.2605 | BE43: 0.1227 | BF43: 0.0404 | BG43: 0.1615 | BH43: 0.2606 | BI43: 0.1388 | BJ43: 0.0449 | BK43: 0.1569 | BL43: 0.1784 | BM43: 1.5438 | BN43: 0.002 | BO43: 0.1056 | BP43: 207.5828 | BQ43: 167.4503 | BR43: 118.3795385 | BS43: 167.6509 | BT43: N/A | BU43: N/A | BV43: 1.0338 | BW43: 1.1242 | BX43: 0.7132 | BY43: 1278.28 | BZ43: 31.0931 | CA43: 12.688 | CC43: N/A | CD43: 192722716.1 | CE43: 2812033.523 | CF43: 222661853 | CG43: 59775033 | CH43: 189773312.7 | CI43: 9697664.485 | CJ43: 38228372.89 | CK43: 3146691.96 | CL43: 15283651 | CM43: 571475.3272 | CN43: 1067288.783 | CO43: 479610399.7 | CP43: 256129693.1 | CQ43: 66356380.33 | CR43: 429533031.2 | CS43: 306207061.6 | CT43: 26.1944018 | CU43: 0.3822047419 | CV43: 30.26365631 | CW43: 8.12447678 | CX43: 25.79352608 | CY43: 1.318082918 | CZ43: 5.195907259 | DA43: 0.427690701 | DB43: 2.077316589 | DC43: 0.07767353347 | DD43: 0.1450632898 | DE43: 65.18747645 | DF43: 34.81252355 | DG43: 9.018997467 | DH43: 58.38108259 | DI43: 41.61891741 | DK43: 5394.789148 | DL43: 9240.645958 | DM43: 7624.653372 | DN43: 10859.4897 | DO43: 9572.809365 | DP43: 7661.451418 | DR43: 1549.202611 | DT43: 43.14670515
A44: 38 | B44: 2 | C44: AK | D44: 2 | E44: 2762 | F44: 55212470.13 | G44: 21979611.4 | H44: 6928294.496 | I44: 2577024.14 | J44: 11728.38549 | K44: 4818.857888 | L44: 2384.251661 | M44: 3766232.72 | N44: 170189.6899 | O44: 46156.74054 | P44: 3775174.006 | Q44: N/A | R44: 3.38564866 | S44: 3.739862435 | T44: 0.6882651027 | U44: 1087.203415 | V44: 24.56444223 | W44: 6.662063884 | X44: 1089.784509 | Y44: N/A | Z44: 0.4248455271 | AA44: 0.4384843572 | AB44: 0.08636641889 | AC44: 136.4268873 | AD44: N/A | AE44: 4.397610114 | AF44: 4.857697452 | AG44: 0.8939857265 | AH44: 1412.165649 | AI44: 31.90668922 | AJ44: 8.653337207 | AK44: N/A | AL44: 6.2822 | AM44: 10.1293 | AN44: 2.3918 | AO44: 4.3976 | AP44: 6.024 | AQ44: 10.2376 | AR44: 2.6417 | AS44: 4.7388 | AT44: 3.574 | AU44: 2.0779 | AV44: 0.0384 | AW44: 0.894 | AX44: 2165.012 | AY44: 1397.8609 | AZ44: 1271.225619 | BA44: 1412.1656 | BB44: N/A | BC44: N/A | BD44: 0.6168 | BE44: 1.1718 | BF44: 0.22 | BG44: 0.4248 | BH44: 0.6077 | BI44: 1.133 | BJ44: 0.228 | BK44: 0.4385 | BL44: 0.3509 | BM44: 0.2404 | BN44: 0.0035 | BO44: 0.0864 | BP44: 212.5771 | BQ44: 161.7042 | BR44: 116.924 | BS44: 136.4269 | BT44: N/A | BU44: N/A | BV44: 8.4473 | BW44: 7.0044 | BX44: 0.5937 | BY44: 1387.6247 | BZ44: 38.614 | CA44: 6.0786 | CC44: N/A | CD44: 684959.155 | CE44: 1037761.591 | CF44: 3608695.378 | CG44: 0 | CH44: 1575045 | CI44: 2565.372 | CJ44: 19268 | CK44: 0 | CL44: 0 | CM44: 0 | CN44: 0 | CO44: 5331416.124 | CP44: 1596878.372 | CQ44: 21833.372 | CR44: 5333981.496 | CS44: 1594313 | CT44: 9.886403579 | CU44: 14.97860103 | CV44: 52.08634506 | CW44: 0 | CX44: 22.7335169 | CY44: 0.0370274676 | CZ44: 0.2781059612 | DA44: 0 | DB44: 0 | DC44: 0 | DD44: 0 | DE44: 76.95134967 | DF44: 23.04865033 | DG44: 0.3151334288 | DH44: 76.98837714 | DI44: 23.01162286 | DK44: 7969.128645 | DL44: 10351.08018 | DM44: 10171.19571 | DN44: 10184.59655 | DO44: 8644.555305 | DP44: 10872.23854 | DR44: 1412.16578 | DT44: 0.000131451319
A45: 39 | B45: 3 | C45: AL | D45: 1 | E45: 36284.1 | F45: 940198951.5 | G45: 457545013.7 | H45: 153105217 | I45: 69693465.61 | J45: 49346.43344 | K45: 24871.13339 | L45: 137191.4591 | M45: 76372600.89 | N45: 2944703.071 | O45: 2041775.646 | P45: 76719995.49 | Q45: N/A | R45: 0.6446081253 | S45: 0.7137292763 | T45: 1.792119979 | U45: 997.6485767 | V45: 19.23319878 | W45: 13.33576796 | X45: 1002.186562 | Y45: N/A | Z45: 0.1049701946 | AA45: 0.1087155696 | AB45: 0.2918349544 | AC45: 162.4605107 | AD45: N/A | AE45: 0.9414672672 | AF45: 1.042420542 | AG45: 2.61743877 | AH45: 1457.092212 | AI45: 28.09059703 | AJ45: 19.47724287 | AK45: N/A | AL45: 1.6161 | AM45: 23.6582 | AN45: 0.0859 | AO45: 0.9121 | AP45: 1.696 | AQ45: 23.6454 | AR45: 0.0906 | AS45: 0.9623 | AT45: 4.7515 | AU45: 1.5179 | AV45: 0.0045 | AW45: 2.5641 | AX45: 2055.1832 | AY45: 1582.1776 | AZ45: 872.0135 | BA45: 1510.0912 | BB45: N/A | BC45: N/A | BD45: 0.1554 | BE45: 2.438 | BF45: 0.0117 | BG45: 0.1015 | BH45: 0.1616 | BI45: 2.438 | BJ45: 0.0122 | BK45: 0.1058 | BL45: 0.4569 | BM45: 0.1564 | BN45: 0.0006 | BO45: 0.2852 | BP45: 197.6146 | BQ45: 163.0449 | BR45: 118.8566 | BS45: 167.9722 | BT45: N/A | BU45: N/A | BV45: 1.4089 | BW45: 1.9529 | BX45: 4.8074 | BY45: 1585.7968 | BZ45: 26.4706 | CA45: 22.0615 | CC45: N/A | CD45: 45606920.02 | CE45: 109583.161 | CF45: 55705000.41 | CG45: 40841212 | CH45: 7435223 | CI45: 3229612.108 | CJ45: 0 | CK45: 0 | CL45: 0 | CM45: 177666.26 | CN45: 0 | CO45: 142440381.8 | CP45: 10664835.11 | CQ45: 3229612.108 | CR45: 104828782 | CS45: 48276435 | CT45: 29.7879595 | CU45: 0.07157376031 | CV45: 36.38347635 | CW45: 26.67525824 | CX45: 4.856283246 | CY45: 2.109406964 | CZ45: 0 | DA45: 0 | DB45: 0 | DC45: 0.1160419374 | DD45: 0 | DE45: 93.03430979 | DF45: 6.96569021 | DG45: 2.109406964 | DH45: 68.46845851 | DI45: 31.53154149 | DK45: 6140.868157 | DL45: 8968.900849 | DM45: 9440.828899 | DN45: 10399.95628 | DO45: 9703.937995 | DP45: 7336.685552 | DR45: 1506.526007 | DT45: 49.43379524
A46: 40 | B46: 4 | C46: AR | D46: 5 | E46: 18689.2 | F46: 461695316.6 | G46: 221026926.2 | H46: 65005677.87 | I46: 29402200.4 | J46: 37359.33473 | K46: 17430.68725 | L46: 82001.39355 | M46: 40020363.66 | N46: 1562067.498 | O46: 1244521.755 | P46: 40229666.24 | Q46: N/A | R46: 1.149417588 | S46: 1.185672298 | T46: 2.522899421 | U46: 1231.28825 | V46: 24.02970862 | W46: 19.1448162 | X46: 1237.727766 | Y46: N/A | Z46: 0.1618354503 | AA46: 0.1577245592 | AB46: 0.35521865 | AC46: 173.3626581 | AD46: N/A | AE46: 1.580622761 | AF46: 1.630478463 | AG46: 3.469367697 | AH46: 1693.207285 | AI46: 33.04447817 | AJ46: 26.32701341 | AK46: N/A | AL46: 2.2787 | AM46: N/A | AN46: 0.3026 | AO46: 1.5414 | AP46: 2.3031 | AQ46: N/A | AR46: 0.3605 | AS46: 1.5104 | AT46: 5.3753 | AU46: N/A | AV46: 0.0062 | AW46: 3.372 | AX46: 2276.1672 | AY46: N/A | AZ46: 889.8237 | BA46: 1758.9102 | BB46: N/A | BC46: N/A | BD46: 0.2099 | BE46: N/A | BF46: 0.0404 | BG46: 0.1606 | BH46: 0.2093 | BI46: N/A | BJ46: 0.0469 | BK46: 0.1566 | BL46: 0.4952 | BM46: N/A | BN46: 0.0008 | BO46: 0.3513 | BP46: 209.7099 | BQ46: N/A | BR46: 118.8288 | BS46: 183.2548 | BT46: N/A | BU46: N/A | BV46: 1.2484 | BW46: 1.4246 | BX46: 2.4263 | BY46: 1414.431 | BZ46: 34.7858 | CA46: 19.0305 | CC46: N/A | CD46: 28430929.82 | CE46: 32559.604 | CF46: 17117412.94 | CG46: 15493131 | CH46: 2240882 | CI46: 1660370.064 | CJ46: 0 | CK46: 0 | CL46: 0 | CM46: 30392.448 | CN46: 0 | CO46: 61104425.81 | CP46: 3901252.064 | CQ46: 1660370.064 | CR46: 47271664.87 | CS46: 17734013 | CT46: 43.7360716 | CU46: 0.05008732324 | CV46: 26.33218128 | CW46: 23.83350425 | CX46: 3.447209649 | CY46: 2.55419237 | CZ46: 0 | DA46: 0 | DB46: 0 | DC46: 0.0467535283 | DD46: 0 | DE46: 93.99859798 | DF46: 6.001402018 | DG46: 2.55419237 | DH46: 72.7192861 | DI46: 27.2807139 | DK46: 7102.384464 | DL46: 9766.851197 | DM46: 7718.384457 | DN46: 10853.8853 | DO46: - | DP46: 7488.283143 | DR46: 1789.822363 | DT46: 96.61507801
A47: 41 | B47: 5 | C47: AZ | D47: 4 | E47: 35774.8 | F47: 670369581 | G47: 322632308.5 | H47: 110614113.4 | I47: 52578137.36 | J47: 49017.26818 | K47: 21695.7654 | L47: 21055.10263 | M47: 58602854.83 | N47: 1724213.412 | O47: 1588514.722 | P47: 58867178.85 | Q47: N/A | R47: 0.8862751179 | S47: 0.8252770634 | T47: 0.380694687 | U47: 1059.590916 | V47: 15.58764392 | W47: 14.36086837 | X47: 1064.370125 | Y47: N/A | Z47: 0.1462395358 | AA47: 0.1344922057 | AB47: 0.06281640226 | AC47: 174.8374523 | AD47: N/A | AE47: 1.386870026 | AF47: 1.291418432 | AG47: 0.5957225244 | AH47: 1658.079812 | AI47: 24.39201519 | AJ47: 22.47231982 | AK47: N/A | AL47: 2.2638 | AM47: 10.5909 | AN47: 0.1946 | AO47: 1.382 | AP47: 2.3038 | AQ47: 10.8536 | AR47: 0.1933 | AS47: 1.2467 | AT47: 1.016 | AU47: 4.8284 | AV47: 0.0299 | AW47: 0.5958 | AX47: 2208.6973 | AY47: 5160.1834 | AZ47: 929.4617 | BA47: 1663.5339 | BB47: N/A | BC47: N/A | BD47: 0.2113 | BE47: 0.3346 | BF47: 0.025 | BG47: 0.1459 | BH47: 0.2142 | BI47: 0.3408 | BJ47: 0.0246 | BK47: 0.1341 | BL47: 0.0948 | BM47: 0.1526 | BN47: 0.0038 | BO47: 0.0629 | BP47: 206.1052 | BQ47: 163.0449 | BR47: 119.2767 | BS47: 175.6573 | BT47: N/A | BU47: N/A | BV47: 0.5677 | BW47: 0.6334 | BX47: 0.2876 | BY47: 1112.6186 | BZ47: 18.8863 | CA47: 8.2023 | CC47: N/A | CD47: 40115665.67 | CE47: 41911.916 | CF47: 30295010.5 | CG47: 31933916 | CH47: 6796379 | CI47: 235028.274 | CJ47: 249411 | CK47: 946791 | CL47: 0 | CM47: 0 | CN47: 0 | CO47: 102386504.1 | CP47: 8227609.274 | CQ47: 1431230.274 | CR47: 70687616.36 | CS47: 39926497 | CT47: 36.26631761 | CU47: 0.03789020653 | CV47: 27.38801549 | CW47: 28.86965779 | CX47: 6.14422409 | CY47: 0.2124758468 | CZ47: 0.2254784606 | DA47: 0.8559405045 | DB47: 0 | DC47: 0 | DD47: 0 | DE47: 92.5618811 | DF47: 7.438118902 | DG47: 1.293894812 | DH47: 63.90469915 | DI47: 36.09530085 | DK47: 6060.434429 | DL47: 9483.550521 | DM47: 6334.029955 | DN47: 10716.35893 | DO47: =1000*AY47/BQ47 -> 31648.84888 | DP47: 7792.48336 | DR47: 1665.854879 | DT47: 7.775066884
A48: 42 | B48: 6 | C48: CA | D48: 6 | E48: 97737.5 | F48: 1022257542 | G48: 460274489.3 | H48: 199189655.8 | I48: 91285385.26 | J48: 18268.77085 | K48: 8645.90762 | L48: 17622.66477 | M48: 57165609.73 | N48: 6596594.758 | O48: 894245.8355 | P48: 57373339.76 | Q48: N/A | R48: 0.1834309195 | S48: 0.1894258888 | T48: 0.1769435738 | U48: 573.9817112 | V48: 33.11715527 | W48: 4.489419052 | X48: 576.0674624 | Y48: N/A | Z48: 0.03574201237 | AA48: 0.03756848499 | AB48: 0.03447793546 | AC48: 111.8418938 | AD48: N/A | AE48: 0.2816906756 | AF48: 0.2908970132 | AG48: 0.2717282069 | AH48: 881.4506109 | AI48: 50.85725934 | AJ48: 6.894298353 | AK48: N/A | AL48: 0.8882 | AM48: 0.9293 | AN48: 0.2177 | AO48: 0.2326 | AP48: 0.9439 | AQ48: 0.9522 | AR48: 0.2403 | AS48: 0.2543 | AT48: 10.5614 | AU48: 2.6882 | AV48: 0.0088 | AW48: 0.1495 | AX48: 1739.0607 | AY48: 1514.0219 | AZ48: 888.8675246 | BA48: 911.4643 | BB48: N/A | BC48: N/A | BD48: 0.105 | BE48: 0.0928 | BF48: 0.0288 | BG48: 0.0306 | BH48: 0.1066 | BI48: 0.0966 | BJ48: 0.031 | BK48: 0.0326 | BL48: 1.2483 | BM48: 0.2684 | BN48: 0.0012 | BO48: 0.0197 | BP48: 205.555 | BQ48: 151.1474 | BR48: 118.0483734 | BS48: 119.8238 | BT48: N/A | BU48: N/A | BV48: 0.2663 | BW48: 0.3311 | BX48: 0.2647 | BY48: 992.8873 | BZ48: 40.1091 | CA48: 5.3691 | CC48: N/A | CD48: 1258252.558 | CE48: 1692979.8 | CF48: 119645391.9 | CG48: 18507408 | CH48: 27409558 | CI48: 6273299.971 | CJ48: 9685429 | CK48: 1360234.96 | CL48: 12518999 | CM48: 180918.5154 | CN48: 657184.061 | CO48: 141942134.8 | CP48: 57247520.93 | CQ48: 29837962.93 | CR48: 129708026.8 | CS48: 69481628.96 | CT48: 0.6316856933 | CU48: 0.8499335939 | CV48: 60.0660669 | CW48: 9.291349959 | CX48: 13.76053284 | CY48: 3.149410519 | CZ48: 4.862415653 | DA48: 0.6828843369 | DB48: 6.284964423 | DC48: 0.09082726447 | DD48: 0.32992881 | DE48: 71.25979223 | DF48: 28.74020777 | DG48: 14.97967493 | DH48: 65.11785279 | DI48: 34.88214721 | DK48: 5132.081472 | DL48: 7881.220361 | DM48: 8286.227778 | DN48: 8460.318163 | DO48: 10016.85705 | DP48: 7529.68888 | DR48: 944.3577723 | DT48: 62.90716139
A49: 43 | B49: 7 | C49: CO | D49: 8 | E49: 16952.1 | F49: 457759946.9 | G49: 205706407.9 | H49: 52547910.61 | I49: 23245124.4 | J49: 51081.15508 | K49: 23006.63283 | L49: 41588.09064 | M49: 43843974.09 | N49: 1063915.782 | O49: 1320662.843 | P49: 44059835.17 | Q49: N/A | R49: 1.944174544 | S49: 1.979480293 | T49: 1.58286372 | U49: 1668.723783 | V49: 20.24658582 | W49: 25.13254719 | X49: 1676.939565 | Y49: N/A | Z49: 0.223178788 | AA49: 0.2236841629 | AB49: 0.1817026191 | AC49: 191.5588045 | AD49: N/A | AE49: 2.261735877 | AF49: 2.302808465 | AG49: 1.841408569 | AH49: 1941.293008 | AI49: 23.55366173 | AJ49: 29.23769568 | AK49: N/A | AL49: 2.6085 | AM49: 32.6167 | AN49: 1.0937 | AO49: 2.2674 | AP49: 2.5546 | AQ49: 33.2129 | AR49: 1.431 | AS49: 2.2575 | AT49: 2.3637 | AU49: 6.3412 | AV49: 0.0712 | AW49: 1.846 | AX49: 2229.6276 | AY49: 5640.9519 | AZ49: 974.2331661 | BA49: 1946.7154 | BB49: N/A | BC49: N/A | BD49: 0.2436 | BE49: 0.9427 | BF49: 0.133 | BG49: 0.2234 | BH49: 0.24 | BI49: 0.9438 | BJ49: 0.1679 | BK49: 0.2239 | BL49: 0.2207 | BM49: 0.1833 | BN49: 0.0087 | BO49: 0.1819 | BP49: 208.1783 | BQ49: 163.0321 | BR49: 118.5137496 | BS49: 191.8207 | BT49: N/A | BU49: N/A | BV49: 2.2006 | BW49: 2.4967 | BX49: 1.473 | BY49: 1656.1746 | BZ49: 22.7657 | CA49: 20.4171 | CC49: N/A | CD49: 34521019.93 | CE49: 11045.194 | CF49: 10524444.99 | CG49: 0 | CH49: 1252741 | CI49: 57989.498 | CJ49: 5961967 | CK49: 163335 | CL49: 0 | CM49: 0 | CN49: 55368 | CO49: 45111878.11 | CP49: 7436032.498 | CQ49: 6183291.498 | CR49: 45169867.61 | CS49: 7378043 | CT49: 65.6943721 | CU49: 0.02101928292 | CV49: 20.02828442 | CW49: 0 | CX49: 2.383997737 | CY49: 0.1103554781 | CZ49: 11.34577366 | DA49: 0.3108306269 | DB49: 0 | DC49: 0 | DD49: 0.1053667013 | DE49: 85.8490425 | DF49: 14.1509575 | DG49: 11.76695976 | DH49: 85.95939798 | DI49: 14.04060202 | DK49: 8711.28731 | DL49: 10134.18837 | DM49: 8633.972246 | DN49: 10710.18257 | DO49: 34600.25296 | DP49: 8220.423112 | DR49: 1943.947106 | DT49: 2.654098007
A50: 44 | B50: 8 | C50: CT | D50: 9 | E50: 10902.7 | F50: 146138524.1 | G50: 66500837.38 | H50: 35557337.4 | I50: 15682721.96 | J50: 4385.73887 | K50: 2208.793575 | L50: 19617.58545 | M50: 9332621.476 | N50: 2009867.945 | O50: 264162.7003 | P50: 9394670.308 | Q50: N/A | R50: 0.2466854489 | S50: 0.2816849756 | T50: 1.103433884 | U50: 524.9336513 | V50: 56.52470326 | W50: 7.429203635 | X50: 528.4237232 | Y50: N/A | Z50: 0.0600216664 | AA50: 0.06642904548 | AB50: 0.2684793154 | AC50: 127.7229469 | AD50: N/A | AE50: 0.4828887466 | AF50: 0.5514006009 | AG50: 2.159980685 | AH50: 1027.561836 | AI50: 110.6475604 | AJ50: 14.54272576 | AK50: N/A | AL50: 2.1404 | AM50: 3.0681 | AN50: 0.1678 | AO50: 0.203 | AP50: 2.1291 | AQ50: 3.0499 | AR50: 0.18 | AS50: 0.2218 | AT50: 2.9088 | AU50: 2.4344 | AV50: 0.0158 | AW50: 0.0797 | AX50: 3146.5745 | AY50: 2230.4521 | AZ50: 851.588 | BA50: 883.0754 | BB50: N/A | BC50: N/A | BD50: 0.1426 | BE50: 0.2144 | BF50: 0.0234 | BG50: 0.0277 | BH50: 0.1474 | BI50: 0.2141 | BJ50: 0.0248 | BK50: 0.0299 | BL50: 0.1937 | BM50: 0.1701 | BN50: 0.0022 | BO50: 0.0109 | BP50: 209.5691 | BQ50: 155.8621 | BR50: 118.995 | BS50: 120.5718 | BT50: N/A | BU50: N/A | BV50: 0.5111 | BW50: 0.9067 | BX50: 0.4159 | BY50: 1063.1012 | BZ50: 95.9177 | CA50: 13.3488 | CC50: N/A | CD50: 95875.426 | CE50: 107534.765 | CF50: 16538171.22 | CG50: 17077887 | CH50: 314857 | CI50: 687881.4068 | CJ50: 0 | CK50: 0 | CL50: 0 | CM50: 735130.5822 | CN50: 0 | CO50: 34554598.99 | CP50: 1002738.407 | CQ50: 687881.4068 | CR50: 18164593.4 | CS50: 17392744 | CT50: 0.269636123 | CU50: 0.3024263706 | CV50: 46.51127567 | CW50: 48.02915024 | CX50: 0.8854909367 | CY50: 1.934569507 | CZ50: 0 | DA50: 0 | DB50: 0 | DC50: 2.067451153 | DD50: 0 | DE50: 97.17993956 | DF50: 2.820060444 | DG50: 1.934569507 | DH50: 51.08535883 | DI50: 48.91464117 | DK50: 4109.940022 | DL50: 8045.240587 | DM50: 8817.162886 | DN50: 15014.49641 | DO50: 14310.41992 | DP50: 7156.502374 | DR50: 970.029139 | DT50: -57.53269735
A51: 45 | B51: 9 | C51: DC | D51: 11 | E51: 860.8 | F51: 692775.978 | G51: 372786.3216 | H51: 71786.78 | I51: 36239.453 | J51: 45.35595398 | K51: 26.97082979 | L51: 23.10465187 | M51: 44221.2124 | N51: 2367.253178 | O51: 350.3808661 | P51: 44300.37759 | Q51: N/A | R51: 1.26362971 | S51: 1.488478857 | T51: 0.6437021376 | U51: 1232.015488 | V51: 32.97617163 | W51: 4.880855028 | X51: 1234.221053 | Y51: N/A | Z51: 0.1309397422 | AA51: 0.144698602 | AB51: 0.06670165422 | AC51: 127.6638157 | AD51: N/A | AE51: 1.26362971 | AF51: 1.488478857 | AG51: 0.6437021376 | AH51: 1232.015488 | AI51: 32.97617163 | AJ51: 4.880855028 | AK51: N/A | AL51: N/A | AM51: 4.4605 | AN51: 0.782 | AO51: 1.2636 | AP51: N/A | AQ51: 4.9743 | AR51: 0.782 | AS51: 1.4885 | AT51: N/A | AU51: 4.7228 | AV51: 0.0292 | AW51: 0.6437 | AX51: N/A | AY51: 2814.8982 | AZ51: 993.5471 | BA51: 1232.0155 | BB51: N/A | BC51: N/A | BD51: N/A | BE51: 0.258 | BF51: 0.092 | BG51: 0.1309 | BH51: N/A | BI51: 0.2604 | BJ51: 0.092 | BK51: 0.1447 | BL51: N/A | BM51: 0.2732 | BN51: 0.0034 | BO51: 0.0667 | BP51: N/A | BQ51: 162.8339 | BR51: 116.8879 | BS51: 127.6638 | BT51: N/A | BU51: N/A | BV51: 2.2217 | BW51: 4.8549 | BX51: 1.8662 | BY51: 1706.3915 | BZ51: 59.2447 | CA51: 10.6504 | CC51: N/A | CD51: 0 | CE51: 9399 | CF51: 62387.78 | CG51: 0 | CH51: 0 | CI51: 0 | CJ51: 0 | CK51: 0 | CL51: 0 | CM51: 0 | CN51: 0 | CO51: 71786.78 | CP51: 0 | CQ51: 0 | CR51: 71786.78 | CS51: 0 | CT51: 0 | CU51: 13.09293995 | CV51: 86.90706005 | CW51: 0 | CX51: 0 | CY51: 0 | CZ51: 0 | DA51: 0 | DB51: 0 | DC51: 0 | DD51: 0 | DE51: 100 | DF51: 0 | DG51: 0 | DH51: 100 | DI51: 0 | DK51: 9650.46737 | DL51: 9650.46737 | DM51: 13366.29099 | DN51: - | DO51: 17286.92981 | DP51: 8499.999572 | DR51: 1232.015336 | DT51: -0.0001517788683
A52: 46 | B52: 10 | C52: DE | D52: 10 | E52: 3999.4 | F52: 80579254.72 | G52: 40475020.94 | H52: 8633823.258 | I52: 4306143.016 | J52: 2412.329647 | K52: 1264.416899 | L52: 3279.29687 | M52: 5424329.743 | N52: 184373.7686 | O52: 78240.41861 | P52: 5438386.871 | Q52: N/A | R52: 0.5588091337 | S52: 0.5872619159 | T52: 0.7596395645 | U52: 1256.530179 | V52: 21.35482313 | W52: 9.062082495 | X52: 1259.786472 | Y52: N/A | Z52: 0.05987470735 | AA52: 0.06247887559 | AB52: 0.08139308017 | AC52: 134.6334056 | AD52: N/A | AE52: 0.5605098491 | AF52: 0.5890492264 | AG52: 0.7619515001 | AH52: 1260.354384 | AI52: 21.41981576 | AJ52: 9.089662616 | AK52: N/A | AL52: 1.2031 | AM52: 20.8192 | AN52: 0.431 | AO52: 0.5645 | AP52: 1.1097 | AQ52: 13.9596 | AR52: 0.4629 | AS52: 0.5923 | AT52: 4.3408 | AU52: 28.4888 | AV52: 0.0218 | AW52: 0.7674 | AX52: 2130.911 | AY52: 11943.5844 | AZ52: 1089.580025 | BA52: 1265.9492 | BB52: N/A | BC52: N/A | BD52: 0.1151 | BE52: 0.2831 | BF52: 0.0473 | BG52: 0.0604 | BH52: 0.1081 | BI52: 0.2173 | BJ52: 0.0503 | BK52: 0.0629 | BL52: 0.4152 | BM52: 0.3874 | BN52: 0.0024 | BO52: 0.0821 | BP52: 203.8242 | BQ52: 162.4111 | BR52: 119.5307543 | BS52: 135.4288 | BT52: N/A | BU52: N/A | BV52: 0.6588 | BW52: 0.8505 | BX52: 1.1803 | BY52: 1315.0641 | BZ52: 21.5521 | CA52: 10.2316 | CC52: N/A | CD52: 1422702.5 | CE52: 265342.9218 | CF52: 6814727.218 | CG52: 0 | CH52: 0 | CI52: 104853.618 | CJ52: 3638 | CK52: 22559 | CL52: 0 | CM52: 0 | CN52: 0 | CO52: 8502772.64 | CP52: 131050.618 | CQ52: 131050.618 | CR52: 8607626.258 | CS52: 26197 | CT52: 16.47824443 | CU52: 3.073295733 | CV52: 78.93058515 | CW52: 0 | CX52: 0 | CY52: 1.214451754 | CZ52: 0.04213660497 | DA52: 0.2612863308 | DB52: 0 | DC52: 0 | DD52: 0 | DE52: 98.48212531 | DF52: 1.51787469 | DG52: 1.51787469 | DH52: 99.69657706 | DI52: 0.3034229358 | DK52: 9332.97478 | DL52: 9361.379352 | DM52: 9710.372535 | DN52: =1000*AX52/BP52 -> 10454.65161 | DO52: 73539.21253 | DP52: 9115.47853 | DR52: 1267.800372 | DT52: 7.445988303
A53: 47 | B53: 11 | C53: FL | D53: 12 | E53: 83533.4 | F53: 1728428770 | G53: 826093021.9 | H53: 221099929.6 | I53: 103843645.7 | J53: 72573.65639 | K53: 35418.09216 | L53: 142273.7628 | M53: 125651562 | N53: 8748624.014 | O53: 2690783.813 | P53: 126160137.9 | Q53: N/A | R53: 0.6564783312 | S53: 0.6821426947 | T53: 1.286963439 | U53: 1136.60427 | V53: 39.56864225 | W53: 12.16998946 | X53: 1141.204687 | Y53: N/A | Z53: 0.08397645035 | AA53: 0.08574843565 | AB53: 0.1646278578 | AC53: 145.393972 | AD53: N/A | AE53: 0.7154136191 | AF53: 0.7433819987 | AG53: 1.402500475 | AH53: 1238.642825 | AI53: 43.12091383 | AJ53: 13.26254926 | AK53: N/A | AL53: 1.5649 | AM53: 15.0849 | AN53: 0.358 | AO53: 0.6361 | AP53: 1.607 | AQ53: 20.3413 | AR53: 0.3796 | AS53: 0.6681 | AT53: 3.0785 | AU53: 0.8357 | AV53: 0.1944 | AW53: 0.8567 | AX53: 2194.450861 | AY53: 3655.6637 | AZ53: 905.5507236 | BA53: 1229.1601 | BB53: N/A | BC53: N/A | BD53: 0.1465 | BE53: 0.6698 | BF53: 0.0461 | BG53: 0.0754 | BH53: 0.1516 | BI53: 0.6597 | BJ53: 0.0481 | BK53: 0.0784 | BL53: 0.2882 | BM53: 0.0371 | BN53: 0.025 | BO53: 0.1015 | BP53: 205.4110339 | BQ53: 162.3274 | BR53: 122.5102503 | BS53: 145.6275 | BT53: N/A | BU53: N/A | BV53: 0.9649 | BW53: 1.2301 | BX53: 1.6527 | BY53: 1368.8576 | BZ53: 38.2194 | CA53: 14.7201 | CC53: N/A | CD53: 44286391.39 | CE53: 1375873.041 | CF53: 149699641.3 | CG53: 17869935 | CH53: 150511 | CI53: 4379283.551 | CJ53: 0 | CK53: 193615.985 | CL53: 0 | CM53: 1387796.742 | CN53: 1756881.51 | CO53: 216376519 | CP53: 4723410.536 | CQ53: 4572899.536 | CR53: 202885867.6 | CS53: 18214061.98 | CT53: 20.03003415 | CU53: 0.6222856079 | CV53: 67.7067793 | CW53: 8.082288871 | CX53: 0.06807374399 | CY53: 1.980680663 | CZ53: 0 | DA53: 0.08756944672 | DB53: 0 | DC53: 0.6276785092 | DD53: 0.7946097104 | DE53: 97.86367615 | DF53: 2.136323854 | DG53: 2.06825011 | DH53: 91.76206794 | DI53: 8.237932062 | DK53: 7817.409862 | DL53: 8519.217186 | DM53: 9399.719146 | DN53: 10683.21803 | DO53: 22520.31204 | DP53: 7391.632304 | DR53: 1240.632301 | DT53: 1.989476086
A54: 48 | B54: 12 | C54: GA | D54: 13 | E54: 48472.3 | F54: 788221699.5 | G54: 405866328.7 | H54: 122014744.3 | I54: 58696076.05 | J54: 38558.18502 | K54: 16537.19597 | L54: 115772.3509 | M54: 65893467.83 | N54: 2403508.225 | O54: 1804357.651 | P54: 66198380.1 | Q54: N/A | R54: 0.6320250107 | S54: 0.5634855711 | T54: 1.897678048 | U54: 1080.09025 | V54: 19.69850644 | W54: 14.78802961 | X54: 1085.088208 | Y54: N/A | Z54: 0.09783588817 | AA54: 0.08149084956 | AB54: 0.2937558074 | AC54: 167.1952647 | AD54: N/A | AE54: 0.8897377387 | AF54: 0.7932508513 | AG54: 2.671469873 | AH54: 1520.504791 | AI54: 27.73071362 | AJ54: 20.81795467 | AK54: N/A | AL54: 1.6189 | AM54: 3.9903 | AN54: 0.1064 | AO54: 0.8803 | AP54: 1.3063 | AQ54: 3.9169 | AR54: 0.1229 | AS54: 0.7392 | AT54: 4.9562 | AU54: 29.4244 | AV54: 0.0262 | AW54: 2.65 | AX54: 2298.1341 | AY54: 1114.7581 | AZ54: 884.0527 | BA54: 1587.0607 | BB54: N/A | BC54: N/A | BD54: 0.1462 | BE54: 0.7038 | BF54: 0.0143 | BG54: 0.0954 | BH54: 0.1195 | BI54: 0.6979 | BJ54: 0.0158 | BK54: 0.0789 | BL54: 0.4475 | BM54: 5.1897 | BN54: 0.0035 | BO54: 0.2873 | BP54: 207.4835 | BQ54: 196.6147 | BR54: 119.103 | BS54: 172.043 | BT54: N/A | BU54: N/A | BV54: 1.1301 | BW54: 1.2097 | BX54: 3.3859 | BY54: 1697.54 | BZ54: 27.2349 | CA54: 24.4361 | CC54: N/A | CD54: 40715049.07 | CE54: 380431.971 | CF54: 42278366.13 | CG54: 33941634 | CH54: 1398416 | CI54: 3247636.589 | CJ54: 0 | CK54: 1547 | CL54: 0 | CM54: 51663.49 | CN54: 0 | CO54: 117367144.7 | CP54: 4647599.589 | CQ54: 3249183.589 | CR54: 86673147.25 | CS54: 35341597 | CT54: 33.36895825 | CU54: 0.311791803 | CV54: 34.65021083 | CW54: 27.81764959 | CX54: 1.146104111 | CY54: 2.661675529 | CZ54: 0 | DA54: 0.001267879558 | DB54: 0 | DC54: 0.04234200573 | DD54: 0 | DE54: 96.19095248 | DF54: 3.809047519 | DG54: 2.662943408 | DH54: 71.03497842 | DI54: 28.96502158 | DK54: 6460.052876 | DL54: 9094.185736 | DM54: 9866.951867 | DN54: 11076.22582 | DO54: 5669.759687 | DP54: 7422.589691 | DR54: 1564.590997 | DT54: 44.0862055
A55: 49 | B55: 13 | C55: HI | D55: 15 | E55: 3081.6 | F55: 91564337.92 | G55: 38027952.14 | H55: 10469268.7 | I55: 4408851.52 | J55: 15333.41525 | K55: 6256.604843 | L55: 25283.44451 | M55: 7699913.549 | N55: 880985.6605 | O55: 199607.3377 | P55: 7740103.035 | Q55: N/A | R55: 2.929223749 | S55: 2.838201657 | T55: 4.830030682 | U55: 1470.955378 | V55: 84.14968475 | W55: 19.0660249 | X55: 1478.632989 | Y55: N/A | Z55: 0.3349211189 | AA55: 0.3290529461 | AB55: 0.5522552795 | AC55: 168.185862 | AD55: N/A | AE55: 3.157996943 | AF55: 3.059866 | AG55: 5.207257429 | AH55: 1585.837405 | AI55: 90.72179867 | AJ55: 20.55508678 | AK55: N/A | AL55: 0.9758 | AM55: 3.6081 | AN55: N/A | AO55: 3.1582 | AP55: 0.9499 | AQ55: 3.5397 | AR55: N/A | AS55: 3.0832 | AT55: 10.5067 | AU55: 4.445 | AV55: N/A | AW55: 5.3254 | AX55: 2046.3703 | AY55: 1515.2048 | AZ55: N/A | BA55: 1599.4947 | BB55: N/A | BC55: N/A | BD55: 0.098 | BE55: 0.3929 | BF55: N/A | BG55: 0.3397 | BH55: 0.0973 | BI55: 0.3884 | BJ55: N/A | BK55: 0.3347 | BL55: 1.0551 | BM55: 0.484 | BN55: N/A | BO55: 0.5727 | BP55: 205.5078 | BQ55: 164.978 | BR55: N/A | BS55: 172.0179 | BT55: N/A | BU55: N/A | BV55: 2.5679 | BW55: 2.5622 | BX55: 3.9984 | BY55: 1385.5681 | BZ55: 113.0098 | CA55: 18.8912 | CC55: N/A | CD55: 1537340.319 | CE55: 7529796.663 | CF55: 0 | CG55: 0 | CH55: 114581 | CI55: 286075.3082 | CJ55: 378234 | CK55: 4608 | CL55: 260997 | CM55: 357636.4078 | CN55: 0 | CO55: 9424773.39 | CP55: 1044495.308 | CQ55: 929914.3082 | CR55: 9710848.698 | CS55: 758420 | CT55: 14.68431429 | CU55: 71.9228523 | CV55: 0 | CW55: 0 | CX55: 1.094450848 | CY55: 2.732524272 | CZ55: 3.612802488 | DA55: 0.04401453562 | DB55: 2.492982151 | DC55: 3.416059116 | DD55: 0 | DE55: 90.02322571 | DF55: 9.976774294 | DG55: 8.882323447 | DH55: 92.75574998 | DI55: 7.244250022 | DK55: 8746.010878 | DL55: 9429.076775 | DM55: 8054.790228 | DN55: 9957.628372 | DO55: 9184.283965 | DP55: - | DR55: 1621.969986 | DT55: 36.13258096
A56: 50 | B56: 14 | C56: IA | D56: 19 | E56: 18509.8 | F56: 390008957 | G56: 177441191.3 | H56: 56602145.65 | I56: 24327275.94 | J56: 36946.08235 | K56: 16579.86599 | L56: 96060.26095 | M56: 39703157.88 | N56: 914611.3312 | O56: 1301654.2 | P56: 39914140.76 | Q56: N/A | R56: 1.305465788 | S56: 1.363068025 | T56: 3.394226839 | U56: 1402.885259 | V56: 16.15859824 | W56: 22.99655224 | X56: 1410.340202 | Y56: N/A | Z56: 0.1894627376 | AA56: 0.186877307 | AB56: 0.4926054093 | AC56: 203.6012618 | AD56: N/A | AE56: 1.968896907 | AF56: 2.05577231 | AG56: 5.119155771 | AH56: 2115.82446 | AI56: 24.37031624 | AJ56: 34.68328392 | AK56: N/A | AL56: 2.009 | AM56: 15.1017 | AN56: 0.9368 | AO56: 1.9745 | AP56: 2.0014 | AQ56: 14.5065 | AR56: 0.9115 | AS56: 1.9318 | AT56: 5.3792 | AU56: 1.1924 | AV56: 0.0925 | AW56: 5.1337 | AX56: 2168.368241 | AY56: 2659.1085 | AZ56: 1135.3811 | BA56: 2133.4064 | BB56: N/A | BC56: N/A | BD56: 0.1927 | BE56: 0.9234 | BF56: 0.098 | BG56: 0.19 | BH56: 0.193 | BI56: 0.9011 | BJ56: 0.0961 | BK56: 0.1874 | BL56: 0.5159 | BM56: 0.0729 | BN56: 0.0097 | BO56: 0.4939 | BP56: 207.9498641 | BQ56: 162.5985 | BR56: 118.7665 | BS56: 205.2476 | BT56: N/A | BU56: N/A | BV56: 2.1997 | BW56: 2.2107 | BX56: 6.1135 | BY56: 2004.2219 | BZ56: 23.9068 | CA56: 31.6164 | CC56: N/A | CD56: 35331351.47 | CE56: 106557.059 | CF56: 1940885.614 | CG56: 4346995 | CH56: 766191 | CI56: 138152.0537 | CJ56: 13959232 | CK56: 0 | CL56: 0 | CM56: 12781.4533 | CN56: 0 | CO56: 41738570.6 | CP56: 14863575.05 | CQ56: 14097384.05 | CR56: 37529727.65 | CS56: 19072418 | CT56: 62.42051616 | CU56: 0.1882562185 | CV56: 3.428996537 | CW56: 7.679912042 | CX56: 1.353643031 | CY56: 0.2440756479 | CZ56: 24.66201915 | DA56: 0 | DB56: 0 | DC56: 0.02258121694 | DD56: 0 | DE56: 73.74026217 | DF56: 26.25973783 | DG56: 24.9060948 | DH56: 66.30442578 | DI56: 33.69557422 | DK56: 6890.356408 | DL56: 10392.00073 | DM56: 9764.898104 | DN56: 10427.3607 | DO56: 16353.83168 | DP56: =1000*AZ56/BR56 -> 9559.775694 | DR56: 2132.933208 | DT56: 17.10874779
A57: 51 | B57: 15 | C57: ID | D57: 16 | E57: 5388.7 | F57: 18695338.47 | G57: 8572418.415 | H57: 15499089.32 | I57: 7419313.731 | J57: 649.8748932 | K57: 229.1615348 | L57: 776.6322294 | M57: 885058.936 | N57: 143366.6614 | O57: 26625.33211 | P57: 890691.2124 | Q57: N/A | R57: 0.08385975201 | S57: 0.06177432121 | T57: 0.1002164984 | U57: 114.2078632 | V57: 9.250005498 | W57: 1.717864293 | X57: 114.9346512 | Y57: N/A | Z57: 0.06952266675 | AA57: 0.05346485057 | AB57: 0.08308298141 | AC57: 94.68231209 | AD57: N/A | AE57: 0.5011664015 | AF57: 0.3691784619 | AG57: 0.5989183207 | AH57: 682.5341411 | AI57: 55.28029666 | AJ57: 10.26637744 | AK57: N/A | AL57: 6.0596 | AM57: 32.3356 | AN57: 0.284 | AO57: 0.4075 | AP57: 6.0598 | AQ57: 33.2707 | AR57: 0.2383 | AS57: 0.287 | AT57: 4.6053 | AU57: 2.2412 | AV57: 0.1307 | AW57: 0.2262 | AX57: 1138.5076 | AY57: 2162.4898 | AZ57: 892.8296 | BA57: 898.0837 | BB57: N/A | BC57: N/A | BD57: 1.0945 | BE57: 2.438 | BF57: 0.0383 | BG57: 0.0552 | BH57: 1.0945 | BI57: 2.438 | BJ57: 0.0306 | BK57: 0.037 | BL57: 0.8318 | BM57: 0.169 | BN57: 0.0176 | BO57: 0.0306 | BP57: 205.6451 | BQ57: 163.0449 | BR57: 120.3069 | BS57: 121.6733 | BT57: N/A | BU57: N/A | BV57: 0.393 | BW57: 0.3499 | BX57: 0.5441 | BY57: 750.3689 | BZ57: 45.6687 | CA57: 8.7844 | CC57: N/A | CD57: 76737.151 | CE57: 19 | CF57: 1898167.285 | CG57: 0 | CH57: 10940404.73 | CI57: 549267.16 | CJ57: 1890559.02 | CK57: 0 | CL57: 74676 | CM57: 0 | CN57: 69258.97 | CO57: 2044182.406 | CP57: 13454906.91 | CQ57: 2514502.18 | CR57: 2593449.566 | CS57: 12905639.75 | CT57: 0.495107483 | CU57: 0.0001225878477 | CV57: 12.2469601 | CW57: 0 | CX57: 70.5874036 | CY57: 3.543867312 | CZ57: 12.19787164 | DA57: 0 | DB57: 0.4818089533 | DC57: 0 | DD57: 0.4468583191 | DE57: 13.18904849 | DF57: 86.81095151 | DG57: 16.2235479 | DH57: 16.73291581 | DI57: 83.26708419 | DK57: 1206.221739 | DL57: 7208.67632 | DM57: 6167.079384 | DN57: 5536.273901 | DO57: 13263.15512 | DP57: 7421.266777 | DR57: 877.1034365 | DT57: 194.5692954
A58: 52 | B58: 16 | C58: IL | D58: 17 | E58: 59211.6 | F58: 989140070.9 | G58: 451375789.8 | H58: 197522001 | I58: 84866181 | J58: 58676.98706 | K58: 23716.72426 | L58: 167044.4655 | M58: 98493065.98 | N58: 2284822.961 | O58: 3096563.128 | P58: 98997023.91 | Q58: N/A | R58: 0.5941311527 | S58: 0.5589205025 | T58: 1.691401106 | U58: 997.2870415 | V58: 11.56743527 | W58: 15.67705427 | X58: 1002.389844 | Y58: N/A | Z58: 0.1186424224 | AA58: 0.1050863817 | AB58: 0.3377569474 | AC58: 199.1488746 | AD58: N/A | AE58: 1.257875529 | AF58: 1.183328663 | AG58: 3.58098048 | AH58: 2111.424319 | AI58: 24.49020505 | AJ58: 33.19095932 | AK58: N/A | AL58: 1.2915 | AM58: 26.4013 | AN58: 0.4551 | AO58: 1.2661 | AP58: 1.1699 | AQ58: 29.4193 | AR58: 0.4722 | AS58: 1.1313 | AT58: 4.1209 | AU58: 2.7331 | AV58: 0.0227 | AW58: 3.6047 | AX58: 2283.6972 | AY58: 2179.7861 | AZ58: 1028.4466 | BA58: 2125.4343 | BB58: N/A | BC58: N/A | BD58: 0.1189 | BE58: 1.9566 | BF58: 0.0526 | BG58: 0.1196 | BH58: 0.1064 | BI58: 1.8054 | BJ58: 0.0519 | BK58: 0.1059 | BL58: 0.3793 | BM58: 0.2026 | BN58: 0.0026 | BO58: 0.3405 | BP58: 210.18 | BQ58: 161.544 | BR58: 118.9221 | BS58: 200.7436 | BT58: N/A | BU58: N/A | BV58: 1.1435 | BW58: 1.0297 | BX58: 3.4932 | BY58: 2017.7816 | BZ58: 24.286 | CA58: 30.3387 | CC58: N/A | CD58: 80826777.63 | CE58: 200451.714 | CF58: 11188974.94 | CG58: 96401309 | CH58: 111208 | CI58: 615193.212 | CJ58: 7683448 | CK58: 30657 | CL58: 0 | CM58: 204498.459 | CN58: 259483 | CO58: 189081494.7 | CP58: 8440506.212 | CQ58: 8329298.212 | CR58: 93295378.96 | CS58: 104226622 | CT58: 40.92039228 | CU58: 0.1014832338 | CV58: 5.664672738 | CW58: 48.80535258 | CX58: 0.05630157626 | CY58: 0.3114555386 | CZ58: 3.889920091 | DA58: 0.01552080267 | DB58: 0 | DC58: 0.1035319904 | DD58: 0.1313691633 | DE58: 95.72680199 | DF58: 4.273198009 | DG58: 4.216896433 | DH58: 47.23290495 | DI58: 52.76709505 | DK58: 5007.746307 | DL58: 10602.24078 | DM58: 10051.53639 | DN58: 10865.43534 | DO58: 13493.45132 | DP58: 8648.069619 | DR58: 2128.331981 | DT58: 16.90766252
A59: 53 | B59: 17 | C59: IN | D59: 18 | E59: 37915.2 | F59: 1114010385 | G59: 497073588.2 | H59: 114878967.3 | I59: 50031384.45 | J59: 106788.3017 | K59: 45383.55213 | L59: 280009.3303 | M59: 109335741.6 | N59: 2645075.245 | O59: 3476021.935 | P59: 109902298.3 | Q59: N/A | R59: 1.859144527 | S59: 1.81420333 | T59: 4.874858066 | U59: 1903.494505 | V59: 23.02488703 | W59: 30.2581231 | X59: 1913.358046 | Y59: N/A | Z59: 0.1917186827 | AA59: 0.1826029514 | AB59: 0.5027050631 | AC59: 196.2921407 | AD59: N/A | AE59: 1.934500375 | AF59: 1.887737597 | AG59: 5.072448441 | AH59: 1980.64797 | AI59: 23.95814416 | AJ59: 31.48456165 | AK59: N/A | AL59: 2.2385 | AM59: 0.3899 | AN59: 0.1553 | AO59: 1.9231 | AP59: 2.159 | AQ59: 0.4113 | AR59: 0.1885 | AS59: 1.8528 | AT59: 5.9718 | AU59: 0.508 | AV59: 0.0228 | AW59: 5.041 | AX59: 2170.6078 | AY59: 1471.9674 | AZ59: 915.9845 | BA59: 1975.3444 | BB59: N/A | BC59: N/A | BD59: 0.2128 | BE59: 0.0583 | BF59: 0.0202 | BG59: 0.1918 | BH59: 0.2028 | BI59: 0.0612 | BJ59: 0.0238 | BK59: 0.1826 | BL59: 0.5677 | BM59: 0.076 | BN59: 0.003 | BO59: 0.5027 | BP59: 206.3626 | BQ59: 220.1331 | BR59: 118.8625 | BS59: 196.966 | BT59: N/A | BU59: N/A | BV59: 1.9316 | BW59: 1.9734 | BX59: 6.1896 | BY59: 1988.8668 | BZ59: 23.9964 | CA59: 31.1314 | CC59: N/A | CD59: 92644360.39 | CE59: 1279938.446 | CF59: 14470905.1 | CG59: 0 | CH59: 433505 | CI59: 336797.7372 | CJ59: 3210104 | CK59: 2 | CL59: 0 | CM59: 2177124.88 | CN59: 326229.8 | CO59: 110898558.6 | CP59: 3980408.737 | CQ59: 3546903.737 | CR59: 110404012.4 | CS59: 3643611 | CT59: 80.64518904 | CU59: 1.114162562 | CV59: 12.59665318 | CW59: 0 | CX59: 0.377358023 | CY59: 0.2931761531 | CZ59: 2.794335703 | DA59: 1.740962725e-06 | DB59: 0 | DC59: 1.895146631 | DD59: 0.2839769607 | DE59: 96.53512838 | DF59: 3.46487162 | DG59: 3.087513597 | DH59: 96.10463514 | DI59: 3.171695467 | DK59: 9697.252772 | DL59: 10090.30705 | DM59: 10097.51328 | DN59: 10518.41661 | DO59: 6686.715446 | DP59: 7706.253023 | DR59: 1987.447418 | DT59: 6.799447487
A60: 54 | B60: 18 | C60: KS | D60: 20 | E60: 15927.4 | F60: 352888848.6 | G60: 173624869.5 | H60: 44286624.61 | I60: 21341707.31 | J60: 34307.95591 | K60: 16700.91117 | L60: 32927.80643 | M60: 35312851.85 | N60: 820114.1627 | O60: 1113954.102 | P60: 35494125.93 | Q60: N/A | R60: 1.549359709 | S60: 1.565096074 | T60: 1.487031659 | U60: 1594.741173 | V60: 18.51832624 | W60: 25.15328526 | X60: 1602.927577 | Y60: N/A | Z60: 0.1944405784 | AA60: 0.1923792509 | AB60: 0.1866185716 | AC60: 200.1358331 | AD60: N/A | AE60: 2.218134582 | AF60: 2.240663486 | AG60: 2.12890288 | AH60: 2283.104772 | AI60: 26.51168712 | AJ60: 36.01059945 | AK60: N/A | AL60: 2.1833 | AM60: 36.8189 | AN60: 2.5394 | AO60: 2.2223 | AP60: 2.1618 | AQ60: 32.5766 | AR60: 2.4585 | AS60: 2.2066 | AT60: 2.2808 | AU60: 1.8545 | AV60: 0.6824 | AW60: 2.1329 | AX60: 2363.0826 | AY60: 2635.7317 | AZ60: 1544.0041 | BA60: 2287.3452 | BB60: N/A | BC60: N/A | BD60: 0.1936 | BE60: 2.0421 | BF60: 0.2006 | BG60: 0.1948 | BH60: 0.1915 | BI60: 1.863 | BJ60: 0.1969 | BK60: 0.1927 | BL60: 0.2022 | BM60: 0.1029 | BN60: 0.0539 | BO60: 0.187 | BP60: 209.5062 | BQ60: 146.1887 | BR60: 121.9518 | BS60: 200.4985 | BT60: N/A | BU60: N/A | BV60: 2.1075 | BW60: 2.5185 | BX60: 1.6309 | BY60: 2216.0448 | BZ60: 27.2824 | CA60: 32.3697 | CC60: N/A | CD60: 27982531.29 | CE60: 34371.413 | CF60: 2859811.908 | CG60: 8284924 | CH60: 10399 | CI60: 57347 | CJ60: 5057240 | CK60: 0 | CL60: 0 | CM60: 0 | CN60: 0 | CO60: 39161638.61 | CP60: 5124986 | CQ60: 5114587 | CR60: 30934061.61 | CS60: 13352563 | CT60: 63.18506216 | CU60: 0.07761127271 | CV60: 6.457507053 | CW60: 18.70750836 | CX60: 0.02348113023 | CY60: 0.129490564 | CZ60: 11.41933946 | DA60: 0 | DB60: 0 | DC60: 0 | DD60: 0 | DE60: 88.42768885 | DF60: 11.57231115 | DG60: 11.54883002 | DH60: 69.84967105 | DI60: 30.15032895 | DK60: 7968.294076 | DL60: 11407.77609 | DM60: 11052.67521 | DN60: 11279.29675 | DO60: 18029.65414 | DP60: 12660.77335 | DR60: 2287.241995 | DT60: 4.137222798
A61: 55 | B61: 19 | C61: KY | D61: 21 | E61: 28259.8 | F61: 923144671.8 | G61: 415170545.6 | H61: 89957452.21 | I61: 39692080.1 | J61: 80461.03376 | K61: 36021.18809 | L61: 186531.7162 | M61: 93278019.36 | N61: 2171107.371 | O61: 3115383.148 | P61: 93783700.38 | Q61: N/A | R61: 1.788868666 | S61: 1.815031512 | T61: 4.147109809 | U61: 2073.825282 | V61: 24.13482505 | W61: 34.63174058 | X61: 2085.067953 | Y61: N/A | Z61: 0.1743194457 | AA61: 0.1735247766 | AB61: 0.4041223915 | AC61: 202.0875432 | AD61: N/A | AE61: 1.837100705 | AF61: 1.863968963 | AG61: 4.258925488 | AH61: 2129.740412 | AI61: 24.7855558 | AJ61: 35.56549246 | AK61: N/A | AL61: 1.867 | AM61: 31.5674 | AN61: 0.5003 | AO61: 1.8421 | AP61: 1.8812 | AQ61: 31.5723 | AR61: 0.5329 | AS61: 1.8492 | AT61: 4.3496 | AU61: 2.3965 | AV61: 0.0098 | AW61: 4.2687 | AX61: 2154.1659 | AY61: 2111.1186 | AZ61: 1285.5081 | BA61: 2137.9761 | BB61: N/A | BC61: N/A | BD61: 0.1771 | BE61: 2.438 | BF61: 0.0462 | BG61: 0.1746 | BH61: 0.177 | BI61: 2.438 | BJ61: 0.0486 | BK61: 0.1738 | BL61: 0.4125 | BM61: 0.1851 | BN61: 0.0009 | BO61: 0.4046 | BP61: 204.2859 | BQ61: 163.0449 | BR61: 118.6913 | BS61: 202.6474 | BT61: N/A | BU61: N/A | BV61: 1.8276 | BW61: 1.9763 | BX61: 4.3556 | BY61: 1962.2656 | BZ61: 23.66 | CA61: 31.9162 | CC61: N/A | CD61: 82760807.67 | CE61: 1536523.631 | CF61: 2957384.187 | CG61: 0 | CH61: 2361782 | CI61: 332879.453 | CJ61: 0 | CK61: 0 | CL61: 0 | CM61: 8075.27 | CN61: 0 | CO61: 87262790.76 | CP61: 2694661.453 | CQ61: 332879.453 | CR61: 87595670.21 | CS61: 2361782 | CT61: 91.99994624 | CU61: 1.708055968 | CV61: 3.287536624 | CW61: 0 | CX61: 2.625443409 | CY61: 0.370040997 | CZ61: 0 | DA61: 0 | DB61: 0 | DC61: 0.008976766017 | DD61: 0 | DE61: 97.00451559 | DF61: 2.995484406 | DG61: 0.370040997 | DH61: 97.37455659 | DI61: 2.625443409 | DK61: 10262.01442 | DL61: 10538.70208 | DM61: 9683.152115 | DN61: 10544.85846 | DO61: 12948.08117 | DP61: 10830.68515 | DR61: 2135.640576 | DT61: 5.900164204
A62: 56 | B62: 20 | C62: LA | D62: 22 | E62: 30604.9 | F62: 816050783.8 | G62: 390180135.1 | H62: 103347602.4 | I62: 49384922.23 | J62: 57596.35363 | K62: 27903.33959 | L62: 94601.57771 | M62: 59664031.27 | N62: 2404235.292 | O62: 1163119.58 | P62: 59869559.28 | Q62: N/A | R62: 1.11461422 | S62: 1.130034769 | T62: 1.830745475 | U62: 1154.628262 | V62: 23.26358074 | W62: 11.25444184 | X62: 1158.605674 | Y62: N/A | Z62: 0.1411587484 | AA62: 0.1430279867 | AB62: 0.2318521827 | AC62: 146.2262704 | AD62: N/A | AE62: 1.425258012 | AF62: 1.444976278 | AG62: 2.340975566 | AH62: 1476.423996 | AI62: 29.74715756 | AJ62: 14.39106294 | AK62: N/A | AL62: 1.8487 | AM62: 1.614 | AN62: 1.1065 | AO62: 1.3348 | AP62: 1.8911 | AQ62: 0.765 | AR62: 1.1328 | AS62: 1.3301 | AT62: 6.4124 | AU62: 8.1298 | AV62: 0.0326 | AW62: 2.0754 | AX62: 2239.2809 | AY62: 2274.2375 | AZ62: 1030.7587 | BA62: 1411.4995 | BB62: N/A | BC62: N/A | BD62: 0.1677 | BE62: 0.1598 | BF62: 0.1258 | BG62: 0.1409 | BH62: 0.171 | BI62: 0.1581 | BJ62: 0.1282 | BK62: 0.1429 | BL62: 0.5817 | BM62: 0.8048 | BN62: 0.0037 | BO62: 0.219 | BP62: 203.1358 | BQ62: 225.1251 | BR62: 117.2051 | BS62: 148.9614 | BT62: N/A | BU62: N/A | BV62: 1.4355 | BW62: 1.7101 | BX62: 1.3298 | BY62: 1398.6978 | BZ62: 29.3594 | CA62: 10.3798 | CC62: N/A | CD62: 21421868.86 | CE62: 3029847.584 | CF62: 58518650.15 | CG62: 15659132 | CH62: 679944 | CI62: 2430042.226 | CJ62: 0 | CK62: 0 | CL62: 0 | CM62: 1329792.027 | CN62: 278325.55 | CO62: 100237616.2 | CP62: 3109986.226 | CQ62: 2430042.226 | CR62: 80822353.79 | CS62: 16339076 | CT62: 20.72797856 | CU62: 2.931705733 | CV62: 56.6231328 | CW62: 15.15190642 | CX62: 0.657919472 | CY62: 2.351329077 | CZ62: 0 | DA62: 0 | DB62: 0 | DC62: 1.28671783 | DD62: 0.269310118 | DE62: 96.99075145 | DF62: 3.009248549 | DG62: 2.351329077 | DH62: 78.20438202 | DI62: 15.80982589 | DK62: 7896.175285 | DL62: 10096.84506 | DM62: 9389.666048 | DN62: 11023.56601 | DO62: 10102.10545 | DP62: 8794.486759 | DR62: 1504.040176 | DT62: 27.61618024
A63: 57 | B63: 21 | C63: MA | D63: 25 | E63: 16284.9 | F63: 248702937.9 | G63: 124835355 | H63: 36198121.51 | I63: 17652965.94 | J63: 11083.44518 | K63: 3206.107101 | L63: 27474.68232 | M63: 16287831.55 | N63: 2872403.588 | O63: 450408.2632 | P63: 16387805.07 | Q63: N/A | R63: 0.6123768149 | S63: 0.3632372159 | T63: 1.518017023 | U63: 899.9268951 | V63: 79.35228316 | W63: 12.4428629 | X63: 905.4505805 | Y63: N/A | Z63: 0.08912998995 | AA63: 0.05136537004 | AB63: 0.2209437697 | AC63: 130.9822207 | AD63: N/A | AE63: 0.748518378 | AF63: 0.4439908976 | AG63: 1.855497484 | AH63: 1099.995629 | AI63: 96.99361706 | AJ63: 15.20911852 | AK63: N/A | AL63: 1.3682 | AM63: 4.9739 | AN63: 0.133 | AO63: 0.2515 | AP63: 1.2102 | AQ63: 4.5337 | AR63: 0.1424 | AS63: 0.2302 | AT63: 9.2153 | AU63: 4.4827 | AV63: 0.0119 | AW63: 0.8337 | AX63: 2079.1412 | AY63: 2311.0915 | AZ63: 899.045 | BA63: 1006.0386 | BB63: N/A | BC63: N/A | BD63: 0.1301 | BE63: 0.3488 | BF63: 0.0176 | BG63: 0.0321 | BH63: 0.1149 | BI63: 0.3333 | BJ63: 0.0189 | BK63: 0.0296 | BL63: 0.8763 | BM63: 0.3144 | BN63: 0.0016 | BO63: 0.1064 | BP63: 197.7003 | BQ63: 162.0664 | BR63: 118.9259 | BS63: 128.4212 | BT63: N/A | BU63: N/A | BV63: 0.6819 | BW63: 0.6584 | BX63: 2.4938 | BY63: 1189.9841 | BZ63: 55.4622 | CA63: 13.283 | CC63: N/A | CD63: 2136922.109 | CE63: 174493.647 | CF63: 24672380.73 | CG63: 5859540 | CH63: 604937.05 | CI63: 1754561.51 | CJ63: 89673.4 | CK63: 29614.21 | CL63: 0 | CM63: 875998.8552 | CN63: 0 | CO63: 33719335.34 | CP63: 2478786.17 | CQ63: 1873849.12 | CR63: 29614356.85 | CS63: 6583764.66 | CT63: 5.903406088 | CU63: 0.4820516638 | CV63: 68.15928479 | CW63: 16.18741458 | CX63: 1.671183544 | CY63: 4.847106525 | CZ63: 0.2477294298 | DA63: 0.0818114553 | DB63: 0 | DC63: 2.42001192 | DD63: 0 | DE63: 93.15216905 | DF63: 6.847830954 | DG63: 5.17664741 | DH63: 81.81186099 | DI63: 18.18813901 | DK63: 6870.603433 | DL63: 8398.052984 | DM63: 9266.258998 | DN63: 10516.63149 | DO63: 14260.15201 | DP63: 7559.707347 | DR63: 1078.488042 | DT63: -21.50758743
A64: 58 | B64: 22 | C64: MD | D64: 24 | E64: 14595.8 | F64: 242687988.8 | G64: 128344753.1 | H64: 37808347.21 | I64: 18175573.04 | J64: 17762.96607 | K64: 8431.787007 | L64: 33960.21472 | M64: 22269423.22 | N64: 1276615.875 | O64: 719514.8737 | P64: 22394352.49 | Q64: N/A | R64: 0.9396319798 | S64: 0.9278152596 | T64: 1.796440057 | U64: 1178.016224 | V64: 33.76545047 | W64: 19.03058258 | X64: 1184.624779 | Y64: N/A | Z64: 0.1463852097 | AA64: 0.1313927809 | AB64: 0.2798672887 | AC64: 183.5230769 | AD64: N/A | AE64: 1.598123553 | AF64: 1.578025707 | AG64: 3.055380436 | AH64: 2003.566838 | AI64: 57.42818768 | AJ64: 32.36716385 | AK64: N/A | AL64: 1.4644 | AM64: 17.8254 | AN64: 1.6301 | AO64: 1.5395 | AP64: 1.3902 | AQ64: 13.8151 | AR64: 1.4134 | AS64: 1.4187 | AT64: 2.7252 | AU64: 77.1465 | AV64: 1.4946 | AW64: 2.4689 | AX64: 2105.0715 | AY64: 7764.2564 | AZ64: 1623.9284 | BA64: 1978.1153 | BB64: N/A | BC64: N/A | BD64: 0.1414 | BE64: 0.4099 | BF64: 0.142 | BG64: 0.1436 | BH64: 0.1289 | BI64: 0.4008 | BJ64: 0.1229 | BK64: 0.1285 | BL64: 0.2632 | BM64: 1.7738 | BN64: 0.1302 | BO64: 0.2303 | BP64: 203.3178 | BQ64: 178.5253 | BR64: 141.4277 | BS64: 184.5201 | BT64: N/A | BU64: N/A | BV64: 1.7825 | BW64: 2.0012 | BX64: 3.0578 | BY64: 1990.4897 | BZ64: 47.4823 | CA64: 29.739 | CC64: N/A | CD64: 16184772.97 | CE64: 137304.928 | CF64: 4944894.665 | CG64: 13579266 | CH64: 1656539 | CI64: 564278.141 | CJ64: 321687 | CK64: 21077 | CL64: 0 | CM64: 398527.509 | CN64: 0 | CO64: 35244766.07 | CP64: 2563581.141 | CQ64: 907042.141 | CR64: 22229778.21 | CS64: 15578569 | CT64: 42.80740673 | CU64: 0.3631603551 | CV64: 13.07884377 | CW64: 35.91605294 | CX64: 4.381410779 | CY64: 1.492469739 | CZ64: 0.8508359231 | DA64: 0.0557469489 | DB64: 0 | DC64: 1.054072813 | DD64: 0 | DE64: 93.21953661 | DF64: 6.78046339 | DG64: 2.399052611 | DH64: 58.79595341 | DI64: 41.20404659 | DK64: 6418.899707 | DL64: 10917.24742 | DM64: 10787.38685 | DN64: 10353.6016 | DO64: 43491.07045 | DP64: 11482.39277 | DR64: 2014.451586 | DT64: 10.88474818
A65: 59 | B65: 23 | C65: ME | D65: 23 | E65: 5527.8 | F65: 90118939.88 | G65: 38873121.09 | H65: 14420135.4 | I65: 6029171.253 | J65: 4536.442631 | K65: 1581.936679 | L65: 9937.791609 | M65: 4056809.287 | N65: 1951507.874 | O65: 277885.6978 | P65: 4120372.403 | Q65: N/A | R65: 0.6291816969 | S65: 0.5247609042 | T65: 1.378321539 | U65: 562.6589729 | V65: 135.3321463 | W65: 19.27067188 | X65: 571.4748563 | Y65: N/A | Z65: 0.1006767864 | AA65: 0.0813897436 | AB65: 0.2205483469 | AC65: 90.03233488 | AD65: N/A | AE65: 0.9249481843 | AF65: 0.77144114 | AG65: 2.026244582 | AH65: 827.1543784 | AI65: 198.9492441 | AJ65: 28.32945245 | AK65: N/A | AL65: N/A | AM65: 2.8428 | AN65: 0.3913 | AO65: 0.4135 | AP65: N/A | AQ65: 2.8467 | AR65: 0.3493 | AS65: 0.3711 | AT65: N/A | AU65: 11.0528 | AV65: 0.0259 | AW65: 0.1256 | AX65: N/A | AY65: 2642.5594 | AZ65: 1037.9424 | BA65: 1052.4485 | BB65: N/A | BC65: N/A | BD65: N/A | BE65: 0.1889 | BF65: 0.0429 | BG65: 0.045 | BH65: N/A | BI65: 0.1821 | BJ65: 0.0392 | BK65: 0.0414 | BL65: N/A | BM65: 0.7343 | BN65: 0.0028 | BO65: 0.0137 | BP65: N/A | BQ65: 175.5619 | BR65: 113.6993 | BS65: 114.6161 | BT65: N/A | BU65: N/A | BV65: 0.5631 | BW65: 0.4106 | BX65: 1.1113 | BY65: 771.6233 | BZ65: 105.8023 | CA65: 15.0206 | CC65: N/A | CD65: 45257.738 | CE65: 83765.322 | CF65: 6043695.333 | CG65: 0 | CH65: 3732604.32 | CI65: 3218272.332 | CJ65: 878457 | CK65: 0 | CL65: 0 | CM65: 328033.4073 | CN65: 90049.95 | CO65: 6590801.75 | CP65: 7829333.652 | CQ65: 4096729.332 | CR65: 9809074.082 | CS65: 4611061.32 | CT65: 0.313850992 | CU65: 0.5808913694 | CV65: 41.91150197 | CW65: 0 | CX65: 25.88466901 | CY65: 22.31790647 | CZ65: 6.091877611 | DA65: 0 | DB65: 0 | DC65: 2.274828898 | DD65: 0.6244736786 | DE65: 45.70554691 | DF65: 54.29445309 | DG65: 28.40978408 | DH65: 68.02345338 | DI65: 31.97654662 | DK65: 6249.52106 | DL65: 9187.303422 | DM65: 6732.241805 | DN65: - | DO65: 15052.00958 | DP65: 9128.837205 | DR65: 1053.012888 | DT65: 225.8585094
A66: 60 | B66: 24 | C66: MI | D66: 26 | E66: 34036.7 | F66: 783043434.4 | G66: 370652086.4 | H66: 108166077.4 | I66: 48953481.99 | J66: 71122.96247 | K66: 31489.24188 | L66: 204752.4812 | M66: 71154710.42 | N66: 3027319.256 | O66: 2247953.644 | P66: 71534912.4 | Q66: N/A | R66: 1.315069644 | S66: 1.286496511 | T66: 3.785890846 | U66: 1315.656666 | V66: 27.98769566 | W66: 20.78242733 | X66: 1322.686633 | Y66: N/A | Z66: 0.1816577711 | AA66: 0.1699126649 | AB66: 0.5229658336 | AC66: 181.7388597 | AD66: N/A | AE66: 1.810364136 | AF66: 1.771029508 | AG66: 5.211770375 | AH66: 1811.172249 | AI66: 38.52869748 | AJ66: 28.60970997 | AK66: N/A | AL66: 2.3235 | AM66: 7.0883 | AN66: 0.4855 | AO66: 1.809 | AP66: 2.2496 | AQ66: 6.4352 | AR66: 0.481 | AS66: 1.7088 | AT66: 7.3186 | AU66: 30.3167 | AV66: 0.131 | AW66: 5.3184 | AX66: 2258.036332 | AY66: 1537.3142 | AZ66: 931.8996 | BA66: 1875.6358 | BB66: N/A | BC66: N/A | BD66: 0.2146 | BE66: 0.9766 | BF66: 0.0621 | BG66: 0.1817 | BH66: 0.2055 | BI66: 0.9712 | BJ66: 0.0605 | BK66: 0.1709 | BL66: 0.6758 | BM66: 4.177 | BN66: 0.0167 | BO66: 0.5342 | BP66: 208.5207862 | BQ66: 211.6425228 | BR66: 119.1244 | BS66: 188.3923 | BT66: N/A | BU66: N/A | BV66: 1.9277 | BW66: 1.9823 | BX66: 5.6659 | BY66: 1870.3105 | BZ66: 34.9813 | CA66: 29.2616 | CC66: N/A | CD66: 53136431.64 | CE66: 325142.769 | CF66: 21748357.9 | CG66: 28019714 | CH66: 441574 | CI66: 2660164.568 | CJ66: 1131688 | CK66: 0 | CL66: 0 | CM66: 703004.562 | CN66: 0 | CO66: 103932650.9 | CP66: 4233426.568 | CQ66: 3791852.568 | CR66: 78573101.44 | CS66: 29592976 | CT66: 49.12485772 | CU66: 0.3005958769 | CV66: 20.10644965 | CW66: 25.90434512 | CX66: 0.4082370466 | CY66: 2.459333491 | CZ66: 1.046250383 | DA66: 0 | DB66: 0 | DC66: 0.6499307164 | DD66: 0 | DE66: 96.08617908 | DF66: 3.913820921 | DG66: 3.505583874 | DH66: 72.64116745 | DI66: 27.35883255 | DK66: 7239.269953 | DL66: 9965.795164 | DM66: 9927.743862 | DN66: =1000*AX66/BP66 -> 10828.8309 | DO66: 7263.730274 | DP66: 7822.911175 | DR66: 1877.479072 | DT66: 66.30682346
A67: 61 | B67: 25 | C67: MN | D67: 27 | E67: 18009.4 | F67: 334432924 | G67: 147669235.5 | H67: 52193624.22 | I67: 22379983.31 | J67: 30490.58359 | K67: 12141.84055 | L67: 29425.86155 | M67: 30282137.12 | N67: 2382107.512 | O67: 1112529.747 | P67: 30479565.64 | Q67: N/A | R67: 1.168364299 | S67: 1.085062521 | T67: 1.127565368 | U67: 1160.376869 | V67: 45.63981803 | W67: 21.31543391 | X67: 1167.942104 | Y67: N/A | Z67: 0.1823419969 | AA67: 0.164446447 | AB67: 0.175974669 | AC67: 181.0954302 | AD67: N/A | AE67: 1.901300089 | AF67: 1.765741618 | AG67: 1.83490726 | AH67: 1888.302001 | AI67: 74.27049093 | AJ67: 34.68698626 | AK67: N/A | AL67: 2.1982 | AM67: 17.8106 | AN67: 0.2502 | AO67: 1.7672 | AP67: 2.2846 | AQ67: 20.4988 | AR67: 0.2776 | AS67: 1.7143 | AT67: 2.3669 | AU67: 1.7659 | AV67: 0.0089 | AW67: 1.8385 | AX67: 2274.99292 | AY67: 1638.5602 | AZ67: 951.2911 | BA67: 1984.1572 | BB67: N/A | BC67: N/A | BD67: 0.2009 | BE67: 1.7357 | BF67: 0.0313 | BG67: 0.1719 | BH67: 0.2074 | BI67: 1.7434 | BJ67: 0.0335 | BK67: 0.1676 | BL67: 0.2163 | BM67: 0.1721 | BN67: 0.0011 | BO67: 0.1788 | BP67: 208.03368 | BQ67: 159.6829 | BR67: 118.8295 | BS67: 192.9589 | BT67: N/A | BU67: N/A | BV67: 1.9248 | BW67: 1.591 | BX67: 1.7537 | BY67: 1622.3373 | BZ67: 75.9705 | CA67: 26.5588 | CC67: N/A | CD67: 22722774.44 | CE67: 29593.481 | CF67: 7088204.785 | CG67: 11943790 | CH67: 561021.54 | CI67: 1847874.57 | CJ67: 7615408 | CK67: 0 | CL67: 0 | CM67: 261876.7953 | CN67: 123080.613 | CO67: 42169320.11 | CP67: 10024304.11 | CQ67: 9463282.57 | CR67: 32073404.68 | CS67: 20120219.54 | CT67: 43.53553672 | CU67: 0.05669941768 | CV67: 13.58059512 | CW67: 22.88361879 | CX67: 1.074885196 | CY67: 3.540422029 | CZ67: 14.59068634 | DA67: 0 | DB67: 0 | DC67: 0.5017409678 | DD67: 0.2358154178 | DE67: 80.79400643 | DF67: 19.20599357 | DG67: 18.13110837 | DH67: 61.45080967 | DI67: 38.54919033 | DK67: 6407.543622 | DL67: 10427.11016 | DM67: 8407.683191 | DN67: 10935.69522 | DO67: 10261.33794 | DP67: 8005.512941 | DR67: 2012.003708 | DT67: 123.7017064
A68: 62 | B68: 26 | C68: MO | D68: 29 | E68: 24141.3 | F68: 781693746.5 | G68: 369083252.4 | H68: 91804321.41 | I68: 42103670.93 | J68: 72777.43542 | K68: 35742.01362 | L68: 148577.6343 | M68: 79170368.74 | N68: 1817465.007 | O68: 2562970.034 | P68: 79586487.82 | Q68: N/A | R68: 1.585490406 | S68: 1.69780985 | T68: 3.236833126 | U68: 1724.763443 | V68: 19.79716182 | W68: 27.91774935 | X68: 1733.828791 | Y68: N/A | Z68: 0.1862044714 | AA68: 0.1936799537 | AB68: 0.3801428244 | AC68: 202.5610902 | AD68: N/A | AE68: 1.840288624 | AF68: 1.970658504 | AG68: 3.757012439 | AH68: 2001.943708 | AI68: 22.97868945 | AJ68: 32.40430615 | AK68: N/A | AL68: 1.9509 | AM68: 62.3145 | AN68: 0.3456 | AO68: 1.8414 | AP68: 2.0951 | AQ68: 40.113 | AR68: 0.373 | AS68: 1.9283 | AT68: 4.0418 | AU68: 15.1169 | AV68: 0.0087 | AW68: 3.7593 | AX68: 2081.686286 | AY68: 7176.3559 | AZ68: 959.1051 | BA68: 2013.1523 | BB68: N/A | BC68: N/A | BD68: 0.1948 | BE68: 1.415 | BF68: 0.0428 | BG68: 0.1863 | BH68: 0.207 | BI68: 1.3843 | BJ68: 0.0446 | BK68: 0.1938 | BL68: 0.4035 | BM68: 0.3433 | BN68: 0.0011 | BO68: 0.3804 | BP68: 207.8133286 | BQ68: 162.9584 | BR68: 118.782 | BS68: 203.707 | BT68: N/A | BU68: N/A | BV68: 2.1376 | BW68: 2.4708 | BX68: 4.4586 | BY68: 1963.4497 | BZ68: 23.4149 | CA68: 30.0926 | CC68: N/A | CD68: 72775009.31 | CE68: 67182.751 | CF68: 6177744.496 | CG68: 10718329 | CH68: 747713 | CI68: 53800.897 | CJ68: 1244778 | CK68: 0 | CL68: 0 | CM68: 19763.957 | CN68: 0 | CO68: 89758029.51 | CP68: 2046291.897 | CQ68: 1298578.897 | CR68: 79093501.41 | CS68: 12710820 | CT68: 79.27187761 | CU68: 0.07318037971 | CV68: 6.729252394 | CW68: 11.67519005 | CX68: 0.8144638384 | CY68: 0.05860388288 | CZ68: 1.355903492 | DA68: 0 | DB68: 0 | DC68: 0.02152835149 | DD68: 0 | DE68: 97.77102879 | DF68: 2.228971214 | DG68: 1.414507375 | DH68: 86.15444262 | DI68: 13.84555738 | DK68: 8514.781597 | DL68: 9883.160216 | DM68: 9638.597103 | DN68: 10017.09708 | DO68: 44037.96245 | DP68: 8074.498661 | DR68: 2013.268918 | DT68: 11.32521023
A69: 63 | B69: 27 | C69: MS | D69: 28 | E69: 19469.2 | F69: 392585300 | G69: 196808898.7 | H69: 54584295.18 | I69: 26312178.82 | J69: 20935.07673 | K69: 11216.49734 | L69: 39046.52728 | M69: 26741086.99 | N69: 1190006.061 | O69: 445222.3816 | P69: 26822591.52 | Q69: N/A | R69: 0.7670732637 | S69: 0.8525707747 | T69: 1.430687239 | U69: 979.8088224 | V69: 21.80125359 | W69: 8.15660219 | X69: 982.7951954 | Y69: N/A | Z69: 0.106652372 | AA69: 0.1139836401 | AB69: 0.1989199661 | AC69: 136.2307096 | AD69: N/A | AE69: 0.885425705 | AF69: 0.9841147058 | AG69: 1.651429293 | AH69: 1130.984429 | AI69: 25.16498911 | AJ69: 9.415091865 | AK69: N/A | AL69: 2.8653 | AM69: 3.8922 | AN69: 0.5883 | AO69: 0.8775 | AP69: 3.0186 | AQ69: 3.9515 | AR69: 0.6408 | AS69: 0.9633 | AT69: 10.39 | AU69: 2.1253 | AV69: 0.3572 | AW69: 1.6314 | AX69: 2491.7825 | AY69: 2047.1189 | AZ69: 977.3705 | BA69: 1169.7098 | BB69: N/A | BC69: N/A | BD69: 0.2385 | BE69: 0.31 | BF69: 0.0751 | BG69: 0.1049 | BH69: 0.2486 | BI69: 0.31 | BJ69: 0.0802 | BK69: 0.1126 | BL69: 0.8648 | BM69: 0.1693 | BN69: 0.0456 | BO69: 0.1949 | BP69: 207.4029 | BQ69: 163.0449 | BR69: 124.6815 | BS69: 139.7633 | BT69: N/A | BU69: N/A | BV69: 1.4354 | BW69: 1.777 | BX69: 2.7879 | BY69: 1284.9826 | BZ69: 24.881 | CA69: 11.5493 | CC69: N/A | CD69: 7211973.01 | CE69: 17082.406 | CF69: 38549893.03 | CG69: 7296134 | CH69: 0 | CI69: 1509189.929 | CJ69: 0 | CK69: 0 | CL69: 0 | CM69: 22.808 | CN69: 0 | CO69: 53075105.25 | CP69: 1509189.929 | CQ69: 1509189.929 | CR69: 47288161.18 | CS69: 7296134 | CT69: 13.21254215 | CU69: 0.03129545952 | CV69: 70.6245137 | CW69: 13.36672751 | CX69: 0 | CY69: 2.764879393 | CZ69: 0 | DA69: 0 | DB69: 0 | DC69: 4.178491254e-05 | DD69: 0 | DE69: 97.23512061 | DF69: 2.764879393 | DG69: 2.764879393 | DH69: 86.63327249 | DI69: 13.36672751 | DK69: 7192.275703 | DL69: 8301.978554 | DM69: 9193.991556 | DN69: 12014.21243 | DO69: 12555.5531 | DP69: 7838.937613 | DR69: 1160.311919 | DT69: 29.32749006
A70: 64 | B70: 28 | C70: MT | D70: 30 | E70: 6693.6 | F70: 172291037.3 | G70: 58219694.96 | H70: 27795017.08 | I70: 11079987.31 | J70: 18086.67479 | K70: 6045.489761 | L70: 25992.62626 | M70: 17863470.43 | N70: 400813.392 | O70: 583315.907 | P70: 17958092.93 | Q70: N/A | R70: 1.301432896 | S70: 1.091244889 | T70: 1.870308349 | U70: 1285.37215 | V70: 14.42033264 | W70: 20.98634821 | X70: 1292.180744 | Y70: N/A | Z70: 0.2099549121 | AA70: 0.2076785103 | AB70: 0.3017292909 | AC70: 207.3638967 | AD70: N/A | AE70: 2.370535904 | AF70: 1.987682343 | AG70: 3.406732 | AH70: 2341.281551 | AI70: 26.26636868 | AJ70: 38.22624437 | AK70: N/A | AL70: 2.5182 | AM70: 1.01 | AN70: 0.9877 | AO70: 2.4248 | AP70: 2.5489 | AQ70: 1.5456 | AR70: 0.9833 | AS70: 2.4386 | AT70: 2.0935 | AU70: 49.8467 | AV70: 0.0089 | AW70: 3.4846 | AX70: 2445.274 | AY70: 1850.2998 | AZ70: 1402.7314 | BA70: 2394.8277 | BB70: N/A | BC70: N/A | BD70: 0.2162 | BE70: 0.1228 | BF70: 0.0836 | BG70: 0.21 | BH70: 0.215 | BI70: 0.1818 | BJ70: 0.0834 | BK70: 0.2077 | BL70: 0.1797 | BM70: 6.0621 | BN70: 0.0008 | BO70: 0.3017 | BP70: 209.9257 | BQ70: 225.0221 | BR70: 118.759 | BS70: 207.3639 | BT70: N/A | BU70: N/A | BV70: 2.8644 | BW70: 2.2281 | BX70: 2.9652 | BY70: 2401.4203 | BZ70: 27.715 | CA70: 37.9589 | CC70: N/A | CD70: 13987391.56 | CE70: 466986.306 | CF70: 463998.347 | CG70: 0 | CH70: 11283465 | CI70: 0 | CJ70: 1251985.87 | CK70: 0 | CL70: 0 | CM70: 0 | CN70: 341190 | CO70: 15259566.21 | CP70: 12535450.87 | CQ70: 1251985.87 | CR70: 15259566.21 | CS70: 12535450.87 | CT70: 50.32337817 | CU70: 1.680108001 | CV70: 1.669358021 | CW70: 0 | CX70: 40.59527996 | CY70: 0 | CZ70: 4.504353663 | DA70: 0 | DB70: 0 | DC70: 0 | DD70: 1.227522181 | DE70: 54.90036638 | DF70: 45.09963362 | DG70: 4.504353663 | DH70: 54.90036638 | DI70: 45.09963362 | DK70: 6198.63038 | DL70: 11290.69037 | DM70: 11580.70571 | DN70: 11648.28318 | DO70: 8222.74701 | DP70: 11811.57975 | DR70: 2341.281589 | DT70: 3.770150943e-05
A71: 65 | B71: 29 | C71: NC | D71: 37 | E71: 39312 | F71: 693049929.3 | G71: 338520955 | H71: 116971226.6 | I71: 53386069.39 | J71: 48807.76464 | K71: 23611.01355 | L71: 60973.28507 | M71: 61760659.6 | N71: 2669867.887 | O71: 1970797.955 | P71: 62094166.9 | Q71: N/A | R71: 0.834525995 | S71: 0.8845383758 | T71: 1.042534764 | U71: 1055.997469 | V71: 22.82499692 | W71: 16.84857048 | X71: 1061.69985 | Y71: N/A | Z71: 0.1408492017 | AA71: 0.1394951373 | AB71: 0.1759563994 | AC71: 178.2286008 | AD71: N/A | AE71: 1.329391268 | AF71: 1.409060473 | AG71: 1.660747084 | AH71: 1682.193032 | AI71: 36.35998373 | AJ71: 26.8395983 | AK71: N/A | AL71: 1.696 | AM71: -299.1036 | AN71: 0.3939 | AO71: 1.3256 | AP71: 1.692 | AQ71: -234.0642 | AR71: 0.5336 | AS71: 1.3486 | AT71: 1.9739 | AU71: -68.8153 | AV71: 0.7374 | AW71: 1.6211 | AX71: 2020.0652 | AY71: -29548.5286 | AZ71: 1057.5748 | BA71: 1745.3365 | BB71: N/A | BC71: N/A | BD71: 0.1713 | BE71: 1.643 | BF71: 0.0463 | BG71: 0.1395 | BH71: 0.1703 | BI71: 1.6097 | BJ71: 0.0574 | BK71: 0.1384 | BL71: 0.1994 | BM71: 0.378 | BN71: 0.0866 | BO71: 0.1706 | BP71: 204.0432 | BQ71: 162.3102 | BR71: 124.2352 | BS71: 183.6261 | BT71: N/A | BU71: N/A | BV71: 1.8482 | BW71: 2.0953 | BX71: 2.954 | BY71: 1876.7714 | BZ71: 45.9545 | CA71: 31.2649 | CC71: N/A | CD71: 50932179.93 | CE71: 178260.768 | CF71: 19302008.05 | CG71: 39385592 | CH71: 4045467 | CI71: 2564428.592 | CJ71: 0 | CK71: 111425 | CL71: 0 | CM71: 140831.265 | CN71: 311034 | CO71: 110249906 | CP71: 6721320.592 | CQ71: 2675853.592 | CR71: 73428742.61 | CS71: 43542484 | CT71: 43.54248597 | CU71: 0.1523971092 | CV71: 16.50150093 | CW71: 33.67117978 | CX71: 3.458514643 | CY71: 2.192358468 | CZ71: 0 | DA71: 0.09525846931 | DB71: 0 | DC71: 0.1203982117 | DD71: 0.265906419 | DE71: 94.25386842 | DF71: 5.74613158 | DG71: 2.287616938 | DH71: 62.77504711 | DI71: 37.22495289 | DK71: =F71*1000000/(H71*1000) -> 5924.960774 | DL71: =(F71*((CT71+CU71+CV71+DC71)/DH71)*1000000/((CD71+CE71+CF71+CM71)*1000)) -> 9438.401158 | DM71: =1000*BY71/BS71 -> 10220.61352 | DN71: 9900.183883 | DO71: -182049.7332 | DP71: 8512.682396 | DR71: =DL71*BS71/1000 -> 1733.136795 | DT71: =DR71-AH71 -> 50.94376253
A72: 66 | B72: 30 | C72: ND | D72: 38 | E72: 7390.6 | F72: 308021928.9 | G72: 128793698.1 | H72: 36125158.89 | I72: 14866769.33 | J72: 48794.92763 | K72: 20763.76684 | L72: 86794.79684 | M72: 33454500.19 | N72: 719669.8101 | O72: 1074306.026 | P72: 33628574.16 | Q72: N/A | R72: 2.701437399 | S72: 2.793312572 | T72: 4.805227133 | U72: 1852.144114 | V72: 19.92156802 | W72: 29.73844432 | X72: 1861.781384 | Y72: N/A | Z72: 0.3168276221 | AA72: 0.3224345157 | AB72: 0.5635624526 | AC72: 217.2215486 | AD72: N/A | AE72: 3.439481587 | AF72: 3.556457448 | AG72: 6.118035625 | AH72: 2358.157764 | AI72: 25.36422515 | AJ72: 37.8631138 | AK72: N/A | AL72: 3.4516 | AM72: 1.539 | AN72: N/A | AO72: 3.4477 | AP72: 3.5088 | AQ72: 1.5099 | AR72: N/A | AS72: 3.5037 | AT72: 6.1451 | AU72: 0.2038 | AV72: N/A | AW72: 6.1328 | AX72: 2366.3836 | AY72: 1146.3097 | AZ72: N/A | BA72: 2363.8455 | BB72: N/A | BC72: N/A | BD72: 0.3171 | BE72: 0.1849 | BF72: N/A | BG72: 0.3169 | BH72: 0.3227 | BI72: 0.1828 | BJ72: N/A | BK72: 0.3225 | BL72: 0.5645 | BM72: 0.0245 | BN72: N/A | BO72: 0.5636 | BP72: 217.3781 | BQ72: 137.7461 | BR72: N/A | BS72: 217.2514 | BT72: N/A | BU72: N/A | BV72: 5.2494 | BW72: 5.7169 | BX72: 15.0314 | BY72: 2467.3081 | BZ72: 27.7397 | CA72: 39.7742 | CC72: N/A | CD72: 28214364.16 | CE72: 68044.896 | CF72: 21696.668 | CG72: 0 | CH72: 2477230 | CI72: 5543 | CJ72: 5274509 | CK72: 0 | CL72: 0 | CM72: 1044.16 | CN72: 62727 | CO72: 28367876.89 | CP72: 7757282 | CQ72: 5280052 | CR72: 28373419.89 | CS72: 7751739 | CT72: 78.10170261 | CU72: 0.1883587453 | CV72: 0.06005971647 | CW72: 0 | CX72: 6.857353923 | CY72: 0.01534387715 | CZ72: 14.60065274 | DA72: 0 | DB72: 0 | DC72: 0.002890395592 | DD72: 0.1736379906 | DE72: 78.52664946 | DF72: 21.47335054 | DG72: 14.61599662 | DH72: 78.54199334 | DI72: 21.45800666 | DK72: 8526.521083 | DL72: 10856.00291 | DM72: 11356.92612 | DN72: 10886.02578 | DO72: 8321.903125 | DP72: - | DR72: 2358.481831 | DT72: 0.3240672746
A73: 67 | B73: 31 | C73: NE | D73: 31 | E73: 9084.1 | F73: 270920986.9 | G73: 116765526.6 | H73: 34200814.92 | I73: 15059970.39 | J73: 28440.44503 | K73: 11834.00364 | L73: 63840.55922 | M73: 28008190.74 | N73: 628879.99 | O73: 918519.8383 | P73: 28157164.56 | Q73: N/A | R73: 1.663144291 | S73: 1.571583918 | T73: 3.73327708 | U73: 1637.866864 | V73: 18.38786565 | W73: 26.85666528 | X73: 1646.578576 | Y73: N/A | Z73: 0.2099537976 | AA73: 0.2026968743 | AB73: 0.4712854471 | AC73: 206.7627987 | AD73: N/A | AE73: 2.198292641 | AF73: 2.077270975 | AG73: 4.934530083 | AH73: 2164.881722 | AI73: 24.30451164 | AJ73: 35.49830883 | AK73: N/A | AL73: 2.2413 | AM73: 25.5769 | AN73: 0.7003 | AO73: 2.2035 | AP73: 2.1989 | AQ73: 19.9809 | AR73: 0.6635 | AS73: 2.1111 | AT73: 5.0847 | AU73: 2.076 | AV73: 0.0214 | AW73: 4.9467 | AX73: 2196.3983 | AY73: 2096.3017 | AZ73: 1232.5847 | BA73: 2170.2174 | BB73: N/A | BC73: N/A | BD73: 0.214 | BE73: 1.9726 | BF73: 0.0676 | BG73: 0.2105 | BH73: 0.2114 | BI73: 1.5917 | BJ73: 0.0647 | BK73: 0.2032 | BL73: 0.4855 | BM73: 0.1601 | BN73: 0.0021 | BO73: 0.4725 | BP73: 209.7251 | BQ73: 161.6758 | BR73: 119.0595 | BS73: 207.2811 | BT73: N/A | BU73: N/A | BV73: 3.2078 | BW73: 3.0938 | BX73: 5.2767 | BY73: 2315.6138 | BZ73: 26.8899 | CA73: 36.4241 | CC73: N/A | CD73: 25019215.58 | CE73: 22582.715 | CF73: 770100.415 | CG73: 5801578 | CH73: 1257054 | CI73: 63132.206 | CJ73: 1267152 | CK73: 0 | CL73: 0 | CM73: 0 | CN73: 0 | CO73: 31613476.71 | CP73: 2587338.206 | CQ73: 1330284.206 | CR73: 25875030.92 | CS73: 8325784 | CT73: 73.153858 | CU73: 0.06602975706 | CV73: 2.251701946 | CW73: 16.96327416 | CX73: 3.675508911 | CY73: 0.1845926951 | CZ73: 3.705034524 | DA73: 0 | DB73: 0 | DC73: 0 | DD73: 0 | DE73: 92.43486387 | DF73: 7.56513613 | DG73: 3.889627219 | DH73: 75.6561824 | DI73: 24.3438176 | DK73: 7921.477532 | DL73: 10470.3638 | DM73: 11171.3697 | DN73: 10472.74885 | DO73: 12966.08212 | DP73: =1000*AZ73/BR73 -> 10352.67828 | DR73: 2170.308525 | DT73: 5.426803166
A74: 68 | B74: 32 | C74: NH | D74: 33 | E74: 4720.9 | F74: 86908731.23 | G74: 37243002.79 | H74: 19264434.94 | I74: 8221085.251 | J74: 3598.879844 | K74: 1248.755683 | L74: 3324.052678 | M74: 4920946.292 | N74: 1441319.163 | O74: 235472.1085 | P74: 4972578.32 | Q74: N/A | R74: 0.3736294218 | S74: 0.303793391 | T74: 0.3450973453 | U74: 510.884052 | V74: 74.8176195 | W74: 12.22315159 | X74: 516.244399 | Y74: N/A | Z74: 0.0828197534 | AA74: 0.06705988183 | AB74: 0.07649525269 | AC74: 113.2440026 | AD74: N/A | AE74: 0.7515540064 | AF74: 0.611079125 | AG74: 0.6941618548 | AH74: 1027.641116 | AI74: 150.4953261 | AJ74: 24.58681787 | AK74: N/A | AL74: 3.0919 | AM74: 12.0481 | AN74: 0.0877 | AO74: 0.522 | AP74: 3.2372 | AQ74: 12.0488 | AR74: 0.0933 | AS74: 0.3588 | AT74: 1.6931 | AU74: 31.2078 | AV74: 0.0323 | AW74: 0.2756 | AX74: 2353.3002 | AY74: 6118.0293 | AZ74: 886.9322 | BA74: 1098.8306 | BB74: N/A | BC74: N/A | BD74: 0.2696 | BE74: 0.3254 | BF74: 0.0118 | BG74: 0.065 | BH74: 0.2703 | BI74: 0.3255 | BJ74: 0.0125 | BK74: 0.0457 | BL74: 0.1476 | BM74: 0.843 | BN74: 0.0043 | BO74: 0.0343 | BP74: 205.1916 | BQ74: 165.2607 | BR74: 119.0244 | BS74: 136.7696 | BT74: N/A | BU74: N/A | BV74: 0.9225 | BW74: 0.731 | BX74: 0.827 | BY74: 1271.9695 | BZ74: 36.3814 | CA74: 14.0417 | CC74: N/A | CD74: 1267717.157 | CE74: 21649.863 | CF74: 7049703.711 | CG74: 8189181 | CH74: 1289386 | CI74: 1174859.53 | CJ74: 208699 | CK74: 0 | CL74: 0 | CM74: 63238.681 | CN74: 0 | CO74: 16591490.41 | CP74: 2672944.53 | CQ74: 1383558.53 | CR74: 9577168.942 | CS74: 9687266 | CT74: 6.58060909 | CU74: 0.1123825488 | CV74: 36.59439653 | CW74: 42.50932366 | CX74: 6.693090163 | CY74: 6.098593255 | CZ74: 1.08333829 | DA74: 0 | DB74: 0 | DC74: 0.3282664723 | DD74: 0 | DE74: 86.12497829 | DF74: 13.87502171 | DG74: 7.181931545 | DH74: 49.71424789 | DI74: 50.28575211 | DK74: 4511.356367 | DL74: 9074.574309 | DM74: 9300.089347 | DN74: 11468.79404 | DO74: 37020.47311 | DP74: 7451.683856 | DR74: 1241.125898 | DT74: 213.484782
A75: 69 | B75: 33 | C75: NJ | D75: 34 | E75: 23680.2 | F75: 259579009 | G75: 140242511.9 | H75: 65232564.12 | I75: 31693909.22 | J75: 6494.481698 | K75: 3744.450054 | L75: 12195.68034 | M75: 16860463.94 | N75: 1436774.721 | O75: 287520.7935 | P75: 16920115.8 | Q75: N/A | R75: 0.1991177807 | S75: 0.2362883056 | T75: 0.3739138727 | U75: 516.9339631 | V75: 22.02542152 | W75: 4.407626733 | X75: 518.7628612 | Y75: N/A | Z75: 0.05003857379 | AA75: 0.05339964326 | AB75: 0.09396507355 | AC75: 129.9062202 | AD75: N/A | AE75: 0.4059975863 | AF75: 0.4817876204 | AG75: 0.7624036852 | AH75: 1054.019086 | AI75: 44.90943974 | AJ75: 8.987071917 | AK75: N/A | AL75: 1.3453 | AM75: 1.0469 | AN75: 0.2398 | AO75: 0.3487 | AP75: 1.3381 | AQ75: 1.1223 | AR75: 0.262 | AS75: 0.3906 | AT75: 1.7404 | AU75: 0.1067 | AV75: 0.0064 | AW75: 0.1563 | AX75: 1891.1404 | AY75: 2013.0431 | AZ75: 898.9931 | BA75: 1003.6994 | BB75: N/A | BC75: N/A | BD75: 0.1252 | BE75: 0.0775 | BF75: 0.0316 | BG75: 0.0438 | BH75: 0.125 | BI75: 0.0847 | BJ75: 0.0344 | BK75: 0.0486 | BL75: 0.162 | BM75: 0.0079 | BN75: 0.0008 | BO75: 0.0197 | BP75: 176.0184 | BQ75: 148.9657 | BR75: 118.6403 | BS75: 126.1839 | BT75: N/A | BU75: N/A | BV75: 0.4678 | BW75: 0.6954 | BX75: 0.4306 | BY75: 1061.9217 | BZ75: 25.7934 | CA75: 7.6652 | CC75: N/A | CD75: 1897474.893 | CE75: 320377.172 | CF75: 28284904.46 | CG75: 33110224 | CH75: -155421 | CI75: 983045.926 | CJ75: 11568 | CK75: 273482.24 | CL75: 0 | CM75: 506908.424 | CN75: 0 | CO75: 64119888.95 | CP75: 1112675.166 | CQ75: 1268096.166 | CR75: 31992710.88 | CS75: 33239853.24 | CT75: 2.908784774 | CU75: 0.4911307356 | CV75: 43.36009912 | CW75: 50.75720148 | CX75: -0.2382567696 | CY75: 1.506986486 | CZ75: 0.01773347431 | DA75: 0.4192418981 | DB75: 0 | DC75: 0.7770787962 | DD75: 0 | DE75: 98.29429491 | DF75: 1.705705089 | DG75: 1.943961859 | DH75: 49.04407992 | DI75: 50.95592008 | DK75: 3979.285691 | DL75: 8113.692209 | DM75: 8415.667133 | DN75: 10743.99267 | DO75: 13513.46719 | DP75: 7577.468196 | DR75: 1023.817326 | DT75: -30.20176005
A76: 70 | B76: 34 | C76: NM | D76: 35 | E76: 9965.1 | F76: 344387639.5 | G76: 161225768.7 | H76: 36635909.33 | I76: 16583901.39 | J76: 60305.34403 | K76: 27327.21547 | L76: 16564.05659 | M76: 32310828.17 | N76: 800732.5642 | O76: 952779.5804 | P76: 32466916.7 | Q76: N/A | R76: 3.292143972 | S76: 3.295631688 | T76: 0.9042525156 | U76: 1763.888423 | V76: 21.85649487 | W76: 26.00671303 | X76: 1772.409491 | Y76: N/A | Z76: 0.3502178192 | AA76: 0.3389931485 | AB76: 0.09619425721 | AC76: 187.6422059 | AD76: N/A | AE76: 3.562723768 | AF76: 3.566498138 | AG76: 0.9785726131 | AH76: 1908.8616 | AI76: 23.65287011 | AJ76: 28.14419278 | AK76: N/A | AL76: 4.5768 | AM76: 42.7588 | AN76: 0.657 | AO76: 3.5627 | AP76: 4.5832 | AQ76: 45.0656 | AR76: 0.7056 | AS76: 3.5104 | AT76: 1.318 | AU76: 3.5784 | AV76: 0.0061 | AW76: 0.9786 | AX76: 2214.0172 | AY76: 2859.5561 | AZ76: 1034.4724 | BA76: 1908.8616 | BB76: N/A | BC76: N/A | BD76: 0.4286 | BE76: 2.438 | BF76: 0.0753 | BG76: 0.3502 | BH76: 0.4209 | BI76: 2.438 | BJ76: 0.0787 | BK76: 0.339 | BL76: 0.1234 | BM76: 0.204 | BN76: 0.0007 | BO76: 0.0962 | BP76: 207.3287 | BQ76: 163.0449 | BR76: 118.5875 | BS76: 187.6422 | BT76: N/A | BU76: N/A | BV76: 2.649 | BW76: 3.002 | BX76: 0.6448 | BY76: 1682.104 | BZ76: 23.1552 | CA76: 20.5755 | CC76: N/A | CD76: 24994048.8 | CE76: 46148.93 | CF76: 8799041.292 | CG76: 0 | CH76: 222819 | CI76: 14266.308 | CJ76: 2225788 | CK76: 333797 | CL76: 0 | CM76: 0 | CN76: 0 | CO76: 33839239.02 | CP76: 2796670.308 | CQ76: 2573851.308 | CR76: 33853505.33 | CS76: 2782404 | CT76: 68.22281542 | CU76: 0.1259663834 | CV76: 24.01753212 | CW76: 0 | CX76: 0.6081983608 | CY76: 0.03894077767 | CZ76: 6.075427199 | DA76: 0.911119735 | DB76: 0 | DC76: 0 | DD76: 0 | DE76: 92.36631393 | DF76: 7.633686072 | DG76: 7.025487712 | DH76: 92.40525471 | DI76: 7.594745295 | DK76: 9400.275461 | DL76: 10172.87977 | DM76: 8964.422715 | DN76: 10678.77819 | DO76: 17538.45781 | DP76: 8723.283651 | DR76: 1908.86154 | DT76: -5.975308e-05
A77: 71 | B77: 35 | C77: NV | D77: 32 | E77: 17929 | F77: 237416383.8 | G77: 117896225 | H77: 35142773.98 | I77: 17191094.31 | J77: 9756.65053 | K77: 5038.842634 | L77: 4876.180802 | M77: 16119342.44 | N77: 551201.6856 | O77: 201328.526 | P77: 16156335.98 | Q77: N/A | R77: 0.5552578483 | S77: 0.5862154606 | T77: 0.2775068812 | U77: 917.3631228 | V77: 15.68463793 | W77: 5.728874053 | X77: 919.4684512 | Y77: N/A | Z77: 0.08219020417 | AA77: 0.08547928714 | AB77: 0.04107703709 | AC77: 135.7896383 | AD77: N/A | AE77: 0.6551785851 | AF77: 0.6917071361 | AG77: 0.3274452876 | AH77: 1082.446065 | AI77: 18.50714747 | AJ77: 6.759806471 | AK77: N/A | AL77: 2.0916 | AM77: -1.4678 | AN77: 0.4241 | AO77: 0.6559 | AP77: 2.2026 | AQ77: -1.4413 | AR77: 0.465 | AS77: 0.6841 | AT77: 2.2452 | AU77: -0.1471 | AV77: 0.0072 | AW77: 0.3181 | AX77: 2274.5965 | AY77: -98.1621 | AZ77: 889.439 | BA77: 1081.9098 | BB77: N/A | BC77: N/A | BD77: 0.1927 | BE77: 2.438 | BF77: 0.0565 | BG77: 0.0823 | BH77: 0.2071 | BI77: 2.438 | BJ77: 0.0611 | BK77: 0.0856 | BL77: 0.2069 | BM77: 0.2444 | BN77: 0.001 | BO77: 0.0399 | BP77: 209.6024 | BQ77: 163.0449 | BR77: 118.4664 | BS77: 135.7012 | BT77: N/A | BU77: N/A | BV77: 0.9623 | BW77: 1.1531 | BX77: 0.5261 | BY77: 1205.5531 | BZ77: 19.5981 | CA77: 9.3329 | CC77: N/A | CD77: 4079431.742 | CE77: 18874.694 | CF77: 25646658.3 | CG77: 0 | CH77: 2440415 | CI77: 18961 | CJ77: 128788 | CK77: 451295 | CL77: 2339097 | CM77: 7324.244 | CN77: 11929 | CO77: 29764217.98 | CP77: 5378556 | CQ77: 2938141 | CR77: 29783178.98 | CS77: 5359595 | CT77: 11.60816657 | CU77: 0.05370860597 | CV77: 72.97846867 | CW77: 0 | CX77: 6.944286759 | CY77: 0.05395419273 | CZ77: 0.366470786 | DA77: 1.284175803 | DB77: 6.655982825 | DC77: 0.02084139404 | DD77: 0.03394438927 | DE77: 84.69512963 | DF77: 15.30487037 | DG77: 8.360583607 | DH77: 84.74908383 | DI77: 15.25091617 | DK77: 6755.766748 | DL77: 7971.492366 | DM77: 8883.879435 | DN77: 10851.95828 | DO77: -602.0556301 | DP77: 7507.943181 | DR77: 1081.74108 | DT77: -0.7049849051
A78: 72 | B78: 36 | C78: NY | D78: 36 | E78: 48055.8 | F78: 626602859.3 | G78: 312775128.3 | H78: 135662526.5 | I78: 61229371.95 | J78: 23118.18335 | K78: 11030.94358 | L78: 34220.29829 | M78: 38169117.1 | N78: 3324160.715 | O78: 561770.0198 | P78: 38289788.02 | Q78: N/A | R78: 0.3408190007 | S78: 0.3603154247 | T78: 0.5044915377 | U78: 562.7068594 | V78: 24.50316091 | W78: 4.140937328 | X78: 564.4858461 | Y78: N/A | Z78: 0.07378894944 | AA78: 0.07053593831 | AB78: 0.1092248393 | AC78: 121.8287358 | AD78: N/A | AE78: 0.6828606694 | AF78: 0.7219234596 | AG78: 1.010792909 | AH78: 1127.432396 | AI78: 49.09422545 | AJ78: 8.296730023 | AK78: N/A | AL78: 2.8713 | AM78: 4.3828 | AN78: 0.3905 | AO78: 0.5815 | AP78: 2.566 | AQ78: 4.5176 | AR78: 0.4066 | AS78: 0.5772 | AT78: 7.6875 | AU78: 4.5387 | AV78: 0.043 | AW78: 0.6033 | AX78: 2126.8417 | AY78: 2121.4995 | AZ78: 1026.439576 | BA78: 1151.6779 | BB78: N/A | BC78: N/A | BD78: 0.2782 | BE78: 0.3298 | BF78: 0.0433 | BG78: 0.0637 | BH78: 0.2486 | BI78: 0.3262 | BJ78: 0.0452 | BK78: 0.0634 | BL78: 0.7448 | BM78: 0.3415 | BN78: 0.0048 | BO78: 0.0661 | BP78: 206.0708 | BQ78: 159.6458 | BR78: 113.7378112 | BS78: 126.1113 | BT78: N/A | BU78: N/A | BV78: 0.9192 | BW78: 1.2257 | BX78: 1.3154 | BY78: 1222.8001 | BZ78: 33.3575 | CA78: 8.1737 | CC78: N/A | CD78: 4551039.088 | CE78: 580248.129 | CF78: 59462256.12 | CG78: 40774560 | CH78: 24150828 | CI78: 2179706.923 | CJ78: 2974614.7 | CK78: 52713 | CL78: 0 | CM78: 936560.5057 | CN78: 0 | CO78: 106304663.8 | CP78: 29357862.62 | CQ78: 5207034.623 | CR78: 67709810.76 | CS78: 67952715.7 | CT78: 3.354676643 | CU78: 0.4277143763 | CV78: 43.83101043 | CW78: 30.05587546 | CX78: 17.8021364 | CY78: 1.606712613 | CZ78: 2.192657602 | DA78: 0.03885597694 | DB78: 0 | DC78: 0.6903605072 | DD78: 0 | DE78: 78.35963741 | DF78: 21.64036259 | DG78: 3.838226192 | DH78: 49.91047456 | DI78: 50.08952544 | DK78: 4618.83525 | DL78: 9254.240298 | DM78: 9696.197724 | DN78: 10320.92708 | DO78: 13288.78993 | DP78: 9024.611651 | DR78: 1167.064274 | DT78: 39.63187804
A79: 73 | B79: 37 | C79: OH | D79: 39 | E79: 39660.3 | F79: 1102935990 | G79: 508904734.1 | H79: 129741418.3 | I79: 57367098.95 | J79: 87353.24875 | K79: 40997.47797 | L79: 348748.843 | M79: 104821036.4 | N79: 2645130.288 | O79: 3182766.732 | P79: 105342121.2 | Q79: N/A | R79: 1.346574592 | S79: 1.429302814 | T79: 5.376060282 | U79: 1615.845391 | V79: 20.38770904 | W79: 24.5316166 | X79: 1623.878058 | Y79: N/A | Z79: 0.1584013027 | AA79: 0.1611204425 | AB79: 0.6324008761 | AC79: 190.0763733 | AD79: N/A | AE79: 1.570784468 | AF79: 1.667287258 | AG79: 6.271195104 | AH79: 1884.889896 | AI79: 23.78234142 | AJ79: 28.61622561 | AK79: N/A | AL79: 1.913 | AM79: 2.221 | AN79: 0.1395 | AO79: 1.5697 | AP79: 1.9669 | AQ79: 2.6555 | AR79: 0.1821 | AS79: 1.6327 | AT79: 7.9716 | AU79: 6.2947 | AV79: 0.0058 | AW79: 6.2498 | AX79: 2120.752359 | AY79: 3226.021526 | AZ79: 991.9739 | BA79: 1898.4975 | BB79: N/A | BC79: N/A | BD79: 0.1875 | BE79: 0.146 | BF79: 0.0167 | BG79: 0.1584 | BH79: 0.1921 | BI79: 0.1806 | BJ79: 0.0197 | BK79: 0.1612 | BL79: 0.7813 | BM79: 0.4138 | BN79: 0.0007 | BO79: 0.6306 | BP79: 207.8463364 | BQ79: 212.1003 | BR79: 118.8023 | BS79: 191.5634 | BT79: N/A | BU79: N/A | BV79: 1.7102 | BW79: 1.9424 | BX79: 7.758 | BY79: 1607.4683 | BZ79: 19.9398 | CA79: 24.6599 | CC79: N/A | CD79: 85588636.42 | CE79: 1281953.117 | CF79: 22664563.65 | CG79: 17086998 | CH79: 414161 | CI79: 716500.216 | CJ79: 985485 | CK79: 32324 | CL79: 0 | CM79: 970796.946 | CN79: 0 | CO79: 127592948.1 | CP79: 2148470.216 | CQ79: 1734309.216 | CR79: 111222450.3 | CS79: 18518968 | CT79: 65.96863015 | CU79: 0.9880831683 | CV79: 17.46902719 | CW79: 13.17004101 | CX79: 0.3192203425 | CY79: 0.552252492 | CZ79: 0.7595762499 | DA79: 0.02491417191 | DB79: 0 | DC79: 0.7482552283 | DD79: 0 | DE79: 98.34403674 | DF79: 1.655963256 | DG79: 1.336742914 | DH79: 85.72624823 | DI79: 14.27375177 | DK79: 8501.032312 | DL79: 9916.48706 | DM79: 8391.312224 | DN79: 10203.46279 | DO79: 15209.88667 | DP79: 8349.786999 | DR79: 1899.635977 | DT79: 14.74608118
A80: 74 | B80: 38 | C80: OK | D80: 40 | E80: 25816.9 | F80: 655725199.8 | G80: 339105875.3 | H80: 77757667.68 | I80: 38568958.68 | J80: 68415.00517 | K80: 33251.20859 | L80: 78711.17036 | M80: 53328418.31 | N80: 1589071.778 | O80: 1225751.585 | P80: 53535095.06 | Q80: N/A | R80: 1.759697975 | S80: 1.724247153 | T80: 2.024524982 | U80: 1371.656839 | V80: 20.43620681 | W80: 15.76373909 | X80: 1376.972758 | Y80: N/A | Z80: 0.2086697452 | AA80: 0.1961110733 | AB80: 0.2400736479 | AC80: 162.6547777 | AD80: N/A | AE80: 1.991456908 | AF80: 1.951337077 | AG80: 2.291162641 | AH80: 1552.309275 | AI80: 23.12773317 | AJ80: 17.83988364 | AK80: N/A | AL80: 3.1609 | AM80: 28.5842 | AN80: 0.9423 | AO80: 1.9991 | AP80: 2.9274 | AQ80: 28.0297 | AR80: 1.0424 | AS80: 1.8789 | AT80: 4.8081 | AU80: 1.767 | AV80: 0.0062 | AW80: 2.2923 | AX80: 2175.3432 | AY80: 1977.4247 | AZ80: 1002.1874 | BA80: 1560.7302 | BB80: N/A | BC80: N/A | BD80: 0.2925 | BE80: 2.227 | BF80: 0.1117 | BG80: 0.209 | BH80: 0.2722 | BI80: 2.2002 | BJ80: 0.1208 | BK80: 0.1963 | BL80: 0.4449 | BM80: 0.1377 | BN80: 0.0007 | BO80: 0.2396 | BP80: 201.2751 | BQ80: 154.0586 | BR80: 118.7834 | BS80: 163.1564 | BT80: N/A | BU80: N/A | BV80: 2.0168 | BW80: 2.6444 | BX80: 1.6495 | BY80: 1466.5252 | BZ80: 23.5028 | CA80: 13.8943 | CC80: N/A | CD80: 29301757.46 | CE80: 10693.526 | CF80: 39022848.61 | CG80: 0 | CH80: 1028804 | CI80: 363487.805 | CJ80: 8020367 | CK80: 0 | CL80: 0 | CM80: 9709.271 | CN80: 0 | CO80: 68345008.87 | CP80: 9412658.805 | CQ80: 8383854.805 | CR80: 68708496.68 | CS80: 9049171 | CT80: 37.68343154 | CU80: 0.01375237494 | CV80: 50.18520974 | CW80: 0 | CX80: 1.323090096 | CY80: 0.4674623299 | CZ80: 10.31456735 | DA80: 0 | DB80: 0 | DC80: 0.01248657694 | DD80: 0 | DE80: 87.89488023 | DF80: 12.10511977 | DG80: 10.78202968 | DH80: 88.36234256 | DI80: 11.63765744 | DK80: 8432.932974 | DL80: 9543.582402 | DM80: 8988.462604 | DN80: 10807.8108 | DO80: 12835.53596 | DP80: 8437.099797 | DR80: 1557.096548 | DT80: 4.787273312
A81: 75 | B81: 39 | C81: OR | D81: 41 | E81: 18972.1 | F81: 124560183.5 | G81: 38163661.41 | H81: 60612559.41 | I81: 24166414.82 | J81: 4522.915883 | K81: 1369.861834 | L81: 14399.05988 | M81: 7896254.331 | N81: 665314.3925 | O81: 186427.8514 | P81: 7932136.449 | Q81: N/A | R81: 0.1492402211 | S81: 0.1133690573 | T81: 0.4751180291 | U81: 260.5484542 | V81: 10.97651046 | W81: 3.075729737 | X81: 261.7324372 | Y81: N/A | Z81: 0.07262217759 | AA81: 0.07178880554 | AB81: 0.2311984372 | AC81: 126.7861705 | AD81: N/A | AE81: 0.5972030045 | AF81: 0.4536601539 | AG81: 1.901242925 | AH81: 1042.616518 | AI81: 43.92384962 | AJ81: 12.30790887 | AK81: N/A | AL81: 2.0481 | AM81: N/A | AN81: 0.1331 | AO81: 0.487 | AP81: 1.9803 | AQ81: N/A | AR81: 0.153 | AS81: 0.4673 | AT81: 8.6833 | AU81: N/A | AV81: 0.0073 | AW81: 1.6105 | AX81: 2079.5253 | AY81: N/A | AZ81: 845.6369 | BA81: 1073.6475 | BB81: N/A | BC81: N/A | BD81: 0.2066 | BE81: N/A | BF81: 0.0186 | BG81: 0.0636 | BH81: 0.1945 | BI81: N/A | BJ81: 0.021 | BK81: 0.0601 | BL81: 0.8759 | BM81: N/A | BN81: 0.001 | BO81: 0.2104 | BP81: 209.7601 | BQ81: N/A | BR81: 118.3833 | BS81: 140.2508 | BT81: N/A | BU81: N/A | BV81: 0.6376 | BW81: 0.5269 | BX81: 1.9016 | BY81: 1040.9882 | BZ81: 47.4769 | CA81: 13.6105 | CC81: N/A | CD81: 2634334.5 | CE81: 5925.013 | CF81: 11624679.25 | CG81: 0 | CH81: 39407149 | CI81: 841357.0392 | CJ81: 6035761 | CK81: 6412 | CL81: 16241 | CM81: 40700.61176 | CN81: 0 | CO81: 14305639.37 | CP81: 46306920.04 | CQ81: 6899771.039 | CR81: 15146996.41 | CS81: 45465563 | CT81: 4.346185882 | CU81: 0.00977522325 | CV81: 19.17866422 | CW81: 0 | CX81: 65.01482429 | CY81: 1.388090269 | CZ81: 9.957937858 | DA81: 0.01057866565 | DB81: 0.02679477679 | DC81: 0.06714880903 | DD81: 0 | DE81: 23.60177414 | DF81: 76.39822586 | DG81: 11.38340157 | DH81: 24.98986441 | DI81: 75.01013559 | DK81: 2055.022667 | DL81: 8223.424639 | DM81: 7422.33342 | DN81: 9913.826795 | DO81: - | DP81: 7143.211078 | DR81: 1153.341884 | DT81: 110.7253659
A82: 76 | B82: 40 | C82: PA | D82: 42 | E82: 54685 | F82: 1339016860 | G82: 608470750.5 | H82: 223416431.4 | I82: 96651089.53 | J82: 133396.3687 | K82: 63111.56232 | L82: 279451.5855 | M82: 118496909.6 | N82: 5293017.478 | O82: 3486416.075 | P82: 119092738.2 | Q82: N/A | R82: 1.194150026 | S82: 1.305966909 | T82: 2.501620707 | U82: 1060.771662 | V82: 23.6912632 | W82: 15.60501192 | X82: 1066.105456 | Y82: N/A | Z82: 0.1992452412 | AA82: 0.2074432083 | AB82: 0.417398158 | AC82: 176.9909149 | AD82: N/A | AE82: 1.849055563 | AF82: 2.022195977 | AG82: 3.873580023 | AH82: 1642.528745 | AI82: 36.68421979 | AJ82: 24.16324036 | AK82: N/A | AL82: 2.8315 | AM82: 4.0213 | AN82: 0.1606 | AO82: 1.8247 | AP82: 2.9457 | AQ82: 6.3668 | AR82: 0.2001 | AS82: 1.9272 | AT82: 5.7084 | AU82: 0.8517 | AV82: 0.0159 | AW82: 3.5478 | AX82: 2075.364472 | AY82: 2313.7443 | AZ82: 908.2981 | BA82: 1624.0361 | BB82: N/A | BC82: N/A | BD82: 0.2813 | BE82: 0.2667 | BF82: 0.0211 | BG82: 0.1994 | BH82: 0.2905 | BI82: 0.3617 | BJ82: 0.0259 | BK82: 0.2083 | BL82: 0.5672 | BM82: 0.0565 | BN82: 0.0021 | BO82: 0.3878 | BP82: 206.2068577 | BQ82: 153.4324 | BR82: 119.0852 | BS82: 177.5005 | BT82: N/A | BU82: N/A | BV82: 2.091 | BW82: 2.5526 | BX82: 4.9645 | BY82: 1592.1416 | BZ82: 28.0592 | CA82: 22.7625 | CC82: N/A | CD82: 87148204.99 | CE82: 360589.263 | CF82: 53063084.07 | CG82: 75174408 | CH82: 1798553 | CI82: 2327352.467 | CJ82: 2128658 | CK82: 28863 | CL82: 0 | CM82: 1386718.568 | CN82: 0 | CO82: 217133004.9 | CP82: 6283426.467 | CQ82: 4484873.467 | CR82: 144285949.4 | CS82: 79130482 | CT82: 39.00707055 | CU82: 0.1613978259 | CV82: 23.75075268 | CW82: 33.64766304 | CX82: 0.8050227054 | CY82: 1.041710519 | CZ82: 0.9527759382 | DA82: 0.01291892446 | DB82: 0 | DC82: 0.6206878157 | DD82: 0 | DE82: 97.18757191 | DF82: 2.812428087 | DG82: 2.007405382 | DH82: 64.58161939 | DI82: 35.41838061 | DK82: 5993.367866 | DL82: 9280.299755 | DM82: 8969.786564 | DN82: 10064.47844 | DO82: =1000*AY82/BQ82 -> 15079.89382 | DP82: 7627.296255 | DR82: 1647.257847 | DT82: 4.729102189
A83: 77 | B83: 41 | C83: RI | D83: 44 | E83: 2052.2 | F83: 64577922.06 | G83: 32002765.07 | H83: 8309035.853 | I83: 4060637.376 | J83: 762.1732655 | K83: 380.0865855 | L83: 35.6238438 | M83: 3768286.077 | N83: 148274.5365 | O83: 14972.9904 | P83: 3772163.773 | Q83: N/A | R83: 0.1834564874 | S83: 0.187205382 | T83: 0.008574723815 | U83: 907.0332933 | V83: 17.84497493 | W83: 1.802012973 | X83: 907.9666618 | Y83: N/A | Z83: 0.02360476278 | AA83: 0.0237533591 | AB83: 0.001103282443 | AC83: 116.7050892 | AD83: N/A | AE83: 0.183581231 | AF83: 0.1873326748 | AG83: 0.008580554312 | AH83: 907.6500426 | AI83: 17.85710886 | AJ83: 1.803238275 | AK83: N/A | AL83: N/A | AM83: 21.5653 | AN83: 0.1583 | AO83: 0.1858 | AP83: N/A | AQ83: 21.5664 | AR83: 0.1592 | AS83: 0.1893 | AT83: N/A | AU83: 2.7841 | AV83: 0.0051 | AW83: 0.0087 | AX83: N/A | AY83: 2596.8356 | AZ83: 916.6106 | BA83: 918.7721 | BB83: N/A | BC83: N/A | BD83: N/A | BE83: 1.354 | BF83: 0.0205 | BG83: 0.024 | BH83: N/A | BI83: 1.354 | BJ83: 0.0203 | BK83: 0.0241 | BL83: N/A | BM83: 0.1748 | BN83: 0.0007 | BO83: 0.0011 | BP83: N/A | BQ83: 163.0449 | BR83: 118.752 | BS83: 118.8694 | BT83: N/A | BU83: N/A | BV83: 0.2275 | BW83: 0.2402 | BX83: 0.0129 | BY83: 915.143 | BZ83: 18.0874 | CA83: 1.8421 | CC83: N/A | CD83: 0 | CE83: 17874.223 | CF83: 8185000.63 | CG83: 0 | CH83: 4266 | CI83: 100515 | CJ83: 1380 | CK83: 0 | CL83: 0 | CM83: 0 | CN83: 0 | CO83: 8202874.853 | CP83: 106161 | CQ83: 101895 | CR83: 8303389.853 | CS83: 5646 | CT83: 0 | CU83: 0.2151178947 | CV83: 98.50722484 | CW83: 0 | CX83: 0.05134169686 | CY83: 1.20970714 | CZ83: 0.01660842515 | DA83: 0 | DB83: 0 | DC83: 0 | DD83: 0 | DE83: 98.72234274 | DF83: 1.277657262 | DG83: 1.226315565 | DH83: 99.93204988 | DI83: 0.06795012201 | DK83: 7772.011483 | DL83: 7777.296165 | DM83: 7698.726502 | DN83: - | DO83: 15927.11946 | DP83: 7718.696106 | DR83: 924.4825288 | DT83: 16.8324862
A84: 78 | B84: 42 | C84: SC | D84: 45 | E84: 26596 | F84: 436320176.5 | G84: 202323523 | H84: 96755682.34 | I84: 44036779.98 | J84: 21243.79013 | K84: 9568.154027 | L84: 54472.95721 | M84: 37176847.86 | N84: 1684239.962 | O84: 1197347.908 | P84: 37380121.31 | Q84: N/A | R84: 0.4391223258 | S84: 0.4345528456 | T84: 1.125989831 | U84: 768.468517 | V84: 17.40714263 | W84: 12.37496216 | X84: 772.6703053 | Y84: N/A | Z84: 0.09737706978 | AA84: 0.09458271471 | AB84: 0.2496925889 | AC84: 170.4108582 | AD84: N/A | AE84: 0.9423645271 | AF84: 0.9325583392 | AG84: 2.416394732 | AH84: 1649.147465 | AI84: 37.35604583 | AJ84: 26.5568947 | AK84: N/A | AL84: 1.1742 | AM84: 120.6561 | AN84: 0.2667 | AO84: 0.8668 | AP84: 1.1586 | AQ84: 127.081 | AR84: 0.279 | AS84: 0.864 | AT84: 3.1744 | AU84: 29.795 | AV84: 0.3445 | AW84: 2.2223 | AX84: 2128.3114 | AY84: 13174.5592 | AZ84: 970.6538 | BA84: 1733.2372 | BB84: N/A | BC84: N/A | BD84: 0.1127 | BE84: 1.4932 | BF84: 0.0332 | BG84: 0.0903 | BH84: 0.1101 | BI84: 1.4508 | BJ84: 0.0336 | BK84: 0.0884 | BL84: 0.3048 | BM84: 0.3687 | BN84: 0.0429 | BO84: 0.2315 | BP84: 204.3468 | BQ84: 163.0449 | BR84: 120.926 | BS84: 180.5493 | BT84: N/A | BU84: N/A | BV84: 1.3986 | BW84: 1.4913 | BX84: 4.3527 | BY84: 1757.9022 | BZ84: 44.8285 | CA84: 30.5698 | CC84: N/A | CD84: 28396145.24 | CE84: 108399.035 | CF84: 14331878.86 | CG84: 51145302 | CH84: 524239 | CI84: 2143472.622 | CJ84: 0 | CK84: 0 | CL84: 0 | CM84: 106245.586 | CN84: 0 | CO84: 94087970.72 | CP84: 2667711.622 | CQ84: 2143472.622 | CR84: 45086141.35 | CS84: 51669541 | CT84: 29.34829723 | CU84: 0.1120337663 | CV84: 14.81244152 | CW84: 52.86025664 | CX84: 0.5418172735 | CY84: 2.215345466 | CZ84: 0 | DA84: 0 | DB84: 0 | DC84: 0.1098081099 | DD84: 0 | DE84: 97.24283726 | DF84: 2.75716274 | DG84: 2.215345466 | DH84: 46.59792609 | DI84: 53.40207391 | DK84: 4509.504412 | DL84: 9677.478787 | DM84: 9736.411052 | DN84: =1000*AX84/BP84 -> 10415.19319 | DO84: 80803.25849 | DP84: 8026.841209 | DR84: 1747.262021 | DT84: 98.11455532
A85: 79 | B85: 43 | C85: SD | D85: 46 | E85: 4432.9 | F85: 33058791.54 | G85: 14821756.03 | H85: 12017721.95 | I85: 5502070.911 | J85: 10849.68922 | K85: 4559.751655 | L85: 12403.14523 | M85: 3358271.784 | N85: 77327.03743 | O85: 107308.5608 | P85: 3375716.544 | Q85: N/A | R85: 1.805614951 | S85: 1.657467426 | T85: 2.064142486 | U85: 558.8865837 | V85: 6.434417249 | W85: 8.929193173 | X85: 561.7897564 | Y85: N/A | Z85: 0.6563875274 | AA85: 0.6152781958 | AB85: 0.7503689431 | AC85: 203.1696639 | AD85: N/A | AE85: 6.913767795 | AF85: 6.34650533 | AG85: 7.903679482 | AH85: 2139.997822 | AI85: 24.63762649 | AJ85: 34.19021766 | AK85: N/A | AL85: 7.3434 | AM85: 32.8658 | AN85: 0.6407 | AO85: 6.9138 | AP85: 7.1673 | AQ85: 11.111 | AR85: 0.5346 | AS85: 6.3166 | AT85: 8.4738 | AU85: 2.6119 | AV85: 0.0066 | AW85: 7.9037 | AX85: 2197.4059 | AY85: 5412.9473 | AZ85: 1303.8957 | BA85: 2139.9978 | BB85: N/A | BC85: N/A | BD85: 0.7005 | BE85: 0.9235 | BF85: 0.0585 | BG85: 0.6564 | BH85: 0.696 | BI85: 0.6882 | BJ85: 0.0534 | BK85: 0.6153 | BL85: 0.8083 | BM85: 0.0734 | BN85: 0.0006 | BO85: 0.7504 | BP85: 209.5995 | BQ85: 152.1047 | BR85: 119.0674 | BS85: 203.1697 | BT85: N/A | BU85: N/A | BV85: 5.6386 | BW85: 4.4476 | BX85: 6.0542 | BY85: 2001.1784 | BZ85: 26.2234 | CA85: 27.1019 | CC85: N/A | CD85: 2918755.929 | CE85: 5718.297 | CF85: 214100.728 | CG85: 0 | CH85: 5964481 | CI85: 0 | CJ85: 2914666 | CK85: 0 | CL85: 0 | CM85: 0 | CN85: 0 | CO85: 3138574.954 | CP85: 8879147 | CQ85: 2914666 | CR85: 3138574.954 | CS85: 8879147 | CT85: 24.28709817 | CU85: 0.0475822042 | CV85: 1.7815417 | CW85: 0 | CX85: 49.63071223 | CY85: 0 | CZ85: 24.25306569 | DA85: 0 | DB85: 0 | DC85: 0 | DD85: 0 | DE85: 26.11622208 | DF85: 73.88377792 | DG85: 24.25306569 | DH85: 26.11622208 | DI85: 73.88377792 | DK85: 2750.836778 | DL85: 10533.05784 | DM85: 9849.787641 | DN85: 10483.83178 | DO85: 35586.98252 | DP85: 10950.90428 | DR85: 2139.998202 | DT85: 0.0003799008291
A86: 80 | B86: 44 | C86: TN | D86: 47 | E86: 25710.6 | F86: 440443036 | G86: 220682390.5 | H86: 77385936.54 | I86: 36276408.42 | J86: 23869.56878 | K86: 11456.37143 | L86: 69210.21417 | M86: 42463377.07 | N86: 1126716.717 | O86: 1342973.935 | P86: 42683368.55 | Q86: N/A | R86: 0.6168968122 | S86: 0.6316155281 | T86: 1.788702632 | U86: 1097.444289 | V86: 14.559709 | W86: 17.35423767 | X86: 1103.129857 | Y86: N/A | Z86: 0.1083889031 | AA86: 0.1038267839 | AB86: 0.3142754386 | AC86: 192.8211986 | AD86: N/A | AE86: 1.074485447 | AF86: 1.1001219 | AG86: 3.115488536 | AH86: 1911.483241 | AI86: 25.35950118 | AJ86: 30.22689606 | AK86: N/A | AL86: 1.2498 | AM86: 26.5133 | AN86: 0.3467 | AO86: 1.079 | AP86: 1.1945 | AQ86: 26.5916 | AR86: 0.4424 | AS86: 1.0351 | AT86: 3.616 | AU86: 1.6699 | AV86: 1.0668 | AW86: 3.1338 | AX86: 2163.4632 | AY86: 1773.1129 | AZ86: 1014.7624 | BA86: 1946.1862 | BB86: N/A | BC86: N/A | BD86: 0.1192 | BE86: 2.438 | BF86: 0.0441 | BG86: 0.1081 | BH86: 0.1138 | BI86: 2.438 | BJ86: 0.0543 | BK86: 0.1035 | BL86: 0.345 | BM86: 0.1536 | BN86: 0.1357 | BO86: 0.3138 | BP86: 206.4102 | BQ86: 163.0449 | BR86: 129.0718 | BS86: 194.893 | BT86: N/A | BU86: N/A | BV86: 0.8997 | BW86: 1.2182 | BX86: 2.7692 | BY86: 1632.1561 | BZ86: 20.4384 | CA86: 25.3621 | CC86: N/A | CD86: 35419309.1 | CE86: 144479.83 | CF86: 8075159.467 | CG86: 25102101 | CH86: 7806577 | CI86: 776782.623 | CJ86: 47492 | CK86: 0 | CL86: 0 | CM86: 14035.517 | CN86: 0 | CO86: 68755084.92 | CP86: 8630851.623 | CQ86: 824274.623 | CR86: 44429766.54 | CS86: 32956170 | CT86: 45.76969755 | CU86: 0.1867003702 | CV86: 10.43491858 | CW86: 32.43754889 | CX86: 10.08784974 | CY86: 1.003777505 | CZ86: 0.06137032402 | DA86: 0 | DB86: 0 | DC86: 0.01813703837 | DD86: 0 | DE86: 88.84700243 | DF86: 11.15299757 | DG86: 1.065147829 | DH86: 57.41323104 | DI86: 42.58676896 | DK86: 5691.512641 | DL86: 9913.242187 | DM86: 8374.62659 | DN86: 10481.37737 | DO86: 10874.99762 | DP86: 7861.99929 | DR86: 1932.02151 | DT86: 20.53826885
A87: 81 | B87: 45 | C87: TX | D87: 48 | E87: 135365.8 | F87: 3173156988 | G87: 1564526493 | H87: 429697350.7 | I87: 205447954.4 | J87: 150149.6678 | K87: 70889.69655 | L87: 410195.3825 | M87: 258352875.5 | N87: 7671865.372 | O87: 5623891.857 | P87: 259305005.5 | Q87: N/A | R87: 0.6988624324 | S87: 0.6900988306 | T87: 1.909229284 | U87: 1202.487635 | V87: 17.85411374 | W87: 13.08803009 | X87: 1206.919266 | Y87: N/A | Z87: 0.09463740271 | AA87: 0.09062127983 | AB87: 0.258540869 | AC87: 162.8364915 | AD87: N/A | AE87: 0.8375180336 | AF87: 0.827015717 | AG87: 2.28802391 | AH87: 1441.063409 | AI87: 21.39640298 | AJ87: 15.68471951 | AK87: N/A | AL87: 1.3984 | AM87: 4.6569 | AN87: 0.4459 | AO87: 0.8387 | AP87: 1.3493 | AQ87: 4.851 | AR87: 0.4528 | AS87: 0.8108 | AT87: 4.8545 | AU87: 82.3796 | AV87: 0.0095 | AW87: 2.2941 | AX87: 2234.0778 | AY87: 3134.4766 | AZ87: 927.8629143 | BA87: 1449.6022 | BB87: N/A | BC87: N/A | BD87: 0.134 | BE87: 0.3084 | BF87: 0.0573 | BG87: 0.0947 | BH87: 0.1278 | BI87: 0.3242 | BJ87: 0.0572 | BK87: 0.0906 | BL87: 0.4651 | BM87: 5.4561 | BN87: 0.0012 | BO87: 0.259 | BP87: 214.0645 | BQ87: 207.602 | BR87: 119.1884211 | BS87: 163.679 | BT87: N/A | BU87: N/A | BV87: 0.8166 | BW87: 0.9587 | BX87: 1.852 | BY87: 1310.6734 | BZ87: 22.1546 | CA87: 10.6689 | CC87: N/A | CD87: 138192432.8 | CE87: 3814854.232 | CF87: 213901281.8 | CG87: 38441017 | CH87: 584474.42 | CI87: 1684258.872 | CJ87: 31994944 | CK87: 118265 | CL87: 0 | CM87: 673259.851 | CN87: 292562.67 | CO87: 395315408.4 | CP87: 34381942.29 | CQ87: 33797467.87 | CR87: 358558650.3 | CS87: 71138700.42 | CT87: 32.16041071 | CU87: 0.8878002682 | CV87: 49.77952075 | CW87: 8.946067956 | CX87: 0.1360200195 | CY87: 0.391963988 | CZ87: 7.445925358 | DA87: 0.02752285994 | DB87: 0 | DC87: 0.156682337 | DD87: 0.06808575141 | DE87: 91.99856777 | DF87: 8.001432226 | DG87: 7.865412206 | DH87: 83.44446381 | DI87: 16.55553619 | DK87: 7384.632422 | DL87: 8849.757174 | DM87: 8007.584357 | DN87: 10436.47032 | DO87: 15098.48942 | DP87: 7784.84106 | DR87: 1448.519405 | DT87: 7.45599531
A88: 82 | B88: 46 | C88: UT | D88: 49 | E88: 8826.7 | F88: 370598739.8 | G88: 164276334.7 | H88: 39400420.76 | I88: 17327101.33 | J88: 51961.45341 | K88: 22287.72069 | L88: 23116.60868 | M88: 35475233.39 | N88: 871733.2458 | O88: 1103711.576 | P88: 35655461.89 | Q88: N/A | R88: 2.637609062 | S88: 2.572585023 | T88: 1.173419382 | U88: 1800.754038 | V88: 22.12497301 | W88: 28.01268501 | X88: 1809.902595 | Y88: N/A | Z88: 0.2804189428 | AA88: 0.2713442655 | AB88: 0.1247527647 | AC88: 191.4482139 | AD88: N/A | AE88: 2.762990992 | AF88: 2.694875957 | AG88: 1.229199288 | AH88: 1886.355055 | AI88: 23.1767103 | AJ88: 29.3443018 | AK88: N/A | AL88: 3.2377 | AM88: 19.9236 | AN88: 0.4576 | AO88: 2.7641 | AP88: 3.181 | AQ88: 19.6834 | AR88: 0.4903 | AS88: 2.6983 | AT88: 1.4714 | AU88: 1.37 | AV88: 0.0092 | AW88: 1.2186 | AX88: 2067.3912 | AY88: 1420.5865 | AZ88: 1033.5057 | BA88: 1888.3909 | BB88: N/A | BC88: N/A | BD88: 0.321 | BE88: 2.0624 | BF88: 0.0525 | BG88: 0.2807 | BH88: 0.3138 | BI88: 2.0371 | BJ88: 0.0543 | BK88: 0.2715 | BL88: 0.1459 | BM88: 0.1418 | BN88: 0.0011 | BO88: 0.1237 | BP88: 204.9744 | BQ88: 147.0499 | BR88: 118.5871 | BS88: 191.7358 | BT88: N/A | BU88: N/A | BV88: 2.0693 | BW88: 2.3852 | BX88: 0.6286 | BY88: 1607.7293 | BZ88: 22.7026 | CA88: 19.8607 | CC88: N/A | CD88: 30799120.46 | CE88: 43717.897 | CF88: 6577064.031 | CG88: 0 | CH88: 747786 | CI88: 59716.27799 | CJ88: 703911 | CK88: 1619 | CL88: 334638 | CM88: 4460.09201 | CN88: 128388 | CO88: 37552750.48 | CP88: 1847670.278 | CQ88: 1099884.278 | CR88: 37612466.76 | CS88: 1787954 | CT88: 78.16952171 | CU88: 0.1109579445 | CV88: 16.69287765 | CW88: 0 | CX88: 1.897913742 | CY88: 0.1515625388 | CZ88: 1.786557063 | DA88: 0.004109093174 | DB88: 0.8493259553 | DC88: 0.0113199096 | DD88: 0.3258543882 | DE88: 95.31053161 | DF88: 4.689468393 | DG88: 2.791554651 | DH88: 95.46209415 | DI88: 4.537905854 | DK88: 9405.958938 | DL88: 9853.082547 | DM88: 8385.12839 | DN88: 10086.09465 | DO88: 9660.574404 | DP88: 8715.161261 | DR88: 1889.188665 | DT88: 2.83361
A89: 83 | B89: 47 | C89: VA | D89: 51 | E89: 29875 | F89: 384526861.2 | G89: 195229529.3 | H89: 70739234.75 | I89: 33133544.58 | J89: 24925.47339 | K89: 12319.67259 | L89: 41121.56123 | M89: 28892649.59 | N89: 2438306.335 | O89: 811218.6036 | P89: 29043990.69 | Q89: N/A | R89: 0.7047142503 | S89: 0.7436374676 | T89: 1.162623864 | U89: 816.8776407 | V89: 34.46893854 | W89: 11.46773225 | X89: 821.1564854 | Y89: N/A | Z89: 0.1296423002 | AA89: 0.1262070614 | AB89: 0.2138813455 | AC89: 150.2763656 | AD89: N/A | AE89: 1.177461502 | AF89: 1.242495791 | AG89: 1.942553086 | AH89: 1364.868063 | AI89: 57.59192202 | AJ89: 19.16069277 | AK89: N/A | AL89: 2.1917 | AM89: 2.3155 | AN89: 0.2207 | AO89: 1.0893 | AP89: 2.2035 | AQ89: 2.6293 | AR89: 0.2652 | AS89: 1.1005 | AT89: 3.7696 | AU89: 0.1583 | AV89: 0.0332 | AW89: 1.6721 | AX89: 1932.482 | AY89: 1726.3503 | AZ89: 937.9911 | BA89: 1375.6967 | BB89: N/A | BC89: N/A | BD89: 0.2184 | BE89: 0.2178 | BF89: 0.0279 | BG89: 0.1231 | BH89: 0.2119 | BI89: 0.2415 | BJ89: 0.0324 | BK89: 0.1205 | BL89: 0.3756 | BM89: 0.0149 | BN89: 0.0042 | BO89: 0.189 | BP89: 192.5256 | BQ89: 162.3538 | BR89: 118.5954 | BS89: 155.4812 | BT89: N/A | BU89: N/A | BV89: 1.6642 | BW89: 2.0303 | BX89: 3.5174 | BY89: 1705.7182 | BZ89: 71.4277 | CA89: 27.445 | CC89: N/A | CD89: 14180795.22 | CE89: 363967.538 | CF89: 25037748.95 | CG89: 28723390 | CH89: -321800 | CI89: 2372689.105 | CJ89: 0 | CK89: 0 | CL89: 0 | CM89: 382443.9277 | CN89: 0 | CO89: 68688345.64 | CP89: 2050889.105 | CQ89: 2372689.105 | CR89: 42337644.75 | CS89: 28401590 | CT89: 20.04657709 | CU89: 0.5145200387 | CV89: 35.39443004 | CW89: 40.60460945 | CX89: -0.4549102081 | CY89: 3.354134539 | CZ89: 0 | DA89: 0 | DB89: 0 | DC89: 0.5406390514 | DD89: 0 | DE89: 97.10077567 | DF89: 2.899224331 | DG89: 3.354134539 | DH89: 59.85030075 | DI89: 40.14969925 | DK89: 5435.835751 | DL89: 9082.386692 | DM89: 10970.57522 | DN89: 10037.53267 | DO89: 10633.26082 | DP89: 7909.169327 | DR89: 1412.140382 | DT89: 47.27231857
A90: 84 | B90: 48 | C90: VT | D90: 50 | E90: 1276 | F90: 5301223.548 | G90: 2165657.741 | H90: 6568121.002 | I90: 2528872.347 | J90: 196.7063242 | K90: 101.1067982 | L90: 60.09639697 | M90: 13780.128 | N90: 341084.3098 | O90: 45541.99279 | P90: 24420.52214 | Q90: N/A | R90: 0.05989729001 | S90: 0.07996196275 | T90: 0.01829941834 | U90: 4.196063987 | V90: 51.93027195 | W90: 6.933793207 | X90: 7.436075592 | Y90: N/A | Z90: 0.07421166923 | AA90: 0.09337283199 | AB90: 0.02267265148 | AC90: 5.198848106 | AD90: N/A | AE90: 1.095350468 | AF90: 1.462276062 | AG90: 0.3346441291 | AH90: 76.73403342 | AI90: 949.6564483 | AJ90: 126.7992865 | AK90: N/A | AL90: N/A | AM90: 5.2581 | AN90: N/A | AO90: 5.2581 | AP90: N/A | AQ90: 6.2922 | AR90: N/A | AS90: 6.2922 | AT90: N/A | AU90: 2.707 | AV90: N/A | AW90: 2.707 | AX90: N/A | AY90: 3019.144 | AZ90: N/A | BA90: 3019.144 | BB90: N/A | BC90: N/A | BD90: N/A | BE90: 0.2829 | BF90: N/A | BG90: 0.2829 | BH90: N/A | BI90: 0.2759 | BJ90: N/A | BK90: 0.2759 | BL90: N/A | BM90: 0.1456 | BN90: N/A | BO90: 0.1456 | BP90: N/A | BQ90: 162.4152 | BR90: N/A | BS90: 162.4152 | BT90: N/A | BU90: N/A | BV90: 1.4023 | BW90: 1.6358 | BX90: 0.4984 | BY90: 130.908 | BZ90: 1067.5929 | CA90: 142.6708 | CC90: N/A | CD90: 0 | CE90: 3419.76 | CF90: 2538.762 | CG90: 4989338 | CH90: 1109205 | CI90: 353207.48 | CJ90: 106897 | CK90: 3515 | CL90: 0 | CM90: 0 | CN90: 0 | CO90: 4995296.522 | CP90: 1572824.48 | CQ90: 463619.48 | CR90: 359166.002 | CS90: 6208955 | CT90: 0 | CU90: 0.05206603226 | CV90: 0.03865278973 | CW90: 75.9629428 | CX90: 16.88770654 | CY90: 5.377603121 | CZ90: 1.627512647 | DA90: 0.05351606645 | DB90: 0 | DC90: 0 | DD90: 0 | DE90: 76.05366163 | DF90: 23.94633837 | DG90: 7.058631835 | DH90: 5.468321943 | DI90: 94.53167806 | DK90: 807.1141726 | DL90: 14759.81446 | DM90: 806.0083046 | DN90: - | DO90: 18589.04832 | DP90: - | DR90: 2397.218217 | DT90: 2320.484183
A91: 85 | B91: 49 | C91: WA | D91: 53 | E91: 32149.1 | F91: 102619941.3 | G91: 37552063.48 | H91: 116834423.7 | I91: 52860648.96 | J91: 6848.526283 | K91: 2434.221769 | L91: 6357.581888 | M91: 7342211.503 | N91: 892265.5095 | O91: 280845.7077 | P91: 7394968.08 | Q91: N/A | R91: 0.1172347339 | S91: 0.09209957943 | T91: 0.1088306287 | U91: 125.6857572 | V91: 7.637008696 | W91: 2.403792469 | X91: 126.5888571 | Y91: N/A | Z91: 0.1334735958 | AA91: 0.1296451669 | AB91: 0.1239053893 | AC91: 143.0952193 | AD91: N/A | AE91: 1.202202538 | AF91: 0.9444500318 | AG91: 1.116021282 | AH91: 1288.864923 | AI91: 78.31494074 | AJ91: 24.65007862 | AK91: N/A | AL91: 2.4892 | AM91: 26.1738 | AN91: 0.32 | AO91: 1.1718 | AP91: 2.5111 | AQ91: 26.1442 | AR91: 0.3333 | AS91: 1.1224 | AT91: 0.6574 | AU91: 0.6594 | AV91: 0.0109 | AW91: 0.2646 | AX91: 2431.8756 | AY91: 1750.4148 | AZ91: 854.9946714 | BA91: 1481.4292 | BB91: N/A | BC91: N/A | BD91: 0.2126 | BE91: 2.438 | BF91: 0.0444 | BG91: 0.1305 | BH91: 0.2108 | BI91: 2.438 | BJ91: 0.0462 | BK91: 0.1259 | BL91: 0.0562 | BM91: 0.0614 | BN91: 0.0015 | BO91: 0.0295 | BP91: 207.7238 | BQ91: 163.0449 | BR91: 118.528913 | BS91: 165.0349 | BT91: N/A | BU91: N/A | BV91: 1.2576 | BW91: 1.0601 | BX91: 0.7389 | BY91: 1463.0838 | BZ91: 53.3906 | CA91: 23.1028 | CC91: N/A | CD91: 3762956.904 | CE91: 432049.348 | CF91: 5437592.498 | CG91: 9333709 | CH91: 89507906 | CI91: 1616173.957 | CJ91: 6598716 | CK91: 794 | CL91: 0 | CM91: 66360.954 | CN91: 78165 | CO91: 19110833.7 | CP91: 97723589.96 | CQ91: 8215683.957 | CR91: 11393298.66 | CS91: 105441125 | CT91: 3.220760445 | CU91: 0.3697962762 | CV91: 4.654101358 | CW91: 7.988834718 | CX91: 76.61090216 | CY91: 1.383302888 | CZ91: 5.647921043 | DA91: 0.0006795942284 | DB91: 0 | DC91: 0.05679914525 | DD91: 0.06690237137 | DE91: 16.35719431 | DF91: 83.64280569 | DG91: 7.031903526 | DH91: 9.751662484 | DI91: 90.24833752 | DK91: 878.3365218 | DL91: 9007.043909 | DM91: 8865.2994 | DN91: =1000*AX91/BP91 -> 11707.2555 | DO91: 10735.78382 | DP91: =1000*AZ91/BR91 -> 7213.384901 | DR91: 1486.476591 | DT91: 197.6116673
A92: 86 | B92: 50 | C92: WI | D92: 55 | E92: 21870.5 | F92: 469822851.8 | G92: 225613046.3 | H92: 63742909.9 | I92: 29459027.25 | J92: 27372.34202 | K92: 12922.98293 | L92: 71901.89842 | M92: 43242292.89 | N92: 1807488.013 | O92: 1401191.085 | P92: 43478456.13 | Q92: N/A | R92: 0.8588356591 | S92: 0.8773529978 | T92: 2.255996739 | U92: 1356.77185 | V92: 28.35590681 | W92: 21.98191277 | X92: 1364.181717 | Y92: N/A | Z92: 0.1165219696 | AA92: 0.1145588267 | AB92: 0.3060808905 | AC92: 184.0791384 | AD92: N/A | AE92: 1.18077112 | AF92: 1.206229702 | AG92: 3.101659516 | AH92: 1865.359221 | AI92: 38.98514864 | AJ92: 30.22185616 | AK92: N/A | AL92: 1.4618 | AM92: 1.602 | AN92: 0.2454 | AO92: 1.1544 | AP92: 1.4699 | AQ92: 1.5002 | AR92: 0.3159 | AS92: 1.1426 | AT92: 4.1887 | AU92: 3.0831 | AV92: 0.011 | AW92: 3.1301 | AX92: 2280.6967 | AY92: 1682.182 | AZ92: 892.4063 | BA92: 1928.4872 | BB92: N/A | BC92: N/A | BD92: 0.1336 | BE92: 0.1513 | BF92: 0.0327 | BG92: 0.1146 | BH92: 0.1336 | BI92: 0.1469 | BJ92: 0.0403 | BK92: 0.1131 | BL92: 0.3828 | BM92: 0.2912 | BN92: 0.0015 | BO92: 0.3108 | BP92: 208.4567 | BQ92: 158.9079 | BR92: 118.8306 | BS92: 191.4592 | BT92: N/A | BU92: N/A | BV92: 1.1265 | BW92: 1.2097 | BX92: 2.327 | BY92: 1797.7777 | BZ92: 41.6548 | CA92: 28.1967 | CC92: N/A | CD92: 32758435.11 | CE92: 317567.668 | CF92: 11542006.74 | CG92: 14299595 | CH92: 1522235.01 | CI92: 1668526.839 | CJ92: 1557578 | CK92: 0 | CL92: 0 | CM92: 44716.53208 | CN92: 32249 | CO92: 58994570.05 | CP92: 4748339.849 | CQ92: 3226104.839 | CR92: 46363501.89 | CS92: 17379408.01 | CT92: 51.39149619 | CU92: 0.4982007701 | CV92: 18.10712243 | CW92: 22.43323222 | CX92: 2.38808522 | CY92: 2.617588123 | CZ92: 2.443531371 | DA92: 0 | DB92: 0 | DC92: 0.07015138178 | DD92: 0.0505922934 | DE92: 92.55079529 | DF92: 7.449204714 | DG92: 5.061119494 | DH92: 72.73515119 | DI92: 27.26484881 | DK92: 7370.589961 | DL92: 10133.46345 | DM92: 9389.873665 | DN92: =1000*AX92/BP92 -> 10940.86542 | DO92: 10585.89283 | DP92: =1000*AZ92/BR92 -> 7509.903173 | DR92: 1940.144805 | DT92: 74.78558406
A93: 87 | B93: 51 | C93: WV | D93: 54 | E93: 18416.3 | F93: 697859770 | G93: 314612828.6 | H93: 73413404.2 | I93: 32096495.78 | J93: 50578.40988 | K93: 23312.06003 | L93: 88849.22654 | M93: 72352646.56 | N93: 1622530.623 | O93: 2427499.403 | P93: 72745945.54 | Q93: N/A | R93: 1.377906676 | S93: 1.452623376 | T93: 2.42051782 | U93: 1971.101799 | V93: 22.10128573 | W93: 33.06616045 | X93: 1981.816436 | Y93: N/A | Z93: 0.144952932 | AA93: 0.1481952286 | AB93: 0.2546334675 | AC93: 207.3558318 | AD93: N/A | AE93: 1.430871695 | AF93: 1.508460412 | AG93: 2.513559514 | AH93: 2046.868501 | AI93: 22.95083166 | AJ93: 34.33718253 | AK93: N/A | AL93: 1.4328 | AM93: N/A | AN93: 0.6833 | AO93: 1.4311 | AP93: 1.4922 | AQ93: N/A | AR93: 0.6501 | AS93: 1.489 | AT93: 2.5198 | AU93: N/A | AV93: 0.0116 | AW93: 2.5139 | AX93: 2048.7291 | AY93: N/A | AZ93: 1385.7475 | BA93: 2047.1737 | BB93: N/A | BC93: N/A | BD93: 0.1452 | BE93: N/A | BF93: 0.0584 | BG93: 0.145 | BH93: 0.1486 | BI93: N/A | BJ93: 0.0554 | BK93: 0.1482 | BL93: 0.2554 | BM93: N/A | BN93: 0.001 | BO93: 0.2547 | BP93: 207.6391 | BQ93: N/A | BR93: 118.4078 | BS93: 207.3909 | BT93: N/A | BU93: N/A | BV93: 1.3558 | BW93: 1.5403 | BX93: 3.3535 | BY93: 1756.3686 | BZ93: 19.7075 | CA93: 29.3592 | CC93: N/A | CD93: 70267428.07 | CE93: 143448.36 | CF93: 242894.214 | CG93: 0 | CH93: 1431440 | CI93: 10538.952 | CJ93: 1286024 | CK93: 0 | CL93: 0 | CM93: 31630.612 | CN93: 0 | CO93: 70685401.25 | CP93: 2728002.952 | CQ93: 1296562.952 | CR93: 70695940.2 | CS93: 2717464 | CT93: 95.71471154 | CU93: 0.1953980497 | CV93: 0.3308581268 | CW93: 0 | CX93: 1.94983466 | CY93: 0.01435562363 | CZ93: 1.751756391 | DA93: 0 | DB93: 0 | DC93: 0.04308560861 | DD93: 0 | DE93: 96.28405333 | DF93: 3.715946674 | DG93: 1.766112015 | DH93: 96.29840895 | DI93: 3.701591051 | DK93: 9505.890342 | DL93: 9871.284942 | DM93: 8468.879782 | DN93: =1000*AX93/BP93 -> 9866.778945 | DO93: - | DP93: =1000*AZ93/BR93 -> 11703.17749 | DR93: 2047.214668 | DT93: 0.3461677596
A94: 88 | B94: 52 | C94: WY | D94: 56 | E94: 9925.5 | F94: 500047260.6 | G94: 202355313.3 | H94: 49588606.11 | I94: 19819330.53 | J94: 49592.63736 | K94: 19613.44939 | L94: 50386.32189 | M94: 52023827.46 | N94: 1159613.877 | O94: 1719605.727 | P94: 52302542.29 | Q94: N/A | R94: 2.000162588 | S94: 1.979224209 | T94: 2.03217335 | U94: 2098.216971 | V94: 23.38468386 | W94: 34.67743624 | X94: 2109.458055 | Y94: N/A | Z94: 0.198351801 | AA94: 0.1938515878 | AB94: 0.2015262391 | AC94: 208.0756423 | AD94: N/A | AE94: 2.237630501 | AF94: 2.214206227 | AG94: 2.273441719 | AH94: 2347.326323 | AI94: 26.1610142 | AJ94: 38.79449076 | AK94: N/A | AL94: 2.2515 | AM94: 3.1678 | AN94: 1.5372 | AO94: 2.2405 | AP94: 2.1876 | AQ94: 3.611 | AR94: 1.5503 | AS94: 2.1792 | AT94: 2.3134 | AU94: 0.1362 | AV94: 0.0545 | AW94: 2.2774 | AX94: 2377.8258 | AY94: 941.7136 | AZ94: 679.2052 | BA94: 2350.7911 | BB94: N/A | BC94: N/A | BD94: 0.1984 | BE94: 0.499 | BF94: 0.2647 | BG94: 0.199 | BH94: 0.1939 | BI94: 0.5616 | BJ94: 0.2562 | BK94: 0.1944 | BL94: 0.2039 | BM94: 0.0215 | BN94: 0.0094 | BO94: 0.2023 | BP94: 209.5338 | BQ94: 148.3534 | BR94: 116.9571 | BS94: 208.7754 | BT94: N/A | BU94: N/A | BV94: 2.3331 | BW94: 2.0994 | BX94: 2.4603 | BY94: 2351.601 | BZ94: 26.2836 | CA94: 38.7078 | CC94: N/A | CD94: 43411765.98 | CE94: 62641.637 | CF94: 512914.826 | CG94: 0 | CH94: 893470 | CI94: 0 | CJ94: 4369107 | CK94: 0 | CL94: 0 | CM94: 271710.91 | CN94: 66995.752 | CO94: 44326029.11 | CP94: 5262577 | CQ94: 4369107 | CR94: 44326029.11 | CS94: 5262577 | CT94: 87.54383192 | CU94: 0.1263226413 | CV94: 1.034340076 | CW94: 0 | CX94: 1.8017647 | CY94: 0 | CZ94: 8.810707425 | DA94: 0 | DB94: 0 | DC94: 0.5479301221 | DD94: 0.1351031159 | DE94: 89.38752788 | DF94: 10.61247212 | DG94: 8.810707425 | DH94: 89.38752788 | DI94: 10.61247212 | DK94: 10083.91443 | DL94: 11281.12016 | DM94: 11263.78395 | DN94: =1000*AX94/BP94 -> 11348.17294 | DO94: =1000*AY94/BQ94 -> 6347.772279 | DP94: =1000*AZ94/BR94 -> 5807.301994 | DR94: 2355.220374 | DT94: 7.894050877

Sheet Profiles (hidden)
A1: Displaced Electricity | B1: =deinput -> 2 | C1: =LOOKUP(deinput,Lists!A25:A40,Lists!B25:B40) -> eGRID Fossil Fuel (2012 data)
B2: =IF(deinput<6,LOOKUP(deinput2,listb6a,listb6),"N/A") -> US Average | C2: State/NERC Region
B4: NOx | C4: =LOOKUP(B1,B11:B26,H11:H26) -> 1.3268 | D4: lb/MWh Average | F4: CH4 | G4: =LOOKUP(B1,B11:B26,K11:K26) -> 0.03388750838 | H4: lb/MWh Average
B5: SO2 | C5: =LOOKUP(B1,B11:B26,I11:I26) -> 2.5741 | D5: lb/MWh Average | F5: N2O | G5: =LOOKUP(B1,B11:B26,L11:L26) -> 0.0226245815 | H5: lb/MWh Average
B6: CO2 | C6: =LOOKUP(B1,B11:B26,J11:J26) -> 1640.1345 | D6: lb/MWh Average
B7: Heat Rate | C7: =LOOKUP(B1,B11:B26,C11:C26) -> 9447.708427 | D7: Btu/kWh Average
A9: Generation Sources
A10: Name | B10: Code | C10: Btu/kWh | D10: NOx lb/MMBtu | E10: SO2 lb/MMBtu | F10: CO2 lb/MMBtu | H10: NOx lb/MWh | I10: SO2 lb/MWh | J10: CO2 lb/MWh | K10: CH4 lb/MWh | L10: N2O lb/MWh
A11: EGrid Annual Average | B11: 1 | C11: =LOOKUP(deinput2,EGRID!$A$7:$A$94,EGRID!$DK$7:$DK$94) -> 6629.577316 | D11: =LOOKUP(deinput2,EGRID!$A$7:$A$94,EGRID!$Z$7:$Z$94) -> 0.1427055625 | E11: =LOOKUP(deinput2,EGRID!$A$7:$A$94,EGRID!$AB$7:$AB$94) -> 0.2846690379 | F11: =LOOKUP(deinput2,EGRID!$A$7:$A$94,EGRID!$AC$7:$AC$94) -> 171.4331214 | H11: =LOOKUP(deinput2,EGRID!$A$7:$A$94,EGRID!$R$7:$R$94) -> 0.9460775597 | I11: =LOOKUP(deinput2,EGRID!$A$7:$A$94,EGRID!$T$7:$T$94) -> 1.887235396 | J11: =LOOKUP(deinput2,EGRID!$A$7:$A$94,EGRID!$U$7:$U$94) -> 1136.529133 | K11: =LOOKUP(deinput2,EGRID!$A$7:$A$94,EGRID!$V$7:$V$94)/1000 -> 0.02377929618 | L11: =LOOKUP(deinput2,EGRID!$A$7:$A$94,EGRID!$W$7:$W$94)/1000 -> 0.01587595695
A12: EGrid Annual Fossil | B12: 2 | C12: =LOOKUP(deinput2,EGRID!$A$7:$A$94,EGRID!$DL$7:$DL$94) -> 9447.708427 | D12: =LOOKUP(deinput2,EGRID!$A$7:$A$94,EGRID!$BG$7:$BG$94) -> 0.1413 | E12: =LOOKUP(deinput2,EGRID!$A$7:$A$94,EGRID!$BO$7:$BO$94) -> 0.2741 | F12: =LOOKUP(deinput2,EGRID!$A$7:$A$94,EGRID!$BS$7:$BS$94) -> 174.6607 | H12: =LOOKUP(deinput2,EGRID!$A$7:$A$94,EGRID!$AO$7:$AO$94) -> 1.3268 | I12: =LOOKUP(deinput2,EGRID!$A$7:$A$94,EGRID!$AW$7:$AW$94) -> 2.5741 | J12: =LOOKUP(deinput2,EGRID!$A$7:$A$94,EGRID!$BA$7:$BA$94) -> 1640.1345 | K12: =LOOKUP(deinput2,EGRID!$A$7:$A$94,EGRID!$AI$7:$AI$94)/1000 -> 0.03388750838 | L12: =LOOKUP(deinput2,EGRID!$A$7:$A$94,EGRID!$AJ$7:$AJ$94)/1000 -> 0.0226245815
A13: EGrid Annual Non-Baseload | B13: 3 | C13: =LOOKUP(deinput2,EGRID!$A$7:$A$94,EGRID!$DM$7:$DM$94) -> 8870.661231 | H13: =LOOKUP(deinput2,EGRID!$A$7:$A$94,EGRID!$BV$7:$BV$94) -> 1.3555 | I13: =LOOKUP(deinput2,EGRID!$A$7:$A$94,EGRID!$BX$7:$BX$94) -> 2.9317 | J13: =LOOKUP(deinput2,EGRID!$A$7:$A$94,EGRID!$BY$7:$BY$94) -> 1549.3559 | K13: =LOOKUP(deinput2,EGRID!$A$7:$A$94,EGRID!$BZ$7:$BZ$94)/1000 -> 0.030994 | L13: =LOOKUP(deinput2,EGRID!$A$7:$A$94,EGRID!$CA$7:$CA$94)/1000 -> 0.0198647
A14: EGrid Annual Coal | B14: 4 | C14: =LOOKUP(deinput2,EGRID!$A$7:$A$94,EGRID!$DN$7:$DN$94) -> 10486.16081 | D14: =LOOKUP(deinput2,EGRID!$A$7:$A$94,EGRID!$BD$7:$BD$94) -> 0.1925 | E14: =LOOKUP(deinput2,EGRID!$A$7:$A$94,EGRID!$BL$7:$BL$94) -> 0.4186 | F14: =LOOKUP(deinput2,EGRID!$A$7:$A$94,EGRID!$BP$7:$BP$94) -> 207.3193963 | H14: =LOOKUP(deinput2,EGRID!$A$7:$A$94,EGRID!$AL$7:$AL$94) -> 2.027 | I14: =LOOKUP(deinput2,EGRID!$A$7:$A$94,EGRID!$AT$7:$AT$94) -> 4.4063 | J14: =LOOKUP(deinput2,EGRID!$A$7:$A$94,EGRID!$AX$7:$AX$94) -> 2173.984529 | K14: =ch4coal*C14/1000 -> 0.2542264826 | L14: =n2ocoal*C14/1000 -> 0.03697839748
A15: EGrid Annual Oil | B15: 5 | C15: =LOOKUP(deinput2,EGRID!$A$7:$A$94,EGRID!$DO$7:$DO$94) -> 10754.15397 | D15: =LOOKUP(deinput2,EGRID!$A$7:$A$94,EGRID!$BE$7:$BE$94) -> 0.3275 | E15: =LOOKUP(deinput2,EGRID!$A$7:$A$94,EGRID!$BM$7:$BM$94) -> 1.294 | F15: =LOOKUP(deinput2,EGRID!$A$7:$A$94,EGRID!$BQ$7:$BQ$94) -> 177.0757891 | H15: =LOOKUP(deinput2,EGRID!$A$7:$A$94,EGRID!$AM$7:$AM$94) -> 3.3875 | I15: =LOOKUP(deinput2,EGRID!$A$7:$A$94,EGRID!$AU$7:$AU$94) -> 13.3836 | J15: =LOOKUP(deinput2,EGRID!$A$7:$A$94,EGRID!$AY$7:$AY$94) -> 1904.3003 | K15: =ch4oil*C15/1000 -> 0.07110646604 | L15: =n2ooil*C15/1000 -> 0.01422129321
A16: EGrid Annual Natural Gas | B16: 6 | C16: =LOOKUP(deinput2,EGRID!$A$7:$A$94,EGRID!$DP$7:$DP$94) -> 7876.171823 | D16: =LOOKUP(deinput2,EGRID!$A$7:$A$94,EGRID!$BF$7:$BF$94) -> 0.0501 | E16: =LOOKUP(deinput2,EGRID!$A$7:$A$94,EGRID!$BN$7:$BN$94) -> 0.0106 | F16: =LOOKUP(deinput2,EGRID!$A$7:$A$94,EGRID!$BR$7:$BR$94) -> 119.4391232 | H16: =LOOKUP(deinput2,EGRID!$A$7:$A$94,EGRID!$AN$7:$AN$94) -> 0.3973 | I16: =LOOKUP(deinput2,EGRID!$A$7:$A$94,EGRID!$AV$7:$AV$94) -> 0.0844 | J16: =LOOKUP(deinput2,EGRID!$A$7:$A$94,EGRID!$AZ$7:$AZ$94) -> 940.7230564 | K16: =ch4gas*C16/1000 -> 0.0173590827 | L16: =n2ogas*C16/1000 -> 0.00173590827
A17: Coal Boiler 3.8 lb/MWh NOx | B17: 7 | C17: 9500 | D17: =H17*1000/C17 -> 0.4 | E17: =I17*1000/C17 -> 0.5263157895 | F17: =J17*1000/C17 -> 207.1 | H17: 3.8 | I17: 5 | J17: =co2coal*C17/1000 -> 1967.45 | K17: =ch4coal*C17/1000 -> 0.230318 | L17: =n2ocoal*C17/1000 -> 0.0335008
A18: Coal Boiler 1.5 lb/MWh NOx | B18: 8 | C18: 9500 | D18: 0.1578947368 | E18: 0.2631578947 | F18: 207.1 | H18: 1.5 | I18: 2.5 | J18: =co2coal*C18/1000 -> 1967.45 | K18: =ch4coal*C18/1000 -> 0.230318 | L18: =n2ocoal*C18/1000 -> 0.0335008
A19: Coal Boiler with SCR 0.8 lb/MWh NOx | B19: 9 | C19: 9500 | D19: 0.08421052632 | E19: 0.1052631579 | F19: 207.1 | H19: 0.8 | I19: 1 | J19: =co2coal*C19/1000 -> 1967.45 | K19: =ch4coal*C19/1000 -> 0.230318 | L19: =n2ocoal*C19/1000 -> 0.0335008
A20: Gas Boiler 0.77 lb/MWh NOx | B20: 10 | C20: 11000 | D20: 0.07 | E20: 0.0005669902913 | F20: 116.9 | H20: 0.77 | I20: =0.000584*C20/1030 -> 0.006236893204 | J20: =co2gas*C20/1000 -> 1285.9 | K20: =ch4gas*C20/1000 -> 0.024244 | L20: =n2ogas*C20/1000 -> 0.0024244
A21: Gas Turbine Peaker 25 ppm | B21: 11 | C21: 12000 | D21: 0.09191176471 | E21: 0.0005669902913 | F21: 116.9 | H21: =25*C21/(ppmbtu*1000) -> 1.102941176 | I21: =0.000584*C21/1030 -> 0.006803883495 | J21: =co2gas*C21/1000 -> 1402.8 | K21: =ch4gas*C21/1000 -> 0.026448 | L21: =n2ogas*C21/1000 -> 0.0026448
A22: Gas combined-cycle 9 ppm | B22: 12 | C22: 8000 | D22: 0.03308823529 | E22: 0.0005669902913 | F22: 116.9 | H22: =9*C22/(ppmbtu*1000) -> 0.2647058824 | I22: =0.000584*C22/1030 -> 0.00453592233 | J22: =co2gas*C22/1000 -> 935.2 | K22: =ch4gas*C22/1000 -> 0.017632 | L22: =n2ogas*C22/1000 -> 0.0017632
A23: Gas combined-cycle 3 ppm | B23: 13 | C23: 7000 | D23: 0.01102941176 | E23: 0.0005669902913 | F23: 116.9 | H23: =3*C23/(ppmbtu*1000) -> 0.07720588235 | I23: =0.000584*C23/1030 -> 0.003968932039 | J23: =co2gas*C23/1000 -> 818.3 | K23: =ch4gas*C23/1000 -> 0.015428 | L23: =n2ogas*C23/1000 -> 0.0015428
A24: User Source 1 | B24: 14 | C24: =SubGenSources!F23 -> 0 | H24: =gennox1 -> 0 | I24: =genso21 -> 0 | J24: =genco21 -> 0
A25: User Source 2 | B25: 15 | C25: =SubGenSources!F24 -> 0 | H25: =gennox2 -> 0 | I25: =genso22 -> 0 | J25: =genco22 -> 0
A26: User Source 3 | B26: 16 | C26: =SubGenSources!F25 -> 0 | H26: =gennox3 -> 0 | I26: =genso23 -> 0 | J26: =genco23 -> 0

Sheet Factors (hidden)
A1: Factors
A3: General Emission Factors
A4: 3.11 | C4: gm/hp-hr to lb/MWh for recip engines
A5: =12/44 -> 0.2727272727 | C5: ratio of carbon to CO2
A6: =2000/2206 -> 0.9066183137 | C6: ratio of tonnes to tons | H6: 7.27
A7: 6.772 | C7: metric tons of Carbon per home | H7: =H6*CO2tocarbon -> 1.982727273
A8: 1.29 | C8: metric tons of Carbon per car
A9: 12000 | C9: Btu per ton of cooling capacity
A10: 10812 | C10: kWh per average U.S. home per year
A11: 0.00341214 | C11: MMBtu/kWh
A12: 675 | C12: gal/vehicle
A13: 0.120405 | C13: MMBtu/gal (gasoline)
A15: Oil
A16: 138000 | C16: Btu/gallon distillate oil
A17: 304 | C17: lb/bbl distillate oil
A18: =A17/42 -> 7.238095238 | B18: lb/gal | C18: distillate oil
A19: 150000 | C19: Btu/gallon residual oil
A20: 331 | C20: lb/bbl residual oil
A21: 163.1 | C21: lb/MMBtu CO2 emission factor
A22: 235 | C22: ppm per lb/MMBtu LHV for diesel @15%O2
A23: 258 | C23: ppm per lb/MMBtu HHV for diesel @15%O2
A24: 780 | C24: ppm per lb/MMBtu HHV for diesel @3%O2
A25: =sulfurppmlow/10000 -> 0.0005 | B25: % | C25: Lower limit of sulfur content
A26: 0.05 | B26: % | C26: Upper limit of sulfur content
A27: 5 | B27: ppm | C27: Lower limit of sulfur content
A28: 5000 | B28: ppm | C28: Upper limit of sulfur content
A29: 20000 | B29: Btu/lb | C29: Heat content of oil (distillate
A30: 0.006612 | C30: lb/MMBtu CH4 emission factor
A31: 0.0013224 | C31: lb/MMBtu N20 emission factor
A33: Natural Gas
A34: 0.4238 | C34: lb/cf heat content of natural gas
A35: 1028 | C35: Btu/cf of natural gas
A36: 7.096743747e-07 | C36: sulfur content of natural gas
A37: 116.9 | C37: lb/MMBtu CO2 emission factor
A38: =ppmbtu*0.91 -> 247.52 | C38: ppm per lb/MMBtu LHV for natural gas @15%O2
A39: 272 | C39: ppm per lb/MMBtu HHV for natural gas @15%O2
A40: 823 | C40: ppm per lb/MMBtu HHV for natural gas @3%O2
A41: 0.002204 | C41: lb/MMBtu CH4 emission factor
A42: 0.0002204 | C42: lb/MMBtu N20 emission factor
A44: Propane
A45: 91600 | C45: Btu/gallon
A46: 139 | C46: lb/MMBtu CO2 emission factor
A47: 7.096743747e-07 | C47: sulfur content of natural gas
A48: 582 | C48: kg/m3
A49: 4.2 | C49: lb/gal
A50: 0.002204 | C50: lb/MMBtu CH4 emission factor
A51: 0.0002204 | C51: lb/MMBtu N20 emission factor
A54: Coal
A55: 21.015 | C55: MMBtu/ton
A56: 207.1 | C56: lb/MMBtu CO2 emission factor
A57: 11175 | B57: Btu/lb
A58: 0.024244 | C58: lb/MMBtu CH4 emission factor
A59: 0.0035264 | C59: lb/MMBtu N20 emission factor
A61: Woody Biomass
A62: 206.7 | C62: lb/MMBtu CO2 emission factor
A63: 7500 | C63: Btu/lb
A64: 0.07 | C64: lb/MMBtu CH4 emission factor
A65: 0.009 | C65: lb/MMBtu N20 emission factor
A68: CHP Technologies
A69: 1 | C69: Accept kW capacity values that are THIS percent of the lowest sample
A70: 1 | C70: Accept kW capacity values that are THIS percent of the highest sample
A71: 0.07 | B71: % | C71: Minimum efficiency of CHP
A72: 0.66 | B72: % | C72: Maximum efficiency of CHP
A73: =3412/effpercenthigh -> 5169.69697 | B73: Btu/kWh HHV | C73: Minimum HHV of CHP
A74: =3412/effpercentlow -> 48742.85714 | B74: Btu/kWh HHV | C74: Maximum HHV of CHP
A75: =A73*0.91 -> 4704.424242 | B75: Btu/kWh LHV | C75: Minimum LHV of CHP
A76: =A74*0.91 -> 44356 | B76: Btu/kWh LHV | C76: Maximum LHV of CHP
A77: 0.05 | C77: Minimum Power to Heat ratio for CHP
A78: 10 | C78: Maximum Power to Heat ratio for CHP
A79: 1 | B79: ppm | C79: Minimum NOx rate for CHP
A80: 200 | B80: ppm | C80: Maximum NOx rate for CHP
A81: 0.05 | B81: gm/hphr | C81: Minimum NOx rate for CHP
A82: 20 | B82: gm/hphr | C82: Maximum NOx rate for CHP
A83: 0.005 | B83: lb/MMBtu | C83: Minimum NOx rate for CHP
A84: 0.8 | B84: lb/MMBtu | C84: Maximum NOx rate for CHP
A85: 0.05 | B85: lb/MMBtu | C85: Minimum NOx rate for CHP
A86: 8 | B86: lb/MMBtu | C86: Maximum NOx rate for CHP
A88: Thermal Production
A89: 0.66 | C89: Minimum efficiecy of thermal production technology
A90: 0.99 | C90: Maximum efficiecy of thermal production technology
A91: 3.5 | C91: Maximum efficiecy of electric technology
A94: 1100 | C94: btu/lb steam
A98: Active Cell Highlighting
B99: Cell to Highlight
A101: Global Warming Potential
A102: CO2 | B102: 1
A103: CH4 | B103: 21
A104: N2O | B104: 310
A107: Fuel and Technology Match
A108: 1
A110: tech
A111: =chptechinput -> 0 | B111: =VLOOKUP(A111,A112:B121,2) ->  | C111: =VLOOKUP(A111,A112:C121,3) -> 
A112: 1 | B112: 1 | C112: 7
A113: 2 | B113: 1 | C113: 7
A114: 3 | B114: 1 | C114: 7
A115: 4 | B115: 1 | C115: 7
A116: 5 | B116: 1 | C116: 7
A117: 6 | B117: 1 | C117: 7
A118: 7 | B118: 1 | C118: 7
A119: 8 | B119: 1 | C119: 7
A120: 9 | B120: 8 | C120: 8
A121: 10 | B121: 8 | C121: 8

Sheet Calc1 (hidden)
A1: Calculations
A3: Total Emissions | B3: CHP | C3: Displaced Generation - Total | D3: Displaced Thermal Supply - Total
A4: Number of CHP Units: | B4: =chpnumunits -> 1
A5: Generating Capacity (kW) | B5: =B28*chpnumunits -> 0
A6: CHP Generation (MWh/year) | B6: =IF(B155>0,dispgridelec,B29*chpnumunits) -> 0
A7: CHP fuel consumption (MMBtu/year) | B7: =B30*chpnumunits -> 0 | C7: =C30*chpnumunits -> 0 | D7: =D30*chpnumunits -> 0
A8: Duct Burner fuel (MMBtu/year) | B8: =B31*chpnumunits -> 0
A11: CHP with Duct Burners
A12: NOx (tons/year) | B12: =B17+B22 -> 0 | C12: =C17 -> 0 | D12: 0
A13: SO2 (tons/year) | B13: =B18+B23 ->  | C13: 0 | D13: 0
A14: CO2 (tons/year) | B14: =B19+B24 ->  | C14: 0 | D14: 0
A16: CHP Unit
A17: NOx (tons/year) | B17: =B40*chpnumunits -> 0 | C17: 0 | D17: =D40 -> 0 | E17: CH4 (tons/year) | F17: =F40*chpnumunits -> 
A18: SO2 (tons/year) | B18: 0 | C18: 0 | D18: =D41 -> 0 | E18: N2O (tons/year) | F18: =F41*chpnumunits -> 
A19: CO2 (tons/year) | B19: 0 | C19: 0 | D19: =D42 -> 0
A21: Duct Burners
A22: NOx (tons/year) | B22: =B45*chpnumunits -> 0 | E22: CH4 (tons/year) | F22: =E112*chpnumunits -> 0
A23: SO2 (tons/year) | B23: =B46*chpnumunits ->  | E23: N2O (tons/year) | F23: =E113*chpnumunits -> 0
A24: CO2 (tons/year) | B24: =B47*chpnumunits -> 
B26: CHP | C26: Displaced Generation per CHP unit | D26: Displaced Thermal Supply per CHP unit
A27: Unit Emissions for CHP System
A28: Generating Capacity (kW) | B28: =ccap -> 0
A29: CHP Generation (MWh/year) | B29: =cMWh -> 0
A30: CHP fuel consumption (MMBtu/year) | B30: =cbtu -> 0 | C30: =B159 -> 0 | D30: =dsbtu -> 0
A31: Duct Burner fuel (MMBtu/year) | B31: =B107 -> 0
A34: CHP with Duct Burners
A35: NOx (tons/year) | B35: =B40+B45 -> 0 | C35: =denoxtons -> 0 | D35: =dsnoxtons -> 0 | E35: CH4 (tons/year) | F35: =F40+F45 -> 
A36: SO2 (tons/year) | B36: =B41+B46 ->  | C36: =deso2tons -> 0 | D36: =dsso2tons -> 0 | E36: N2O (tons/year) | F36: =F41+F46 -> 
A37: CO2 (tons/year) | B37: =B42+B47 ->  | C37: =deco2tons -> 0 | D37: =dsco2tons -> 0
A39: CHP Unit
A40: NOx (tons/year) | B40: =cnoxtons -> 0 | C40: =denoxtons -> 0 | D40: =dsnoxtons -> 0 | E40: CH4 (tons/year) | F40: =E87 -> 
A41: SO2 (tons/year) | B41: =cso2tons -> 0 | C41: =deso2tons -> 0 | D41: =dsso2tons -> 0 | E41: N2O (tons/year) | F41: =E88 -> 
A42: CO2 (tons/year) | B42: =cco2tons -> 0 | C42: =deco2tons -> 0 | D42: =dsco2tons -> 0
A44: Duct Burners
A45: NOx (tons/year) | B45: =B112 -> 0 | E45: CH4 (tons/year) | F45: =E112 -> 0
A46: SO2 (tons/year) | B46: =B113 ->  | E46: N2O (tons/year) | F46: =E113 -> 0
A47: CO2 (tons/year) | B47: =B114 -> 
A49: CHP Technology | B49: =chptechinput -> 0 | C49: =LOOKUP(chptechinput,lista1a,ListA1) -> 
A50: Capacity | B50: =chpcapinput -> 0 | C50: kW
A51: Hours | B51: =IFERROR(IF(inputophours>0,inputophours,IF(dispgridelec>0,dispgridelec/(ccap/1000),8760*inputoppercent)),"-") -> 0 | C51: hours
A52: Percent of hours | B52: =IFERROR(IF(chours>0,chours/8760,inputoppercent),"-") -> 0
A53: Calc Hours
A54: CHP Fuel Input (rounded) | B54: =ROUND(ccap*chr/1000000,1) -> 0 | C54: MMBtu/hr
A56: CHP Fuel | B56: =chpfuelinput -> 0 | C56: =LOOKUP(chpfuelinput,lista6a,lista6) -> 
A57: CHP operating profile | B57: =LOOKUP(chphoursinput,listb3a,listb3) -> 
A58: Max CHP Gen | B58: =ccap*8760/1000 -> 0 | C58: MWh/yr
A59: CHP Gen | B59: =IF(B155>0,B155,ccap*chours/1000) -> 0 | C59: MWh/yr
B60: =cMWh*1000*3412/1000000 -> 0 | C60: MMBtu/yr elec gen equiv
A61: CHP eff input % | B61: =chpeffinput1 -> 0
A62: CHP eff input Btu/kWh HHV | B62: =chpeffinput2 -> 0
A63: CHP eff input Btu/kWh LHV | B63: =chpeffinput3 -> 0
A64: CHP Fuel HHV-LHV | B64: =IF(chpfuelinput=1,ppmbtulhv/ppmbtu,ppmbtudlhv/ppmbtud) -> 0.9108527132
A65: CHP HHV | B65: =IF(chptechinput=6,cbtu/cMWh*1000,IF(B61>0,3413/B61,IF(B62>0,B62,IF(B63>0,B63/B64)))) -> FALSE | C65: Btu/kWh
A66: CHP percent | B66: =IF(chptechinput=6,0,3412/B65) -> 
A68: CHP Fuel input Btu | B68: =IF(chptechinput=6,B100,(cMWh*B65/1000)) -> 0 | C68: MMBtu/year
A70: CHP NOx input ppm | B70: =chpnoxinput1 -> 0 | C70: ppm
A71: CHP NOx input gm/hp-hr | B71: =chpnoxinput2 -> 0 | C71: gm/hp-hr
A72: CHP NOx input lb/MMBtu | B72: =chpnoxinput3 -> 0 | C72: lb/MMBtu
A73: CHP NOx input lb/MWh | B73: =chpnoxinput4 -> 0 | C73: lb/MWh
A74: CHP NOxconv | B74: =IF(chpfuelinput=1,ppmbtu,ppmbtud) -> 258
A75: CHP NOxrate Btu | B75: =IF(B70>0,B70/B74,IF(B71>0,B71*B66*0.866,IF(B72>0,B72,B73*1000/B65))) ->  | C75: lb/MMBtu
A76: CHP NOxrate | B76: =B75*B65/1000 ->  | C76: lb/MWh
A78: CHP NOx | B78: =IF(chr=FALSE,0,cMWh*cnoxrate/2000) -> 0 | C78: tons/year
A80: CHP sulfur % | B80: =chpsulfurinput1 -> 0
A81: CHP sulfur input ppm | B81: =chpsulfurinput2 -> 0 | C81: ppm
A82: Calculated sulfur % | B82: =IF(B80>0,B80,B81/1000000) -> 0
A83: CHP Fuel heat content | B83: =IF(heatinput1>0,heatinput1,IF(heatinput2>0,heatinput2,IF(heatinput3>0,heatinput3,0))) -> 0 | C83: =IF(heatinput1>0,"Btu/cf",IF(heatinput2>0,"Btu/gallon",IF(heatinput3>0,"Btu/lb",0))) -> 0
A84: Adj CHP Fuel Heat content | B84: =IF(heatinput1>0,heatinput1/ngdensity,IF(heatinput2>0,IF(chpfuelinput =5,heatinput2/propDensity,heatinput2/distdensity),IF(heatinput3>0,heatinput3,0))) -> 0 | C84: Btu/lb
A85: CHP massfuel | B85: =IF(B84>0,B68*1000000/(B84*2000),0) -> 0 | C85: tons/year
A86: CHP SO2 | B86: =IF(B81>0,cMWh*cso2rate/2000,B82*B85*2) -> 0 | C86: tons/year
A87: CHP SO2 rate | B87: =IF(B81>0,B81/B74*B65/1000,cso2tons*2000/cMWh) ->  | C87: lb/MWh | D87: CHP CH4 | E87: =cbtu*STMTech!H23/2000 ->  | F87: tons/year
D88: CHP N2O | E88: =cbtu*STMTech!I23/2000 ->  | F88: tons/year
A89: CHP CO2 | B89: =cbtu*co2input/2000 -> 0 | C89: tons/year
A90: CHP CO2 Rate | B90: =cco2tons*2000/cMWh ->  | C90: lb/MWh
A93: Steam Turbine
A94: Steam Consumption lb Steam/hr | B94: =lbsteamperhr -> 0
A95: Steam Consumption MMBtu Steam/hr | B95: =mmbtusteamperhr -> 0
A96: Calc Steam Cons MMBtu/hr | B96: =IF(B95>0,B95,IF(B94>0,B94*lbtobtusteam/1000000,)) -> 0
A98: Boiler Efficiency | B98: =boilereff -> 0
A100: B/ST Fuel Consumption MMBtu/yr | B100: =IFERROR(IF(chptechinput=6,((B96*chours)+(B60/0.95))/B98,0),"-") -> 0
A101: B/ST Steam Displaced MMBtu/yr | B101: =B96*chours -> 0
A104: Duct Burners
A105: Capacity of Duct Burners | B105: =chpduct2 -> 0 | C105: MMBtu/hr
A106: Duct Burner Hours | B106: =IF(chpduct1=1,IF(ducthours1>0,ducthours1,ductpercent*chours),0) -> 0 | C106: hours/year
A107: Duct Burner Btu | B107: =B105*0.88*ducthours -> 0 | C107: MMBtu/year
A109: Duct Burner NOx rate | B109: =IF(chpduct3>0,chpduct3,IF(chpfuelinput=1,chpduct4/ppmbtu,chpduct4/ppmbtud)) -> 0 | C109: lb/MMBtu
A110: Duct Burner SO2 rate | B110: =IF(chpduct1=2,0,cso2rate*1000/chr) ->  | C110: lb/MMBtu | D110: Duct Burner CH4 rate | E110: =IF(chpduct1=2,0,ch4gas) -> 0.002204 | F110: lb/MMBtu
A111: Duct Burner CO2 rate | B111: =IF(chpduct1=2,0,cco2rate*1000/chr) ->  | C111: lb/MMBtu | D111: Duct Burner N2O rate | E111: =IF(chpduct1=2,0,n2ogas) -> 0.0002204 | F111: lb/MMBtu
A112: Duct Burner NOx | B112: =B109*B107/2000 -> 0 | C112: tons/year | D112: Duct Burner CH4 | E112: =E110*B107/2000 -> 0 | F112: tons/year
A113: Duct Burner SO2 | B113: =B110*B107/2000 ->  | C113: tons/year | D113: Duct Burner N2O | E113: =E111*B107/2000 -> 0 | F113: tons/year
A114: Duct Burner CO2 | B114: =B111*B107/2000 ->  | C114: tons/year
A117: Cooling
A118: Chiller | B118: =coolinput3 -> 0 | C118: =LOOKUP(B118,lista9a,lista9e) -> 
A119: Cooling Hours | B119: =IF(chpheatcoolboth=3,IF(coolhours>0,coolhours,coolpercent*chours),IF(chpheatcoolboth=2,IF(coolhours>0,coolhours,coolpercent*chours),0)) -> 0 | C119: Hours/year
A120: Available Thermal | B120: =IF(chpphinput>0,chpnumunits*(ccap*3.412/(chpphinput*1000)+B105),0) -> 0 | C120: MMBtu/hr
A121: Available based on user data (not rounded) | B121: =(coolavailablemmbturaw*1000000/coolbtuton) -> 0 | C121: tons of cooling
A122: Available based on user data | B122: =ROUNDDOWN(coolavailablemmbturaw*1000000/coolbtuton,1) -> 0 | C122: tons of cooling
A123: Available based on user data (not rounded) | B123: =(B120*coolinput3a) -> 0 | C123: MMBtu/hr of cooling
A124: Available based on user data | B124: =ROUNDDOWN(B120*coolinput3a,1) -> 0 | C124: MMBtu/hr of cooling
A126: CHP Cooling COP | B126: =coolinput3a -> 0 | C126: COP
A127: Cooling | B127: =IF(coolinput2a>0,coolinput2a*12000/1000000,coolinput2b) -> 0 | C127: MMBtu/hr
A128: Thermal Demand for cooling | B128: =IF(B126>0,B127/B126,0) -> 0 | C128: MMBtu/hr
A129: Thermal Demand for cooling | B129: =B128*B119 -> 0 | C129: MMBtu/year
A130: Excess Thermal | B130: =B119*(B120-B128) -> 0 | C130: MMBtu/year
A131: Lost Simultaneous Heating | B131: =IF(chpheatcoolsimultaneous=2,B130,0) -> 0 | C131: MMBtu/year
A132: Off season heating | B132: =B120*(chours-B119) -> 0 | C132: MMBtu/year
A134: Displaced Cooling Technology | B134: =cooldisp1 -> 0 | C134: =LOOKUP(B134,listh3a,listh3) -> 
A135: Displaced Cooling COP | B135: =IF(cooldisp2>0,3.517/cooldisp2,cooldisp3) -> 0 | C135: COP
A136: Displaced Cooling Elec Demand | B136: =IF(B135>0,B127/B135,0) -> 0 | C136: MMBtu/hr
A137: Displaced Cooling Elec Demand | B137: =B136/3.412 -> 0 | C137: MWh/hr
A138: Displaced Cooling Elec Demand | B138: =B137*B119*thermutil -> 0 | C138: MWh/year
A142: Displaced Generation
A143: DE method input | B143: =deinput1 -> 2 | C143: =LOOKUP(B143,listb5a,listb5) -> eGRID Fossil Fuel (2012 data)
A144: EGrid State | B144: =deinput2 -> 1 | C144: =LOOKUP(deinput2,listb6a,listb6) -> US Average
A145: DE NOx rate | B145: =Profiles!C4 -> 1.3268 | C145: lb/MWh | D145: DE CH4 rate | E145: =Profiles!G4 -> 0.03388750838 | F145: lb/MWh
A146: DE SO2 rate | B146: =Profiles!C5 -> 2.5741 | C146: lb/MWh | D146: DE N2O rate | E146: =Profiles!G5 -> 0.0226245815 | F146: lb/MWh
A147: DE CO2 rate | B147: =Profiles!C6 -> 1640.1345 | C147: lb/MWh
A148: DE Heat Rate | B148: =Profiles!C7 -> 9447.708427 | C148: Btu/kWh
A149: Displaced Generation (CHP) | B149: =cMWh -> 0 | C149: MWh/year per CHP unit
A150: Displaced Generation (Cooling) | B150: =B138/chpnumunits -> 0 | C150: MWh/year per CHP unit
A151: Displaced Generation (heating) | B151: =B192 -> 0 | C151: MWh/year per CHP unit
A152: Transmission Losses | B152: =lossinput -> 0.0833
A153: Transmission Losses | B153: =(B149+B150+B151)*B152 -> 0 | C153: MWh/year per CHP unit
A154: Total Displaced Generating - Calc | B154: =B149+B150+B151+B153 -> 0 | C154: MWh/year per CHP unit
A155: Total Displaced Generating - Manual | B155: =dispgridelec -> 0 | C155: MWh/year (estimated by user)
A156: DE NOx | B156: =denoxrate*B154/2000 -> 0 | C156: tons/year per CHP unit | D156: DE CH4 | E156: =dech4rate*B154/2000 -> 0 | F156: tons/year per CHP unit
A157: DE SO2 | B157: =deso2rate*B154/2000 -> 0 | C157: tons/year per CHP unit | D157: DE N2O | E157: =den2orate*B154/2000 -> 0 | F157: tons/year per CHP unit
A158: DE CO2 | B158: =deco2rate*B154/2000 -> 0 | C158: tons/year per CHP unit
A159: DE MMBtu | B159: =deheatrate*B154/1000 -> 0 | C159: MMBtu/year per CHP unit
A162: Displaced Thermal Supply
A163: Thermal Utilization % | B163: =thermutil -> 0
A164: Power to Heat ratio | B164: =IF(chpphinput=0,0,IF(chptechinput=9,0,IF(chpphinput>0,chpphinput,B60/B100))) -> 0
A165: Heat from CHP units | B165: =IF(chptechinput=6,B101/boilereff,IF(chpphinput=0,0,IF(chptechinput=9,0,chpnumunits*(cMWh*3.412/(B164))))) -> 0 | C165: MMBtu/yr
A166: Heat from Duct Burners | B166: =chpnumunits*B107 -> 0 | C166: MMBtu/yr
A167: Heat from CHP units to cooling | B167: =B129 -> 0 | C167: MMBtu/yr
A168: Heat from CHP units "lost" | B168: =B131 -> 0 | C168: MMBtu/yr
A169: Heat from CHP units to thermal use | B169: =IF(chpheatcoolboth<>2,B165+B166-B167-B168,0) -> 0 | C169: MMBtu/yr
A170: Heat from WHP to thermal use | B170: =IF(whptherminput>0,whptherminput*chours) -> FALSE | C170: MMBtu/yr | D170: =MAX(B169:B170)*B163 -> 0
A171: Stm source input | B171: =stminput1 -> 0 | C171: =IF(stminput1>0,LOOKUP(stminput1,listd2a,listd2)," ") -> 
A172: Stm sulfur input % | B172: =stmsulfurinput1 -> 0
A173: Stm sulfur input ppm | B173: =stmsulfurinput2 -> 0
A174: Calculated Stm sulfur % | B174: =IF(B172>0,B172,IF(B173>0,B173/1000000,IF(stminput1>0,STMTech!E4,0))) -> 0
A175: Stm Efficiency | B175: =stmeff -> 0
A176: Stm BoilFuel | B176: =IF(dispboilerfuel>0,dispboilerfuel,IF(D170>0,IF(B175>0,D170/B175,0),0)) -> 0 | C176: MMBtu/year
A177: Max Stm BoilFuel | B177: =(chpnumunits*(IF(B119>0,((chours-IF(chpheatcoolsimultaneous=1,MAX(coolinput2a/coolavailabletons,coolinput2b/coolavailableMMBtu),1)*B119)/chours),1)*cMWh*3.412/(B164)/B175)) ->  | C177: MMBtu/year
A178: STM Fuel heat content | B178: =IF(stmheatinput1>0,stmheatinput1,IF(stmheatinput2>0,stmheatinput2,IF(stmheatinput3>0,stmheatinput3,0))) -> 0 | C178: =IF(stmheatinput1>0,"Btu/cf",IF(stmheatinput2>0,"Btu/gallon",IF(stmheatinput3>0,"Btu/lb"," "))) -> 
A179: Adj STM Fuel Heat content | B179: =IF(stmheatinput1>0,stmheatinput1/ngdensity,IF(stmheatinput2>0,stmheatinput2/distdensity,IF(stmheatinput3>0,stmheatinput3,0))) -> 0 | C179: Btu/lb
A180: Stm boil fuel mass | B180: =IF(B179>0,dsbtu*1000000/(B179*2000),0) -> 0 | C180: tons/year
A181: Stm SO2 | B181: =B174*B180*2 -> 0 | C181: tons/year
A182: Stm NOx rate | B182: =IF(stmnoxinput>0,stmnoxinput,IF(stminput1<>0,STMTech!D4,0)) -> 0 | C182: lb/MMBtu | D182: Stm CH4 rate | E182: =IF(stminput1<>0,STMTech!J4,0) -> 0 | F182: lb/MMBtu
A183: Stm NOx | B183: =B182*dsbtu/2000 -> 0 | C183: tons/year | D183: Stm CH4 | E183: =E182*dsbtu/2000 -> 0 | F183: tons/year
A184: Stm CO2 rate | B184: =IF(stmco2input>0,stmco2input,IF(stminput1<>0,STMTech!G4,0)) -> 0 | C184: lb/MMBtu | D184: Stm N2O rate | E184: =IF(stminput1<>0,STMTech!K4,0) -> 0 | F184: lb/MMBtu
A185: Stm Co2 | B185: =B184*dsbtu/2000 -> 0 | C185: tons/year | D185: Stm N2O | E185: =E184*dsbtu/2000 -> 0 | F185: tons/year
A187: Displaced Heating Electricity
A188: Heat from CHP units to thermal use | B188: =IF(stminput1=9,D170,0) -> 0 | C188: MMBtu/year
A189: Electric Efficiency of Heating Unit | B189: =stmeff -> 0
B190: =IF(B188>0,B188/B189/chours,0) -> 0 | C190: MMBtu/hr
A191: Displaced Heating Elec Demand | B191: =B190/3.412 -> 0 | C191: MWh/hr
A192: Displaced Heating Elec Demand | B192: =B191*chours -> 0 | C192: MWh/year
